Workbook

Sheet RESUMO MODULO TOTAL
A1: ='RESUMO MODULO MINIMO'!A1 -> EXECUÇÃO DE SERVIÇOS DE IMPLANTAÇÃO DE PAVIMENTAÇÃO EM BLOCO DE CONCRETO INTERTRAVADO, EM VIAS URBANAS E RURAIS DE MUNÍCIPIOS DIVERSOS INSERIDOS NA ÁREA DE ATUAÇÃO DA CODEVASF, NO ESTADO DO TOCANTINS
A5: =A1 -> EXECUÇÃO DE SERVIÇOS DE IMPLANTAÇÃO DE PAVIMENTAÇÃO EM BLOCO DE CONCRETO INTERTRAVADO, EM VIAS URBANAS E RURAIS DE MUNÍCIPIOS DIVERSOS INSERIDOS NA ÁREA DE ATUAÇÃO DA CODEVASF, NO ESTADO DO TOCANTINS
A6: ITEM | B6: ORIGEM COMPOSIÇÃO | C6: CÓDIGO COMPOSIÇÃO | D6: DISCRIMINAÇÃO DOS SERVIÇOS | H6: BDI %: | I6: =BDI!$D$24 -> 0.2158381752 | J6: R$/m² | K6: =L33/I15 -> 155.2773984 | L6: PERCENTUAL DE RISCO
H7: Total de m² | I7: Encargos Sociais: | J7: Horista | K7: Mensalista | L7: 0.0122
H8: =I15 -> 385000 | J8: ='ENC. SOCIAIS'!$E$51 -> 118.37 | K8: ='ENC. SOCIAIS'!$F$51 -> 74.59
H9: UND | I9: QTDE. | J9: PREÇO UNITÁRIO COM BDI COM RISCO 0 (R$) | K9: PREÇO TOTAL COM BDI RISCO 0 (R$) | L9: PREÇO TOTAL COM CONTINGÊNCIA (R$) | R9: TOTAL
D10: MOBILIZAÇÃO | O10: Índices de reajustamento
A11: 1 | B11: Codevasf | C11: Composição Própria | D11: Implantação da Obra | H11: módulo | I11: ='MC MODULO'!N17 -> 55 | J11: ='SERVIÇOS PRELI'!I15 -> 1258.83 | K11: =ROUND(I11*J11,2) -> 69235.65 | L11: =K11*(1+$L$7) -> 70080.32493 | M11: INCC | N11: =SUMIF(M11:M32,"INCC",L11:L32) -> 1285668.382 | O11: =N11/$N$15 -> 0.02150601716 | P11: INCC | R11: 69798.85
A12: 2 | B12: Codevasf | C12: Composição Própria | D12: Administração da Obra | H12: módulo | I12: ='MC MODULO'!N22 -> 55 | J12: ='SERVIÇOS PRELI'!$I$24 -> 5148.45 | K12: =ROUND(I12*J12,2) -> 283164.75 | L12: =K12*(1+$L$7) -> 286619.36 | M12: INCC | N12: =SUMIF(M11:M32,"T",L11:L32) -> 447761.853 | O12: =N12/$N$15 -> 0.007489936153 | P12: T | R12: 285468.7
A13: 3 | B13: Codevasf | C13: Composição Própria | D13: Placa de Obra em Chapa de Aço Galvanizado | H13: und | I13: 55 | J13: ='SERVIÇOS PRELI'!I19 -> 607.49 | K13: 33411.95 | L13: 33819.57579 | M13: INCC | N13: =SUMIF(M11:M32,"P",L11:L32) -> 54920771.37 | O13: 0.9186871732 | P13: P | R13: 33684.2
D14: TERRAPLENAGEM | N14: =SUMIF(M11:M32,"D",L11:L32) -> 3127596.78 | O14: 0.05231687344 | P14: D
A15: 4 | B15: Codevasf | C15: Composição Própria | D15: serviços topográficos para pavimentação, inclusive notas de serviços, acompanhamento e greide | H15: m² | I15: ='MC MODULO'!P29 -> 385000 | J15: ='CPU CODEVASF'!H90 -> 0.35 | K15: =ROUND(I15*J15,2) -> 134750 | L15: =K15*(1+$L$7) -> 136393.95 | M15: T | N15: =SUM(N11:N14) -> 59781798.38 | O15: =SUM(O11:O14) -> 1 | R15: 138600
A16: 5 | B16: SICRO | C16: 5502114 | D16: Escavação, carga e transporte de material de 1ª categoria - DMT de 1.000 a 1.200 m - caminho de serviço em leito natural - com escavadeira e caminhão basculante de 14 m³ | H16: m³ | I16: ='MC MODULO'!R34 -> 38500 | J16: =CPU_SICRO!I215 -> 6.47 | K16: 249095 | L16: 252133.959 | M16: T | R16: 251020
A17: 6 | B17: SICRO | C17: 4413942 | D17: Espalhamento de material em bota-fora | H17: m³ | I17: ='MC MODULO'!R41 -> 38500 | J17: =CPU_SICRO!I247 -> 1.52 | K17: 58520 | L17: 59233.944 | M17: T | R17: 58905
D18: PAVIMENTAÇÃO | N18: 0.4
A19: 7 | B19: SINAPI | C19: 92394 | D19: Execução de Pavimento em Piso Intertravado, com Bloco Sextavado de 25 X 25 cm, espessura 8 cm. AF_12/2015 | H19: m² | I19: ='MC MODULO'!P49 -> 385000 | J19: ='CPU SINAPI'!$G$5 -> 109.470984 | K19: =ROUND(I19*J19,2) -> 42146328.84 | L19: =K19*(1+$L$7) -> 42660514.05 | M19: P | N19: =I19*N18 -> 154000 | R19: 42488978.84
A20: 8 | B20: SICRO | C20: 4011276 | D20: Base ou sub-base de brita graduada com brita comercial | H20: m³ | I20: ='MC MODULO'!R55 -> 57750 | J20: =CPU_SICRO!$I$36 -> 203.34 | K20: 11742885 | L20: 11886148.2 | M20: P | N20: =I20*N18 -> 23100 | R20: 11838750
A21: 9 | B21: SICRO | C21: 4011209 | D21: Regularização do subleito | H21: m² | I21: ='MC MODULO'!R61 -> 385000 | J21: =CPU_SICRO!$I$72 -> 0.96 | K21: 369600 | L21: 374109.12 | M21: P | R21: 369600
D22: SINALIZAÇÃO | O22: =164*I22 -> 0
A23: 10 | B23: SICRO | C23: 5213440 | D23: Fornecimento e implantação de placa de regulamentação em aço D = 0,60 m - película retrorrefletiva tipo I + SI | H23: und | I23: ='MC MODULO'!R69 -> 27.5 | J23: =CPU_SICRO!$I$107 -> 240.1 | K23: =ROUND(I23*J23,2) -> 6602.75 | L23: =K23*(1+$L$7) -> 6683.30355 | M23: INCC | R23: 6656.38
A24: 11 | B24: SICRO | C24: 5213863 | D24: Suporte metálico galvanizado para placa de advertência ou regulamentação - lado ou diâmetro de 0,60 m - fornecimento e instalação | H24: und | I24: ='MC MODULO'!R75 -> 27.5 | J24: =CPU_SICRO!$I$147 -> 350.23 | K24: 9631.33 | L24: 9748.832226 | M24: INCC | R24: 9709.43
D25: DRENAGEM
A26: 12 | B26: SICRO | C26: 2003373 | D26: Meio fio de concreto - MFC 03 - areia e brita comerciais - fôrma de madeira | H26: m | I26: ='MC MODULO'!R82 -> 110000 | J26: =CPU_SICRO!I181 -> 28.09 | K26: =ROUND(I26*J26,2) -> 3089900 | L26: =K26*(1+$L$7) -> 3127596.78 | M26: D | N26: =I26*N18 -> 44000 | R26: 3115200
D27: LIMPEZA GERAL
A28: 13 | B28: Codevasf | C28: Composição Própria | D28: Limpeza Geral | H28: m² | I28: ='MC MODULO'!R90 -> 385000 | J28: ='CPU CODEVASF'!$H$66 -> 0.94 | K28: =ROUND(I28*J28,2) -> 361900 | L28: =K28*(1+$L$7) -> 366315.18 | M28: INCC | R28: 361900
D29: SERVIÇOS COMPLEMENTARES
A30: 14 | B30: Codevasf | C30: Composição Própria | D30: Conserto de quebra no ramal na rua sem pavimento com fornecimento de material hidráulico | H30: m | I30: ='MC MODULO'!R97 -> 5500 | J30: ='CPU CODEVASF'!H77 -> 17.26 | K30: =ROUND(I30*J30,2) -> 94930 | L30: =K30*(1+$L$7) -> 96088.146 | M30: INCC | R30: 95755
D31: PROJETO EXECUTIVO
A32: 15 | B32: Codevasf | C32: Composição Própria | D32: Projeto Executivo | H32: km | I32: ='MC MODULO'!R104 -> 55 | J32: ='Projeto Executivo'!G32 -> 7478.106368 | K32: =ROUND(I32*J32,2) -> 411295.85 | L32: =K32*(1+$L$7) -> 416313.6594 | M32: INCC | R32: 411295.85
A33: VALOR TOTAL DO SRP | K33: =SUM(K11:K32) -> 59061251.12 | L33: =SUM(L11:L32) -> 59781798.38 | R33: =SUM(R11:R32) -> 59535322.25

Sheet CRONOGRAMA TOTAL
A2: ='RESUMO MODULO MINIMO'!$A$5 -> EXECUÇÃO DE SERVIÇOS DE IMPLANTAÇÃO DE PAVIMENTAÇÃO EM BLOCO DE CONCRETO INTERTRAVADO, EM VIAS URBANAS E RURAIS DE MUNÍCIPIOS DIVERSOS INSERIDOS NA ÁREA DE ATUAÇÃO DA CODEVASF, NO ESTADO DO TOCANTINS
A3: Cronograma Físico e Financeiro
A4: Item | B4: Descrição | C4: Total Por Etapa | D4: 30 DIAS | E4: 60 DIAS | F4: 90 DIAS | G4: 120 DIAS | H4: 150 DIAS | I4: 180 DIAS | J4: 210 DIAS | K4: 240 DIAS | L4: 270 DIAS | M4: 300 DIAS | N4: 330 DIAS | O4: 360 DIAS
B5: ='RESUMO MODULO MINIMO'!$D$10 -> MOBILIZAÇÃO | C5: 1 | E5: =$C$5/11 -> 0.09090909091 | F5: 0.09090909091 | G5: 0.09090909091 | H5: 0.09090909091 | I5: 0.09090909091 | J5: 0.09090909091 | K5: 0.09090909091 | L5: 0.09090909091 | M5: 0.09090909091 | N5: 0.09090909091 | O5: 0.09090909091 | Q5: =SUM(D5:O5) -> 1
C6: =SUM('RESUMO MODULO TOTAL'!L11:L13) -> 390519.2607 | E6: =$C$6*E5 -> 35501.75097 | F6: 35501.75097 | G6: 35501.75097 | H6: 35501.75097 | I6: 35501.75097 | J6: 35501.75097 | K6: 35501.75097 | L6: 35501.75097 | M6: 35501.75097 | N6: 35501.75097 | O6: 35501.75097 | Q6: =SUM(D6:O6) -> 390519.2607 | R6: =C6 -> 390519.2607 | S6: =Q6-R6 -> 0
B7: ='RESUMO MODULO MINIMO'!D14 -> TERRAPLENAGEM | C7: 1 | F7: =$C$9/10 -> 0.1 | G7: 0.1 | H7: 0.1 | I7: 0.1 | J7: 0.1 | K7: 0.1 | L7: 0.1 | M7: 0.1 | N7: 0.1 | O7: 0.1 | Q7: =SUM(F7:O7) -> 1
C8: =SUM('RESUMO MODULO TOTAL'!L15:L17) -> 447761.853 | F8: =$C$8*F7 -> 44776.1853 | G8: 44776.1853 | H8: 44776.1853 | I8: 44776.1853 | J8: 44776.1853 | K8: 44776.1853 | L8: 44776.1853 | M8: 44776.1853 | N8: 44776.1853 | O8: 44776.1853 | Q8: 447761.853 | R8: =C8 -> 447761.853 | S8: =Q8-R8 -> 0
B9: ='RESUMO MODULO MINIMO'!$D$18 -> PAVIMENTAÇÃO | C9: 1 | F9: =$C$9/10 -> 0.1 | G9: 0.1 | H9: 0.1 | I9: 0.1 | J9: 0.1 | K9: 0.1 | L9: 0.1 | M9: 0.1 | N9: 0.1 | O9: 0.1 | Q9: 1
C10: =SUM('RESUMO MODULO TOTAL'!L19:L21) -> 54920771.37 | F10: =$C$10*F9 -> 5492077.137 | G10: 5492077.137 | H10: 5492077.137 | I10: 5492077.137 | J10: 5492077.137 | K10: 5492077.137 | L10: 5492077.137 | M10: 5492077.137 | N10: 5492077.137 | O10: 5492077.137 | Q10: 54920771.37 | R10: =C10 -> 54920771.37 | S10: =Q10-R10 -> 0
B11: ='RESUMO MODULO MINIMO'!$D$22 -> SINALIZAÇÃO | C11: 1 | F11: =$C$11/10 -> 0.1 | G11: =(100%-$F$11)/9 -> 0.1 | H11: 0.1 | I11: 0.1 | J11: 0.1 | K11: 0.1 | L11: 0.1 | M11: 0.1 | N11: 0.1 | O11: 0.1 | Q11: 1
C12: =SUM('RESUMO MODULO TOTAL'!L23:L24) -> 16432.13578 | F12: =$C$12*F11 -> 1643.213578 | G12: 1643.213578 | H12: 1643.213578 | I12: 1643.213578 | J12: 1643.213578 | K12: 1643.213578 | L12: 1643.213578 | M12: 1643.213578 | N12: 1643.213578 | O12: 1643.213578 | Q12: 16432.13578 | R12: =C12 -> 16432.13578 | S12: =Q12-R12 -> 0
B13: ='RESUMO MODULO MINIMO'!$D$25 -> DRENAGEM | C13: 1 | F13: =$C$13/10 -> 0.1 | G13: 0.1 | H13: 0.1 | I13: 0.1 | J13: 0.1 | K13: 0.1 | L13: 0.1 | M13: 0.1 | N13: 0.1 | O13: 0.1 | Q13: =SUM(D13:O13) -> 1
C14: =SUM('RESUMO MODULO TOTAL'!L26) -> 3127596.78 | F14: =$C$14*F13 -> 312759.678 | G14: 312759.678 | H14: 312759.678 | I14: 312759.678 | J14: 312759.678 | K14: 312759.678 | L14: 312759.678 | M14: 312759.678 | N14: 312759.678 | O14: 312759.678 | Q14: 3127596.78 | R14: =C14 -> 3127596.78 | S14: =Q14-R14 -> 0
B15: ='RESUMO MODULO MINIMO'!$D$27 -> LIMPEZA GERAL | C15: 1 | F15: =100%/10 -> 0.1 | G15: 0.1 | H15: 0.1 | I15: 0.1 | J15: 0.1 | K15: 0.1 | L15: 0.1 | M15: 0.1 | N15: 0.1 | O15: 0.1 | Q15: 1
C16: ='RESUMO MODULO TOTAL'!L28 -> 366315.18 | F16: =$C$16*F15 -> 36631.518 | G16: 36631.518 | H16: 36631.518 | I16: 36631.518 | J16: 36631.518 | K16: 36631.518 | L16: 36631.518 | M16: 36631.518 | N16: 36631.518 | O16: 36631.518 | Q16: 366315.18 | R16: =C16 -> 366315.18 | S16: =Q16-R16 -> 0
B17: ='RESUMO MODULO MINIMO'!D29 -> SERVIÇOS COMPLEMENTARES | C17: 1 | F17: =100%/10 -> 0.1 | G17: 0.1 | H17: 0.1 | I17: 0.1 | J17: 0.1 | K17: 0.1 | L17: 0.1 | M17: 0.1 | N17: 0.1 | O17: 0.1 | Q17: 1
C18: ='RESUMO MODULO TOTAL'!L30 -> 96088.146 | F18: =$C$18*F17 -> 9608.8146 | G18: 9608.8146 | H18: 9608.8146 | I18: 9608.8146 | J18: 9608.8146 | K18: 9608.8146 | L18: 9608.8146 | M18: 9608.8146 | N18: 9608.8146 | O18: 9608.8146 | Q18: 96088.146 | R18: =C18 -> 96088.146 | S18: =Q18-R18 -> 0
B19: ='RESUMO MODULO MINIMO'!$D$31 -> PROJETO EXECUTIVO | C19: 1 | D19: 0.5 | E19: 0.5 | Q19: 1
C20: ='RESUMO MODULO TOTAL'!L32 -> 416313.6594 | D20: =$C$20*D19 -> 208156.8297 | E20: =$C$20*E19 -> 208156.8297 | Q20: 416313.6594 | R20: =C20 -> 416313.6594 | S20: =Q20-R20 -> 0
A22: Porcentagem | D22: =SUM(D6+D8+D10+D12+D14+D16+D18+D20)/$O$27 -> 0.003481943256 | E22: 0.004075798776 | F22: 0.0992442258 | G22: 0.0992442258 | H22: 0.0992442258 | I22: 0.0992442258 | J22: 0.0992442258 | K22: 0.0992442258 | L22: 0.0992442258 | M22: 0.0992442258 | N22: 0.0992442258 | O22: 0.0992442258
A23: Custo | D23: =$O$27*D22 -> 208156.8297 | E23: 243658.5807 | F23: 5932998.297 | G23: 5932998.297 | H23: 5932998.297 | I23: 5932998.297 | J23: 5932998.297 | K23: 5932998.297 | L23: 5932998.297 | M23: 5932998.297 | N23: 5932998.297 | O23: 5932998.297
A24: Porcentagem Acumulado | D24: =D22 -> 0.003481943256 | E24: =D24+E22 -> 0.007557742031 | F24: 0.1068019678 | G24: 0.2060461936 | H24: 0.3052904194 | I24: 0.4045346452 | J24: 0.503778871 | K24: 0.6030230968 | L24: 0.7022673226 | M24: 0.8015115484 | N24: 0.9007557742 | O24: 1
A25: Custo Acumulado | D25: =D23 -> 208156.8297 | E25: =D25+E23 -> 451815.4103 | F25: 6384813.708 | G25: 12317812.01 | H25: 18250810.3 | I25: 24183808.6 | J25: 30116806.9 | K25: 36049805.19 | L25: 41982803.49 | M25: 47915801.79 | N25: 53848800.09 | O25: 59781798.38
D27: Total Geral | N27: R$ | O27: ='RESUMO MODULO TOTAL'!L33 -> 59781798.38

Sheet SERVIÇOS PRELI
A4: ='RESUMO MODULO MINIMO'!A1 -> EXECUÇÃO DE SERVIÇOS DE IMPLANTAÇÃO DE PAVIMENTAÇÃO EM BLOCO DE CONCRETO INTERTRAVADO, EM VIAS URBANAS E RURAIS DE MUNÍCIPIOS DIVERSOS INSERIDOS NA ÁREA DE ATUAÇÃO DA CODEVASF, NO ESTADO DO TOCANTINS
G5: BDI %: | H5: =BDI!$D$24 -> 0.2158381752
F6: Encargos Sociais: | H6: Horista | I6: Mensalista
H7: ='ENC. SOCIAIS'!$E$51/100 -> 1.1837 | I7: ='ENC. SOCIAIS'!$F$51/100 -> 0.7459
A8: Anexo VI - Planilhas Orçamentárias
A9: PLANILHA ORÇAMENTARIA NÁO DESONERADA -Janeiro/2020
A10: ITEM | B10: CPUs | C10: Fonte | D10: Cód. | E10: DISCRIMINAÇÃO DOS SERVIÇOS | F10: UND | G10: QTDE. | H10: PREÇO UNITÁRIO (R$) | I10: TOTAL
A12: 1 | B12: IMPLANTAÇÃO DA OBRA
A13: 1.1 | B13: SERVIÇOS INICIAIS
A14: 1.1.1 | B14: CPU-02 | C14: CODEVASF | D14: 72840 | E14: MOBILIZAÇÃO E DESMOBILIZAÇÃO | F14: und | G14: 1 | H14: ='CPU CODEVASF'!$H$36 -> 1258.83 | I14: =ROUND(G14*H14,2) -> 1258.83
F15: ITEM 1: | H15: TOTAL | I15: =SUM(I14:I14) -> 1258.83
A17: 2 | B17: PLACA DE OBRA EM CHAPA DE ACO GALVANIZADO
A18: 2.1 | B18: CPU-01 | C18: CODEVASF | D18: 74209/1 | E18: PLACA DE OBRA EM CHAPA DE ACO GALVANIZADO | F18: und | G18: 1 | H18: ='CPU CODEVASF'!$H$24 -> 607.49 | I18: =ROUND(G18*H18,2) -> 607.49
F19: ITEM 1: | H19: TOTAL | I19: =SUM(I18:I18) -> 607.49
A21: 3 | B21: ADMINISTRAÇÃO DA OBRA
A22: 3.1 | B22: CPU-03 | C22: CODEVASF | D22: 2.1 | E22: ADMINISTRAÇÃO LOCAL | F22: % | G22: 1 | H22: ='CPU CODEVASF'!$H$49 -> 4847.07 | I22: =ROUND(G22*H22,2) -> 4847.07
A23: 3.2 | B23: CPU-04 | C23: CODEVASF | D23: 2.2 | E23: CANTEIRO DE OBRAS E ALMOXARIFADO | F23: MÊS | G23: 1 | H23: ='CPU CODEVASF'!$H$58 -> 301.38 | I23: =ROUND(G23*H23,2) -> 301.38
F24: ITEM 2: | H24: TOTAL | I24: =SUM(I22:I23) -> 5148.45

Sheet Projeto Executivo
A1: COMPOSIÇAO PREÇO PROJETO EXECUTIVO (POR KM)
A3: DISCRIMINAÇAO | F3: Pr. Unit. | G3: Pr. Total
A5: A· EOUIPE TECNICA | G5: 3342.2
B6: A. 1 - Pessoal de Nível Superior | C6: Unidade | D6: Quantitativo | E6: Código SINAPI | G6: 2483.5
B7: Engenheiro | C7: h | D7: 20 | E7: 34780 | F7: 109.91 | G7: 2198.2
B8: Topógrafo | C8: h | D8: 10 | E8: 7592 | F8: 28.53 | G8: 285.3
B9: A.2 - Pessoal de Nível Técnico e Aux. | G9: 858.7
B10: Auxiliar de topógrafo | C10: h | D10: 10 | E10: 244 | F10: 11.63 | G10: 116.3
B11: Cadista/calculista | C11: h | D11: 20 | E11: 2359 | F11: 37.12 | G11: 742.4
A12: B - ENCARGOS SOCIAIS | G12: 0
B13: Taxas 72,23 % do item "A" | G13: 0
A14: C - DESPESAS GERAIS | G14: 466.086
B15: C.1 - MATERIAIS DE CONSUMO | C15: Estimativa % como referência de equipe técnica com encargos sociais | D15: 0.03 | F15: 3342.2 | G15: 100.266
B16: C.2 - VEÍCULOS | C16: H | D16: 8 | E16: 92144 | F16: 40 | G16: 320
B17: C.3 - COMBUSTÍVEL | C17: L | D17: 2 | E17: 4221 | F17: 4.91 | G17: 9.82
B18: C.3 - EQUIPAMENTOS, INSTALAÇÕES E MOBILIÁRIO | C18: H | D18: 16 | E18: 7247 | F18: 2.25 | G18: 36
A19: D - ENSAIOS | G19: 1720.21
B20: D.1 - ENSAIOS | C20: Composição Ensaios | F20: 1720.21 | G20: 1720.21
A21: I - SOMA (A+B+C+D) | G21: 5528.496
A22: II - CUSTOS ADMINISTRATIVOS (23,74 %) | D22: 0.2257294717 | G22: 1247.944482
A23: II - SOMA | G23: 6776.440482
A24: VI - RELATÓRIOS | C24: Estimativa % como referência soma II | D24: 0.025 | F24: 6776.440482 | G24: 169.411012
A25: V - DESPESAS DIRETAS (3,74%) | C25: Percentual VI | D25: 0.0374 | F25: 6.33597185 | G25: 6.33597185
A26: VI - REMUNERAÇAO DA EMPRESA
B27: Taxas 4,75% | D27: 0.0475 | F27: 0.3009586629 | G27: 0.3009586629
A28: VII - CONTIGÊNCIAS | D28: 0.0577 | F28: 6776.440482 | G28: 391.0006158
A29: VIII - SOMA | G29: 567.0485583
A30: IX - CUSTOS ADMINISTRATIVOS (23,74 %) | D30: 0.2374 | G30: 134.6173278
A31: III - SOMA | G31: 701.6658861
A32: X - TOTAL | G32: 7478.106368

Sheet Ensaios
A1: SERVIÇOS GEOLÓGICOS/GEOTÉCNICOS
A3: NOME DA EMPRESA:
A5: PROJETO: | D5: CONTRATANTE: | F5: EDITAL:
D6: Codevasf (Sede)
A7: Cod. | B7: Insumos | C7: Uni | D7: Qde | E7: Preço Unitário (PU) | F7: Preço Total (PT)
A8: GT01 | B8: Ensaios em solos Umidade Natural | C8: un | D8: 1 | E8: 68.45 | F8: =ROUND(E8*D8,2) -> 68.45
A9: GT02 | B9: Ensaios do Frasco de Areia (in Situ) | C9: un | D9: 1 | E9: 68.45 | F9: 68.45
A10: GT03 | B10: Ensaios em solos Limite de Liquidez | C10: un | D10: 1 | E10: 93.94 | F10: 93.94
A11: GT04 | B11: Ensaios em solos Limite de Plasticidade | C11: un | D11: 1 | E11: 93.94 | F11: 93.94
A12: GT05 | B12: Granulometria por Peneiramento | C12: un | D12: 1 | E12: 107.53 | F12: 107.53
A13: GT06 | B13: Granulometria Completa | C13: un | D13: 1 | E13: 324 | F13: 324
A14: GT07 | B14: Massa Específica Real dos Grãos | C14: un | D14: 1 | E14: 93.15 | F14: 93.15
A15: GT08 | B15: Proctor Normal | C15: un | D15: 2 | E15: 137.23 | F15: 274.46
A16: GT09 | B16: Abrasão "Los Angeles " | C16: un | D16: 1 | E16: 353.09 | F16: 353.09
A17: GT10 | B17: Química da Areia | C17: un | D17: 1 | E17: 392.27 | F17: 392.27
A18: GT11 | B18: Mineralogia da Areia | C18: un | D18: 1 | E18: 451.17 | F18: 451.17
A19: GT12 | B19: Índice de plasticidade (IP) | C19: un | D19: 1 | E19: 100 | F19: 100
A20: GT13 | B20: Índice de Grupo (IG) | C20: un | D20: 1 | E20: 100 | F20: 100
A21: GT14 | B21: Compactação | C21: un | D21: 1 | E21: 100 | F21: 100
A22: GT15 | B22: Índice de Suporte Califórnia | C22: un | D22: 5 | E22: 300 | F22: 1500
A23: GT16 | B23: Equivalente de Areia | C23: un | D23: 1 | E23: 100 | F23: 100
A24: GT17 | B24: Ensaio de Expansão | C24: un | D24: 1 | E24: 100 | F24: 100
A25: GT18 | B25: Unidade Higroscópica | C25: un | D25: 1 | E25: 100 | F25: 100
A26: TOTAL SERVIÇOS GEOTÉCNICOS | F26: =SUM(F8:F25) -> 4420.45
A27: NOME DO INFORMANTE: | E27: QUALIFICAÇÃO:
A29: ASSINATURA: | E29: DATA:

Sheet CPU CODEVASF
A4: ='RESUMO MODULO MINIMO'!A1 -> EXECUÇÃO DE SERVIÇOS DE IMPLANTAÇÃO DE PAVIMENTAÇÃO EM BLOCO DE CONCRETO INTERTRAVADO, EM VIAS URBANAS E RURAIS DE MUNÍCIPIOS DIVERSOS INSERIDOS NA ÁREA DE ATUAÇÃO DA CODEVASF, NO ESTADO DO TOCANTINS
F5: BDI %: | G5: =BDI!$D$24 -> 0.2158381752
E6: Encargos Sociais: | G6: Horista | H6: Mensalista
G7: ='ENC. SOCIAIS'!E51/100 -> 1.1837 | H7: ='ENC. SOCIAIS'!F51/100 -> 0.7459
A8: COMPOSIÇÕES DE CUSTO UNITARIO
A9: CPU-01 | B9: CODEVASF | C9: 74209/1 | D9: PLACA DE OBRA EM CHAPA DE ACO GALVANIZADO | E9: M2 | F9: COEF. | G9: PRECO UNITÁRIO (R$) | H9: TOTAL (R$)
A11: INS. SINAPI | B11: SINAPI | C11: 5075 | D11: PREGO 18X30 | E11: kg | F11: 0.11 | G11: =VLOOKUP($C11,'INSUMOS SINAPI'!$A$8:$E$5281,5,0) -> 18,54 | H11: =ROUND(F11*G11,2) -> 2.04
A12: INS. SINAPI | B12: SINAPI | C12: 4491 | D12: PECA DE MADEIRA NATIVA / REGIONAL 7,5 X 7,5CM (3X3) NAO APARELHADA (P/FORMA) | E12: m | F12: 4 | G12: =VLOOKUP($C12,'INSUMOS SINAPI'!$A$8:$E$5281,5,0) -> 9,65 | H12: 38.6
A13: INS. SINAPI | B13: SINAPI | C13: 4417 | D13: PECA DE MADEIRA DE LEI *2,5 X 7,5* CM (1" X 3"), NÃO APARELHADA, (P/TELHADO) | E13: m | F13: 1 | G13: =VLOOKUP($C13,'INSUMOS SINAPI'!$A$8:$E$5281,5,0) -> 5,44 | H13: 5.44
A14: INS. SINAPI | B14: SINAPI | C14: 4813 | D14: PLACA DE OBRA (PARA CONSTRUCAO CIVIL) EM CHAPA GALVANIZADA *Nº 22*, DE *2,0 X 1,125* M | E14: m² | F14: 1 | G14: =VLOOKUP($C14,'INSUMOS SINAPI'!$A$8:$E$5281,5,0) -> 400,00 | H14: 400
A15: INS. SINAPI | B15: SINAPI | C15: 370 | D15: AREIA MÉDIA | E15: m³ | F15: 0.0049 | G15: =VLOOKUP($C15,'INSUMOS SINAPI'!$A$8:$E$5281,5,0) -> 87,50 | H15: 0.43
A16: INS. SINAPI | B16: SINAPI | C16: 1379 | D16: CIMENTO PORTLAND COMPOSTO CP II-32 | E16: kg | F16: 1.5 | G16: =VLOOKUP($C16,'INSUMOS SINAPI'!$A$8:$E$5281,5,0) -> 0,70 | H16: 1.05
A17: INS. SINAPI | B17: SINAPI | C17: 4718 | D17: PEDRA BRITADA Nº 2 | E17: m³ | F17: 0.0098 | G17: =VLOOKUP($C17,'INSUMOS SINAPI'!$A$8:$E$5281,5,0) -> 77,80 | H17: 0.76
A18: COMP. SINAPI | B18: SINAPI | C18: 87445 | D18: BETONEIRA CAPACIDADE NOMINAL 400 L, CAPACIDADE DE MISTURA 310 L, MOTOR A D CHP IESEL POTÊNCIA 5,0 HP, SEM CARREGADOR - CHP DIURNO. AF_06/2014 | E18: h | F18: 0.0065 | G18: =VLOOKUP($C18,'COMP Sint. Sinapi'!$A$7:$E$6679,5,0) -> 4,04 | H18: 0.03
A19: COMP. SINAPI | B19: SINAPI | C19: 88262 | D19: CARPINTEIRO DE FORMAS COM ENCARGOS COMPLEMENTARES | E19: h | F19: 1 | G19: =VLOOKUP($C19,'COMP Sint. Sinapi'!$A$7:$E$6679,5,0) -> 19,66 | H19: 19.66
A20: COMP. SINAPI | B20: SINAPI | C20: 88316 | D20: SERVENTE COM ENCARGOS COMPLEMENTARES | E20: h | F20: 2.06 | G20: =VLOOKUP($C20,'COMP Sint. Sinapi'!$A$7:$E$6679,5,0) -> 15,36 | H20: 31.64
E21: Sub total: | H21: =SUM(H11:H20) -> 499.65
F22: BDI | G22: =BDI!$D$24 -> 0.2158381752 | H22: =ROUND(H21*G22,2) -> 107.84
G23: Total Serviços: | H23: =H21+H22 -> 607.49
E24: =A9 -> CPU-01 | F24: PREÇO UNITÁRIO TOTAL: | H24: =H23 -> 607.49
A26: CPU-02 | B26: CODEVASF | C26: Propria | D26: MOBILIZAÇÃO E DESMOBILIZAÇÃO | E26: T X KM | F26: COEF. | G26: PRECO UNITÁRIO (R$) | H26: TOTAL (R$)
A28: COMP. SINAPI | B28: SINAPI | C28: 73340 | D28: CAMINHÃO TOCO, PBT 14.300 KG, CARGA ÚTIL MÁX. 9.710 KG, DIST. ENTRE EIXOS 3,56 M, POTÊNCIA 185 CV, INCLUSIVE CARROCERIA FIXA ABERTA DE MADEIRA P/ TR ANSPORTE GERAL DE CARGA SECA, DIMEN. APROX. 2,50 X 6,50 X 0,50 M - MATERIA IS NA OPERAÇÃO. AF_06/2014 | E28: H | F28: 2 | G28: =VLOOKUP($C28,'COMP Sint. Sinapi'!$A$7:$E$6679,5,0) -> 62,24 | H28: =ROUND(F28*G28,2) -> 124.48
A29: COMP. SINAPI | B29: SINAPI | C29: 67826 | D29: CAMINHÃO BASCULANTE 6 M3 TOCO, PESO BRUTO TOTAL 16.000 KG, CARGA ÚTIL MÁXI CHP MA 11.130 KG, DISTÂNCIA ENTRE EIXOS 5,36 M, POTÊNCIA 185 CV, INCLUSIVE CAÇAMBA METÁLICA - CHP DIURNO. AF_06/2014 | E29: CHP | F29: 2 | G29: =VLOOKUP($C29,'COMP Sint. Sinapi'!$A$7:$E$6679,5,0) -> 130,32 | H29: =ROUND(F29*G29,2) -> 260.64 | J29: 1
A30: COMP. SINAPI | B30: SINAPI | C30: 6259 | D30: CAMINHÃO PIPA 6.000 L, PESO BRUTO TOTAL 13.000 KG, DISTÂNCIA ENTRE EIXOS 4 CHP ,80 M, POTÊNCIA 189 CV INCLUSIVE TANQUE DE AÇO PARA TRANSPORTE DE ÁGUA, CAPACIDADE 6 M3 - CHP DIURNO. AF_06/2014 | E30: CHP | F30: 2 | G30: =VLOOKUP($C30,'COMP Sint. Sinapi'!$A$7:$E$6679,5,0) -> 180,28 | H30: =ROUND(F30*G30,2) -> 360.56
A31: COMP. SICRO | B31: SICRO | C31: 5914640 | D31: TRANSPORTE COM CAVALO MECÂNICO COM SEMIRREBOQUE COM CAPACIDADE DE 30 T - RODOVIA PAVIMENTADA | E31: t.km | F31: ='Mob e Desmob'!E31 -> 678.7 | G31: =VLOOKUP($C31,'INSUMOS SICRO'!$B$1749:$E$1749,4,0) -> 0.39 | H31: =ROUND(F31*G31,2) -> 264.69
A32: INSUMO | B32: ORSE | C32: 5896 | D32: VEÍCULO TIPO SEDAN OU PICK-UP CAPACIDADE 0,6 TON | E32: h | F32: 3 | G32: =VLOOKUP(C32,'Relação Insumos'!C:F,4,0) -> 8.33 | H32: =ROUND(F32*G32,2) -> 24.99
E33: Sub total: | H33: =SUM(H28:H32) -> 1035.36
F34: BDI | G34: =BDI!$D$24 -> 0.2158381752 | H34: =ROUND(H33*G34,2) -> 223.47
G35: Total Serviços: | H35: =H33+H34 -> 1258.83
E36: =A26 -> CPU-02 | F36: PREÇO UNITÁRIO TOTAL: | H36: =H35 -> 1258.83
A38: CPU-03 | B38: CODEVASF | D38: ADMINISTRAÇÃO LOCAL | E38: % | F38: COEF. | G38: PRECO UNITÁRIO (R$) | H38: TOTAL (R$)
A40: COMP. SINAPI | B40: SINAPI | C40: 90777 | D40: ENGENHEIRO CIVIL DE OBRA JUNIOR COM ENCARGOS COMPLEMENTARES | E40: H | F40: 20 | G40: =VLOOKUP(C40,'COMP Sint. Sinapi'!A19:E6691,5,0) -> 94,94 | H40: =ROUND(F40*G40,2) -> 1898.8
A41: COMP. SINAPI | B41: SINAPI | C41: 90780 | D41: MESTRE DE OBRAS COM ENCARGOS COMPLEMENTARES | E41: H | F41: 40 | G41: =VLOOKUP(C41,'COMP Sint. Sinapi'!A20:E6692,5,0) -> 32,94 | H41: 1317.6
A42: COMP. SINAPI | B42: SINAPI | C42: 90772 | D42: AUXILIAR DE ESCRITORIO COM ENCARGOS COMPLEMENTARES | E42: H | F42: 40 | G42: =VLOOKUP(C42,'COMP Sint. Sinapi'!A21:E6693,5,0) -> 12,15 | H42: 486
A43: INS. SINAPI | B43: SINAPI | C43: 14250 | D43: ENERGIA ELÉTRICA | E43: KW/H | F43: 100 | G43: =VLOOKUP(C43,'Relação Insumos'!C:F,4,0) -> 0,91 | H43: 91
A44: INS. SINAPI | B44: SINAPI | C44: 14583 | D44: ÁGUA TARIFA "A" ENTRE 0 E 20M3 FORNECIMENTO D'AGUA | E44: M3 | F44: 1 | G44: =VLOOKUP(C44,'Relação Insumos'!C:F,4,0) -> 17,21 | H44: 17.21
A45: INSUMO | B45: ORSE | C45: 4415 | D45: VEÍCULO LEVE - VOLKSWAGEN:GOL 1000 - AUTOMÓVEL ATÉ 100 HP | E45: H | F45: 40 | G45: 4.4 | H45: 176
E46: ADM. LOCAL : | H46: =SUM(H40:H45) -> 3986.61
E47: Total para 6 meses:
E48: =BDI!$D$24 -> 0.2158381752 | H48: =ROUND(E48*H46,2) -> 860.46
E49: =A38 -> CPU-03 | F49: PREÇO TOTAL: | H49: =H46+H48 -> 4847.07
A51: CPU-04 | B51: CODEVASF | D51: CANTEIRO DE OBRAS E ALMOXARIFADO | E51: MÊS | F51: COEF. | G51: PRECO UNITÁRIO (R$) | H51: TOTAL (R$)
A53: INS. SINAPI | B53: SINAPI | C53: 10775 | D53: LOCACAO DE CONTAINER 2,30 X 6,00 M, ALT. 2,50 M, COM 1 SANITARIO, PARA ESCRITORIO, COMPLETO, SEM DIVISORIAS INTERNAS | E53: mês | F53: 0.2 | G53: =VLOOKUP(C53,'Relação Insumos'!C:F,4,0) -> 585,00 | H53: =ROUND(F53*G53,2) -> 117
A54: COMP. ORSE | B54: ORSE | C54: 4299 | D54: ALUGUEL DE CONTAINER - ALMOXARIFADO SEM BANHEIRO - 6,00 X 2,40M | E54: mês | F54: 0.2 | G54: 654.42 | H54: =ROUND(F54*G54,2) -> 130.88
E55: Sub total: | H55: =SUM(H53:H54) -> 247.88
F56: BDI | G56: =BDI!$D$24 -> 0.2158381752 | H56: =ROUND(H55*G56,2) -> 53.5
G57: Total Serviços: | H57: =H55+H56 -> 301.38
E58: =A51 -> CPU-04 | F58: PREÇO UNITÁRIO TOTAL: | H58: =H57 -> 301.38
A60: CPU-11 | B60: CODEVASF | D60: LIMPEZA GERAL | E60: UNID | F60: COEF. | G60: PRECO UNITÁRIO (R$) | H60: TOTAL (R$)
A62: COMP. SINAPI | B62: SINAPI | C62: 88316 | D62: SERVENTE COM ENCARGOS COMPLEMENTARES | E62: H | F62: 0.05 | G62: =VLOOKUP(C62,'COMP Sint. Sinapi'!A41:E6713,5,0) -> 15,36 | H62: =ROUND(F62*G62,2) -> 0.77
E63: Sub total: | H63: =SUM(H62:H62) -> 0.77
F64: BDI | G64: =BDI!$D$24 -> 0.2158381752 | H64: =ROUND(H63*G64,2) -> 0.17
G65: Total Serviços: | H65: =H63+H64 -> 0.94
E66: =A60 -> CPU-11 | F66: PREÇO UNITÁRIO TOTAL: | H66: =H65 -> 0.94
A67: CPU-12 | B67: CODEVASF | D67: Correção de vazamentos no ramal na rua sem pavimento com fornecimento do material hidráulico | E67: UNID | F67: COEF. | G67: PRECO UNITÁRIO (R$) | H67: TOTAL (R$)
A69: Composição Auxiliar | B69: SINAPI | C69: 88316 | D69: SERVENTE COM ENCARGOS COMPLEMENTARES | E69: H | F69: 0.2 | G69: =VLOOKUP(C69,'COMP Sint. Sinapi'!A41:E6713,5,0) -> 15,36 | H69: =ROUND(F69*G69,2) -> 3.07
A70: Composição Auxiliar | B70: SINAPI | C70: 88267 | D70: ENCANADOR OU BOMBEIRO HIDRÁULICO COM ENCARGOS COMPLEMENTARES | E70: H | F70: 0.1 | G70: =VLOOKUP(C70,'COMP Sint. Sinapi'!A42:E6714,5,0) -> 21,92 | H70: =ROUND(F70*G70,2) -> 2.19
A71: Insumo | B71: SINAPI | C71: 9867 | D71: TUBO PVC, SOLDAVEL, DN 20 MM, AGUA FRIA (NBR-5648) | E71: m | F71: 1 | G71: =VLOOKUP(C71,'INSUMOS SINAPI'!A:E,5,0) -> 3,51 | H71: =ROUND(F71*G71,2) -> 3.51
A72: Insumo | B72: ORSE | C72: 10585 | D72: Arco de serra | E72: un | F72: 0.1 | G72: 21.25 | H72: =ROUND(F72*G72,2) -> 2.13
A73: Insumo | B73: SINAPI | C73: 3859 | D73: LUVA SOLDAVEL COM ROSCA, PVC, 20 MM X 1/2", PARA AGUA FRIA PREDIAL | E73: un | F73: 2 | G73: =VLOOKUP(C73,'INSUMOS SINAPI'!A:E,5,0) -> 1,65 | H73: =ROUND(F73*G73,2) -> 3.3
E74: Sub total: | H74: =SUM(H69:H73) -> 14.2
F75: BDI | G75: =BDI!$D$24 -> 0.2158381752 | H75: =ROUND(H74*G75,2) -> 3.06
G76: Total Serviços: | H76: =H74+H75 -> 17.26
E77: =A67 -> CPU-12 | F77: PREÇO UNITÁRIO TOTAL: | H77: =H76 -> 17.26
A79: CPU-13 | B79: CODEVASF | D79: SERVIÇOS TOPOGRÁFICOS PARA PAVIMENTAÇÃO, INCLUSIVE NOTAS DE SERVIÇOS, ACOMPANHAMENTO E GREIDE | E79: UNID | F79: COEF. | G79: PRECO UNITÁRIO (R$) | H79: TOTAL (R$)
A81: Insumo | B81: SINAPI | C81: 20206 | D81: =VLOOKUP(C81,'INSUMOS SINAPI'!A:E,2,0) -> SARRAFO APARELHADO *2 X 10* CM, EM MACARANDUBA, ANGELIM OU EQUIVALENTE DA REGIAO | E81: m | F81: 0.002886 | G81: =VLOOKUP(C81,'INSUMOS SINAPI'!A:E,5,0) -> 6,87 | H81: =ROUND(F81*G81,2) -> 0.02
A82: Composição | B82: SINAPI | C82: 88253 | D82: =VLOOKUP(C82,'COMP Sint. Sinapi'!A:F,2,0) -> AUXILIAR DE TOPÓGRAFO COM ENCARGOS COMPLEMENTARES | E82: h | F82: 0.0025 | G82: =VLOOKUP(C82,'COMP Sint. Sinapi'!A:F,5,0) -> 7,44 | H82: 0.02
A83: Composição | B83: SINAPI | C83: 88288 | D83: =VLOOKUP(C83,'COMP Sint. Sinapi'!A:F,2,0) -> NIVELADOR COM ENCARGOS COMPLEMENTARES | E83: h | F83: 0.0025 | G83: =VLOOKUP(C83,'COMP Sint. Sinapi'!A:F,5,0) -> 9,06 | H83: 0.02
A84: Composição | B84: SINAPI | C84: 88316 | D84: =VLOOKUP(C84,'COMP Sint. Sinapi'!A:F,2,0) -> SERVENTE COM ENCARGOS COMPLEMENTARES | E84: h | F84: 0.0075 | G84: =VLOOKUP(C84,'COMP Sint. Sinapi'!A:F,5,0) -> 15,36 | H84: 0.12
A85: Composição | B85: SINAPI | C85: 88597 | D85: =VLOOKUP(C85,'COMP Sint. Sinapi'!A:F,2,0) -> DESENHISTA DETALHISTA COM ENCARGOS COMPLEMENTARES | E85: h | F85: 0.002 | G85: =VLOOKUP(C85,'COMP Sint. Sinapi'!A:F,5,0) -> 26,32 | H85: 0.05
A86: Composição | B86: SINAPI | C86: 92145 | D86: =VLOOKUP(C86,'COMP Sint. Sinapi'!A:F,2,0) -> CAMINHONETE CABINE SIMPLES COM MOTOR 1.6 FLEX, CÂMBIO MANUAL, POTÊNCIA 101/104 CV, 2 PORTAS - CHP DIURNO. AF_11/2015 | E86: chp | F86: 0.001 | G86: =VLOOKUP(C86,'COMP Sint. Sinapi'!A:F,5,0) -> 63,02 | H86: 0.06
E87: Sub total: | H87: =SUM(H81:H86) -> 0.29
F88: BDI | G88: =BDI!$D$24 -> 0.2158381752 | H88: =ROUND(H87*G88,2) -> 0.06
G89: Total Serviços: | H89: =H87+H88 -> 0.35
E90: =A79 -> CPU-13 | F90: PREÇO UNITÁRIO TOTAL: | H90: =H89 -> 0.35

Sheet CPU SINAPI
A1: SINAPI - SISTEMA NACIONAL DE PESQUISA DE CUSTOS E ÍNDICES DA CONSTRUÇÃO CIVIL | F1: =CPU_SICRO!M1 -> Tocantins
A2: PCI.818.01 - COMPOSIÇÕES ATIVAS ANALÍTICAS COM CUSTO | C2: ABRANGENCIA: NACIONAL DATA DE PREÇO : 7/2021 DATA REFERENCIA TECNICA: 13/8/2021
A3: * Composições constantes nos Relatórios publicados de Composições Analíticas para as 27 Unidades da Federação
A4: MACROCLASSE.CLASSE.GRUPO | B4: CÓDIGOS | C4: DESCRIÇÃO | D4: UNIDADE | E4: COEFICIENTE | F4: CADERNO TÉCNICO | G4: PREÇO UNITÁRIO
A5: 03.PAVI.INTE.004/001 | B5: 92394 | C5: EXECUÇÃO DE PAVIMENTO EM PISO INTERTRAVADO, COM BLOCO SEXTAVADO DE 25 X 25 CM, ESPESSURA 8 CM. AF_12/2015 | D5: M2 | F5: Pavimento Intertravado | G5: =G17 -> 109.470984
A6: INSUMO | B6: 370 | C6: AREIA MEDIA - POSTO JAZIDA/FORNECEDOR (RETIRADO NA JAZIDA, SEM TRANSPORTE) | D6: M3 | E6: 0,0568000 | F6: =VLOOKUP($B6,'INSUMOS SINAPI'!$A$8:$E$5281,5,0) -> 87,50 | G6: 4.97
A7: INSUMO | B7: 712 | C7: BLOQUETE/PISO INTERTRAVADO DE CONCRETO - MODELO SEXTAVADO / HEXAGONAL, 25 CM X 25 CM, E = 8 CM, RESISTENCIA DE 35 MPA (NBR 9781), COR NATURAL | D7: M2 | E7: 1,0174000 | F7: =VLOOKUP($B7,'INSUMOS SINAPI'!$A$8:$E$5281,5,0) -> 76,32 | G7: 77.64
A8: INSUMO | B8: 4741 | C8: PO DE PEDRA (POSTO PEDREIRA/FORNECEDOR, SEM FRETE) | D8: M3 | E8: 0,0064000 | F8: =VLOOKUP($B8,'INSUMOS SINAPI'!$A$8:$E$5281,5,0) -> 73,10 | G8: 0.46
A9: COMPOSICAO | B9: 88260 | C9: CALCETEIRO COM ENCARGOS COMPLEMENTARES | D9: H | E9: 0,1853000 | F9: =VLOOKUP($B9,'COMP Sint. Sinapi'!A:F,5,0) -> 19,95 | G9: 3.69
A10: COMPOSICAO | B10: 88316 | C10: SERVENTE COM ENCARGOS COMPLEMENTARES | D10: H | E10: 0,1853000 | F10: =VLOOKUP($B10,'COMP Sint. Sinapi'!A:F,5,0) -> 15,36 | G10: 2.84
A11: COMPOSICAO | B11: 91277 | C11: PLACA VIBRATÓRIA REVERSÍVEL COM MOTOR 4 TEMPOS A GASOLINA, FORÇA CENTRÍFUGA DE 25 KN (2500 KGF), POTÊNCIA 5,5 CV - CHP DIURNO. AF_08/2015 | D11: CHP | E11: 0,0055000 | F11: =VLOOKUP($B11,'COMP Sint. Sinapi'!A:F,5,0) -> 9,49 | G11: 0.05
A12: COMPOSICAO | B12: 91278 | C12: PLACA VIBRATÓRIA REVERSÍVEL COM MOTOR 4 TEMPOS A GASOLINA, FORÇA CENTRÍFUGA DE 25 KN (2500 KGF), POTÊNCIA 5,5 CV - CHI DIURNO. AF_08/2015 | D12: CHI | E12: 0,0872000 | F12: =VLOOKUP($B12,'COMP Sint. Sinapi'!A:F,5,0) -> 0,52 | G12: 0.04
A13: COMPOSICAO | B13: 91283 | C13: CORTADORA DE PISO COM MOTOR 4 TEMPOS A GASOLINA, POTÊNCIA DE 13 HP, COM DISCO DE CORTE DIAMANTADO SEGMENTADO PARA CONCRETO, DIÂMETRO DE 350 MM, FURO DE 1" (14 X 1") - CHP DIURNO. AF_08/2015 | D13: CHP | E13: 0,0135000 | F13: =VLOOKUP($B13,'COMP Sint. Sinapi'!A:F,5,0) -> 21,70 | G13: 0.29
A14: COMPOSICAO | B14: 91285 | C14: CORTADORA DE PISO COM MOTOR 4 TEMPOS A GASOLINA, POTÊNCIA DE 13 HP, COM DISCO DE CORTE DIAMANTADO SEGMENTADO PARA CONCRETO, DIÂMETRO DE 350 MM, FURO DE 1" (14 X 1") - CHI DIURNO. AF_08/2015 | D14: CHI | E14: 0,0792000 | F14: =VLOOKUP($B14,'COMP Sint. Sinapi'!A:F,5,0) -> 0,77 | G14: 0.060984
D15: Sub total: | G15: =SUM(G6:G14) -> 90.040984
D16: BDI | F16: =BDI!$D$21 -> 0.2158381752 | G16: =ROUND(G15*F16,2) -> 19.43
D17: Total Serviços: | G17: =G15+G16 -> 109.470984

Sheet BDI
A2: DETALHAMENTO DO BDI
A3: Serviços
A4: Atualização em 2013.
A6: Item | B6: Descrição dos serviços | D6: Preço de Venda (%) | E6: Custo Direto (%)
A7: A | B7: ADMINISTRAÇÃO CENTRAL | C7: Váriável - f (CD) | D7: 0.04895044248 | E7: 0.06
A8: B | B8: CUSTOS FINANCEIROS | C8: 0,43% s/ PV - Lucro Operacional | D8: 0.0041 | E8: 0.005025490834
A9: C | B9: RISCOS | C9: 0,50% de PV | D9: 0 | E9: 0.006128647359
A10: D | B10: SEGUROS E GARANTIAS CONTRATUAIS | C10: 0,25% do PV | D10: 0 | E10: 0.003064323679
A11: SUBTOTAL | D11: 0.06055044248 | E11: 0.07421846187
A12: LUCRO | D12: % SOBRE PV | E12: % SOBRE CD
A13: E | B13: LUCRO OPERACIONAL | C13: Variável - f (CD) | D13: 0.05710884956 | E13: 0.07
A14: SUBTOTAL | D14: 0.05710884956 | E14: 0.07
A15: TAXAS E IMPOSTOS | D15: % SOBRE PV | E15: % SOBRE CD
A16: F | B16: PIS | C16: 0,65% de PV | D16: 0.0065 | E16: 0.007967241566
A17: G | B17: COFINS | C17: 3,00% de PV | D17: 0.03 | E17: 0.03677188415
A18: H | B18: ISSQN | C18: 3,00% de PV | D18: 0.03 | E18: 0.03677188415
A19: I | B19: Contribuição Previdenciaria | C19: 0,00% de PV | D19: 0 | E19: 0
A20: SUBTOTAL | D20: 0.0665 | E20: 0.08151100987
A21: BDI COM IMPOSTOS | D21: =D24 -> 0.2158381752
A22: CUSTO DIRETO - CD | D22: 0.815840708
D23: 1
A24: BDI | D24: =(1+(E7+E13))/(1-(D8+D9+D10+D16+D17+D18+D19))-1 -> 0.2158381752
A25: Observação: O percentual de ISSQN aqui utilizado consiste apenas em um referencial médio.
A26: O valor real do ISSQN a ser adotado deve ser aquele proveniente das alíquotas dos municípios situados na área de
A27: influência das obras.

Sheet ENC. SOCIAIS
A6: NOME DA CONCORRENTE:
A7: EDITAL:
A8: FOLHA:
A9: ='RESUMO MODULO MINIMO'!A1 -> EXECUÇÃO DE SERVIÇOS DE IMPLANTAÇÃO DE PAVIMENTAÇÃO EM BLOCO DE CONCRETO INTERTRAVADO, EM VIAS URBANAS E RURAIS DE MUNÍCIPIOS DIVERSOS INSERIDOS NA ÁREA DE ATUAÇÃO DA CODEVASF, NO ESTADO DO TOCANTINS
A11: DETALHAMENTO DOS ENCARGOS SOCIAIS (%)
A12: VIGÊNCIA A PARTIR DE 10/2020 | C12: COM DESONERAÇÃO | E12: SEM DESONERAÇÃO
C14: HORISTA | D14: MENSALISTA | E14: HORISTA | F14: MENSALISTA
A16: GRUPO A
A17: A1 | B17: INSS | C17: 0 | D17: 0 | E17: 20 | F17: 20
A18: A2 | B18: SESI | C18: 1.5 | D18: 1.5 | E18: 1.5 | F18: 1.5
A19: A3 | B19: SENAI | C19: 1 | D19: 1 | E19: 1 | F19: 1
A20: A4 | B20: INCRA | C20: 0.2 | D20: 0.2 | E20: 0.2 | F20: 0.2
A21: A5 | B21: SEBRAE | C21: 0.6 | D21: 0.6 | E21: 0.6 | F21: 0.6
A22: A6 | B22: Salário Educação | C22: 2.5 | D22: 2.5 | E22: 2.5 | F22: 2.5
A23: A7 | B23: Seguro Contra Acidentes de Trabalho | C23: 3 | D23: 3 | E23: 3 | F23: 3
A24: A8 | B24: FGTS | C24: 8 | D24: 8 | E24: 8 | F24: 8
A25: A9 | B25: SECONCI | C25: 1 | D25: 1 | E25: 1 | F25: 1
A26: A | B26: Total | C26: =SUM(C17:C25) -> 17.8 | D26: =SUM(D17:D25) -> 17.8 | E26: =SUM(E17:E25) -> 37.8 | F26: =SUM(F17:F25) -> 37.8
A27: GRUPO B
A28: B1 | B28: Repouso Semanal Remunerado | C28: 17.88 | D28: - | E28: 17.87 | F28: -
A29: B2 | B29: Feriados | C29: 3.94 | D29: - | E29: 3.94 | F29: -
A30: B3 | B30: Auxílio-enfermidade | C30: 0.91 | D30: 0.69 | E30: 0.89 | F30: 0.67
A31: B4 | B31: 13° salário | C31: 10.98 | D31: 8.33 | E31: 11 | F31: 8.33
A32: B5 | B32: Licença-paternidade | C32: 0.07 | D32: 0.06 | E32: 0.07 | F32: 0.06
A33: B6 | B33: Faltas Justificadas | C33: 0.73 | D33: 0.56 | E33: 0.73 | F33: 0.56
A34: B7 | B34: Dias de chuva | C34: 1.45 | D34: - | E34: 1.44 | F34: 0
A35: B8 | B35: Auxílio Acidente de Trabalho | C35: 0.11 | D35: 0.09 | E35: 0.11 | F35: 0.08
A36: B9 | B36: Férias Gozadas | C36: 11.35 | D36: 8.62 | E36: 11.73 | F36: 8.89
A37: B10 | B37: Salário Maternidade | C37: 0.03 | D37: 0.03 | E37: 0.03 | F37: 0.03
A38: B | B38: Total | C38: =SUM(C28:C37) -> 47.45 | D38: =SUM(D28:D37) -> 18.38 | E38: =SUM(E28:E37) -> 47.81 | F38: =SUM(F28:F37) -> 18.62
A39: GRUPO C
A40: C1 | B40: Aviso Prévio Indenizado | C40: 6.76 | D40: 5.14 | E40: 7.06 | F40: 5.35
A41: C2 | B41: Aviso Prévio Trabalhado | C41: 0.16 | D41: 0.12 | E41: 0.17 | F41: 0.13
A42: C3 | B42: Férias Indenizadas | C42: 2.28 | D42: 1.73 | E42: 2.38 | F42: 1.8
A43: C4 | B43: Depósito Rescisão Sem Justa Causa | C43: 3.81 | D43: 2.89 | E43: 3.86 | F43: 2.92
A44: C5 | B44: Indenização Adicional | C44: 0.57 | D44: 0.43 | E44: 0.59 | F44: 0.45
A45: C | B45: Total | C45: =SUM(C40:C44) -> 13.58 | D45: =SUM(D40:D44) -> 10.31 | E45: =SUM(E40:E44) -> 14.06 | F45: =SUM(F40:F44) -> 10.65
A46: GRUPO D
A47: D1 | B47: Reincidência de A sobre B | C47: 8.45 | D47: 3.27 | E47: 18.07 | F47: 7.04
A48: D2 | B48: Reincidência de Grupo A sobre Aviso Prévio Trabalhado e Reincidência do FGTS sobre Aviso Prévio Indenizado | C48: 0.57 | D48: 0.43 | E48: 0.63 | F48: 0.48
A49: D | B49: Total | C49: =SUM(C47:C48) -> 9.02 | D49: =SUM(D47:D48) -> 3.7 | E49: =SUM(E47:E48) -> 18.7 | F49: =SUM(F47:F48) -> 7.52
A51: T O T A L (%) | C51: =C26+C38+C45+C49 -> 87.85 | D51: =D26+D38+D45+D49 -> 50.19 | E51: =E26+E38+E45+E49 -> 118.37 | F51: =F26+F38+F45+F49 -> 74.59

Sheet Mob e Desmob
A5: ='RESUMO MODULO MINIMO'!A1 -> EXECUÇÃO DE SERVIÇOS DE IMPLANTAÇÃO DE PAVIMENTAÇÃO EM BLOCO DE CONCRETO INTERTRAVADO, EM VIAS URBANAS E RURAIS DE MUNÍCIPIOS DIVERSOS INSERIDOS NA ÁREA DE ATUAÇÃO DA CODEVASF, NO ESTADO DO TOCANTINS
A7: MEMÓRIA DE CÁLCULO DOS MOMENTOS DE TRANSPORTE PARA MOBILIZAÇÃO E DESMOBILIZAÇÃO
A10: Deslocamento:
C11: Distancia méd. (Km) | D11: Qtde. | E11: Total (Km)
A12: Mobilização (entre os trechos de serviço): | C12: 1 | D12: 1 | E12: =C12*D12 -> 1
A13: Desmobilização (entre os trechos de serviço): | C13: 1 | D13: 1 | E13: =C13*D13 -> 1
A14: Mobilização inter-municipal (entre as localidades): | C14: 10 | D14: 1 | E14: =C14*D14 -> 10
A15: Desmobilização inter-municipal (entre as localidades): | C15: 10 | D15: 1 | E15: =C15*D15 -> 10
A16: Mobilização - Total (km) | E16: =E12+E14 -> 11
A17: Desmobilização - Total (km) | E17: =E13+E15 -> 11
A20: Peso das máquinas:
E21: Pá carregadeira | H21: 10.1 | I21: ton
E22: Motoniveladora | H22: 12.47 | I22: ton
E23: Trator de pneus | H23: 2.8 | I23: ton
E24: Rolo Compactador | H24: 15.33 | I24: ton
E25: Grade de disco | H25: 1 | I25: ton
E26: Usina misturadora | H26: 20 | I26: ton
E28: Total | H28: =ROUND(SUM(H20:H27),2) -> 61.7 | I28: ton
A30: Portanto: | B30: Portanto
A31: Mobilização - Total (km) | E31: =E16*H28 -> 678.7 | F31: t x km
A32: Desmobilização - Total (km) | E32: =E17*H28 -> 678.7 | F32: t x km
A39: E9010 | B39: Balança plataforma digital com mesa de 75 x 75 cm com capacidade de 500 kg | I39: Caminhão carroceria
A40: E9064 | B40: Transportador manual gerica com capacidade de 180 l | I40: Caminhão carroceria
A41: E9066 | B41: Grupo gerador - 13/14 kVA | I41: Caminhão carroceria
A42: E9071 | B42: Transportador manual carrinho de mão com capacidade de 80 l | I42: Caminhão carroceria
A43: E9076 | B43: Equipamento de pintura com cabine de 7,00 kW e estufa de 80.000 kCal para pintura eletrostática | I43: Caminhão carroceria
A44: E9519 | B44: Betoneira com motor a gasolina com capacidade de 600 l - 10 kW | I44: Caminhão carroceria
A45: E9521 | B45: Grupo gerador - 2,5/3 kVA | I45: Caminhão carroceria
A46: E9568 | B46: Furadeira de impacto de 12,5 mm - 0,8 kW | I46: Caminhão carroceria
A47: E9622 | B47: Máquina de bancada universal para corte de chapa - 1,5 kW | I47: Caminhão carroceria
A48: E9623 | B48: Máquina de bancada guilhotina - 4 kW | I48: Caminhão carroceria
A49: E9675 | B49: Martelete perfurador/rompedor elétrico - 1,5 kW | I49: Caminhão carroceria
A50: E9779 | B50: Grupo gerador - 100/110 kVA | I50: Caminhão carroceria
A53: E9506 | B53: Caminhão basculante com capacidade de 6 m³ - 136 kW | I53: Rodoviario
A54: E9571 | B54: Caminhão tanque com capacidade de 10.000 l - 188 kW | I54: Rodoviario
A55: E9579 | B55: Caminhão basculante com capacidade de 10 m³ - 188 kW | I55: Rodoviario
A56: E9592 | B56: Caminhão carroceria com capacidade de 15 t - 188 kW | I56: Rodoviario
A57: E9644 | B57: Caminhão demarcador de faixas com sistema de pintura a frio - 28 kW/115 kW | I57: Rodoviario
A58: E9686 | B58: Caminhão carroceria com guindauto com capacidade de 20 t.m - 136 kW | I58: Rodoviario
A59: E9687 | B59: Caminhão carroceria com capacidade de 5 t - 115 kW | I59: Rodoviario
A60: E9514 | B60: Distribuidor de agregados autopropelido - 130 kW | I60: Rodoviario
A62: E9511 | B62: Carregadeira de pneus com capacidade de 3,40 m³ - 195 kW | I62: TRANSPORTE COM CAVALO MECÂNICO COM SEMIRREBOQUE COM CAPACIDADE DE 30 T - RODOVIA PAVIMENTADA
A63: E9524 | B63: Motoniveladora - 93 kW | I63: TRANSPORTE COM CAVALO MECÂNICO COM SEMIRREBOQUE COM CAPACIDADE DE 30 T - RODOVIA PAVIMENTADA
A64: E9530 | B64: Rolo compactador liso autopropelido vibratório de 11 t - 97 kW | I64: TRANSPORTE COM CAVALO MECÂNICO COM SEMIRREBOQUE COM CAPACIDADE DE 30 T - RODOVIA PAVIMENTADA
A65: E9577 | B65: Trator agrícola - 77 kW | I65: TRANSPORTE COM CAVALO MECÂNICO COM SEMIRREBOQUE COM CAPACIDADE DE 30 T - RODOVIA PAVIMENTADA
A66: E9685 | B66: Rolo compactador pé de carneiro vibratório autopropelido de 11,6 t - 82 kW | I66: TRANSPORTE COM CAVALO MECÂNICO COM SEMIRREBOQUE COM CAPACIDADE DE 30 T - RODOVIA PAVIMENTADA
A67: E9762 | B67: Rolo compactador de pneus autopropelido de 27 t - 85 kW | I67: TRANSPORTE COM CAVALO MECÂNICO COM SEMIRREBOQUE COM CAPACIDADE DE 30 T - RODOVIA PAVIMENTADA
A68: E9518 | B68: Grade de 24 discos rebocável de 24" | I68: TRANSPORTE COM CAVALO MECÂNICO COM SEMIRREBOQUE COM CAPACIDADE DE 30 T - RODOVIA PAVIMENTADA
A69: E9615 | B69: Usina misturadora de solos com capacidade de 300 t/h | I69: TRANSPORTE COM CAVALO MECÂNICO COM SEMIRREBOQUE COM CAPACIDADE DE 30 T - RODOVIA PAVIMENTADA

Sheet CPU_SICRO
M1: Tocantins | P1: DMT | Q1: 10
M2: 2021-04-12
A3: CGCIT | I3: DNIT
A4: SISTEMA DE CUSTOS REFERENCIAIS DE OBRAS - SICRO | D4: Tocantins | G4: FIC 0,01049
A5: Custo Unitário de Referência | D5: =$M$2 -> 2021-04-12 | G5: Produção da equipe | H5: 113.18 | I5: m³
A6: 4011276 | B6: Base ou sub-base de brita graduada com brita comercial | H6: Valores em reais (R$)
A7: A - EQUIPAMENTOS | C7: Quantidade | D7: Utilização | F7: Custo Horário | I7: Custo
D8: Operativa | E8: Improdutiva | F8: Produtivo | G8: Improdutivo | I8: Horário Total
A9: E9571 | B9: Caminhão tanque com capacidade de 10.000 l - 188 kW | C9: 1 | D9: 0.34 | E9: 0.66 | F9: 238.7637 | G9: 56.9106 | I9: =ROUND((C9*(D9*F9))+(C9*(E9*G9)),4) -> 118.7407
A10: E9514 | B10: Distribuidor de agregados autopropelido - 130 kW | C10: 1 | D10: 1 | E10: 0 | F10: 207.1138 | G10: 71.3445 | I10: =ROUND((C10*(D10*F10))+(C10*(E10*G10)),4) -> 207.1138
A11: E9762 | B11: Rolo compactador de pneus autopropelido de 27 t - 85 kW | C11: 1 | D11: 0.65 | E11: 0.35 | F11: 155.3765 | G11: 70.5489 | I11: =ROUND((C11*(D11*F11))+(C11*(E11*G11)),4) -> 125.6868
A12: E9530 | B12: Rolo compactador liso autopropelido vibratório de 11 t - 97 kW | C12: 1 | D12: 0.52 | E12: 0.48 | F12: 152.8202 | G12: 59.3303 | I12: =ROUND((C12*(D12*F12))+(C12*(E12*G12)),4) -> 107.945
G13: Custo horário total de equipamentos | I13: =SUM(I9:I12) -> 559.4863
A14: B - MÃO DE OBRA | C14: Quantidade | D14: Unidade | E14: Custo Horário | G14: Custo Horário Total
A15: P9824 | B15: Servente | C15: 1 | D15: h | E15: 15.7664 | I15: =ROUND(C15*E15,4) -> 15.7664
C16: Custo horário total de mão de obra | H16: =SUM(I15) -> 15.7664
C17: Custo horário total de execução | I17: =SUM(H16,I13) -> 575.2527
C18: Custo unitário de execução | I18: =I17/H5 -> 5.082635625
G19: Custo do FIC | I19: 0.0533
G20: Custo do FIT | I20: -
A21: C - MATERIAL | C21: Quantidade | D21: Unidade | E21: Preço Unitário | G21: Custo Unitário
C22: Custo unitário total de material
A23: D - ATIVIDADES AUXILIARES | C23: Quantidade | D23: Unidade | E23: Custo Unitário | G23: Custo Unitário
A24: 6416040 | B24: Usinagem de brita graduada com brita comercial em usina de 300 t/h | C24: 1 | D24: m³ | F24: 152.07 | I24: =ROUND(C24*F24,4) -> 152.07
F25: Custo total de atividades auxiliares | I25: =SUM(I24) -> 152.07
G26: Subtotal | I26: =SUM(I25,I18,I19,I20) -> 157.2059356
A27: E - TEMPO FIXO | C27: Código | D27: Quantidade | E27: Unidade | F27: Custo Unitário | H27: Custo Unitário
A28: 6416040 | B28: Usinagem de brita graduada com brita comercial em usina de 300 t/h - Caminhão basculante 10 m³ | C28: 5914652 | D28: 2.2 | E28: t | G28: 2.2 | I28: =ROUND(D28*G28,4) -> 4.84
C29: Custo unitário total de tempo fixo | I29: =SUM(I28) -> 4.84
A30: F - MOMENTO DE TRANSPORTE | C30: Quantidade | D30: Unidade | E30: DMT | I30: Custo Unitário
E31: LN | F31: RP | G31: P
A32: 6416040 | B32: Usinagem de brita graduada com brita comercial em usina de 300 t/h - Caminhão basculante 10 m³ | C32: 2.2 | D32: tkm | G32: 10 | I32: 0.52
C33: Custo unitário total de transporte | I33: =I32*G32 -> 5.2
E34: Custo unitário direto total | I34: =SUM(I33,I29,I26) -> 167.2459356
F35: BDI | G35: =BDI!D24 -> 0.2158381752 | I35: =ROUND(I34*G35,4) -> 36.0981
G36: Preço Unitário: | I36: =ROUND(SUM(I34,I35),2) -> 203.34
A37: Obs.
A40: CGCIT | I40: DNIT
A41: SISTEMA DE CUSTOS REFERENCIAIS DE OBRAS - SICRO | D41: Tocantins | G41: FIC 0,03149
A42: Custo Unitário de Referência | D42: =$M$2 -> 2021-04-12 | G42: Produção da equipe | H42: 1121.33 | I42: m²
A43: 4011209 | B43: Regularização do subleito | H43: Valores em reais (R$)
A44: A - EQUIPAMENTOS | C44: Quantidade | D44: Utilização | F44: Custo Horário | I44: Custo
D45: Operativa | E45: Improdutiva | F45: Produtivo | G45: Improdutivo | I45: Horário Total
A46: E9571 | B46: Caminhão tanque com capacidade de 10.000 l - 188 kW | C46: 2 | D46: 0.51 | E46: 0.49 | F46: 238.7637 | G46: 56.9106 | I46: =ROUND((C46*(D46*F46))+(C46*(E46*G46)),4) -> 299.3114
A47: E9518 | B47: Grade de 24 discos rebocável de D = 60 cm (24") | C47: 1 | D47: 0.69 | E47: 0.31 | F47: 2.9991 | G47: 2.0298 | I47: 2.6986
A48: E9524 | B48: Motoniveladora - 93 kW | C48: 1 | D48: 0.71 | E48: 0.29 | F48: 186.1137 | G48: 75.214 | I48: 153.9528
A49: E9762 | B49: Rolo compactador de pneus autopropelido de 27 t - 85 kW | C49: 1 | D49: 0.96 | E49: 0.04 | F49: 155.3765 | G49: 70.5489 | I49: 151.9834
A50: E9685 | B50: Rolo compactador pé de carneiro vibratório autopropelido de 11,6 t - 82 kW | C50: 1 | D50: 1 | E50: 0 | F50: 153.562 | G50: 65.0149 | I50: 153.562
A51: E9577 | B51: Trator agrícola - 77 kW | C51: 1 | D51: 0.69 | E51: 0.31 | F51: 99.0517 | G51: 32.5057 | I51: 78.4224
G52: Custo horário total de equipamentos | I52: =SUM(I46:I51) -> 839.9306
A53: B - MÃO DE OBRA | C53: Quantidade | D53: Unidade | E53: Custo Horário | G53: Custo Horário Total
A54: P9824 | B54: Servente | C54: 1 | D54: h | E54: 15.7664 | I54: =ROUND(C54*E54,4) -> 15.7664
C55: Custo horário total de mão de obra | H55: =SUM(I54) -> 15.7664
C56: Custo horário total de execução | I56: =SUM(H55,I52) -> 855.697
C57: Custo unitário de execução | I57: =I56/H42 -> 0.7631089866
G58: Custo do FIC | I58: 0.024
G59: Custo do FIT | I59: -
A60: C - MATERIAL | C60: Quantidade | D60: Unidade | E60: Preço Unitário | G60: Custo Unitário
C61: Custo unitário total de material
A62: D - ATIVIDADES AUXILIARES | C62: Quantidade | D62: Unidade | E62: Custo Unitário | G62: Custo Unitário
C63: Custo total de atividades auxiliares
G64: Subtotal | I64: =SUM(I57,I58,I59) -> 0.7871089866
A65: E - TEMPO FIXO | C65: Código | D65: Quantidade | E65: Unidade | F65: Custo Unitário | H65: Custo Unitário
C66: Custo unitário total de tempo fixo
A67: F - MOMENTO DE TRANSPORTE | C67: Quantidade | D67: Unidade | E67: DMT | I67: Custo Unitário
E68: LN | F68: RP | G68: P
C69: Custo unitário total de transporte | I69: -
E70: Custo unitário direto total | I70: =SUM(I64) -> 0.7871089866
F71: BDI | G71: =BDI!D24 -> 0.2158381752 | I71: =ROUND(I70*G71,4) -> 0.1699
G72: Preço Unitário: | I72: =ROUND(SUM(I70,I71),2) -> 0.96
A73: Obs.
A76: CGCIT | I76: DNIT
A77: SISTEMA DE CUSTOS REFERENCIAIS DE OBRAS - SICRO | D77: Tocantins
A78: Custo Unitário de Referência | D78: =$M$2 -> 2021-04-12 | G78: Produção da equipe | H78: 3 | I78: un
A79: 5213440 | B79: Fornecimento e implantação de placa de regulamentação em aço D = 0,60 m - película retrorrefletiva tipo I + SI – fornecimento e implantação | H79: Valores em reais (R$)
A80: A - EQUIPAMENTOS | C80: Quantidade | D80: Utilização | F80: Custo Horário | I80: Custo
D81: Operativa | E81: Improdutiva | F81: Produtivo | G81: Improdutivo | I81: Horário Total
A82: E9687 | B82: Caminhão carroceria com capacidade de 5 t - 115 kW | C82: 1 | D82: 0.3 | E82: 0.7 | F82: 107.8309 | G82: 41.0071 | I82: =ROUND((C82*(D82*F82))+(C82*(E82*G82)),4) -> 61.0542
G83: Custo horário total de equipamentos | I83: =SUM(I82) -> 61.0542
A84: B - MÃO DE OBRA | C84: Quantidade | D84: Unidade | E84: Custo Horário | G84: Custo Horário Total
A85: P9830 | B85: Montador | C85: 1 | D85: h | E85: 23.0229 | I85: =ROUND(C85*E85,4) -> 23.0229
A86: P9824 | B86: Servente | C86: 2 | D86: h | E86: 15.7664 | I86: =ROUND(C86*E86,4) -> 31.5328
C87: Custo horário total de mão de obra | H87: =SUM(I85:I86) -> 54.5557
C88: Custo horário total de execução | I88: =SUM(H87,I83) -> 115.6099
C89: Custo unitário de execução | I89: =I88/H78 -> 38.53663333
G90: Custo do FIC | I90: -
G91: Custo do FIT | I91: -
A92: C - MATERIAL | C92: Quantidade | D92: Unidade | E92: Preço Unitário | G92: Custo Unitário
C93: Custo unitário total de material
A94: D - ATIVIDADES AUXILIARES | C94: Quantidade | D94: Unidade | E94: Custo Unitário | G94: Custo Unitário
A95: 5213414 | B95: Placa em aço nº 16 galvanizado com película retrorrefletiva tipo I + SI – confecção | C95: 0.36 | D95: m² | F95: 441.49 | I95: =ROUND(C95*F95,4) -> 158.9364
C96: Custo total de atividades auxiliares | I96: =SUM(I95) -> 158.9364
G97: Subtotal | I97: =SUM(I96,I89,I90,I91) -> 197.4730333
A98: E - TEMPO FIXO | C98: Código | D98: Quantidade | E98: Unidade | F98: Custo Unitário | H98: Custo Unitário
C100: Custo unitário total de tempo fixo
A101: F - MOMENTO DE TRANSPORTE | C101: Quantidade | D101: Unidade | E101: DMT | I101: Custo Unitário
E102: LN | F102: RP | G102: P
C104: Custo unitário total de transporte
E105: Custo unitário direto total | I105: =SUM(I104,I100,I97) -> 197.4730333
F106: BDI | G106: =BDI!D24 -> 0.2158381752 | I106: =ROUND(I105*G106,4) -> 42.6222
G107: Preço Unitário: | I107: =ROUND(SUM(I105,I106),2) -> 240.1
A108: Obs.
A111: CGCIT | I111: DNIT
A112: SISTEMA DE CUSTOS REFERENCIAIS DE OBRAS - SICRO | D112: Tocantins
A113: Custo Unitário de Referência | D113: =$M$2 -> 2021-04-12 | G113: Produção da equipe | H113: 4.1 | I113: un
A114: 5213863 | B114: Suporte metálico galvanizado para placa de advertência ou regulamentação – lado ou diâmetro de 0,60 m – fornecimento e implantação | H114: Valores em reais (R$)
A115: A - EQUIPAMENTOS | C115: Quantidade | D115: Utilização | F115: Custo Horário | I115: Custo
D116: Operativa | E116: Improdutiva | F116: Produtivo | G116: Improdutivo | I116: Horário Total
A117: E9687 | B117: Caminhão carroceria com capacidade de 5 t - 115 kW | C117: 1 | D117: 0.3 | E117: 0.7 | F117: 107.8309 | G117: 41.0071 | I117: =ROUND((C117*(D117*F117))+(C117*(E117*G117)),4) -> 61.0542
G118: Custo horário total de equipamentos | I118: =SUM(I117) -> 61.0542
A119: B - MÃO DE OBRA | C119: Quantidade | D119: Unidade | E119: Custo Horário | G119: Custo Horário Total
A120: P9830 | B120: Montador | C120: 1 | D120: h | E120: 23.0229 | I120: =ROUND(C120*E120,4) -> 23.0229
A121: P9824 | B121: Servente | C121: 1 | D121: h | E121: 15.7664 | I121: =ROUND(C121*E121,4) -> 15.7664
C122: Custo horário total de mão de obra | H122: =SUM(I120:I121) -> 38.7893
C123: Custo horário total de execução | I123: =SUM(I118,H122) -> 99.8435
C124: Custo unitário de execução | I124: =I123/H113 -> 24.35207317
G125: Custo do FIC | I125: -
G126: Custo do FIT | I126: -
A127: C - MATERIAL | C127: Quantidade | D127: Unidade | E127: Preço Unitário | G127: Custo Unitário
A128: M0789 | B128: Conjunto para fixação de placas em aço galvanizado composto por barra chata, abraçadeira, parafusos, porcas e arruelas | C128: 0.69622 | D128: kg | F128: 13.7456 | I128: =ROUND(C128*F128,4) -> 9.57
A129: M0787 | B129: Suporte em aço-carbono galvanizado tipo perfil C para placa de sinalização | C129: 12.717 | D129: kg | F129: 17.6344 | I129: =ROUND(C129*F129,4) -> 224.2567
C130: Custo unitário total de material | I130: =SUM(I128:I129) -> 233.8267
A131: D - ATIVIDADES AUXILIARES | C131: Quantidade | D131: Unidade | E131: Custo Unitário | G131: Custo Unitário
A132: 1107892 | B132: Concreto fck = 20 MPa - confecção em betoneira e lançamento manual - areia e brita comerciais | C132: 0.0503 | D132: m³ | F132: 352.16 | I132: =ROUND(C132*F132,4) -> 17.7136
A133: 4805750 | B133: Escavação manual em material de 1ª categoria na profundidade de até 1 m | C133: 0.0503 | D133: m³ | F133: 32.53 | I133: =ROUND(C133*F133,4) -> 1.6363
C134: Custo total de atividades auxiliares | I134: =SUM(I132:I133) -> 19.3499
G135: Subtotal | I135: =SUM(I134,I130,I124,I125,I126) -> 277.5286732
A136: E - TEMPO FIXO | C136: Código | D136: Quantidade | E136: Unidade | F136: Custo Unitário | H136: Custo Unitário
A137: M0789 | B137: Conjunto de cantoneiras e parafusos galvanizados para fixação de placas - Caminhão carroceria 15 t | C137: 5914655 | D137: 0.0007 | E137: t | G137: 24.16 | I137: =ROUND(D137*G137,4) -> 0.0169
A138: M0787 | B138: Suporte em aço-carbono galvanizado tipo perfil C para placa de sinalização | C138: 5914655 | D138: 0.01272 | E138: t | G138: 24.16 | I138: =ROUND(D138*G138,4) -> 0.3073
C139: Custo unitário total de tempo fixo | I139: =SUM(I137:I138) -> 0.3242
A140: F - MOMENTO DE TRANSPORTE | C140: Quantidade | D140: Unidade | E140: DMT | I140: Custo Unitário
E141: LN | F141: RP | G141: P
A142: M0789 | B142: Conjunto para fixação de placas em aço galvanizado composto por barra chata, abraçadeira, parafusos, porcas e arruelas | C142: 0.0007 | D142: tkm | G142: 10 | I142: 0.51
A143: M0787 | B143: Suporte em aço-carbono galvanizado tipo perfil C para placa de sinalização – Caminhão carroceria 15 t | C143: 0.01272 | D143: tkm | G143: 10 | I143: 0.51
C144: Custo unitário total de transporte | I144: =I142*G142+I143*G143 -> 10.2
E145: Custo unitário direto total | I145: =SUM(I144,I139,I135) -> 288.0528732
F146: BDI | G146: =BDI!D24 -> 0.2158381752 | I146: =ROUND(I145*G146,4) -> 62.1728
G147: Preço Unitário: | I147: =ROUND(SUM(I145,I146),2) -> 350.23
A148: Obs.
A152: CGCIT | I152: DNIT
A153: SISTEMA DE CUSTOS REFERENCIAIS DE OBRAS - SICRO | D153: Tocantins
A154: Custo Unitário de Referência | D154: =$M$2 -> 2021-04-12 | G154: Produção da equipe | H154: 1 | I154: m
A155: 2003373 | B155: Meio fio de concreto - MFC 03 - areia e brita comerciais - fôrma de madeira | H155: Valores em reais (R$)
A156: A - EQUIPAMENTOS | C156: Quantidade | D156: Utilização | F156: Custo Horário | I156: Custo
D157: Operativa | E157: Improdutiva | F157: Produtivo | G157: Improdutivo | I157: Horário Total
G158: Custo horário total de equipamentos
A159: B - MÃO DE OBRA | C159: Quantidade | D159: Unidade | E159: Custo Horário | G159: Custo Horário Total
C160: Custo horário total de mão de obra | H160: -
C161: Custo horário total de execução | I161: -
C162: Custo unitário de execução | I162: -
G163: Custo do FIC | I163: -
G164: Custo do FIT | I164: -
A165: C - MATERIAL | C165: Quantidade | D165: Unidade | E165: Preço Unitário | G165: Custo Unitário
C166: Custo unitário total de material
A167: D - ATIVIDADES AUXILIARES | C167: Quantidade | D167: Unidade | E167: Custo Unitário | G167: Custo Unitário
A168: 1107892 | B168: Concreto fck = 20 MPa - confecção em betoneira e lançamento manual - areia e brita comerciais | C168: 0.042 | D168: m³ | F168: 352.16 | I168: =ROUND(C168*F168,4) -> 14.7907
A169: 2003842 | B169: Enchimento de junta de concreto com argamassa asfáltica de densidade 1.700 kg/m³ - espessura de 1 cm | C169: 0.0595 | D169: kg | F169: 45.28 | I169: =ROUND(C169*F169,4) -> 2.6942
A170: 4805750 | B170: Escavação manual em material de 1ª categoria na profundidade de até 1 m | C170: 0.03 | D170: m³ | F170: 32.53 | I170: =ROUND(C170*F170,4) -> 0.9759
A171: 3103302 | B171: Fôrmas de tábuas de pinho para dispositivos de drenagem - utilização de 3 vezes - confecção, instalação e retirada | C171: 0.0867 | D171: m² | F171: 53.56 | I171: =ROUND(C171*F171,4) -> 4.6437
C172: Custo total de atividades auxiliares | I172: =SUM(I168:I171) -> 23.1045
G173: Subtotal | I173: =SUM(I172,I162,I163,I164) -> 23.1045
A174: E - TEMPO FIXO | C174: Código | D174: Quantidade | E174: Unidade | F174: Custo Unitário | H174: Custo Unitário
C175: Custo unitário total de tempo fixo
A176: F - MOMENTO DE TRANSPORTE | C176: Quantidade | D176: Unidade | E176: DMT | I176: Custo Unitário
E177: LN | F177: RP | G177: P
C178: Custo unitário total de transporte | I178: -
E179: Custo unitário direto total | I179: =SUM(I173) -> 23.1045
F180: BDI | G180: =BDI!D24 -> 0.2158381752 | I180: =ROUND(I179*G180,4) -> 4.9868
G181: Preço Unitário: | I181: =ROUND(SUM(I179,I180),2) -> 28.09
A182: Obs.
A184: CGCIT | I184: DNIT
A185: SISTEMA DE CUSTOS REFERENCIAIS DE OBRAS - SICRO | D185: Tocantins | G185: FIC 0,03149
A186: Custo Unitário de Referência | D186: =$M$2 -> 2021-04-12 | G186: Produção da equipe | H186: 230.19 | I186: m³
A187: 5502114 | B187: Escavação, carga e transporte de material de 1ª categoria - DMT de 1.000 a 1.200 m - caminho de serviço em leito natural - com escavadeira e caminhão basculante de 14 m³ | H187: Valores em reais (R$)
A188: A - EQUIPAMENTOS | C188: Quantidade | D188: Utilização | F188: Custo Horário | I188: Custo
D189: Operativa | E189: Improdutiva | F189: Produtivo | G189: Improdutivo | I189: Horário Total
A190: E9667 | B190: Caminhão basculante com capacidade de 14 m³ - 188 Kw | C190: 5 | D190: 0.96 | E190: 0.04 | F190: 199.7944 | G190: 58.2792 | I190: =ROUND((C190*(D190*F190))+(C190*(E190*G190)),4) -> 970.669
A191: E9515 | B191: Escavadeira hidráulica sobre esteiras com caçamba com capacidade de 1,56 m³ - 118 kW | C191: 1 | D191: 1 | E191: 0 | F191: 201.1921 | G191: 85.6324 | I191: =ROUND((C191*(D191*F191))+(C191*(E191*G191)),4) -> 201.1921
G192: Custo horário total de equipamentos | I192: =SUM(I190:I191) -> 1171.8611
A193: B - MÃO DE OBRA | C193: Quantidade | D193: Unidade | E193: Custo Horário | G193: Custo Horário Total
A194: P9824 | B194: Servente | C194: 1 | D194: h | E194: 15.7664 | I194: =ROUND(C194*E194,4) -> 15.7664
C195: Custo horário total de mão de obra | H195: =SUM(I194) -> 15.7664
C196: Custo horário total de execução | I196: =SUM(H195,I192) -> 1187.6275
C197: Custo unitário de execução | I197: =I196/H186 -> 5.159335766
G198: Custo do FIC | I198: 0.1625
G199: Custo do FIT | I199: -
A200: C - MATERIAL | C200: Quantidade | D200: Unidade | E200: Preço Unitário | G200: Custo Unitário
C201: Custo unitário total de material
A202: D - ATIVIDADES AUXILIARES | C202: Quantidade | D202: Unidade | E202: Custo Unitário | G202: Custo Unitário
C204: Custo total de atividades auxiliares
G205: Subtotal | I205: =SUM(I204,I197,I198,I199) -> 5.321835766
A206: E - TEMPO FIXO | C206: Código | D206: Quantidade | E206: Unidade | F206: Custo Unitário | H206: Custo Unitário
C208: Custo unitário total de tempo fixo
A209: F - MOMENTO DE TRANSPORTE | C209: Quantidade | D209: Unidade | E209: DMT | I209: Custo Unitário
E210: LN | F210: RP | G210: P
C212: Custo unitário total de transporte
E213: Custo unitário direto total | I213: =SUM(I212,I208,I205) -> 5.321835766
F214: BDI | G214: =BDI!D24 -> 0.2158381752 | I214: =ROUND($I$213*$G$214,4) -> 1.1487
G215: Preço Unitário: | I215: =ROUND(SUM($I$213,$I$214),2) -> 6.47
... 29 more rows

Sheet RESUMO MODULO MINIMO
A1: EXECUÇÃO DE SERVIÇOS DE IMPLANTAÇÃO DE PAVIMENTAÇÃO EM BLOCO DE CONCRETO INTERTRAVADO, EM VIAS URBANAS E RURAIS DE MUNÍCIPIOS DIVERSOS INSERIDOS NA ÁREA DE ATUAÇÃO DA CODEVASF, NO ESTADO DO TOCANTINS | J1: Extensão (km)
C4: MÓDULO MÍNIMO
A5: =A1 -> EXECUÇÃO DE SERVIÇOS DE IMPLANTAÇÃO DE PAVIMENTAÇÃO EM BLOCO DE CONCRETO INTERTRAVADO, EM VIAS URBANAS E RURAIS DE MUNÍCIPIOS DIVERSOS INSERIDOS NA ÁREA DE ATUAÇÃO DA CODEVASF, NO ESTADO DO TOCANTINS
A6: ITEM | B6: ORIGEM COMPOSIÇÃO | C6: CÓDIGO COMPOSIÇÃO | D6: DISCRIMINAÇÃO DOS SERVIÇOS | H6: BDI %: | I6: =BDI!$D$24 -> 0.2158381752 | J6: R$/m² | K6: =L33/I15 -> 155.2773999 | L6: PERCENTUAL DE RISCO
H7: Total de m² | I7: Encargos Sociais: | J7: Horista | K7: Mensalista | L7: 0.0122
H8: =I15 -> 7000 | J8: ='ENC. SOCIAIS'!$E$51 -> 118.37 | K8: ='ENC. SOCIAIS'!$F$51 -> 74.59
H9: UND | I9: QTDE. | J9: PREÇO UNITÁRIO COM BDI COM RISCO 0 (R$) | K9: PREÇO TOTAL COM BDI RISCO 0 (R$) | L9: PREÇO TOTAL COM CONTINGÊNCIA (R$) | O9: PREÇO TOTAL COM BDI (R$)
D10: MOBILIZAÇÃO
A11: 1 | B11: Codevasf | C11: Composição Própria | D11: Implantação da Obra | H11: módulo | I11: ='MC MODULO'!$D$17 -> 1 | J11: ='SERVIÇOS PRELI'!I15 -> 1258.83 | K11: =ROUND(I11*J11,2) -> 1258.83 | L11: =K11*(1+$L$7) -> 1274.187726 | O11: 1269.07
A12: 2 | B12: Codevasf | C12: Composição Própria | D12: Administração da Obra | H12: módulo | I12: ='MC MODULO'!$D$22 -> 1 | J12: ='SERVIÇOS PRELI'!$I$24 -> 5148.45 | K12: =ROUND(I12*J12,2) -> 5148.45 | L12: =K12*(1+$L$7) -> 5211.26109 | O12: 5190.34
A13: 3 | B13: Codevasf | C13: Composição Própria | D13: Placa de Obra em Chapa de Aço Galvanizado | H13: und | I13: 1 | J13: ='SERVIÇOS PRELI'!I19 -> 607.49 | K13: 607.49 | L13: 614.901378 | O13: 612.44
D14: TERRAPLENAGEM
A15: 4 | B15: Codevasf | C15: Composição Própria | D15: serviços topográficos para pavimentação, inclusive notas de serviços, acompanhamento e greide | H15: m² | I15: ='MC MODULO'!F29 -> 7000 | J15: ='CPU CODEVASF'!H90 -> 0.35 | K15: =ROUND(I15*J15,2) -> 2450 | L15: =K15*(1+$L$7) -> 2479.89 | O15: 2520
A16: 5 | B16: SICRO | C16: 5502114 | D16: Escavação, carga e transporte de material de 1ª categoria - DMT de 1.000 a 1.200 m - caminho de serviço em leito natural - com escavadeira e caminhão basculante de 14 m³ | H16: m³ | I16: ='MC MODULO'!$H$34 -> 700 | J16: =CPU_SICRO!I215 -> 6.47 | K16: 4529 | L16: 4584.2538 | O16: 4564
A17: 6 | B17: SICRO | C17: 4413942 | D17: Espalhamento de material em bota-fora | H17: m³ | I17: ='MC MODULO'!$H$41 -> 700 | J17: =CPU_SICRO!I247 -> 1.52 | K17: 1064 | L17: 1076.9808 | O17: 1071
D18: PAVIMENTAÇÃO
A19: 7 | B19: SINAPI | C19: 92394 | D19: Execução de Pavimento em Piso Intertravado, com Bloco Sextavado de 25 X 25 cm, espessura 8 cm. AF_12/2015 | H19: m² | I19: ='MC MODULO'!$F$49 -> 7000 | J19: ='CPU SINAPI'!$G$5 -> 109.470984 | K19: =ROUND(I19*J19,2) -> 766296.89 | L19: =K19*(1+$L$7) -> 775645.7121 | O19: 772526.89
A20: 8 | B20: SICRO | C20: 4011276 | D20: Base ou sub-base de brita graduada com brita comercial | H20: m³ | I20: ='MC MODULO'!$H$55 -> 1050 | J20: =CPU_SICRO!$I$36 -> 203.34 | K20: 213507 | L20: 216111.7854 | O20: 215250
A21: 9 | B21: SICRO | C21: 4011209 | D21: Regularização do subleito | H21: m² | I21: ='MC MODULO'!$H$61 -> 7000 | J21: =CPU_SICRO!$I$72 -> 0.96 | K21: 6720 | L21: 6801.984 | O21: 6720
D22: SINALIZAÇÃO
A23: 10 | B23: SICRO | C23: 5213440 | D23: Fornecimento e implantação de placa de regulamentação em aço D = 0,60 m - película retrorrefletiva tipo I + SI | H23: und | I23: ='MC MODULO'!$H$69 -> 0.5 | J23: =CPU_SICRO!$I$107 -> 240.1 | K23: =ROUND(I23*J23,2) -> 120.05 | L23: =K23*(1+$L$7) -> 121.51461 | O23: 121.03
A24: 11 | B24: SICRO | C24: 5213863 | D24: Suporte metálico galvanizado para placa de advertência ou regulamentação - lado ou diâmetro de 0,60 m - fornecimento e instalação | H24: und | I24: ='MC MODULO'!$H$75 -> 0.5 | J24: =CPU_SICRO!$I$147 -> 350.23 | K24: 175.12 | L24: 177.256464 | O24: 176.54
D25: DRENAGEM
A26: 12 | B26: SICRO | C26: 2003373 | D26: Meio fio de concreto - MFC 03 - areia e brita comerciais - fôrma de madeira | H26: m | I26: ='MC MODULO'!$H$82 -> 2000 | J26: =CPU_SICRO!I181 -> 28.09 | K26: =ROUND(I26*J26,2) -> 56180 | L26: =K26*(1+$L$7) -> 56865.396 | O26: 56640
D27: LIMPEZA GERAL
A28: 13 | B28: Codevasf | C28: Composição Própria | D28: Limpeza Geral | H28: m² | I28: ='MC MODULO'!$H$90 -> 7000 | J28: ='CPU CODEVASF'!$H$66 -> 0.94 | K28: =ROUND(I28*J28,2) -> 6580 | L28: =K28*(1+$L$7) -> 6660.276 | O28: 6580
D29: SERVIÇOS COMPLEMENTARES
A30: 14 | B30: Codevasf | C30: Composição Própria | D30: Conserto de quebra no ramal na rua sem pavimento com fornecimento de material hidráulico | H30: m | I30: ='MC MODULO'!H97 -> 100 | J30: ='CPU CODEVASF'!H77 -> 17.26 | K30: =ROUND(I30*J30,2) -> 1726 | L30: =K30*(1+$L$7) -> 1747.0572 | O30: 1741
D31: PROJETO EXECUTIVO
A32: 15 | B32: Codevasf | C32: Composição Própria | D32: Projeto Executivo | H32: km | I32: ='MC MODULO'!$H$104 -> 1 | J32: ='Projeto Executivo'!G32 -> 7478.106368 | K32: =ROUND(I32*J32,2) -> 7478.11 | L32: =K32*(1+$L$7) -> 7569.342942 | O32: 7478.11
A33: VALOR TOTAL DO SRP | K33: =SUM(K11:K32) -> 1073840.94 | L33: =SUM(L11:L32) -> 1086941.799 | O33: =SUM(O11:O32) -> 1082460.42

Sheet CRONOGRAMA MINIMO
A2: MÓDULO MÍNIMO
A3: ='RESUMO MODULO MINIMO'!$A$5 -> EXECUÇÃO DE SERVIÇOS DE IMPLANTAÇÃO DE PAVIMENTAÇÃO EM BLOCO DE CONCRETO INTERTRAVADO, EM VIAS URBANAS E RURAIS DE MUNÍCIPIOS DIVERSOS INSERIDOS NA ÁREA DE ATUAÇÃO DA CODEVASF, NO ESTADO DO TOCANTINS
A4: Cronograma Físico e Financeiro
A5: Item | B5: Descrição | C5: Total Por Etapa | D5: 30 DIAS | E5: 60 DIAS | F5: 90 DIAS | G5: 120 DIAS | H5: 150 DIAS | I5: 180 DIAS | J5: 210 DIAS | K5: 240 DIAS | L5: 270 DIAS | M5: 300 DIAS | N5: 330 DIAS | O5: 360 DIAS
B6: ='RESUMO MODULO MINIMO'!$D$10 -> MOBILIZAÇÃO | C6: 1 | E6: =$C$6/11 -> 0.09090909091 | F6: 0.09090909091 | G6: 0.09090909091 | H6: 0.09090909091 | I6: 0.09090909091 | J6: 0.09090909091 | K6: 0.09090909091 | L6: 0.09090909091 | M6: 0.09090909091 | N6: 0.09090909091 | O6: 0.09090909091 | Q6: =SUM(D6:O6) -> 1
C7: =SUM('RESUMO MODULO MINIMO'!L11:L13) -> 7100.350194 | E7: =$C$7*E6 -> 645.4863813 | F7: 645.4863813 | G7: 645.4863813 | H7: 645.4863813 | I7: 645.4863813 | J7: 645.4863813 | K7: 645.4863813 | L7: 645.4863813 | M7: 645.4863813 | N7: 645.4863813 | O7: 645.4863813 | Q7: =SUM(D7:O7) -> 7100.350194 | R7: =C7 -> 7100.350194 | S7: =Q7-R7 -> 0
B8: ='RESUMO MODULO MINIMO'!D14 -> TERRAPLENAGEM | C8: 1 | F8: =$C$10/10 -> 0.1 | G8: 0.1 | H8: 0.1 | I8: 0.1 | J8: 0.1 | K8: 0.1 | L8: 0.1 | M8: 0.1 | N8: 0.1 | O8: 0.1 | Q8: =SUM(F8:O8) -> 1
C9: =SUM('RESUMO MODULO MINIMO'!L15:L17) -> 8141.1246 | F9: =$C$9*F8 -> 814.11246 | G9: 814.11246 | H9: 814.11246 | I9: 814.11246 | J9: 814.11246 | K9: 814.11246 | L9: 814.11246 | M9: 814.11246 | N9: 814.11246 | O9: 814.11246 | Q9: 8141.1246 | R9: =C9 -> 8141.1246 | S9: =Q9-R9 -> 0
B10: ='RESUMO MODULO MINIMO'!$D$18 -> PAVIMENTAÇÃO | C10: 1 | F10: =$C$10/10 -> 0.1 | G10: 0.1 | H10: 0.1 | I10: 0.1 | J10: 0.1 | K10: 0.1 | L10: 0.1 | M10: 0.1 | N10: 0.1 | O10: 0.1 | Q10: 1
C11: =SUM('RESUMO MODULO MINIMO'!L19:L21) -> 998559.4815 | F11: =$C$11*F10 -> 99855.94815 | G11: 99855.94815 | H11: 99855.94815 | I11: 99855.94815 | J11: 99855.94815 | K11: 99855.94815 | L11: 99855.94815 | M11: 99855.94815 | N11: 99855.94815 | O11: 99855.94815 | Q11: 998559.4815 | R11: =C11 -> 998559.4815 | S11: =Q11-R11 -> 0
B12: ='RESUMO MODULO MINIMO'!$D$22 -> SINALIZAÇÃO | C12: 1 | F12: =$C$12/10 -> 0.1 | G12: =(100%-$F$12)/9 -> 0.1 | H12: 0.1 | I12: 0.1 | J12: 0.1 | K12: 0.1 | L12: 0.1 | M12: 0.1 | N12: 0.1 | O12: 0.1 | Q12: 1
C13: =SUM('RESUMO MODULO MINIMO'!L23:L24) -> 298.771074 | F13: =$C$13*F12 -> 29.8771074 | G13: 29.8771074 | H13: 29.8771074 | I13: 29.8771074 | J13: 29.8771074 | K13: 29.8771074 | L13: 29.8771074 | M13: 29.8771074 | N13: 29.8771074 | O13: 29.8771074 | Q13: 298.771074 | R13: =C13 -> 298.771074 | S13: =Q13-R13 -> 0
B14: ='RESUMO MODULO MINIMO'!$D$25 -> DRENAGEM | C14: 1 | F14: =$C$14/10 -> 0.1 | G14: 0.1 | H14: 0.1 | I14: 0.1 | J14: 0.1 | K14: 0.1 | L14: 0.1 | M14: 0.1 | N14: 0.1 | O14: 0.1 | Q14: =SUM(D14:O14) -> 1
C15: =SUM('RESUMO MODULO MINIMO'!L26) -> 56865.396 | F15: =$C$15*F14 -> 5686.5396 | G15: 5686.5396 | H15: 5686.5396 | I15: 5686.5396 | J15: 5686.5396 | K15: 5686.5396 | L15: 5686.5396 | M15: 5686.5396 | N15: 5686.5396 | O15: 5686.5396 | Q15: 56865.396 | R15: =C15 -> 56865.396 | S15: =Q15-R15 -> 0
B16: ='RESUMO MODULO MINIMO'!$D$27 -> LIMPEZA GERAL | C16: 1 | F16: =100%/10 -> 0.1 | G16: 0.1 | H16: 0.1 | I16: 0.1 | J16: 0.1 | K16: 0.1 | L16: 0.1 | M16: 0.1 | N16: 0.1 | O16: 0.1 | Q16: 1
C17: =SUM('RESUMO MODULO MINIMO'!L28) -> 6660.276 | F17: =$C$17*F16 -> 666.0276 | G17: 666.0276 | H17: 666.0276 | I17: 666.0276 | J17: 666.0276 | K17: 666.0276 | L17: 666.0276 | M17: 666.0276 | N17: 666.0276 | O17: 666.0276 | Q17: 6660.276 | R17: =C17 -> 6660.276 | S17: =Q17-R17 -> 0
B18: ='RESUMO MODULO MINIMO'!D29 -> SERVIÇOS COMPLEMENTARES | C18: 1 | F18: =100%/10 -> 0.1 | G18: 0.1 | H18: 0.1 | I18: 0.1 | J18: 0.1 | K18: 0.1 | L18: 0.1 | M18: 0.1 | N18: 0.1 | O18: 0.1 | Q18: 1
C19: ='RESUMO MODULO MINIMO'!L30 -> 1747.0572 | F19: =$C$19*F18 -> 174.70572 | G19: 174.70572 | H19: 174.70572 | I19: 174.70572 | J19: 174.70572 | K19: 174.70572 | L19: 174.70572 | M19: 174.70572 | N19: 174.70572 | O19: 174.70572 | Q19: 1747.0572 | R19: =C19 -> 1747.0572 | S19: =Q19-R19 -> 0
B20: ='RESUMO MODULO MINIMO'!$D$31 -> PROJETO EXECUTIVO | C20: 1 | D20: 0.5 | E20: 0.5 | Q20: 1
C21: ='RESUMO MODULO MINIMO'!L32 -> 7569.342942 | D21: =$C$21*D20 -> 3784.671471 | E21: =$C$21*E20 -> 3784.671471 | Q21: 7569.342942 | R21: =C21 -> 7569.342942 | S21: =Q21-R21 -> 0
A23: Porcentagem | D23: =SUM(D7+D9+D11+D13+D15+D17+D19+D21)/$O$28 -> 0.003481944914 | E23: 0.004075800429 | F23: 0.09924422547 | G23: 0.09924422547 | H23: 0.09924422547 | I23: 0.09924422547 | J23: 0.09924422547 | K23: 0.09924422547 | L23: 0.09924422547 | M23: 0.09924422547 | N23: 0.09924422547 | O23: 0.09924422547
A24: Custo | D24: =$O$28*D23 -> 3784.671471 | E24: 4430.157852 | F24: 107872.697 | G24: 107872.697 | H24: 107872.697 | I24: 107872.697 | J24: 107872.697 | K24: 107872.697 | L24: 107872.697 | M24: 107872.697 | N24: 107872.697 | O24: 107872.697
A25: Porcentagem Acumulado | D25: =D23 -> 0.003481944914 | E25: =D25+E23 -> 0.007557745343 | F25: 0.1068019708 | G25: 0.2060461963 | H25: 0.3052904217 | I25: 0.4045346472 | J25: 0.5037788727 | K25: 0.6030230981 | L25: 0.7022673236 | M25: 0.8015115491 | N25: 0.9007557745 | O25: 1
A26: Custo Acumulado | D26: =D24 -> 3784.671471 | E26: =D26+E24 -> 8214.829323 | F26: 116087.5263 | G26: 223960.2234 | H26: 331832.9204 | I26: 439705.6174 | J26: 547578.3144 | K26: 655451.0114 | L26: 763323.7084 | M26: 871196.4054 | N26: 979069.1025 | O26: 1086941.799
D28: Total Geral | N28: R$ | O28: ='RESUMO MODULO MINIMO'!L33 -> 1086941.799

Sheet MC MODULO
C8: Extensão | D8: = | E8: 1000 | F8: m | H8: QUANTIDADE DE MODULOS | I8: 55
C9: Largura | D9: = | E9: 7 | F9: m
C11: Extensão | D11: = | E11: 1 | F11: km
B13: MOBUILIZAÇÃO | L13: MOBUILIZAÇÃO
A14: 1 | B14: Implantação da obra | K14: 1 | L14: Implantação da obra
B16: Extensão (km) | D16: Extensão (km) | L16: Extensão (km) | N16: Extensão (km)
B17: =E11 -> 1 | C17: = | D17: =B17 -> 1 | L17: =E11*$I$8 -> 55 | M17: = | N17: =L17 -> 55
A19: 2 | B19: Administração da obra | K19: 2 | L19: Administração da obra
B21: Extensão (km) | D21: Extensão (km) | L21: Extensão (km) | N21: Extensão (km)
B22: =E11 -> 1 | C22: = | D22: =B22 -> 1 | L22: =E11*$I$8 -> 55 | M22: = | N22: =L22 -> 55
B24: TERRAPLENAGEM | L24: TERRAPLENAGEM
A26: 4 | B26: serviços topográficos para pavimentação, inclusive notas de serviços, acompanhamento e greide | K26: 4 | L26: serviços topográficos para pavimentação, inclusive notas de serviços, acompanhamento e greide
B28: Extensão (m) | D28: Largura (m) | F28: Área (m2) | L28: Extensão (m) | N28: Largura (m) | P28: Área (m2)
B29: =E8 -> 1000 | C29: x | D29: =$E$9 -> 7 | E29: = | F29: =B29*D29 -> 7000 | L29: =E8*I8 -> 55000 | M29: x | N29: =$E$9 -> 7 | O29: = | P29: =L29*N29 -> 385000
A31: 5 | B31: ='RESUMO MODULO MINIMO'!D16 -> Escavação, carga e transporte de material de 1ª categoria - DMT de 1.000 a 1.200 m - caminho de serviço em leito natural - com escavadeira e caminhão basculante de 14 m³ | K31: 5
B33: Extensão (m) | D33: Largura (m) | F33: Espessura (m) | H33: Volume (m3) | L33: Extensão (m) | N33: Largura (m) | P33: Espessura (m) | R33: Volume (m3)
B34: =E8 -> 1000 | C34: x | D34: =$E$9 -> 7 | E34: x | F34: 0.1 | G34: = | H34: =B34*D34*F34 -> 700 | L34: =E8*I8 -> 55000 | M34: x | N34: =$E$9 -> 7 | O34: x | P34: 0.1 | Q34: = | R34: =L34*N34*P34 -> 38500
A38: 6 | B38: ='RESUMO MODULO MINIMO'!D17 -> Espalhamento de material em bota-fora | K38: 6
B40: Extensão (m) | D40: Largura (m) | F40: Espessura (m) | H40: Volume (m3) | L40: Extensão (m) | N40: Largura (m) | P40: Espessura (m) | R40: Volume (m3)
B41: =$E$8 -> 1000 | C41: x | D41: =$E$9 -> 7 | E41: x | F41: 0.1 | G41: = | H41: =B41*D41*F41 -> 700 | L41: =$E$8*I8 -> 55000 | M41: x | N41: =$E$9 -> 7 | O41: x | P41: 0.1 | Q41: = | R41: =L41*N41*P41 -> 38500
B44: PAVIMENTAÇÃO | L44: PAVIMENTAÇÃO
A46: 7 | B46: Execução de pavimento em piso intertravado, com bloco sextavado de 25 x 25 cm, espessura 8 cm. af_12/2015 | K46: 7 | L46: Execução de pavimento em piso intertravado, com bloco sextavado de 25 x 25 cm, espessura 8 cm. af_12/2015
B48: Extensão (m) | D48: Largura (m) | F48: Área (m2) | L48: Extensão (m) | N48: Largura (m) | P48: Área (m2)
B49: =E8 -> 1000 | C49: x | D49: =$E$9 -> 7 | E49: = | F49: =B49*D49 -> 7000 | L49: =E8*I8 -> 55000 | M49: x | N49: =$E$9 -> 7 | O49: = | P49: =L49*N49 -> 385000
A52: 8 | B52: Base ou sub-base de brita graduada com brita comercial | K52: 8 | L52: Base ou sub-base de brita graduada com brita comercial
B54: Extensão (m) | D54: Largura (m) | F54: Espessura (m) | H54: Volume (m3) | L54: Extensão (m) | N54: Largura (m) | P54: Espessura (m) | R54: Volume (m3)
B55: =$E$8 -> 1000 | C55: x | D55: =$E$9 -> 7 | E55: x | F55: 0.15 | G55: = | H55: =B55*D55*F55 -> 1050 | L55: =$E$8*$I$8 -> 55000 | M55: x | N55: =$E$9 -> 7 | O55: x | P55: 0.15 | Q55: = | R55: =L55*N55*P55 -> 57750
A58: 9 | B58: Regularização do subleito | K58: 9 | L58: Regularização do subleito
B60: Extensão (m) | D60: Largura (m) | H60: Volume (m2) | L60: Extensão (m) | N60: Largura (m) | R60: Volume (m2)
B61: =$E$8 -> 1000 | C61: x | D61: =$E$9 -> 7 | G61: = | H61: =B61*D61 -> 7000 | L61: =$E$8*$I$8 -> 55000 | M61: x | N61: =$E$9 -> 7 | Q61: = | R61: =L61*N61 -> 385000
B64: SINALIZAÇÃO | L64: SINALIZAÇÃO
A66: 10 | B66: Fornecimento e implantação de placa de regulamentação em aço D = 0,60 m - película retrorrefletiva tipo I + SI | K66: 10 | L66: Fornecimento e implantação de placa de regulamentação em aço D = 0,60 m - película retrorrefletiva tipo I + SI
B68: Extensão (km) | D68: Quant. (un) | H68: Quant. (un) | L68: Extensão (km) | N68: Quant. (un) | R68: Quant. (un)
B69: =$E$11 -> 1 | C69: x | D69: 0.5 | G69: = | H69: =B69*D69 -> 0.5 | L69: =$E$11*$I$8 -> 55 | M69: x | N69: 0.5 | Q69: = | R69: =L69*N69 -> 27.5
A72: 11 | B72: Fornecimento e implantação de suporte metálico galvanizado para placa de regulamentação - D = 0,60 m | K72: 11 | L72: Fornecimento e implantação de suporte metálico galvanizado para placa de regulamentação - D = 0,60 m
B74: Extensão (km) | D74: Quant. (un) | H74: Quant. (un) | L74: Extensão (km) | N74: Quant. (un) | R74: Quant. (un)
B75: =$E$11 -> 1 | C75: x | D75: 0.5 | G75: = | H75: =B75*D75 -> 0.5 | L75: =$E$11*$I$8 -> 55 | M75: x | N75: 0.5 | Q75: = | R75: =L75*N75 -> 27.5
B78: DRENAGEM | L78: DRENAGEM
A79: 12 | B79: Meio fio de concreto - MFC 04 - areia e brita comerciais - fôrma de madeira | K79: 12 | L79: Meio fio de concreto - MFC 04 - areia e brita comerciais - fôrma de madeira
B81: Extensão (m) | D81: Quant. (un) | H81: Volume (m) | L81: Extensão (m) | N81: Quant. (un) | R81: Volume (m)
B82: =$E$8 -> 1000 | C82: x | D82: 2 | G82: = | H82: =B82*D82 -> 2000 | L82: =$E$8*$I$8 -> 55000 | M82: x | N82: 2 | Q82: = | R82: =L82*N82 -> 110000
B86: LIMPEZA GERAL | L86: LIMPEZA GERAL
A87: 13 | B87: Limpeza Geral | K87: 13 | L87: Limpeza Geral
B89: Extensão (m) | D89: Largura (m) | F89: Quant. (un) | H89: Volume (m2) | L89: Extensão (m) | N89: Largura (m) | P89: Quant. (un) | R89: Volume (m2)
B90: =$E$8 -> 1000 | C90: x | D90: 7 | E90: x | F90: 1 | G90: = | H90: =B90*D90*F90 -> 7000 | L90: =$E$8*$I$8 -> 55000 | M90: x | N90: 7 | O90: x | P90: 1 | Q90: = | R90: =L90*N90*P90 -> 385000
B93: SERVIÇOS COMPLEMENTARES | L93: SERVIÇOS COMPLEMENTARES
A94: 14 | B94: ='RESUMO MODULO MINIMO'!D30 -> Conserto de quebra no ramal na rua sem pavimento com fornecimento de material hidráulico | K94: 14 | L94: ='RESUMO MODULO MINIMO'!O30 -> 1741
B96: Extensão (m) | D96: Largura (m) | G96: 0.1 | H96: extensão (m) | L96: Extensão (m) | N96: Largura (m) | Q96: 0.1 | R96: extensão (m)
B97: =$E$8 -> 1000 | C97: x | D97: 1 | E97: x | G97: = | H97: =G96*B97 -> 100 | L97: =$E$8*I8 -> 55000 | M97: x | N97: 1 | O97: x | Q97: = | R97: =Q96*L97 -> 5500
B100: PROJETO EXECUTIVO | L100: PROJETO EXECUTIVO
A101: 15 | B101: Projeto Executivo | K101: 15 | L101: Projeto Executivo
B103: Extensão (m) | D103: Largura (m) | F103: Quant. (un) | H103: Volume (Km) | L103: Extensão (m) | N103: Largura (m) | P103: Quant. (un) | R103: Volume (Km)
B104: =E11 -> 1 | C104: x | E104: x | F104: 1 | G104: = | H104: =B104*F104 -> 1 | L104: =E11*I8 -> 55 | M104: x | O104: x | P104: 1 | Q104: = | R104: =L104*P104 -> 55

Sheet Relação Insumos
A1: cls | B1: fonte | C1: cod | D1: descrição | E1: unid | F1: PRECO UNITÁRIO (R$)
A2: INS. SINAPI | B2: SINAPI | C2: 370 | D2: AREIA MEDIA - POSTO JAZIDA/FORNECEDOR (RETIRADO NA JAZIDA, SEM TRANSPORTE) | E2: M3 | F2: 87,50
A3: INS. SINAPI | B3: SINAPI | C3: 1379 | D3: CIMENTO PORTLAND COMPOSTO CP II-32 | E3: KG | F3: 0,70
A4: INS. SINAPI | B4: SINAPI | C4: 1518 | D4: CONCRETO BETUMINOSO USINADO A QUENTE (CBUQ) PARA PAVIMENTACAO ASFALTICA, PADRAO DNIT, FAIXA C, COM CAP 50/70 - AQUISICAO POSTO USINA | E4: T | F4: 407,50
A5: INS. SINAPI | B5: SINAPI | C5: 4059 | D5: MEIO-FIO OU GUIA DE CONCRETO, PRE-MOLDADO, COMP 1 M, *30 X 15/ 12* CM (H X L1/L2) | E5: M | F5: 28,38
A6: COMP. ORSE | B6: ORSE | C6: 4299 | D6: Aluguel de container - Almoxarifado sem banheiro - 6,00 x 2,40m | E6: mês | F6: 600
A7: INSUMO | B7: ORSE | C7: 5896 | D7: Veículo leve - Volkswagen:GOL 1000 - automóvel até 100 hp | E7: H | F7: 8.33
A8: INS. SINAPI | B8: SINAPI | C8: 4417 | D8: Peca de madeira de lei *2,5 x 7,5* cm (1" x 3"), não aparelhada, (p/telhado) | E8: m | F8: 5,44
A9: INS. SINAPI | B9: SINAPI | C9: 4491 | D9: Peca de madeira nativa / regional 7,5 x 7,5cm (3x3) nao aparelhada (p/forma) | E9: m | F9: 9,65
A10: INS. SINAPI | B10: SINAPI | C10: 4718 | D10: Pedra Britada nº 2 | E10: m³ | F10: 77,80
A11: INS. SINAPI | B11: SINAPI | C11: 4721 | D11: PEDRA BRITADA N. 1 (9,5 a 19 MM) POSTO PEDREIRA/FORNECEDOR, SEM FRETE | E11: M3 | F11: 77,39
A12: INS. SINAPI | B12: SINAPI | C12: 4730 | D12: PEDRA DE MÃO | E12: m³ | F12: 72,74
A13: INS. SINAPI | B13: SINAPI | C13: 4813 | D13: Placa de obra (para construcao civil) em chapa galvanizada *nº 22*, de *2,0 x 1,125* m | E13: m² | F13: 400,00
A14: INS. SINAPI | B14: SINAPI | C14: 5075 | D14: Prego 18x30. | E14: kg | F14: 18,54
A15: INS. SINAPI | B15: SINAPI | C15: 5318 | D15: SOLVENTE DILUENTE A BASE DE AGUARRAS | E15: L | F15: 15,30
A16: COMP. SINAPI | B16: SINAPI | C16: 5689 | D16: GRADE DE 24 DISCOS REBOCÁVEL DE 24" | E16: CHP | F16: 6,07
A17: COMP. SINAPI | B17: SINAPI | C17: 5690 | D17: GRADE DE 24 DISCOS REBOCÁVEL DE 24" | E17: CHI | F17: 3,77
A18: COMP. SINAPI | B18: SINAPI | C18: 5795 | D18: MARTELETE PERFURADOR/ROMPEDOR A AR COMPRIMIDO DE 25 KG | E18: CHP | F18: 18,16
A19: COMP. SINAPI | B19: SINAPI | C19: 5845 | D19: TRATOR AGRÍCOLA - 77 KW | E19: CHI | F19: 32,74
A20: COMP. SINAPI | B20: SINAPI | C20: 5855 | D20: TRATOR DE ESTEIRAS COM LÂMINA - 259 KW | E20: CHP | F20: 491,74
A21: COMP. SINAPI | B21: SINAPI | C21: 5875 | D21: RETROESCAVADEIRA DE PNEUS - 58 KW | E21: H | F21: 95,27
A22: COMP. SINAPI | B22: SINAPI | C22: 5901 | D22: CAMINHÃO TANQUE COM CAPACIDADE DE 10.000 L - 188 KW | E22: CHP | F22: 218,22
A23: COMP. SINAPI | B23: SINAPI | C23: 5903 | D23: CAMINHÃO TANQUE COM CAPACIDADE DE 10.000 L - 188 KW | E23: CHI | F23: 39,55
A24: COMP. SINAPI | B24: SINAPI | C24: 5932 | D24: MOTONIVELADORA - 93 KW | E24: CHP | F24: 170,35
A25: COMP. SINAPI | B25: SINAPI | C25: 5934 | D25: MOTONIVELADORA - 93 KW | E25: CHI | F25: 58,46
A26: COMP. SINAPI | B26: SINAPI | C26: 5944 | D26: CARREGADEIRA DE PNEUS PARA ROCHA COM CAPACIDADE DE 2,9 M³ - 96 KW | E26: CHP | F26: 158,68
A27: COMP. SINAPI | B27: SINAPI | C27: 5946 | D27: CARREGADEIRA DE PNEUS PARA ROCHA COM CAPACIDADE DE 2,9 M³ - 96 KW | E27: CHI | F27: 59,61
A28: COMP. SINAPI | B28: SINAPI | C28: 5953 | D28: COMPRESSOR DE AR PORTÁTIL DE 124 PCM - 27 Kw | E28: CHP | F28: 44,25
A29: COMP. SINAPI | B29: SINAPI | C29: 7049 | D29: ROLO COMP. PÉ DE CARNEIRO VIBR. AUTOP. DE 11,6 T - 82 KW | E29: H | F29: 151,83
A30: INS. SINAPI | B30: SINAPI | C30: 7343 | D30: TINTA A BASE DE RESINA ACRILICA, PARA SINALIZACAO HORIZONTAL VIARIA (NBR 11862) | E30: L | F30: 10,17
A31: INS. SINAPI | B31: SINAPI | C31: 7348 | D31: TINTA ACRILICA PREMIUM PARA PISO | E31: L | F31: 16,55
A32: INS. SINAPI | B32: SINAPI | C32: 10775 | D32: Locação de container - Escritório com banheiro - 6,20 x 2,20m | E32: mês | F32: 585,00
A33: INS. SINAPI | B33: SINAPI | C33: 14250 | D33: ENERGIA | E33: KW/H | F33: 0,91
A34: INS. SINAPI | B34: SINAPI | C34: 14583 | D34: ÁGUA | E34: M3 | F34: 17,21
A35: INS. SINAPI | B35: SINAPI | C35: 25972 | D35: MICROESFERAS DE VIDRO PARA SINALIZACAO HORIZONTAL VIARIA, TIPO I-B (PREMIX) - NBR 16184 | E35: KG | F35: 16,66
A36: INS. SINAPI | B36: SINAPI | C36: 41899 | D36: CIMENTO ASFÁLTICO CAP 50/70 | E36: T | F36: 4.478,94
A37: INS. SINAPI | B37: SINAPI | C37: 41903 | D37: EMULSAO ASFALTICA CATIONICA RR-2C PARA USO EM PAVIMENTACAO ASFALTICA (COLETADO CAIXA NA ANP ACRESCIDO DE ICMS) | E37: KG | F37: 3,33
A38: COMP. SINAPI | B38: SINAPI | C38: 100574 | D38: ESPALHAMENTO DE MATERIAL COM TRATOR DE ESTEIRAS. AF_11/2019 | E38: M³ | F38: 0,99
A39: COMP. SINAPI | B39: SINAPI | C39: 83356 | D39: TRANSPORTE PEDRA DE MAO | E39: m² X KM
A40: COMP. SINAPI | B40: SINAPI | C40: 87445 | D40: Betoneira 320 l, diesel, potencia de 5,5 hp, sem carregador mecanico (locacao) | E40: h | F40: 4,04
A41: COMP. SINAPI | B41: SINAPI | C41: 88257 | D41: BLASTER | E41: H | F41: 15,43
A42: COMP. SINAPI | B42: SINAPI | C42: 88262 | D42: CARPINTEIRO DE FORMAS COM ENCARGOS COMPLEMENTARES | E42: h | F42: 19,66
A43: COMP. SINAPI | B43: SINAPI | C43: 88309 | D43: PEDREIRO COM ENCARGOS COMPLEMENTARES | E43: H | F43: 19,87
A44: COMP. SINAPI | B44: SINAPI | C44: 88377 | D44: OPERADOR DE BETONEIRA ESTACIONÁRIA/MISTURADOR COM ENCARGOS COMPLEMENTARES | E44: H | F44: 15,91
A45: COMP. SINAPI | B45: SINAPI | C45: 88629 | D45: ARGAMASSA TRAÇO 1:3 (EM VOLUME DE CIMENTO E AREIA MÉDIA ÚMIDA), PREPARO MANUAL. AF_08/2019 | E45: M3 | F45: 563,32
A46: COMP. SINAPI | B46: SINAPI | C46: 88830 | D46: BETONEIRA CAPACIDADE NOMINAL DE 400 L, CAPACIDADE DE MISTURA 280 L, MOTOR ELÉTRICO TRIFÁSICO POTÊNCIA DE 2 CV, SEM CARREGADOR - CHP DIURNO. AF_10/2014 | E46: CHP | F46: 1,70
A47: COMP. SINAPI | B47: SINAPI | C47: 88831 | D47: BETONEIRA CAPACIDADE NOMINAL DE 400 L, CAPACIDADE DE MISTURA 280 L, MOTOR ELÉTRICO TRIFÁSICO POTÊNCIA DE 2 CV, SEM CARREGADOR - CHI DIURNO. AF_10/2014 | E47: CHI | F47: 0,32
A48: COMP. SINAPI | B48: SINAPI | C48: 88843 | D48: TRATOR DE ESTEIRAS COM LÂMINA - 112 KW | E48: CHP | F48: 152,22
A49: COMP. SINAPI | B49: SINAPI | C49: 88844 | D49: TRATOR DE ESTEIRAS COM LÂMINA - 112 KW | E49: CHI | F49: 47,21
A50: COMP. SINAPI | B50: SINAPI | C50: 89035 | D50: TRATOR AGRÍCOLA - 77 KW | E50: CHP | F50: 131,47
A51: COMP. SINAPI | B51: SINAPI | C51: 89876 | D51: CAMINHÃO BASCULANTE COM CAPACIDADE DE 14 M³ - 323 KW | E51: CHP | F51: 239,68
A52: COMP. SINAPI | B52: SINAPI | C52: 89877 | D52: CAMINHÃO BASCULANTE COM CAPACIDADE DE 14 M³ - 323 KW | E52: CHI | F52: 52,26
A53: COMP. SINAPI | B53: SINAPI | C53: 90772 | D53: AUXILIAR DE ESCRITORIO COM ENCARGOS COMPLEMENTARES | E53: H | F53: 12,15
A54: COMP. SINAPI | B54: SINAPI | C54: 90777 | D54: ENGENHEIRO CIVIL DE OBRA JUNIOR COM ENCARGOS COMPLEMENTARES | E54: H | F54: 94,94
A55: COMP. SINAPI | B55: SINAPI | C55: 90780 | D55: MESTRE DE OBRAS COM ENCARGOS COMPLEMENTARES | E55: H | F55: 32,94
A56: COMP. SINAPI | B56: SINAPI | C56: 94964 | D56: CONCRETO FCK = 20 MPA - CONFECÇÃO EM BETONEIRA E LANÇAMENTO MANUAL - AREIA E BRITA COMERCIAIS | E56: M3 | F56: 403,72
A57: COMP.SICRO | B57: DNIT | C57: 4816126 | D57: CONFECÇÃO DE TUBOS DE CONCRETO D = 0,60 M - AREIA E BRITA COMERCIAIS | E57: m
A58: COMP. SINAPI | B58: SINAPI | C58: 95708 | D58: PERFURATRIZ SOBRE ESTEIRAS - 145 KW | E58: CHP | F58: 121,20
A59: COMP. SINAPI | B59: SINAPI | C59: 95720 | D59: ESCAVADEIRA HIDRÁULICA SOBRE ESTEIRA COM CAÇAMBA COM CAPACIDADE DE 1,5 M³ - 110 KW | E59: CHP | F59: 176,28
A60: COMP. SINAPI | B60: SINAPI | C60: 96035 | D60: CAMINHÃO BASCULANTE PARA ROCHA COM CAPACIDADE DE 12 M³ - 188 KW | E60: CHI | F60: 196,12
A61: COMP.SICRO | B61: DNIT | C61: 407820 | D61: ARMAÇÃO EM AÇO CA-60 - FORNECIMENTO, PREPARO E COLOCAÇÃO | E61: kg | F61: 9.17
A62: COMP.SICRO | B62: DNIT | C62: 1506055 | D62: PEDRA ARGAMASSADA COM CIMENTO E AREIA 1:3 - AREIA E PEDRA DE MÃO COMERCIAL - FORNECIMENTO E ASSENTAMENTO | E62: m² | F62: 238.53
A63: COMP.SICRO | B63: DNIT | C63: 2003842 | D63: ENCHIMENTO DE JUNTA DE CONCRETO COM ARGAMASSA ASFÁLTICA DE DENSIDADE 1.700 KG/M³ - ESPESSURA DE 1 CM | E63: kg | F63: 46.55
A64: COMP.SICRO | B64: DNIT | C64: 4805751 | D64: ESCAVAÇÃO MANUAL EM MATERIAL DE 1ª CATEGORIA NA PROFUNDIDADE DE ATÉ 2M | E64: m³ | F64: 40.99
A65: COMP.SICRO | B65: DNIT | C65: 3103302 | D65: FORMAS DE TÁBUAS DE PINHO PARA DISPOSITIVOS DE DRENAGEM - UTILIZAÇÃO DE 3 VEZES - CONFECÇÃO, INSTALAÇÃO E RETIRADA | E65: m² | F65: 54.98
A66: COMP.SICRO | B66: DNIT | C66: 3108022 | D66: GUIA DE MADEIRA DE 2,5 X 8,0 CM - CONFECÇÃO E INSTALAÇÃO | E66: m | F66: 2.6
A67: COMP.SICRO | B67: DNIT | C67: 4413996 | D67: ENLEIVAMENTO | E67: M² | F67: 5.79
A68: COMP. SICRO | B68: DNIT | C68: 5213414 | D68: CONFECÇÃO DE PLACA EM AÇO Nº 16 GALVANIZADO, COM PELÍCULA RETRORREFLETIVA TIPO I + SI | E68: M² | F68: 414.64
A69: COMP. ORSE | B69: ORSE | C69: 12651/ORSE | D69: APILOAMENTO MANUAL | E69: m³ | F69: 19.46
A70: COMP. SINAPI | B70: SINAPI | C70: 5824 | D70: CAMINHÃO TOCO, PBT 16.000 KG, CARGA ÚTIL MÁX. 10.685 KG, DIST. ENTRE EIXOS 4,8 M, POTÊNCIA 189 CV, INCLUSIVE CARROCERIA FIXA ABERTA DE MADEIRA P/ TRANSPORTE GERAL DE CARGA SECA, DIMEN. APROX. 2,5 X 7,00 X 0,50 M - CHP DIURNO. AF_06/2014 | E70: CHP | F70: 140,15
A71: COMP. SINAPI | B71: SINAPI | C71: 5835 | D71: VIBROACABADORA DE ASFALTO SOBRE ESTEIRAS, LARGURA DE PAVIMENTAÇÃO 1,90 M A 5,30 M, POTÊNCIA 105 HP CAPACIDADE 450 T/H - CHP DIURNO. AF_11/2014 | E71: CHP | F71: 322,28
A72: COMP. SINAPI | B72: SINAPI | C72: 5837 | D72: VIBROACABADORA DE ASFALTO SOBRE ESTEIRAS, LARGURA DE PAVIMENTAÇÃO 1,90 M A 5,30 M, POTÊNCIA 105 HP CAPACIDADE 450 T/H - CHI DIURNO. AF_11/2014 | E72: CHI | F72: 119,25
A73: COMP. ORSE | B73: ORSE | C73: 4 | D73: Limpeza mecanizada do terreno c/ trator esteira (vegetação rasteira) inclusive carga e transporte - dmt até 1 km | E73: M2 | F73: 4.17
A74: COMP. SINAPI | B74: SINAPI | C74: 83362 | D74: ESPARGIDOR DE ASFALTO PRESSURIZADO, TANQUE 6 M3 COM ISOLAÇÃO TÉRMICA, AQUECIDO COM 2 MAÇARICOS, COM BARRA ESPARGIDORA 3,60 M, MONTADO SOBRE CAMINHÃO TOCO, PBT 14.300 KG, POTÊNCIA 185 CV - CHP DIURNO. AF_08/2015 | E74: CHP | F74: 219,66
A75: COMP. SINAPI | B75: SINAPI | C75: 88278 | D75: Montador | E75: H | F75: 14,93
A76: COMP. SINAPI | B76: SINAPI | C76: 88314 | D76: RASTELEIRO COM ENCARGOS COMPLEMENTARES | E76: H | F76: 14,73
A77: COMP. SINAPI | B77: SINAPI | C77: 88316 | D77: SERVENTE COM ENCARGOS COMPLEMENTARES | E77: H | F77: 15,36
A78: COMP. SINAPI | B78: SINAPI | C78: 91386 | D78: CAMINHÃO BASCULANTE 10 M3, TRUCADO CABINE SIMPLES, PESO BRUTO TOTAL 23.000 KG, CARGA ÚTIL MÁXIMA 15.935 KG, DISTÂNCIA ENTRE EIXOS 4,80 M, POTÊNCIA 230 CV INCLUSIVE CAÇAMBA METÁLICA - CHP DIURNO. AF_06/2014 | E78: CHP | F78: 186,01
A79: COMP. SINAPI | B79: SINAPI | C79: 94970 | D79: Concreto fck = 20 MPa - confecção em betoneira e lançamento manual - areia e brita comerciais | E79: M³ | F79: 395,23
A80: COMP. SINAPI | B80: SINAPI | C80: 95133 | D80: MÁQUINA DEMARCADORA DE FAIXA DE TRÁFEGO À FRIO, AUTOPROPELIDA, POTÊNCIA 38 HP - CHP DIURNO. AF_07/2016 | E80: CHP | F80: 131,10
A81: COMP. SINAPI | B81: SINAPI | C81: 95631 | D81: ROLO COMPACTADOR VIBRATORIO TANDEM, ACO LISO, POTENCIA 125 HP, PESO SEM/COM LASTRO 10,20/11,65 T, LARGURA DE TRABALHO 1,73 M - CHP DIURNO. AF_11/2016 | E81: CHP | F81: 157,29
A82: COMP. SINAPI | B82: SINAPI | C82: 95632 | D82: ROLO COMPACTADOR VIBRATORIO TANDEM, ACO LISO, POTENCIA 125 HP, PESO SEM/COM LASTRO 10,20/11,65 T, LARGURA DE TRABALHO 1,73 M - CHI DIURNO. AF_11/2016 | E82: CHI | F82: 50,15
A83: COMP. SINAPI | B83: SINAPI | C83: 96013 | D83: TRATOR DE PNEUS COM POTÊNCIA DE 122 CV, TRAÇÃO 4X4, COM VASSOURA MECÂNICA ACOPLADA - CHP DIURNO. AF_02/2017 | E83: CHP | F83: 188,08
A84: COMP. SINAPI | B84: SINAPI | C84: 96014 | D84: TRATOR DE PNEUS COM POTÊNCIA DE 122 CV, TRAÇÃO 4X4, COM VASSOURA MECÂNICA ACOPLADA - CHI DIURNO. AF_02/2017 | E84: CHI | F84: 36,88
A85: COMP. SINAPI | B85: SINAPI | C85: 96155 | D85: TRATOR DE PNEUS COM POTÊNCIA DE 85 CV, TRAÇÃO 4X4, COM VASSOURA MECÂNICA ACOPLADA - CHI DIURNO. AF_02/2017 | E85: CHI | F85: 32,45
A86: COMP. SINAPI | B86: SINAPI | C86: 96157 | D86: TRATOR DE PNEUS COM POTÊNCIA DE 85 CV, TRAÇÃO 4X4, COM VASSOURA MECÂNICA ACOPLADA - CHP DIURNO. AF_03/2017 | E86: CHP | F86: 139,59
A87: COMP. SINAPI | B87: SINAPI | C87: 96463 | D87: ROLO COMPACTADOR DE PNEUS, ESTATICO, PRESSAO VARIAVEL, POTENCIA 110 HP, PESO SEM/COM LASTRO 10,8/27 T, LARGURA DE ROLAGEM 2,30 M - CHP DIURNO. AF_06/2017 | E87: CHP | F87: 145,99
A88: COMP. SINAPI | B88: SINAPI | C88: 96464 | D88: ROLO COMPACTADOR DE PNEUS, ESTATICO, PRESSAO VARIAVEL, POTENCIA 110 HP, PESO SEM/COM LASTRO 10,8/27 T, LARGURA DE ROLAGEM 2,30 M - CHI DIURNO. AF_06/2017 | E88: CHI | F88: 54,02
A89: COMP.SICRO | B89: DNIT | C89: E9647 | D89: COMPACTADOR MANUAL COM SOQUETE VIBRATÓRIO - 4,1 KW | E89: H | F89: =VLOOKUP($C89,'INSUMOS SICRO'!$B$1760:$I$2246,8,0) -> 6.5686
A90: COMP. SICRO | B90: DNIT | C90: E9687 | D90: Caminhão carroceria com capacidade de 5 t - 115 kW | E90: CHP | F90: =VLOOKUP($C90,'INSUMOS SICRO'!$B$1760:$I$2246,8,0) -> 86.5258
A91: COMP. SICRO | B91: DNIT | C91: E9687 | D91: Caminhão carroceria com capacidade de 5 t - 115 kW | E91: CHI | F91: =VLOOKUP($C91,'INSUMOS SICRO'!$B$1760:$I$2246,7,0) -> 36.4779
A92: INS. SICRO | B92: DNIT | C92: M0787 | D92: Suporte em aço carbono galvanizado perfil "C" | E92: kg | F92: =VLOOKUP($C92,'INSUMOS SICRO'!$B$6:$F$1632,5,0) -> 14.0262
A93: INS. SICRO | B93: DNIT | C93: M0789 | D93: Conjunto de cantoneiras e parafusos galvanizados para fixação de placas | E93: kg | F93: =VLOOKUP($C93,'INSUMOS SICRO'!$B$6:$F$1632,5,0) -> 9.9071
A94: INS. SICRO | B94: DNIT | C94: M2042 | D94: EMULSÃO EXPLOSIVA ENCARTUCHADA | E94: kg | F94: =VLOOKUP($C94,'INSUMOS SICRO'!$B$6:$F$1632,5,0) -> 10.1513
A95: INS. SICRO | B95: DNIT | C95: M2062 | D95: COROA PARA PERFURATRIZ T38 - D = 2 1/2" | E95: und | F95: =VLOOKUP($C95,'INSUMOS SICRO'!$B$6:$F$1632,5,0) -> 559.8072
A96: INS. SICRO | B96: DNIT | C96: M2065 | D96: HASTE PARA PERFURATRIZ DE ESTEIRA T38 DE 1 1/2" X 3 M | E96: und | F96: =VLOOKUP($C96,'INSUMOS SICRO'!$B$6:$F$1632,5,0) -> 1232.135
A97: INS. SICRO | B97: DNIT | C97: M2066 | D97: LUVA PARA PERFURATRIZ DE ESTEIRA T38 - D = 1 1/2" | E97: und | F97: =VLOOKUP($C97,'INSUMOS SICRO'!$B$6:$F$1632,5,0) -> 220.8036
A98: INS. SICRO | B98: DNIT | C98: M2067 | D98: PUNHO PARA PERFURATRIZ DE ESTEIRA T38 - D = 1 1/2" | E98: und | F98: =VLOOKUP($C98,'INSUMOS SICRO'!$B$6:$F$1632,5,0) -> 998.1907
A99: INS. SICRO | B99: DNIT | C99: M2141 | D99: NONEL DE INICIAÇÃO PARA FOGACHO COM 6 M | E99: und | F99: =VLOOKUP($C99,'INSUMOS SICRO'!$B$6:$F$1632,5,0) -> 13.4415
A100: INS. SICRO | B100: DNIT | C100: M2143 | D100: NONEL DE LIGAÇÃO | E100: und | F100: =VLOOKUP($C100,'INSUMOS SICRO'!$B$6:$F$1632,5,0) -> 10.7075
A101: INS. SICRO | B101: DNIT | C101: M2144 | D101: NONEL DE COLUNA COM 6 M | E101: und | F101: =VLOOKUP($C101,'INSUMOS SICRO'!$B$6:$F$1632,5,0) -> 15.6128
A102: INS. SICRO | B102: DNIT | C102: M2145 | D102: SÉRIE DE BROCAS S-12 - D = 22 MM | E102: und | F102: =VLOOKUP($C102,'INSUMOS SICRO'!$B$6:$F$1632,5,0) -> 548.5352
A103: INS. SICRO | B103: DNIT | C103: M2146 | D103: NONEL INICIADOR COM 150 M | E103: und | F103: =VLOOKUP($C103,'INSUMOS SICRO'!$B$6:$F$1632,5,0) -> 153.4275

Sheet INSUMOS SINAPI
A1: PRECOS DE INSUMOS
A3: MES DE COLETA: 06/2021
A4: LOCALIDADE: 4260 - GOIANIA
A5: ENCARGOS SOCIAIS (%) HORISTA 114,70 MENSALISTA 72,66
A7: CODIGO | B7: DESCRICAO DO INSUMO | C7: UNIDADE | D7: ORIGEM DO PRECO | E7: PRECO MEDIANO R$
A8: 1363 | B8: !EM PROCESSO DE DESATIVACAO! CHAPA DE MADEIRA COMPENSADA DE PINUS, VIROLA OU EQUIVALENTE, DE *2,2 X 1,6* M, E = 6 MM | C8: M2 | D8: C | E8: 19,89
A9: 1344 | B9: !EM PROCESSO DE DESATIVACAO! CHAPA DE MADEIRA COMPENSADA PLASTIFICADA PARA FORMA DE CONCRETO, DE 2,20 x 1,10 M, E = 6 MM | C9: UN | D9: CR | E9: 42,14
A10: 1342 | B10: !EM PROCESSO DE DESATIVACAO! CHAPA DE MADEIRA COMPENSADA PLASTIFICADA PARA FORMA DE CONCRETO, DE 2,20 X 1,10 m, E = 14 MM | C10: UN | D10: CR | E10: 74,49
A11: 1349 | B11: !EM PROCESSO DE DESATIVACAO! CHAPA DE MADEIRA COMPENSADA PLASTIFICADA PARA FORMA DE CONCRETO, DE 2,20 X 1,10 M, E = 20 MM | C11: UN | D11: CR | E11: 106,24
A12: 1350 | B12: !EM PROCESSO DE DESATIVACAO! CHAPA DE MADEIRA COMPENSADA RESINADA PARA FORMA DE CONCRETO, DE *2,2 X 1,1* M, E = 10 MM | C12: UN | D12: C | E12: 60,00
A13: 1359 | B13: !EM PROCESSO DE DESATIVACAO! CHAPA DE MADEIRA COMPENSADA RESINADA PARA FORMA DE CONCRETO, DE *2,2 X 1,1* M, E = 20 MM | C13: UN | D13: CR | E13: 118,08
A14: 1351 | B14: !EM PROCESSO DE DESATIVACAO! CHAPA DE MADEIRA COMPENSADA RESINADA PARA FORMA DE CONCRETO, DE *2,2 X 1,1* M, E = 6 MM | C14: UN | D14: CR | E14: 38,05
A15: 2418 | B15: !EM PROCESSO DE DESATIVACAO! DOBRADICA EM ACO/FERRO, 3" X 2 1/2", E= 1,2 A 1,8 MM, SEM ANEL, CROMADO OU ZINCADO, TAMPA BOLA, COM PARAFUSOS | C15: UN | D15: C | E15: 7,84
A16: 6086 | B16: !EM PROCESSO DE DESATIVACAO! FUNDO SINTETICO NIVELADOR BRANCO FOSCO PARA MADEIRA | C16: GL | D16: CR | E16: 84,02
A17: 3378 | B17: !EM PROCESSO DE DESATIVACAO! HASTE DE ATERRAMENTO EM ACO COM 3,00 M DE COMPRIMENTO E DN = 3/4", REVESTIDA COM BAIXA CAMADA DE COBRE, SEM CONECTOR | C17: UN | D17: CR | E17: 62,85
A18: 3380 | B18: !EM PROCESSO DE DESATIVACAO! HASTE DE ATERRAMENTO EM ACO COM 3,00 M DE COMPRIMENTO E DN = 5/8", REVESTIDA COM BAIXA CAMADA DE COBRE, COM CONECTOR TIPO GRAMPO | C18: UN | D18: C | E18: 44,00
A19: 3379 | B19: !EM PROCESSO DE DESATIVACAO! HASTE DE ATERRAMENTO EM ACO COM 3,00 M DE COMPRIMENTO E DN = 5/8", REVESTIDA COM BAIXA CAMADA DE COBRE, SEM CONECTOR | C19: UN | D19: CR | E19: 42,48
A20: 615 | B20: !EM PROCESSO DE DESATIVACAO! JANELA BASCULANTE, ACO, COM BATENTE/REQUADRO, 60 X 80 CM (SEM VIDROS) | C20: M2 | D20: AS | E20: 502,03
A21: 606 | B21: !EM PROCESSO DE DESATIVACAO! JANELA DE CORRER, ACO, BATENTE/REQUADRO DE 6 A 14 CM, QUADRICULADA, PINTURA ANTICORROSIVA, SEM VIDRO, BANDEIRA COM BASCULA, 4 FLS, 120 X 150 CM (A X L) | C21: M2 | D21: AS | E21: 788,64
A22: 13382 | B22: !EM PROCESSO DE DESATIVACAO! LUMINARIA FECHADA P/ ILUMINACAO PUBLICA, TIPO ABL 50/F OU EQUIV, P/ LAMPADA A VAPOR DE MERCURIO 400W | C22: UN | D22: AS | E22: 371,80
A23: 4047 | B23: !EM PROCESSO DE DESATIVACAO! MASSA CORRIDA PVA PARA PAREDES INTERNAS | C23: GL | D23: C | E23: 17,00
A24: 7344 | B24: !EM PROCESSO DE DESATIVACAO! TINTA LATEX PVA PREMIUM, COR BRANCA | C24: GL | D24: C | E24: 77,20
A25: 40514 | B25: !EM PROCESSO DE DESATIVACAO! VERNIZ POLIURETANO BRILHANTE PARA MADEIRA, SEM FILTRO SOLAR, USO INTERNO E EXTERNO | C25: L | D25: C | E25: 29,16
A26: 11199 | B26: !EM PROCESSO DE DESATIVACAO!JANELA DE CORRER, ACO, BATENTE/REQUADRO DE 6 A 14 CM, COM DIVISAO HORIZ , PINT ANTICORROSIVA, SEM VIDRO, BANDEIRA COM BASCULA, 4 FLS, 120 X 150 CM (A X L) | C26: UN | D26: AS | E26: 1.131,62
A27: 4053 | B27: !EM PROCESSO DE DESATIVACAO!MASSA A OLEO PARA MADEIRA | C27: GL | D27: CR | E27: 64,76
A28: 4056 | B28: !EM PROCESSO DE DESATIVACAO!MASSA ACRILICA PARA PAREDES INTERIOR/EXTERIOR | C28: GL | D28: CR | E28: 34,05
A29: 21136 | B29: !EM PROCESSO DESATIVACAO! ELETRODUTO EM ACO GALVANIZADO ELETROLITICO, LEVE, DIAMETRO 1", PAREDE DE 0,90 MM | C29: M | D29: AS | E29: 12,48
A30: 21128 | B30: !EM PROCESSO DESATIVACAO! ELETRODUTO EM ACO GALVANIZADO ELETROLITICO, LEVE, DIAMETRO 3/4", PAREDE DE 0,90 MM | C30: M | D30: AS | E30: 9,66
A31: 21130 | B31: !EM PROCESSO DESATIVACAO! ELETRODUTO EM ACO GALVANIZADO ELETROLITICO, SEMI-PESADO, DIAMETRO 1 1/2", PAREDE DE 1,20 MM | C31: M | D31: AS | E31: 24,40
A32: 21135 | B32: !EM PROCESSO DESATIVACAO! ELETRODUTO EM ACO GALVANIZADO ELETROLITICO, SEMI-PESADO, DIAMETRO 1 1/4", PAREDE DE 1,20 MM | C32: M | D32: AS | E32: 24,02
A33: 38605 | B33: ABERTURA PARA ENCAIXE DE CUBA OU LAVATORIO EM BANCADA DE MARMORE/ GRANITO OU OUTRO TIPO DE PEDRA NATURAL | C33: UN | D33: AS | E33: 134,51
A34: 11270 | B34: ABRACADEIRA DE LATAO PARA FIXACAO DE CABO PARA-RAIO, DIMENSOES 32 X 24 X 24 MM | C34: UN | D34: CR | E34: 2,58
A35: 412 | B35: ABRACADEIRA DE NYLON PARA AMARRACAO DE CABOS, COMPRIMENTO DE *230* X *7,6* MM | C35: UN | D35: CR | E35: 1,08
A36: 414 | B36: ABRACADEIRA DE NYLON PARA AMARRACAO DE CABOS, COMPRIMENTO DE 100 X 2,5 MM | C36: UN | D36: CR | E36: 0,06
A37: 410 | B37: ABRACADEIRA DE NYLON PARA AMARRACAO DE CABOS, COMPRIMENTO DE 150 X *3,6* MM | C37: UN | D37: CR | E37: 0,16
A38: 411 | B38: ABRACADEIRA DE NYLON PARA AMARRACAO DE CABOS, COMPRIMENTO DE 200 X *4,6* MM | C38: UN | D38: C | E38: 0,21
A39: 408 | B39: ABRACADEIRA DE NYLON PARA AMARRACAO DE CABOS, COMPRIMENTO DE 390 X *4,6* MM | C39: UN | D39: CR | E39: 1,04
A40: 39131 | B40: ABRACADEIRA EM ACO PARA AMARRACAO DE ELETRODUTOS, TIPO D, COM 1 1/2" E CUNHA DE FIXACAO | C40: UN | D40: CR | E40: 1,95
A41: 394 | B41: ABRACADEIRA EM ACO PARA AMARRACAO DE ELETRODUTOS, TIPO D, COM 1 1/2" E PARAFUSO DE FIXACAO | C41: UN | D41: CR | E41: 1,98
A42: 39130 | B42: ABRACADEIRA EM ACO PARA AMARRACAO DE ELETRODUTOS, TIPO D, COM 1 1/4" E CUNHA DE FIXACAO | C42: UN | D42: CR | E42: 1,78
A43: 395 | B43: ABRACADEIRA EM ACO PARA AMARRACAO DE ELETRODUTOS, TIPO D, COM 1 1/4" E PARAFUSO DE FIXACAO | C43: UN | D43: CR | E43: 1,90
A44: 39127 | B44: ABRACADEIRA EM ACO PARA AMARRACAO DE ELETRODUTOS, TIPO D, COM 1/2" E CUNHA DE FIXACAO | C44: UN | D44: CR | E44: 0,94
A45: 392 | B45: ABRACADEIRA EM ACO PARA AMARRACAO DE ELETRODUTOS, TIPO D, COM 1/2" E PARAFUSO DE FIXACAO | C45: UN | D45: CR | E45: 0,96
A46: 39129 | B46: ABRACADEIRA EM ACO PARA AMARRACAO DE ELETRODUTOS, TIPO D, COM 1" E CUNHA DE FIXACAO | C46: UN | D46: CR | E46: 1,10
A47: 393 | B47: ABRACADEIRA EM ACO PARA AMARRACAO DE ELETRODUTOS, TIPO D, COM 1" E PARAFUSO DE FIXACAO | C47: UN | D47: C | E47: 1,15
A48: 39133 | B48: ABRACADEIRA EM ACO PARA AMARRACAO DE ELETRODUTOS, TIPO D, COM 2 1/2" E CUNHA DE FIXACAO | C48: UN | D48: CR | E48: 2,56
A49: 397 | B49: ABRACADEIRA EM ACO PARA AMARRACAO DE ELETRODUTOS, TIPO D, COM 2 1/2" E PARAFUSO DE FIXACAO | C49: UN | D49: CR | E49: 2,83
A50: 39132 | B50: ABRACADEIRA EM ACO PARA AMARRACAO DE ELETRODUTOS, TIPO D, COM 2" E CUNHA DE FIXACAO | C50: UN | D50: CR | E50: 2,05
A51: 396 | B51: ABRACADEIRA EM ACO PARA AMARRACAO DE ELETRODUTOS, TIPO D, COM 2" E PARAFUSO DE FIXACAO | C51: UN | D51: CR | E51: 2,20
A52: 39135 | B52: ABRACADEIRA EM ACO PARA AMARRACAO DE ELETRODUTOS, TIPO D, COM 3 1/2" E CUNHA DE FIXACAO | C52: UN | D52: CR | E52: 4,11
A53: 39128 | B53: ABRACADEIRA EM ACO PARA AMARRACAO DE ELETRODUTOS, TIPO D, COM 3/4" E CUNHA DE FIXACAO | C53: UN | D53: CR | E53: 1,02
A54: 400 | B54: ABRACADEIRA EM ACO PARA AMARRACAO DE ELETRODUTOS, TIPO D, COM 3/4" E PARAFUSO DE FIXACAO | C54: UN | D54: CR | E54: 1,00
A55: 39125 | B55: ABRACADEIRA EM ACO PARA AMARRACAO DE ELETRODUTOS, TIPO D, COM 3/8" E PARAFUSO DE FIXACAO | C55: UN | D55: CR | E55: 1,02
A56: 39134 | B56: ABRACADEIRA EM ACO PARA AMARRACAO DE ELETRODUTOS, TIPO D, COM 3" E CUNHA DE FIXACAO | C56: UN | D56: CR | E56: 3,42
A57: 398 | B57: ABRACADEIRA EM ACO PARA AMARRACAO DE ELETRODUTOS, TIPO D, COM 3" E PARAFUSO DE FIXACAO | C57: UN | D57: CR | E57: 3,15
A58: 39126 | B58: ABRACADEIRA EM ACO PARA AMARRACAO DE ELETRODUTOS, TIPO D, COM 4" E CUNHA DE FIXACAO | C58: UN | D58: CR | E58: 4,62
A59: 399 | B59: ABRACADEIRA EM ACO PARA AMARRACAO DE ELETRODUTOS, TIPO D, COM 4" E PARAFUSO DE FIXACAO | C59: UN | D59: CR | E59: 4,07
A60: 39158 | B60: ABRACADEIRA EM ACO PARA AMARRACAO DE ELETRODUTOS, TIPO ECONOMICA (GOTA), COM 8" | C60: UN | D60: CR | E60: 10,93
A61: 39141 | B61: ABRACADEIRA EM ACO PARA AMARRACAO DE ELETRODUTOS, TIPO U SIMPLES, COM 1 1/2" | C61: UN | D61: CR | E61: 0,79
A62: 39140 | B62: ABRACADEIRA EM ACO PARA AMARRACAO DE ELETRODUTOS, TIPO U SIMPLES, COM 1 1/4" | C62: UN | D62: CR | E62: 0,72
A63: 39137 | B63: ABRACADEIRA EM ACO PARA AMARRACAO DE ELETRODUTOS, TIPO U SIMPLES, COM 1/2" | C63: UN | D63: CR | E63: 0,41
A64: 39139 | B64: ABRACADEIRA EM ACO PARA AMARRACAO DE ELETRODUTOS, TIPO U SIMPLES, COM 1" | C64: UN | D64: CR | E64: 0,59
A65: 39143 | B65: ABRACADEIRA EM ACO PARA AMARRACAO DE ELETRODUTOS, TIPO U SIMPLES, COM 2 1/2" | C65: UN | D65: CR | E65: 1,63
A66: 39142 | B66: ABRACADEIRA EM ACO PARA AMARRACAO DE ELETRODUTOS, TIPO U SIMPLES, COM 2" | C66: UN | D66: CR | E66: 1,17
A67: 39138 | B67: ABRACADEIRA EM ACO PARA AMARRACAO DE ELETRODUTOS, TIPO U SIMPLES, COM 3/4" | C67: UN | D67: CR | E67: 0,44
A68: 39136 | B68: ABRACADEIRA EM ACO PARA AMARRACAO DE ELETRODUTOS, TIPO U SIMPLES, COM 3/8" | C68: UN | D68: CR | E68: 0,29
A69: 39144 | B69: ABRACADEIRA EM ACO PARA AMARRACAO DE ELETRODUTOS, TIPO U SIMPLES, COM 3" | C69: UN | D69: CR | E69: 1,90
A70: 39145 | B70: ABRACADEIRA EM ACO PARA AMARRACAO DE ELETRODUTOS, TIPO U SIMPLES, COM 4" | C70: UN | D70: CR | E70: 3,14
A71: 12615 | B71: ABRACADEIRA PVC, PARA CALHA PLUVIAL, DIAMETRO ENTRE 80 E 100 MM, PARA DRENAGEM PREDIAL | C71: UN | D71: AS | E71: 4,26
A72: 11927 | B72: ABRACADEIRA, GALVANIZADA/ZINCADA, ROSCA SEM FIM, PARAFUSO INOX, LARGURA FITA *12,6 A *14 MM, D = 2" A 2 1/2" | C72: UN | D72: CR | E72: 7,70
A73: 11928 | B73: ABRACADEIRA, GALVANIZADA/ZINCADA, ROSCA SEM FIM, PARAFUSO INOX, LARGURA FITA *12,6 A *14 MM, D = 3" A 3 3/4" | C73: UN | D73: CR | E73: 8,82
A74: 11929 | B74: ABRACADEIRA, GALVANIZADA/ZINCADA, ROSCA SEM FIM, PARAFUSO INOX, LARGURA FITA *12,6 A *14 MM, D = 4" A 4 3/4" | C74: UN | D74: CR | E74: 13,64
A75: 36801 | B75: ACABAMENTO CROMADO PARA REGISTRO PEQUENO, 1/2 " OU 3/4 " | C75: UN | D75: CR | E75: 22,97
A76: 36246 | B76: ACABAMENTO SIMPLES/CONVENCIONAL PARA FORRO PVC, TIPO "U" OU "C", COR BRANCA, COMPRIMENTO 6 M | C76: M | D76: CR | E76: 3,93
A77: 37600 | B77: ACESSORIO DE LIGACAO NAO ELETRICO PARA CARGAS EXPLOSIVAS, TUBO DE 6 M | C77: UN | D77: AS | E77: 93,16
A78: 37599 | B78: ACESSORIO INICIADOR NAO ELETRICO, TUBO DE 6 M, TEMPO DE RETARDO DE *160* MS | C78: UN | D78: AS | E78: 86,71
A79: 1 | B79: ACETILENO (RECARGA PARA CILINDRO DE CONJUNTO OXICORTE GRANDE) | C79: KG | D79: AS | E79: 51,40
A80: 3 | B80: ACIDO MURIATICO, DILUICAO 10% A 12% PARA USO EM LIMPEZA | C80: L | D80: CR | E80: 6,16
A81: 43054 | B81: ACO CA-25, 10,0 MM, OU 12,5 MM, OU 16,0 MM, OU 20,0 MM, OU 25,0 MM, VERGALHAO | C81: KG | D81: CR | E81: 11,35
A82: 42402 | B82: ACO CA-25, 16,0 MM, BARRA DE TRANSFERENCIA | C82: KG | D82: CR | E82: 10,85
A83: 42403 | B83: ACO CA-25, 20,0 MM, BARRA DE TRANSFERENCIA | C83: KG | D83: CR | E83: 13,91
A84: 42404 | B84: ACO CA-25, 25,0 MM, BARRA DE TRANSFERENCIA | C84: KG | D84: CR | E84: 13,84
A85: 42405 | B85: ACO CA-25, 32,0 MM, BARRA DE TRANSFERENCIA | C85: KG | D85: CR | E85: 14,74
A86: 34341 | B86: ACO CA-25, 32,0 MM, VERGALHAO | C86: KG | D86: CR | E86: 12,79
A87: 43053 | B87: ACO CA-25, 6,3 MM OU 8,0 MM, VERGALHAO | C87: KG | D87: CR | E87: 10,14
A88: 43058 | B88: ACO CA-50, 10,0 MM, OU 12,5 MM, OU 16,0 MM, OU 20,0 MM, DOBRADO E CORTADO | C88: KG | D88: CR | E88: 10,51
A89: 34 | B89: ACO CA-50, 10,0 MM, VERGALHAO | C89: KG | D89: CR | E89: 10,56
A90: 43055 | B90: ACO CA-50, 12,5 MM OU 16,0 MM, VERGALHAO | C90: KG | D90: C | E90: 9,15
A91: 43056 | B91: ACO CA-50, 20,0 MM OU 25,0 MM, VERGALHAO | C91: KG | D91: CR | E91: 10,55
A92: 43057 | B92: ACO CA-50, 32,0 MM, VERGALHAO | C92: KG | D92: CR | E92: 11,59
A93: 34449 | B93: ACO CA-50, 6,3 MM, DOBRADO E CORTADO | C93: KG | D93: CR | E93: 12,39
A94: 32 | B94: ACO CA-50, 6,3 MM, VERGALHAO | C94: KG | D94: CR | E94: 11,14
A95: 33 | B95: ACO CA-50, 8,0 MM, VERGALHAO | C95: KG | D95: CR | E95: 11,21
A96: 43061 | B96: ACO CA-60, 4,2 MM OU 5,0 MM, DOBRADO E CORTADO | C96: KG | D96: CR | E96: 10,47
A97: 43059 | B97: ACO CA-60, 4,2 MM, OU 5,0 MM, OU 6,0 MM, OU 7,0 MM, VERGALHAO | C97: KG | D97: CR | E97: 10,00
A98: 43062 | B98: ACO CA-60, 6,0 MM OU 7,0 MM, DOBRADO E CORTADO | C98: KG | D98: CR | E98: 11,08
A99: 43060 | B99: ACO CA-60, 8,0 MM OU 9,5 MM, VERGALHAO | C99: KG | D99: CR | E99: 8,71
A100: 20063 | B100: ACOPLAMENTO DE CONDUTOR PLUVIAL, EM PVC, DIAMETRO ENTRE 80 E 100 MM, PARA DRENAGEM PREDIAL | C100: UN | D100: AS | E100: 4,23
A101: 40410 | B101: ACOPLAMENTO RIGIDO EM FERRO FUNDIDO PARA SISTEMA DE TUBULACAO RANHURADA, DN 50 MM (2") | C101: UN | D101: AS | E101: 24,22
A102: 40411 | B102: ACOPLAMENTO RIGIDO EM FERRO FUNDIDO PARA SISTEMA DE TUBULACAO RANHURADA, DN 65 MM (2 1/2") | C102: UN | D102: AS | E102: 26,28
A103: 40412 | B103: ACOPLAMENTO RIGIDO EM FERRO FUNDIDO PARA SISTEMA DE TUBULACAO RANHURADA, DN 80 MM (3") | C103: UN | D103: AS | E103: 29,50
A104: 38838 | B104: ADAPTADOR DE COBRE PARA TUBULACAO PEX, DN 16 X 15 MM | C104: UN | D104: AS | E104: 11,73
A105: 38839 | B105: ADAPTADOR DE COBRE PARA TUBULACAO PEX, DN 20 X 22 MM | C105: UN | D105: AS | E105: 13,81
A106: 55 | B106: ADAPTADOR DE COMPRESSAO EM POLIPROPILENO (PP), PARA TUBO EM PEAD, 20 MM X 1/2", PARA LIGACAO PREDIAL DE AGUA (NTS 179) | C106: UN | D106: AS | E106: 4,88
A107: 61 | B107: ADAPTADOR DE COMPRESSAO EM POLIPROPILENO (PP), PARA TUBO EM PEAD, 20 MM X 3/4", PARA LIGACAO PREDIAL DE AGUA (NTS 179) | C107: UN | D107: AS | E107: 4,61
A108: 62 | B108: ADAPTADOR DE COMPRESSAO EM POLIPROPILENO (PP), PARA TUBO EM PEAD, 32 MM X 1", PARA LIGACAO PREDIAL DE AGUA (NTS 179) | C108: UN | D108: AS | E108: 9,56
A109: 77 | B109: ADAPTADOR PVC PARA SIFAO METALICO, SOLDAVEL, COM ANEL BORRACHA (JE), 40 MM X 1 1/2" | C109: UN | D109: CR | E109: 1,38
A110: 76 | B110: ADAPTADOR PVC PARA SIFAO, ROSCAVEL, 40 MM X 1 1/4" | C110: UN | D110: CR | E110: 1,40
A111: 67 | B111: ADAPTADOR PVC ROSCAVEL, COM FLANGES E ANEL DE VEDACAO, 1/2", PARA CAIXA D' AGUA | C111: UN | D111: CR | E111: 13,54
A112: 71 | B112: ADAPTADOR PVC ROSCAVEL, COM FLANGES E ANEL DE VEDACAO, 1", PARA CAIXA D' AGUA | C112: UN | D112: CR | E112: 24,88
A113: 73 | B113: ADAPTADOR PVC ROSCAVEL, COM FLANGES E ANEL DE VEDACAO, 3/4", PARA CAIXA D' AGUA | C113: UN | D113: CR | E113: 18,58
A114: 103 | B114: ADAPTADOR PVC SOLDAVEL CURTO COM BOLSA E ROSCA, 110 MM X 4", PARA AGUA FRIA | C114: UN | D114: CR | E114: 55,25
A115: 107 | B115: ADAPTADOR PVC SOLDAVEL CURTO COM BOLSA E ROSCA, 20 MM X 1/2", PARA AGUA FRIA | C115: UN | D115: CR | E115: 0,86
A116: 65 | B116: ADAPTADOR PVC SOLDAVEL CURTO COM BOLSA E ROSCA, 25 MM X 3/4", PARA AGUA FRIA | C116: UN | D116: CR | E116: 1,06
A117: 108 | B117: ADAPTADOR PVC SOLDAVEL CURTO COM BOLSA E ROSCA, 32 MM X 1", PARA AGUA FRIA | C117: UN | D117: CR | E117: 2,21
A118: 110 | B118: ADAPTADOR PVC SOLDAVEL CURTO COM BOLSA E ROSCA, 40 MM X 1 1/2", PARA AGUA FRIA | C118: UN | D118: CR | E118: 8,53
A119: 109 | B119: ADAPTADOR PVC SOLDAVEL CURTO COM BOLSA E ROSCA, 40 MM X 1 1/4", PARA AGUA FRIA | C119: UN | D119: CR | E119: 4,20
A120: 111 | B120: ADAPTADOR PVC SOLDAVEL CURTO COM BOLSA E ROSCA, 50 MM X 1 1/4", PARA AGUA FRIA | C120: UN | D120: CR | E120: 9,84
A121: 112 | B121: ADAPTADOR PVC SOLDAVEL CURTO COM BOLSA E ROSCA, 50 MM X1 1/2", PARA AGUA FRIA | C121: UN | D121: CR | E121: 5,35
A122: 113 | B122: ADAPTADOR PVC SOLDAVEL CURTO COM BOLSA E ROSCA, 60 MM X 2", PARA AGUA FRIA | C122: UN | D122: CR | E122: 14,53
A123: 104 | B123: ADAPTADOR PVC SOLDAVEL CURTO COM BOLSA E ROSCA, 75 MM X 2 1/2", PARA AGUA FRIA | C123: UN | D123: CR | E123: 21,14
A124: 102 | B124: ADAPTADOR PVC SOLDAVEL CURTO COM BOLSA E ROSCA, 85 MM X 3", PARA AGUA FRIA | C124: UN | D124: CR | E124: 34,70
A125: 95 | B125: ADAPTADOR PVC SOLDAVEL, COM FLANGE E ANEL DE VEDACAO, 20 MM X 1/2", PARA CAIXA D'AGUA | C125: UN | D125: CR | E125: 11,75
A126: 96 | B126: ADAPTADOR PVC SOLDAVEL, COM FLANGE E ANEL DE VEDACAO, 25 MM X 3/4", PARA CAIXA D'AGUA | C126: UN | D126: CR | E126: 13,51
A127: 97 | B127: ADAPTADOR PVC SOLDAVEL, COM FLANGE E ANEL DE VEDACAO, 32 MM X 1", PARA CAIXA D'AGUA | C127: UN | D127: CR | E127: 17,54
A128: 98 | B128: ADAPTADOR PVC SOLDAVEL, COM FLANGE E ANEL DE VEDACAO, 40 MM X 1 1/4", PARA CAIXA D'AGUA | C128: UN | D128: CR | E128: 23,64
A129: 99 | B129: ADAPTADOR PVC SOLDAVEL, COM FLANGE E ANEL DE VEDACAO, 50 MM X 1 1/2", PARA CAIXA D'AGUA | C129: UN | D129: CR | E129: 28,67
A130: 100 | B130: ADAPTADOR PVC SOLDAVEL, COM FLANGES E ANEL DE VEDACAO, 60 MM X 2", PARA CAIXA D' AGUA | C130: UN | D130: CR | E130: 40,00
A131: 75 | B131: ADAPTADOR PVC SOLDAVEL, COM FLANGES LIVRES, 110 MM X 4", PARA CAIXA D' AGUA | C131: UN | D131: CR | E131: 416,91
A132: 114 | B132: ADAPTADOR PVC SOLDAVEL, COM FLANGES LIVRES, 25 MM X 3/4", PARA CAIXA D' AGUA | C132: UN | D132: CR | E132: 15,19
A133: 68 | B133: ADAPTADOR PVC SOLDAVEL, COM FLANGES LIVRES, 32 MM X 1", PARA CAIXA D' AGUA | C133: UN | D133: CR | E133: 23,23
A134: 86 | B134: ADAPTADOR PVC SOLDAVEL, COM FLANGES LIVRES, 40 MM X 1 1/4", PARA CAIXA D' AGUA | C134: UN | D134: CR | E134: 43,19
A135: 66 | B135: ADAPTADOR PVC SOLDAVEL, COM FLANGES LIVRES, 50 MM X 1 1/2", PARA CAIXA D' AGUA | C135: UN | D135: CR | E135: 43,34
A136: 69 | B136: ADAPTADOR PVC SOLDAVEL, COM FLANGES LIVRES, 60 MM X 2", PARA CAIXA D' AGUA | C136: UN | D136: CR | E136: 66,25
A137: 83 | B137: ADAPTADOR PVC SOLDAVEL, COM FLANGES LIVRES, 75 MM X 2 1/2", PARA CAIXA D' AGUA | C137: UN | D137: CR | E137: 211,58
A138: 74 | B138: ADAPTADOR PVC SOLDAVEL, COM FLANGES LIVRES, 85 MM X 3", PARA CAIXA D' AGUA | C138: UN | D138: CR | E138: 295,38
A139: 106 | B139: ADAPTADOR PVC SOLDAVEL, LONGO, COM FLANGE LIVRE, 110 MM X 4", PARA CAIXA D' AGUA | C139: UN | D139: CR | E139: 448,74
A140: 87 | B140: ADAPTADOR PVC SOLDAVEL, LONGO, COM FLANGE LIVRE, 25 MM X 3/4", PARA CAIXA D' AGUA | C140: UN | D140: CR | E140: 21,33
A141: 88 | B141: ADAPTADOR PVC SOLDAVEL, LONGO, COM FLANGE LIVRE, 32 MM X 1", PARA CAIXA D' AGUA | C141: UN | D141: CR | E141: 23,80
A142: 89 | B142: ADAPTADOR PVC SOLDAVEL, LONGO, COM FLANGE LIVRE, 40 MM X 1 1/4", PARA CAIXA D' AGUA | C142: UN | D142: CR | E142: 35,20
A143: 90 | B143: ADAPTADOR PVC SOLDAVEL, LONGO, COM FLANGE LIVRE, 50 MM X 1 1/2", PARA CAIXA D' AGUA | C143: UN | D143: CR | E143: 40,33
A144: 81 | B144: ADAPTADOR PVC SOLDAVEL, LONGO, COM FLANGE LIVRE, 60 MM X 2", PARA CAIXA D' AGUA | C144: UN | D144: CR | E144: 68,97
A145: 82 | B145: ADAPTADOR PVC SOLDAVEL, LONGO, COM FLANGE LIVRE, 75 MM X 2 1/2", PARA CAIXA D' AGUA | C145: UN | D145: CR | E145: 267,75
A146: 105 | B146: ADAPTADOR PVC SOLDAVEL, LONGO, COM FLANGE LIVRE, 85 MM X 3", PARA CAIXA D' AGUA | C146: UN | D146: CR | E146: 313,47
A147: 60 | B147: ADAPTADOR PVC, COM REGISTRO, PARA PEAD, 20 MM X 3/4", PARA LIGACAO PREDIAL DE AGUA | C147: UN | D147: AS | E147: 6,33
A148: 72 | B148: ADAPTADOR PVC, ROSCAVEL, COM FLANGES E ANEL DE VEDACAO, 1 1/2", PARA CAIXA D'AGUA | C148: UN | D148: CR | E148: 42,16
A149: 70 | B149: ADAPTADOR PVC, ROSCAVEL, COM FLANGES E ANEL DE VEDACAO, 1 1/4", PARA CAIXA D' AGUA | C149: UN | D149: CR | E149: 35,26
A150: 85 | B150: ADAPTADOR PVC, ROSCAVEL, COM FLANGES E ANEL DE VEDACAO, 2", PARA CAIXA D' AGUA | C150: UN | D150: CR | E150: 51,17
A151: 84 | B151: ADAPTADOR PVC, ROSCAVEL, PARA VALVULA PIA OU LAVATORIO, 40 MM | C151: UN | D151: CR | E151: 0,59
A152: 37997 | B152: ADAPTADOR, CPVC, SOLDAVEL, 15 MM, PARA AGUA QUENTE | C152: UN | D152: AS | E152: 5,56
A153: 37998 | B153: ADAPTADOR, CPVC, SOLDAVEL, 22 MM, PARA AGUA QUENTE | C153: UN | D153: AS | E153: 5,76
A154: 10899 | B154: ADAPTADOR, EM LATAO, ENGATE RAPIDO 2 1/2" X ROSCA INTERNA 5 FIOS 2 1/2", PARA INSTALACAO PREDIAL DE COMBATE A INCENDIO | C154: UN | D154: AS | E154: 105,14
A155: 10900 | B155: ADAPTADOR, EM LATAO, ENGATE RAPIDO1 1/2" X ROSCA INTERNA 5 FIOS 2 1/2", PARA INSTALACAO PREDIAL DE COMBATE A INCENDIO | C155: UN | D155: AS | E155: 82,28
A156: 46 | B156: ADAPTADOR, PVC PBA, BOLSA/ROSCA, JE, DN 75 / DE 85 MM | C156: UN | D156: AS | E156: 52,23
A157: 51 | B157: ADAPTADOR, PVC PBA, A BOLSA DEFOFO, JE, DN 100 / DE 110 MM | C157: UN | D157: AS | E157: 144,10
A158: 12863 | B158: ADAPTADOR, PVC PBA, A BOLSA DEFOFO, JE, DN 50 / DE 60 MM | C158: UN | D158: AS | E158: 33,19
A159: 50 | B159: ADAPTADOR, PVC PBA, A BOLSA DEFOFO, JE, DN 75 / DE 85 MM | C159: UN | D159: AS | E159: 75,25
A160: 47 | B160: ADAPTADOR, PVC PBA, BOLSA/ROSCA, JE, DN 100 / DE 110 MM | C160: UN | D160: AS | E160: 89,31
A161: 48 | B161: ADAPTADOR, PVC PBA, BOLSA/ROSCA, JE, DN 50 / DE 60 MM | C161: UN | D161: AS | E161: 23,30
A162: 52 | B162: ADAPTADOR, PVC PBA, PONTA/ROSCA, JE, DN 50 / DE 60 MM | C162: UN | D162: AS | E162: 17,70
A163: 43 | B163: ADAPTADOR, PVC PBA, PONTA/ROSCA, JE, DN 75 / DE 85 MM | C163: UN | D163: AS | E163: 59,73
A164: 4791 | B164: ADESIVO ACRILICO/COLA DE CONTATO | C164: KG | D164: CR | E164: 17,90
A165: 157 | B165: ADESIVO ESTRUTURAL A BASE DE RESINA EPOXI PARA INJECAO EM TRINCAS, BICOMPONENTE, BAIXA VISCOSIDADE | C165: KG | D165: CR | E165: 188,59
A166: 156 | B166: ADESIVO ESTRUTURAL A BASE DE RESINA EPOXI, BICOMPONENTE, FLUIDO | C166: KG | D166: CR | E166: 67,15
A167: 131 | B167: ADESIVO ESTRUTURAL A BASE DE RESINA EPOXI, BICOMPONENTE, PASTOSO (TIXOTROPICO) | C167: KG | D167: CR | E167: 57,42
A168: 39719 | B168: ADESIVO LIQUIDO A BASE DE RESINAS PARA COLAGEM DE ESPUMA DE ISOLAMENTO TERMICO FLEXIVEL | C168: L | D168: CR | E168: 89,91
A169: 21114 | B169: ADESIVO PARA TUBOS CPVC, *75* G | C169: UN | D169: CR | E169: 19,26
A170: 119 | B170: ADESIVO PLASTICO PARA PVC, BISNAGA COM 75 GR | C170: UN | D170: C | E170: 7,60
A171: 20080 | B171: ADESIVO PLASTICO PARA PVC, FRASCO COM 175 GR | C171: UN | D171: CR | E171: 21,79
A172: 122 | B172: ADESIVO PLASTICO PARA PVC, FRASCO COM 850 GR | C172: UN | D172: CR | E172: 68,65
A173: 3410 | B173: ADESIVO/COLA PARA EPS (ISOPOR) E OUTROS MATERIAIS | C173: KG | D173: AS | E173: 30,64
A174: 124 | B174: ADITIVO ACELERADOR DE PEGA E ENDURECIMENTO PARA ARGAMASSAS E CONCRETOS, LIQUIDO E ISENTO DE CLORETOS | C174: L | D174: CR | E174: 22,14
A175: 7334 | B175: ADITIVO ADESIVO LIQUIDO PARA ARGAMASSAS DE REVESTIMENTOS CIMENTICIOS | C175: L | D175: AS | E175: 11,71
A176: 123 | B176: ADITIVO IMPERMEABILIZANTE DE PEGA NORMAL PARA ARGAMASSAS E CONCRETOS SEM ARMACAO, LIQUIDO E ISENTO DE CLORETOS | C176: L | D176: C | E176: 9,06
A177: 127 | B177: ADITIVO IMPERMEABILIZANTE DE PEGA ULTRARRAPIDA, LIQUIDO E ISENTO DE CLORETOS | C177: L | D177: CR | E177: 21,63
A178: 41373 | B178: ADITIVO LIQUIDO IMPERMEABILIZANTE CRISTALIZANTE | C178: L | D178: CR | E178: 30,14
A179: 133 | B179: ADITIVO LIQUIDO INCORPORADOR DE AR PARA CONCRETO E ARGAMASSA, LIQUIDO E ISENTO DE CLORETOS | C179: L | D179: CR | E179: 8,98
A180: 43617 | B180: ADITIVO PLASTIFICANTE E ESTABILIZADOR PARA ARGAMASSAS DE ASSENTAMENTO E REBOCO, LIQUIDO E ISENTO DE CLORETOS | C180: L | D180: CR | E180: 10,04
A181: 132 | B181: ADITIVO PLASTIFICANTE RETARDADOR DE PEGA E REDUTOR DE AGUA PARA CONCRETO, LIQUIDO E ISENTO DE CLORETOS | C181: L | D181: CR | E181: 9,31
A182: 43618 | B182: ADITIVO SUPERPLASTIFICANTE DE PEGA NORMAL PARA CONCRETO, LIQUIDO E ISENTO DE CLORETOS | C182: KG | D182: CR | E182: 23,44
A183: 37476 | B183: ADUELA/ GALERIA PRE-MOLDADA DE CONCRETO ARMADO, SECAO QUADRADA INTERNA DE 1,50 X 1,50 M (L X A), MISULA DE 20 X 20 CM, C = 1,00 M, ESPESSURA MIN = 15 CM, TB-45 E FCK DO CONCRETO = 30 MPA | C183: UN | D183: AS | E183: 2.810,10
A184: 37478 | B184: ADUELA/ GALERIA PRE-MOLDADA DE CONCRETO ARMADO, SECAO RETANGULAR INTERNA DE 2,00 X 2,00 M (L X A), MISULA DE 20 X 20 CM, C = 1,00 M, ESPESSURA MIN = 15 CM, TB-45 E FCK DO CONCRETO = 30 MPA | C184: UN | D184: AS | E184: 3.519,72
A185: 37477 | B185: ADUELA/ GALERIA PRE-MOLDADA DE CONCRETO ARMADO, SECAO RETANGULAR INTERNA DE 2,50 X 2,50 M (L X A), MISULA DE 20 X 20 CM, C = 1,00 M, ESPESSURA MIN = 15 CM, TB-45 E FCK DO CONCRETO = 30 MPA | C185: UN | D185: AS | E185: 4.768,65
A186: 37479 | B186: ADUELA/ GALERIA PRE-MOLDADA DE CONCRETO ARMADO, SECAO RETANGULAR INTERNA DE 3,00 X 3,00 M (L X A), MISULA DE 20 X 20 CM, C = 1.00 M, ESPESSURA MIN = 20 CM, TB-45 E FCK DO CONCRETO = 30 MPA | C186: UN | D186: AS | E186: 5.655,68
A187: 4319 | B187: AFASTADOR PARA TELHA DE FIBROCIMENTO CANALETE 90 OU KALHETAO | C187: UN | D187: CR | E187: 1,47
A188: 42409 | B188: AGENTE DE CURA, PROTETOR DA EVAPORACAO DA AGUA DE HIDRATACAO DO CONCRETO | C188: KG | D188: CR | E188: 14,76
A189: 40553 | B189: AGREGADO RECICLADO, TIPO RACHAO RECICLADO CINZA, CLASSE A | C189: M3 | D189: AS | E189: 36,40
A190: 6114 | B190: AJUDANTE DE ARMADOR | C190: H | D190: CR | E190: 10,61
A191: 40912 | B191: AJUDANTE DE ARMADOR (MENSALISTA) | C191: MES | D191: CR | E191: 1.870,19
A192: 247 | B192: AJUDANTE DE ELETRICISTA | C192: H | D192: CR | E192: 12,11
A193: 40919 | B193: AJUDANTE DE ELETRICISTA (MENSALISTA) | C193: MES | D193: CR | E193: 2.134,51
A194: 25958 | B194: AJUDANTE DE ESTRUTURAS METALICAS | C194: H | D194: CR | E194: 9,95
A195: 40984 | B195: AJUDANTE DE ESTRUTURAS METALICAS (MENSALISTA) | C195: MES | D195: CR | E195: 1.754,50
A196: 248 | B196: AJUDANTE DE OPERACAO EM GERAL | C196: H | D196: CR | E196: 10,98
A197: 41086 | B197: AJUDANTE DE OPERACAO EM GERAL (MENSALISTA) | C197: MES | D197: CR | E197: 1.935,20
A198: 34466 | B198: AJUDANTE DE PINTOR | C198: H | D198: CR | E198: 12,44
A199: 41083 | B199: AJUDANTE DE PINTOR (MENSALISTA) | C199: MES | D199: CR | E199: 2.190,28
A200: 252 | B200: AJUDANTE DE SERRALHEIRO | C200: H | D200: CR | E200: 11,39
A201: 40909 | B201: AJUDANTE DE SERRALHEIRO (MENSALISTA) | C201: MES | D201: CR | E201: 2.005,96
A202: 242 | B202: AJUDANTE ESPECIALIZADO | C202: H | D202: CR | E202: 14,15
... 4979 more rows

Sheet COMPOSIÇÃO ANALI sinapi
A1: PCI.818.01 - CUSTOS DE COMPOSIÇÕES ANALÍTICO DATA DE EMISSÃO:15/07/2021 00:36:15 DATA DE RT: 14/07/2021
A2: ENCARGOS SOCIAIS SOBRE PREÇOS DA MÃO-DE-OBRA: 115,81%(HORA) 72,23%(MÊS)
A3: ABRANGENCIA: NACIONAL DATA REFERENCIA TECNICA: 14/07/2021 LOCALIDADE : JOAO PESSOA DATA DE PREÇO : 06/2021
A4: REFERÊNCIA DE COLETA: MEDIANO
A6: DESCRICAO DA CLASSE | B6: SIGLA DA CLASSE | C6: DESCRICAO DO TIPO 1 | D6: SIGLA DO TIPO 1 | E6: CODIGO DO AGRUPADOR | F6: DESCRICAO DO AGRUPADOR | G6: CODIGO DA COMPOSICAO | H6: DESCRICAO DA COMPOSICAO | I6: UNIDADE | J6: ORIGEM DE PREÇO | K6: CUSTO TOTAL | L6: TIPO ITEM | M6: CODIGO ITEM | N6: DESCRIÇÃO ITEM | O6: UNIDADE ITEM | P6: ORIGEM DE PREÇO ITEM | Q6: COEFICIENTE | R6: PRECO UNITARIO | S6: CUSTO TOTAL | T6: CUSTO MAO DE OBRA | U6: % MAO DE OBRA | V6: CUSTO MATERIAL | W6: % MATERIAL | X6: CUSTO EQUIPAMENTO | Y6: % EQUIPAMENTO | Z6: CUSTO SERVICOS TERCEIROS | AA6: % SERVICOS TERCEIROS | AB6: CUSTO OUTROS | AC6: % OUTROS | AD6: % ATRIBUÍDO SÃO PAULO | AE6: VINCULO
A8: ASSENTAMENTO DE TUBOS E PECAS | B8: ASTU | C8: FORNEC E/OU ASSENT DE TUBO DE FERRO FUNDIDO JUNTA | D8: 45 | G8: 97141 | H8: ASSENTAMENTO DE TUBO DE FERRO FUNDIDO PARA REDE DE ÁGUA, DN 80 MM, JUNTA ELÁSTICA, INSTALADO EM LOCAL COM NÍVEL ALTO DE INTERFERÊNCIAS (NÃO INCLUI FORNECIMENTO). AF_11/2017 | I8: M | J8: ATRIBUÍDO SÃO PAULO | K8: 6,04 | T8: 3,35 | U8: 55,3480476 | V8: 1,33 | W8: 22,0713073 | X8: 1,36 | Y8: 22,5806451 | Z8: 0,00 | AA8: 0,0000000 | AB8: 0,00 | AC8: 0,0000000 | AD8: 0.2202 | AE8: CAIXA REFERENCIAL
A9: ASSENTAMENTO DE TUBOS E PECAS | B9: ASTU | C9: FORNEC E/OU ASSENT DE TUBO DE FERRO FUNDIDO JUNTA | D9: 45 | G9: 97141 | H9: ASSENTAMENTO DE TUBO DE FERRO FUNDIDO PARA REDE DE ÁGUA, DN 80 MM, JUNTA ELÁSTICA, INSTALADO EM LOCAL COM NÍVEL ALTO DE INTERFERÊNCIAS (NÃO INCLUI FORNECIMENTO). AF_11/2017 | I9: M | J9: ATRIBUÍDO SÃO PAULO | K9: 6,04 | L9: COMPOSICAO | M9: 5678 | N9: RETROESCAVADEIRA SOBRE RODAS COM CARREGADEIRA, TRAÇÃO 4X4, POTÊNCIA LÍQ. 88 HP, CAÇAMBA CARREG. CAP. MÍN. 1 M3, CAÇAMBA RETRO CAP. 0,26 M3, PESO OPERACIONAL MÍN. 6.674 KG, PROFUNDIDADE ESCAVAÇÃO MÁX. 4,37 M - CHP DIURNO. AF_06/2014 | O9: CHP | P9: ATRIBUÍDO SÃO PAULO | Q9: 0,0099000 | R9: 102,95 | S9: 1,01 | AE9: CAIXA REFERENCIAL
A10: ASSENTAMENTO DE TUBOS E PECAS | B10: ASTU | C10: FORNEC E/OU ASSENT DE TUBO DE FERRO FUNDIDO JUNTA | D10: 45 | G10: 97141 | H10: ASSENTAMENTO DE TUBO DE FERRO FUNDIDO PARA REDE DE ÁGUA, DN 80 MM, JUNTA ELÁSTICA, INSTALADO EM LOCAL COM NÍVEL ALTO DE INTERFERÊNCIAS (NÃO INCLUI FORNECIMENTO). AF_11/2017 | I10: M | J10: ATRIBUÍDO SÃO PAULO | K10: 6,04 | L10: COMPOSICAO | M10: 5679 | N10: RETROESCAVADEIRA SOBRE RODAS COM CARREGADEIRA, TRAÇÃO 4X4, POTÊNCIA LÍQ. 88 HP, CAÇAMBA CARREG. CAP. MÍN. 1 M3, CAÇAMBA RETRO CAP. 0,26 M3, PESO OPERACIONAL MÍN. 6.674 KG, PROFUNDIDADE ESCAVAÇÃO MÁX. 4,37 M - CHI DIURNO. AF_06/2014 | O10: CHI | P10: ATRIBUÍDO SÃO PAULO | Q10: 0,0477000 | R10: 40,55 | S10: 1,93 | AE10: CAIXA REFERENCIAL
A11: ASSENTAMENTO DE TUBOS E PECAS | B11: ASTU | C11: FORNEC E/OU ASSENT DE TUBO DE FERRO FUNDIDO JUNTA | D11: 45 | G11: 97141 | H11: ASSENTAMENTO DE TUBO DE FERRO FUNDIDO PARA REDE DE ÁGUA, DN 80 MM, JUNTA ELÁSTICA, INSTALADO EM LOCAL COM NÍVEL ALTO DE INTERFERÊNCIAS (NÃO INCLUI FORNECIMENTO). AF_11/2017 | I11: M | J11: ATRIBUÍDO SÃO PAULO | K11: 6,04 | L11: INSUMO | M11: 20078 | N11: PASTA LUBRIFICANTE PARA TUBOS E CONEXOES COM JUNTA ELASTICA (USO EM PVC, ACO, POLIETILENO E OUTROS) ( DE *400* G) | O11: UN | P11: COEFICIENTE DE REPRESENTATIVIDADE | Q11: 0,0046000 | R11: 25,13 | S11: 0,11 | AE11: CAIXA REFERENCIAL
A12: ASSENTAMENTO DE TUBOS E PECAS | B12: ASTU | C12: FORNEC E/OU ASSENT DE TUBO DE FERRO FUNDIDO JUNTA | D12: 45 | G12: 97141 | H12: ASSENTAMENTO DE TUBO DE FERRO FUNDIDO PARA REDE DE ÁGUA, DN 80 MM, JUNTA ELÁSTICA, INSTALADO EM LOCAL COM NÍVEL ALTO DE INTERFERÊNCIAS (NÃO INCLUI FORNECIMENTO). AF_11/2017 | I12: M | J12: ATRIBUÍDO SÃO PAULO | K12: 6,04 | L12: COMPOSICAO | M12: 88246 | N12: ASSENTADOR DE TUBOS COM ENCARGOS COMPLEMENTARES | O12: H | P12: COEFICIENTE DE REPRESENTATIVIDADE | Q12: 0,0905000 | R12: 17,71 | S12: 1,60 | AE12: CAIXA REFERENCIAL
A13: ASSENTAMENTO DE TUBOS E PECAS | B13: ASTU | C13: FORNEC E/OU ASSENT DE TUBO DE FERRO FUNDIDO JUNTA | D13: 45 | G13: 97141 | H13: ASSENTAMENTO DE TUBO DE FERRO FUNDIDO PARA REDE DE ÁGUA, DN 80 MM, JUNTA ELÁSTICA, INSTALADO EM LOCAL COM NÍVEL ALTO DE INTERFERÊNCIAS (NÃO INCLUI FORNECIMENTO). AF_11/2017 | I13: M | J13: ATRIBUÍDO SÃO PAULO | K13: 6,04 | L13: COMPOSICAO | M13: 88316 | N13: SERVENTE COM ENCARGOS COMPLEMENTARES | O13: H | P13: COLETADO | Q13: 0,0905000 | R13: 15,36 | S13: 1,39 | AE13: CAIXA REFERENCIAL
A14: ASSENTAMENTO DE TUBOS E PECAS | B14: ASTU | C14: FORNEC E/OU ASSENT DE TUBO DE FERRO FUNDIDO JUNTA | D14: 45 | G14: 97142 | H14: ASSENTAMENTO DE TUBO DE FERRO FUNDIDO PARA REDE DE ÁGUA, DN 100 MM, JUNTA ELÁSTICA, INSTALADO EM LOCAL COM NÍVEL ALTO DE INTERFERÊNCIAS (NÃO INCLUI FORNECIMENTO). AF_11/2017 | I14: M | J14: ATRIBUÍDO SÃO PAULO | K14: 6,73 | T14: 3,78 | U14: 56,0305345 | V14: 1,51 | W14: 22,4427480 | X14: 1,44 | Y14: 21,5267175 | Z14: 0,00 | AA14: 0,0000000 | AB14: 0,00 | AC14: 0,0000000 | AD14: 0.20951 | AE14: CAIXA REFERENCIAL
A15: ASSENTAMENTO DE TUBOS E PECAS | B15: ASTU | C15: FORNEC E/OU ASSENT DE TUBO DE FERRO FUNDIDO JUNTA | D15: 45 | G15: 97142 | H15: ASSENTAMENTO DE TUBO DE FERRO FUNDIDO PARA REDE DE ÁGUA, DN 100 MM, JUNTA ELÁSTICA, INSTALADO EM LOCAL COM NÍVEL ALTO DE INTERFERÊNCIAS (NÃO INCLUI FORNECIMENTO). AF_11/2017 | I15: M | J15: ATRIBUÍDO SÃO PAULO | K15: 6,73 | L15: COMPOSICAO | M15: 5678 | N15: RETROESCAVADEIRA SOBRE RODAS COM CARREGADEIRA, TRAÇÃO 4X4, POTÊNCIA LÍQ. 88 HP, CAÇAMBA CARREG. CAP. MÍN. 1 M3, CAÇAMBA RETRO CAP. 0,26 M3, PESO OPERACIONAL MÍN. 6.674 KG, PROFUNDIDADE ESCAVAÇÃO MÁX. 4,37 M - CHP DIURNO. AF_06/2014 | O15: CHP | P15: ATRIBUÍDO SÃO PAULO | Q15: 0,0106000 | R15: 102,95 | S15: 1,09 | AE15: CAIXA REFERENCIAL
A16: ASSENTAMENTO DE TUBOS E PECAS | B16: ASTU | C16: FORNEC E/OU ASSENT DE TUBO DE FERRO FUNDIDO JUNTA | D16: 45 | G16: 97142 | H16: ASSENTAMENTO DE TUBO DE FERRO FUNDIDO PARA REDE DE ÁGUA, DN 100 MM, JUNTA ELÁSTICA, INSTALADO EM LOCAL COM NÍVEL ALTO DE INTERFERÊNCIAS (NÃO INCLUI FORNECIMENTO). AF_11/2017 | I16: M | J16: ATRIBUÍDO SÃO PAULO | K16: 6,73 | L16: COMPOSICAO | M16: 5679 | N16: RETROESCAVADEIRA SOBRE RODAS COM CARREGADEIRA, TRAÇÃO 4X4, POTÊNCIA LÍQ. 88 HP, CAÇAMBA CARREG. CAP. MÍN. 1 M3, CAÇAMBA RETRO CAP. 0,26 M3, PESO OPERACIONAL MÍN. 6.674 KG, PROFUNDIDADE ESCAVAÇÃO MÁX. 4,37 M - CHI DIURNO. AF_06/2014 | O16: CHI | P16: ATRIBUÍDO SÃO PAULO | Q16: 0,0510000 | R16: 40,55 | S16: 2,06 | AE16: CAIXA REFERENCIAL
A17: ASSENTAMENTO DE TUBOS E PECAS | B17: ASTU | C17: FORNEC E/OU ASSENT DE TUBO DE FERRO FUNDIDO JUNTA | D17: 45 | G17: 97142 | H17: ASSENTAMENTO DE TUBO DE FERRO FUNDIDO PARA REDE DE ÁGUA, DN 100 MM, JUNTA ELÁSTICA, INSTALADO EM LOCAL COM NÍVEL ALTO DE INTERFERÊNCIAS (NÃO INCLUI FORNECIMENTO). AF_11/2017 | I17: M | J17: ATRIBUÍDO SÃO PAULO | K17: 6,73 | L17: INSUMO | M17: 20078 | N17: PASTA LUBRIFICANTE PARA TUBOS E CONEXOES COM JUNTA ELASTICA (USO EM PVC, ACO, POLIETILENO E OUTROS) ( DE *400* G) | O17: UN | P17: COEFICIENTE DE REPRESENTATIVIDADE | Q17: 0,0054000 | R17: 25,13 | S17: 0,13 | AE17: CAIXA REFERENCIAL
A18: ASSENTAMENTO DE TUBOS E PECAS | B18: ASTU | C18: FORNEC E/OU ASSENT DE TUBO DE FERRO FUNDIDO JUNTA | D18: 45 | G18: 97142 | H18: ASSENTAMENTO DE TUBO DE FERRO FUNDIDO PARA REDE DE ÁGUA, DN 100 MM, JUNTA ELÁSTICA, INSTALADO EM LOCAL COM NÍVEL ALTO DE INTERFERÊNCIAS (NÃO INCLUI FORNECIMENTO). AF_11/2017 | I18: M | J18: ATRIBUÍDO SÃO PAULO | K18: 6,73 | L18: COMPOSICAO | M18: 88246 | N18: ASSENTADOR DE TUBOS COM ENCARGOS COMPLEMENTARES | O18: H | P18: COEFICIENTE DE REPRESENTATIVIDADE | Q18: 0,1045000 | R18: 17,71 | S18: 1,85 | AE18: CAIXA REFERENCIAL
A19: ASSENTAMENTO DE TUBOS E PECAS | B19: ASTU | C19: FORNEC E/OU ASSENT DE TUBO DE FERRO FUNDIDO JUNTA | D19: 45 | G19: 97142 | H19: ASSENTAMENTO DE TUBO DE FERRO FUNDIDO PARA REDE DE ÁGUA, DN 100 MM, JUNTA ELÁSTICA, INSTALADO EM LOCAL COM NÍVEL ALTO DE INTERFERÊNCIAS (NÃO INCLUI FORNECIMENTO). AF_11/2017 | I19: M | J19: ATRIBUÍDO SÃO PAULO | K19: 6,73 | L19: COMPOSICAO | M19: 88316 | N19: SERVENTE COM ENCARGOS COMPLEMENTARES | O19: H | P19: COLETADO | Q19: 0,1045000 | R19: 15,36 | S19: 1,60 | AE19: CAIXA REFERENCIAL
A20: ASSENTAMENTO DE TUBOS E PECAS | B20: ASTU | C20: FORNEC E/OU ASSENT DE TUBO DE FERRO FUNDIDO JUNTA | D20: 45 | G20: 97143 | H20: ASSENTAMENTO DE TUBO DE FERRO FUNDIDO PARA REDE DE ÁGUA, DN 150 MM, JUNTA ELÁSTICA, INSTALADO EM LOCAL COM NÍVEL ALTO DE INTERFERÊNCIAS (NÃO INCLUI FORNECIMENTO). AF_11/2017 | I20: M | J20: ATRIBUÍDO SÃO PAULO | K20: 8,45 | T20: 4,85 | U20: 57,3155986 | V20: 1,93 | W20: 22,8536880 | X20: 1,67 | Y20: 19,8307134 | Z20: 0,00 | AA20: 0,0000000 | AB20: 0,00 | AC20: 0,0000000 | AD20: 0.19408 | AE20: CAIXA REFERENCIAL
A21: ASSENTAMENTO DE TUBOS E PECAS | B21: ASTU | C21: FORNEC E/OU ASSENT DE TUBO DE FERRO FUNDIDO JUNTA | D21: 45 | G21: 97143 | H21: ASSENTAMENTO DE TUBO DE FERRO FUNDIDO PARA REDE DE ÁGUA, DN 150 MM, JUNTA ELÁSTICA, INSTALADO EM LOCAL COM NÍVEL ALTO DE INTERFERÊNCIAS (NÃO INCLUI FORNECIMENTO). AF_11/2017 | I21: M | J21: ATRIBUÍDO SÃO PAULO | K21: 8,45 | L21: COMPOSICAO | M21: 5678 | N21: RETROESCAVADEIRA SOBRE RODAS COM CARREGADEIRA, TRAÇÃO 4X4, POTÊNCIA LÍQ. 88 HP, CAÇAMBA CARREG. CAP. MÍN. 1 M3, CAÇAMBA RETRO CAP. 0,26 M3, PESO OPERACIONAL MÍN. 6.674 KG, PROFUNDIDADE ESCAVAÇÃO MÁX. 4,37 M - CHP DIURNO. AF_06/2014 | O21: CHP | P21: ATRIBUÍDO SÃO PAULO | Q21: 0,0124000 | R21: 102,95 | S21: 1,27 | AE21: CAIXA REFERENCIAL
A22: ASSENTAMENTO DE TUBOS E PECAS | B22: ASTU | C22: FORNEC E/OU ASSENT DE TUBO DE FERRO FUNDIDO JUNTA | D22: 45 | G22: 97143 | H22: ASSENTAMENTO DE TUBO DE FERRO FUNDIDO PARA REDE DE ÁGUA, DN 150 MM, JUNTA ELÁSTICA, INSTALADO EM LOCAL COM NÍVEL ALTO DE INTERFERÊNCIAS (NÃO INCLUI FORNECIMENTO). AF_11/2017 | I22: M | J22: ATRIBUÍDO SÃO PAULO | K22: 8,45 | L22: COMPOSICAO | M22: 5679 | N22: RETROESCAVADEIRA SOBRE RODAS COM CARREGADEIRA, TRAÇÃO 4X4, POTÊNCIA LÍQ. 88 HP, CAÇAMBA CARREG. CAP. MÍN. 1 M3, CAÇAMBA RETRO CAP. 0,26 M3, PESO OPERACIONAL MÍN. 6.674 KG, PROFUNDIDADE ESCAVAÇÃO MÁX. 4,37 M - CHI DIURNO. AF_06/2014 | O22: CHI | P22: ATRIBUÍDO SÃO PAULO | Q22: 0,0594000 | R22: 40,55 | S22: 2,40 | AE22: CAIXA REFERENCIAL
A23: ASSENTAMENTO DE TUBOS E PECAS | B23: ASTU | C23: FORNEC E/OU ASSENT DE TUBO DE FERRO FUNDIDO JUNTA | D23: 45 | G23: 97143 | H23: ASSENTAMENTO DE TUBO DE FERRO FUNDIDO PARA REDE DE ÁGUA, DN 150 MM, JUNTA ELÁSTICA, INSTALADO EM LOCAL COM NÍVEL ALTO DE INTERFERÊNCIAS (NÃO INCLUI FORNECIMENTO). AF_11/2017 | I23: M | J23: ATRIBUÍDO SÃO PAULO | K23: 8,45 | L23: INSUMO | M23: 20078 | N23: PASTA LUBRIFICANTE PARA TUBOS E CONEXOES COM JUNTA ELASTICA (USO EM PVC, ACO, POLIETILENO E OUTROS) ( DE *400* G) | O23: UN | P23: COEFICIENTE DE REPRESENTATIVIDADE | Q23: 0,0071000 | R23: 25,13 | S23: 0,17 | AE23: CAIXA REFERENCIAL
A24: ASSENTAMENTO DE TUBOS E PECAS | B24: ASTU | C24: FORNEC E/OU ASSENT DE TUBO DE FERRO FUNDIDO JUNTA | D24: 45 | G24: 97143 | H24: ASSENTAMENTO DE TUBO DE FERRO FUNDIDO PARA REDE DE ÁGUA, DN 150 MM, JUNTA ELÁSTICA, INSTALADO EM LOCAL COM NÍVEL ALTO DE INTERFERÊNCIAS (NÃO INCLUI FORNECIMENTO). AF_11/2017 | I24: M | J24: ATRIBUÍDO SÃO PAULO | K24: 8,45 | L24: COMPOSICAO | M24: 88246 | N24: ASSENTADOR DE TUBOS COM ENCARGOS COMPLEMENTARES | O24: H | P24: COEFICIENTE DE REPRESENTATIVIDADE | Q24: 0,1396000 | R24: 17,71 | S24: 2,47 | AE24: CAIXA REFERENCIAL
A25: ASSENTAMENTO DE TUBOS E PECAS | B25: ASTU | C25: FORNEC E/OU ASSENT DE TUBO DE FERRO FUNDIDO JUNTA | D25: 45 | G25: 97143 | H25: ASSENTAMENTO DE TUBO DE FERRO FUNDIDO PARA REDE DE ÁGUA, DN 150 MM, JUNTA ELÁSTICA, INSTALADO EM LOCAL COM NÍVEL ALTO DE INTERFERÊNCIAS (NÃO INCLUI FORNECIMENTO). AF_11/2017 | I25: M | J25: ATRIBUÍDO SÃO PAULO | K25: 8,45 | L25: COMPOSICAO | M25: 88316 | N25: SERVENTE COM ENCARGOS COMPLEMENTARES | O25: H | P25: COLETADO | Q25: 0,1396000 | R25: 15,36 | S25: 2,14 | AE25: CAIXA REFERENCIAL
A26: ASSENTAMENTO DE TUBOS E PECAS | B26: ASTU | C26: FORNEC E/OU ASSENT DE TUBO DE FERRO FUNDIDO JUNTA | D26: 45 | G26: 97144 | H26: ASSENTAMENTO DE TUBO DE FERRO FUNDIDO PARA REDE DE ÁGUA, DN 200 MM, JUNTA ELÁSTICA, INSTALADO EM LOCAL COM NÍVEL ALTO DE INTERFERÊNCIAS (NÃO INCLUI FORNECIMENTO). AF_11/2017 | I26: M | J26: ATRIBUÍDO SÃO PAULO | K26: 10,17 | T26: 5,89 | U26: 57,7844312 | V26: 2,37 | W26: 23,3532934 | X26: 1,91 | Y26: 18,8622754 | Z26: 0,00 | AA26: 0,0000000 | AB26: 0,00 | AC26: 0,0000000 | AD26: 0.18584 | AE26: CAIXA REFERENCIAL
A27: ASSENTAMENTO DE TUBOS E PECAS | B27: ASTU | C27: FORNEC E/OU ASSENT DE TUBO DE FERRO FUNDIDO JUNTA | D27: 45 | G27: 97144 | H27: ASSENTAMENTO DE TUBO DE FERRO FUNDIDO PARA REDE DE ÁGUA, DN 200 MM, JUNTA ELÁSTICA, INSTALADO EM LOCAL COM NÍVEL ALTO DE INTERFERÊNCIAS (NÃO INCLUI FORNECIMENTO). AF_11/2017 | I27: M | J27: ATRIBUÍDO SÃO PAULO | K27: 10,17 | L27: COMPOSICAO | M27: 5678 | N27: RETROESCAVADEIRA SOBRE RODAS COM CARREGADEIRA, TRAÇÃO 4X4, POTÊNCIA LÍQ. 88 HP, CAÇAMBA CARREG. CAP. MÍN. 1 M3, CAÇAMBA RETRO CAP. 0,26 M3, PESO OPERACIONAL MÍN. 6.674 KG, PROFUNDIDADE ESCAVAÇÃO MÁX. 4,37 M - CHP DIURNO. AF_06/2014 | O27: CHP | P27: ATRIBUÍDO SÃO PAULO | Q27: 0,0141000 | R27: 102,95 | S27: 1,45 | AE27: CAIXA REFERENCIAL
A28: ASSENTAMENTO DE TUBOS E PECAS | B28: ASTU | C28: FORNEC E/OU ASSENT DE TUBO DE FERRO FUNDIDO JUNTA | D28: 45 | G28: 97144 | H28: ASSENTAMENTO DE TUBO DE FERRO FUNDIDO PARA REDE DE ÁGUA, DN 200 MM, JUNTA ELÁSTICA, INSTALADO EM LOCAL COM NÍVEL ALTO DE INTERFERÊNCIAS (NÃO INCLUI FORNECIMENTO). AF_11/2017 | I28: M | J28: ATRIBUÍDO SÃO PAULO | K28: 10,17 | L28: COMPOSICAO | M28: 5679 | N28: RETROESCAVADEIRA SOBRE RODAS COM CARREGADEIRA, TRAÇÃO 4X4, POTÊNCIA LÍQ. 88 HP, CAÇAMBA CARREG. CAP. MÍN. 1 M3, CAÇAMBA RETRO CAP. 0,26 M3, PESO OPERACIONAL MÍN. 6.674 KG, PROFUNDIDADE ESCAVAÇÃO MÁX. 4,37 M - CHI DIURNO. AF_06/2014 | O28: CHI | P28: ATRIBUÍDO SÃO PAULO | Q28: 0,0678000 | R28: 40,55 | S28: 2,74 | AE28: CAIXA REFERENCIAL
A29: ASSENTAMENTO DE TUBOS E PECAS | B29: ASTU | C29: FORNEC E/OU ASSENT DE TUBO DE FERRO FUNDIDO JUNTA | D29: 45 | G29: 97144 | H29: ASSENTAMENTO DE TUBO DE FERRO FUNDIDO PARA REDE DE ÁGUA, DN 200 MM, JUNTA ELÁSTICA, INSTALADO EM LOCAL COM NÍVEL ALTO DE INTERFERÊNCIAS (NÃO INCLUI FORNECIMENTO). AF_11/2017 | I29: M | J29: ATRIBUÍDO SÃO PAULO | K29: 10,17 | L29: INSUMO | M29: 20078 | N29: PASTA LUBRIFICANTE PARA TUBOS E CONEXOES COM JUNTA ELASTICA (USO EM PVC, ACO, POLIETILENO E OUTROS) ( DE *400* G) | O29: UN | P29: COEFICIENTE DE REPRESENTATIVIDADE | Q29: 0,0087000 | R29: 25,13 | S29: 0,21 | AE29: CAIXA REFERENCIAL
A30: ASSENTAMENTO DE TUBOS E PECAS | B30: ASTU | C30: FORNEC E/OU ASSENT DE TUBO DE FERRO FUNDIDO JUNTA | D30: 45 | G30: 97144 | H30: ASSENTAMENTO DE TUBO DE FERRO FUNDIDO PARA REDE DE ÁGUA, DN 200 MM, JUNTA ELÁSTICA, INSTALADO EM LOCAL COM NÍVEL ALTO DE INTERFERÊNCIAS (NÃO INCLUI FORNECIMENTO). AF_11/2017 | I30: M | J30: ATRIBUÍDO SÃO PAULO | K30: 10,17 | L30: COMPOSICAO | M30: 88246 | N30: ASSENTADOR DE TUBOS COM ENCARGOS COMPLEMENTARES | O30: H | P30: COEFICIENTE DE REPRESENTATIVIDADE | Q30: 0,1747000 | R30: 17,71 | S30: 3,09 | AE30: CAIXA REFERENCIAL
A31: ASSENTAMENTO DE TUBOS E PECAS | B31: ASTU | C31: FORNEC E/OU ASSENT DE TUBO DE FERRO FUNDIDO JUNTA | D31: 45 | G31: 97144 | H31: ASSENTAMENTO DE TUBO DE FERRO FUNDIDO PARA REDE DE ÁGUA, DN 200 MM, JUNTA ELÁSTICA, INSTALADO EM LOCAL COM NÍVEL ALTO DE INTERFERÊNCIAS (NÃO INCLUI FORNECIMENTO). AF_11/2017 | I31: M | J31: ATRIBUÍDO SÃO PAULO | K31: 10,17 | L31: COMPOSICAO | M31: 88316 | N31: SERVENTE COM ENCARGOS COMPLEMENTARES | O31: H | P31: COLETADO | Q31: 0,1747000 | R31: 15,36 | S31: 2,68 | AE31: CAIXA REFERENCIAL
A32: ASSENTAMENTO DE TUBOS E PECAS | B32: ASTU | C32: FORNEC E/OU ASSENT DE TUBO DE FERRO FUNDIDO JUNTA | D32: 45 | G32: 97145 | H32: ASSENTAMENTO DE TUBO DE FERRO FUNDIDO PARA REDE DE ÁGUA, DN 250 MM, JUNTA ELÁSTICA, INSTALADO EM LOCAL COM NÍVEL ALTO DE INTERFERÊNCIAS (NÃO INCLUI FORNECIMENTO). AF_11/2017 | I32: M | J32: ATRIBUÍDO SÃO PAULO | K32: 11,92 | T32: 6,97 | U32: 58,3333335 | V32: 2,81 | W32: 23,6394557 | X32: 2,14 | Y32: 18,0272108 | Z32: 0,00 | AA32: 0,0000000 | AB32: 0,00 | AC32: 0,0000000 | AD32: 0.17785 | AE32: CAIXA REFERENCIAL
A33: ASSENTAMENTO DE TUBOS E PECAS | B33: ASTU | C33: FORNEC E/OU ASSENT DE TUBO DE FERRO FUNDIDO JUNTA | D33: 45 | G33: 97145 | H33: ASSENTAMENTO DE TUBO DE FERRO FUNDIDO PARA REDE DE ÁGUA, DN 250 MM, JUNTA ELÁSTICA, INSTALADO EM LOCAL COM NÍVEL ALTO DE INTERFERÊNCIAS (NÃO INCLUI FORNECIMENTO). AF_11/2017 | I33: M | J33: ATRIBUÍDO SÃO PAULO | K33: 11,92 | L33: COMPOSICAO | M33: 5678 | N33: RETROESCAVADEIRA SOBRE RODAS COM CARREGADEIRA, TRAÇÃO 4X4, POTÊNCIA LÍQ. 88 HP, CAÇAMBA CARREG. CAP. MÍN. 1 M3, CAÇAMBA RETRO CAP. 0,26 M3, PESO OPERACIONAL MÍN. 6.674 KG, PROFUNDIDADE ESCAVAÇÃO MÁX. 4,37 M - CHP DIURNO. AF_06/2014 | O33: CHP | P33: ATRIBUÍDO SÃO PAULO | Q33: 0,0159000 | R33: 102,95 | S33: 1,63 | AE33: CAIXA REFERENCIAL
A34: ASSENTAMENTO DE TUBOS E PECAS | B34: ASTU | C34: FORNEC E/OU ASSENT DE TUBO DE FERRO FUNDIDO JUNTA | D34: 45 | G34: 97145 | H34: ASSENTAMENTO DE TUBO DE FERRO FUNDIDO PARA REDE DE ÁGUA, DN 250 MM, JUNTA ELÁSTICA, INSTALADO EM LOCAL COM NÍVEL ALTO DE INTERFERÊNCIAS (NÃO INCLUI FORNECIMENTO). AF_11/2017 | I34: M | J34: ATRIBUÍDO SÃO PAULO | K34: 11,92 | L34: COMPOSICAO | M34: 5679 | N34: RETROESCAVADEIRA SOBRE RODAS COM CARREGADEIRA, TRAÇÃO 4X4, POTÊNCIA LÍQ. 88 HP, CAÇAMBA CARREG. CAP. MÍN. 1 M3, CAÇAMBA RETRO CAP. 0,26 M3, PESO OPERACIONAL MÍN. 6.674 KG, PROFUNDIDADE ESCAVAÇÃO MÁX. 4,37 M - CHI DIURNO. AF_06/2014 | O34: CHI | P34: ATRIBUÍDO SÃO PAULO | Q34: 0,0762000 | R34: 40,55 | S34: 3,08 | AE34: CAIXA REFERENCIAL
A35: ASSENTAMENTO DE TUBOS E PECAS | B35: ASTU | C35: FORNEC E/OU ASSENT DE TUBO DE FERRO FUNDIDO JUNTA | D35: 45 | G35: 97145 | H35: ASSENTAMENTO DE TUBO DE FERRO FUNDIDO PARA REDE DE ÁGUA, DN 250 MM, JUNTA ELÁSTICA, INSTALADO EM LOCAL COM NÍVEL ALTO DE INTERFERÊNCIAS (NÃO INCLUI FORNECIMENTO). AF_11/2017 | I35: M | J35: ATRIBUÍDO SÃO PAULO | K35: 11,92 | L35: INSUMO | M35: 20078 | N35: PASTA LUBRIFICANTE PARA TUBOS E CONEXOES COM JUNTA ELASTICA (USO EM PVC, ACO, POLIETILENO E OUTROS) ( DE *400* G) | O35: UN | P35: COEFICIENTE DE REPRESENTATIVIDADE | Q35: 0,0113000 | R35: 25,13 | S35: 0,28 | AE35: CAIXA REFERENCIAL
A36: ASSENTAMENTO DE TUBOS E PECAS | B36: ASTU | C36: FORNEC E/OU ASSENT DE TUBO DE FERRO FUNDIDO JUNTA | D36: 45 | G36: 97145 | H36: ASSENTAMENTO DE TUBO DE FERRO FUNDIDO PARA REDE DE ÁGUA, DN 250 MM, JUNTA ELÁSTICA, INSTALADO EM LOCAL COM NÍVEL ALTO DE INTERFERÊNCIAS (NÃO INCLUI FORNECIMENTO). AF_11/2017 | I36: M | J36: ATRIBUÍDO SÃO PAULO | K36: 11,92 | L36: COMPOSICAO | M36: 88246 | N36: ASSENTADOR DE TUBOS COM ENCARGOS COMPLEMENTARES | O36: H | P36: COEFICIENTE DE REPRESENTATIVIDADE | Q36: 0,2097000 | R36: 17,71 | S36: 3,71 | AE36: CAIXA REFERENCIAL
A37: ASSENTAMENTO DE TUBOS E PECAS | B37: ASTU | C37: FORNEC E/OU ASSENT DE TUBO DE FERRO FUNDIDO JUNTA | D37: 45 | G37: 97145 | H37: ASSENTAMENTO DE TUBO DE FERRO FUNDIDO PARA REDE DE ÁGUA, DN 250 MM, JUNTA ELÁSTICA, INSTALADO EM LOCAL COM NÍVEL ALTO DE INTERFERÊNCIAS (NÃO INCLUI FORNECIMENTO). AF_11/2017 | I37: M | J37: ATRIBUÍDO SÃO PAULO | K37: 11,92 | L37: COMPOSICAO | M37: 88316 | N37: SERVENTE COM ENCARGOS COMPLEMENTARES | O37: H | P37: COLETADO | Q37: 0,2097000 | R37: 15,36 | S37: 3,22 | AE37: CAIXA REFERENCIAL
A38: ASSENTAMENTO DE TUBOS E PECAS | B38: ASTU | C38: FORNEC E/OU ASSENT DE TUBO DE FERRO FUNDIDO JUNTA | D38: 45 | G38: 97146 | H38: ASSENTAMENTO DE TUBO DE FERRO FUNDIDO PARA REDE DE ÁGUA, DN 300 MM, JUNTA ELÁSTICA, INSTALADO EM LOCAL COM NÍVEL ALTO DE INTERFERÊNCIAS (NÃO INCLUI FORNECIMENTO). AF_11/2017 | I38: M | J38: ATRIBUÍDO SÃO PAULO | K38: 13,67 | T38: 8,04 | U38: 58,6972614 | V38: 3,24 | W38: 23,7601776 | X38: 2,39 | Y38: 17,5425610 | Z38: 0,00 | AA38: 0,0000000 | AB38: 0,00 | AC38: 0,0000000 | AD38: 0.17337 | AE38: CAIXA REFERENCIAL
A39: ASSENTAMENTO DE TUBOS E PECAS | B39: ASTU | C39: FORNEC E/OU ASSENT DE TUBO DE FERRO FUNDIDO JUNTA | D39: 45 | G39: 97146 | H39: ASSENTAMENTO DE TUBO DE FERRO FUNDIDO PARA REDE DE ÁGUA, DN 300 MM, JUNTA ELÁSTICA, INSTALADO EM LOCAL COM NÍVEL ALTO DE INTERFERÊNCIAS (NÃO INCLUI FORNECIMENTO). AF_11/2017 | I39: M | J39: ATRIBUÍDO SÃO PAULO | K39: 13,67 | L39: COMPOSICAO | M39: 5678 | N39: RETROESCAVADEIRA SOBRE RODAS COM CARREGADEIRA, TRAÇÃO 4X4, POTÊNCIA LÍQ. 88 HP, CAÇAMBA CARREG. CAP. MÍN. 1 M3, CAÇAMBA RETRO CAP. 0,26 M3, PESO OPERACIONAL MÍN. 6.674 KG, PROFUNDIDADE ESCAVAÇÃO MÁX. 4,37 M - CHP DIURNO. AF_06/2014 | O39: CHP | P39: ATRIBUÍDO SÃO PAULO | Q39: 0,0176000 | R39: 102,95 | S39: 1,81 | AE39: CAIXA REFERENCIAL
A40: ASSENTAMENTO DE TUBOS E PECAS | B40: ASTU | C40: FORNEC E/OU ASSENT DE TUBO DE FERRO FUNDIDO JUNTA | D40: 45 | G40: 97146 | H40: ASSENTAMENTO DE TUBO DE FERRO FUNDIDO PARA REDE DE ÁGUA, DN 300 MM, JUNTA ELÁSTICA, INSTALADO EM LOCAL COM NÍVEL ALTO DE INTERFERÊNCIAS (NÃO INCLUI FORNECIMENTO). AF_11/2017 | I40: M | J40: ATRIBUÍDO SÃO PAULO | K40: 13,67 | L40: COMPOSICAO | M40: 5679 | N40: RETROESCAVADEIRA SOBRE RODAS COM CARREGADEIRA, TRAÇÃO 4X4, POTÊNCIA LÍQ. 88 HP, CAÇAMBA CARREG. CAP. MÍN. 1 M3, CAÇAMBA RETRO CAP. 0,26 M3, PESO OPERACIONAL MÍN. 6.674 KG, PROFUNDIDADE ESCAVAÇÃO MÁX. 4,37 M - CHI DIURNO. AF_06/2014 | O40: CHI | P40: ATRIBUÍDO SÃO PAULO | Q40: 0,0846000 | R40: 40,55 | S40: 3,43 | AE40: CAIXA REFERENCIAL
A41: ASSENTAMENTO DE TUBOS E PECAS | B41: ASTU | C41: FORNEC E/OU ASSENT DE TUBO DE FERRO FUNDIDO JUNTA | D41: 45 | G41: 97146 | H41: ASSENTAMENTO DE TUBO DE FERRO FUNDIDO PARA REDE DE ÁGUA, DN 300 MM, JUNTA ELÁSTICA, INSTALADO EM LOCAL COM NÍVEL ALTO DE INTERFERÊNCIAS (NÃO INCLUI FORNECIMENTO). AF_11/2017 | I41: M | J41: ATRIBUÍDO SÃO PAULO | K41: 13,67 | L41: INSUMO | M41: 20078 | N41: PASTA LUBRIFICANTE PARA TUBOS E CONEXOES COM JUNTA ELASTICA (USO EM PVC, ACO, POLIETILENO E OUTROS) ( DE *400* G) | O41: UN | P41: COEFICIENTE DE REPRESENTATIVIDADE | Q41: 0,0138000 | R41: 25,13 | S41: 0,34 | AE41: CAIXA REFERENCIAL
A42: ASSENTAMENTO DE TUBOS E PECAS | B42: ASTU | C42: FORNEC E/OU ASSENT DE TUBO DE FERRO FUNDIDO JUNTA | D42: 45 | G42: 97146 | H42: ASSENTAMENTO DE TUBO DE FERRO FUNDIDO PARA REDE DE ÁGUA, DN 300 MM, JUNTA ELÁSTICA, INSTALADO EM LOCAL COM NÍVEL ALTO DE INTERFERÊNCIAS (NÃO INCLUI FORNECIMENTO). AF_11/2017 | I42: M | J42: ATRIBUÍDO SÃO PAULO | K42: 13,67 | L42: COMPOSICAO | M42: 88246 | N42: ASSENTADOR DE TUBOS COM ENCARGOS COMPLEMENTARES | O42: H | P42: COEFICIENTE DE REPRESENTATIVIDADE | Q42: 0,2448000 | R42: 17,71 | S42: 4,33 | AE42: CAIXA REFERENCIAL
A43: ASSENTAMENTO DE TUBOS E PECAS | B43: ASTU | C43: FORNEC E/OU ASSENT DE TUBO DE FERRO FUNDIDO JUNTA | D43: 45 | G43: 97146 | H43: ASSENTAMENTO DE TUBO DE FERRO FUNDIDO PARA REDE DE ÁGUA, DN 300 MM, JUNTA ELÁSTICA, INSTALADO EM LOCAL COM NÍVEL ALTO DE INTERFERÊNCIAS (NÃO INCLUI FORNECIMENTO). AF_11/2017 | I43: M | J43: ATRIBUÍDO SÃO PAULO | K43: 13,67 | L43: COMPOSICAO | M43: 88316 | N43: SERVENTE COM ENCARGOS COMPLEMENTARES | O43: H | P43: COLETADO | Q43: 0,2448000 | R43: 15,36 | S43: 3,76 | AE43: CAIXA REFERENCIAL
A44: ASSENTAMENTO DE TUBOS E PECAS | B44: ASTU | C44: FORNEC E/OU ASSENT DE TUBO DE FERRO FUNDIDO JUNTA | D44: 45 | G44: 97147 | H44: ASSENTAMENTO DE TUBO DE FERRO FUNDIDO PARA REDE DE ÁGUA, DN 350 MM, JUNTA ELÁSTICA, INSTALADO EM LOCAL COM NÍVEL ALTO DE INTERFERÊNCIAS (NÃO INCLUI FORNECIMENTO). AF_11/2017 | I44: M | J44: ATRIBUÍDO SÃO PAULO | K44: 15,40 | T44: 9,07 | U44: 58,8736085 | V44: 3,72 | W44: 24,1650294 | X44: 2,61 | Y44: 16,9613621 | Z44: 0,00 | AA44: 0,0000000 | AB44: 0,00 | AC44: 0,0000000 | AD44: 0.16883 | AE44: CAIXA REFERENCIAL
A45: ASSENTAMENTO DE TUBOS E PECAS | B45: ASTU | C45: FORNEC E/OU ASSENT DE TUBO DE FERRO FUNDIDO JUNTA | D45: 45 | G45: 97147 | H45: ASSENTAMENTO DE TUBO DE FERRO FUNDIDO PARA REDE DE ÁGUA, DN 350 MM, JUNTA ELÁSTICA, INSTALADO EM LOCAL COM NÍVEL ALTO DE INTERFERÊNCIAS (NÃO INCLUI FORNECIMENTO). AF_11/2017 | I45: M | J45: ATRIBUÍDO SÃO PAULO | K45: 15,40 | L45: COMPOSICAO | M45: 5678 | N45: RETROESCAVADEIRA SOBRE RODAS COM CARREGADEIRA, TRAÇÃO 4X4, POTÊNCIA LÍQ. 88 HP, CAÇAMBA CARREG. CAP. MÍN. 1 M3, CAÇAMBA RETRO CAP. 0,26 M3, PESO OPERACIONAL MÍN. 6.674 KG, PROFUNDIDADE ESCAVAÇÃO MÁX. 4,37 M - CHP DIURNO. AF_06/2014 | O45: CHP | P45: ATRIBUÍDO SÃO PAULO | Q45: 0,0194000 | R45: 102,95 | S45: 1,99 | AE45: CAIXA REFERENCIAL
A46: ASSENTAMENTO DE TUBOS E PECAS | B46: ASTU | C46: FORNEC E/OU ASSENT DE TUBO DE FERRO FUNDIDO JUNTA | D46: 45 | G46: 97147 | H46: ASSENTAMENTO DE TUBO DE FERRO FUNDIDO PARA REDE DE ÁGUA, DN 350 MM, JUNTA ELÁSTICA, INSTALADO EM LOCAL COM NÍVEL ALTO DE INTERFERÊNCIAS (NÃO INCLUI FORNECIMENTO). AF_11/2017 | I46: M | J46: ATRIBUÍDO SÃO PAULO | K46: 15,40 | L46: COMPOSICAO | M46: 5679 | N46: RETROESCAVADEIRA SOBRE RODAS COM CARREGADEIRA, TRAÇÃO 4X4, POTÊNCIA LÍQ. 88 HP, CAÇAMBA CARREG. CAP. MÍN. 1 M3, CAÇAMBA RETRO CAP. 0,26 M3, PESO OPERACIONAL MÍN. 6.674 KG, PROFUNDIDADE ESCAVAÇÃO MÁX. 4,37 M - CHI DIURNO. AF_06/2014 | O46: CHI | P46: ATRIBUÍDO SÃO PAULO | Q46: 0,0930000 | R46: 40,55 | S46: 3,77 | AE46: CAIXA REFERENCIAL
A47: ASSENTAMENTO DE TUBOS E PECAS | B47: ASTU | C47: FORNEC E/OU ASSENT DE TUBO DE FERRO FUNDIDO JUNTA | D47: 45 | G47: 97147 | H47: ASSENTAMENTO DE TUBO DE FERRO FUNDIDO PARA REDE DE ÁGUA, DN 350 MM, JUNTA ELÁSTICA, INSTALADO EM LOCAL COM NÍVEL ALTO DE INTERFERÊNCIAS (NÃO INCLUI FORNECIMENTO). AF_11/2017 | I47: M | J47: ATRIBUÍDO SÃO PAULO | K47: 15,40 | L47: INSUMO | M47: 20078 | N47: PASTA LUBRIFICANTE PARA TUBOS E CONEXOES COM JUNTA ELASTICA (USO EM PVC, ACO, POLIETILENO E OUTROS) ( DE *400* G) | O47: UN | P47: COEFICIENTE DE REPRESENTATIVIDADE | Q47: 0,0163000 | R47: 25,13 | S47: 0,40 | AE47: CAIXA REFERENCIAL
A48: ASSENTAMENTO DE TUBOS E PECAS | B48: ASTU | C48: FORNEC E/OU ASSENT DE TUBO DE FERRO FUNDIDO JUNTA | D48: 45 | G48: 97147 | H48: ASSENTAMENTO DE TUBO DE FERRO FUNDIDO PARA REDE DE ÁGUA, DN 350 MM, JUNTA ELÁSTICA, INSTALADO EM LOCAL COM NÍVEL ALTO DE INTERFERÊNCIAS (NÃO INCLUI FORNECIMENTO). AF_11/2017 | I48: M | J48: ATRIBUÍDO SÃO PAULO | K48: 15,40 | L48: COMPOSICAO | M48: 88246 | N48: ASSENTADOR DE TUBOS COM ENCARGOS COMPLEMENTARES | O48: H | P48: COEFICIENTE DE REPRESENTATIVIDADE | Q48: 0,2799000 | R48: 17,71 | S48: 4,95 | AE48: CAIXA REFERENCIAL
A49: ASSENTAMENTO DE TUBOS E PECAS | B49: ASTU | C49: FORNEC E/OU ASSENT DE TUBO DE FERRO FUNDIDO JUNTA | D49: 45 | G49: 97147 | H49: ASSENTAMENTO DE TUBO DE FERRO FUNDIDO PARA REDE DE ÁGUA, DN 350 MM, JUNTA ELÁSTICA, INSTALADO EM LOCAL COM NÍVEL ALTO DE INTERFERÊNCIAS (NÃO INCLUI FORNECIMENTO). AF_11/2017 | I49: M | J49: ATRIBUÍDO SÃO PAULO | K49: 15,40 | L49: COMPOSICAO | M49: 88316 | N49: SERVENTE COM ENCARGOS COMPLEMENTARES | O49: H | P49: COLETADO | Q49: 0,2799000 | R49: 15,36 | S49: 4,29 | AE49: CAIXA REFERENCIAL
A50: ASSENTAMENTO DE TUBOS E PECAS | B50: ASTU | C50: FORNEC E/OU ASSENT DE TUBO DE FERRO FUNDIDO JUNTA | D50: 45 | G50: 97148 | H50: ASSENTAMENTO DE TUBO DE FERRO FUNDIDO PARA REDE DE ÁGUA, DN 400 MM, JUNTA ELÁSTICA, INSTALADO EM LOCAL COM NÍVEL ALTO DE INTERFERÊNCIAS (NÃO INCLUI FORNECIMENTO). AF_11/2017 | I50: M | J50: ATRIBUÍDO SÃO PAULO | K50: 17,15 | T50: 10,16 | U50: 59,1872793 | V50: 4,14 | W50: 24,1460541 | X50: 2,85 | Y50: 16,6666666 | Z50: 0,00 | AA50: 0,0000000 | AB50: 0,00 | AC50: 0,0000000 | AD50: 0.16501 | AE50: CAIXA REFERENCIAL
A51: ASSENTAMENTO DE TUBOS E PECAS | B51: ASTU | C51: FORNEC E/OU ASSENT DE TUBO DE FERRO FUNDIDO JUNTA | D51: 45 | G51: 97148 | H51: ASSENTAMENTO DE TUBO DE FERRO FUNDIDO PARA REDE DE ÁGUA, DN 400 MM, JUNTA ELÁSTICA, INSTALADO EM LOCAL COM NÍVEL ALTO DE INTERFERÊNCIAS (NÃO INCLUI FORNECIMENTO). AF_11/2017 | I51: M | J51: ATRIBUÍDO SÃO PAULO | K51: 17,15 | L51: COMPOSICAO | M51: 5678 | N51: RETROESCAVADEIRA SOBRE RODAS COM CARREGADEIRA, TRAÇÃO 4X4, POTÊNCIA LÍQ. 88 HP, CAÇAMBA CARREG. CAP. MÍN. 1 M3, CAÇAMBA RETRO CAP. 0,26 M3, PESO OPERACIONAL MÍN. 6.674 KG, PROFUNDIDADE ESCAVAÇÃO MÁX. 4,37 M - CHP DIURNO. AF_06/2014 | O51: CHP | P51: ATRIBUÍDO SÃO PAULO | Q51: 0,0211000 | R51: 102,95 | S51: 2,17 | AE51: CAIXA REFERENCIAL
A52: ASSENTAMENTO DE TUBOS E PECAS | B52: ASTU | C52: FORNEC E/OU ASSENT DE TUBO DE FERRO FUNDIDO JUNTA | D52: 45 | G52: 97148 | H52: ASSENTAMENTO DE TUBO DE FERRO FUNDIDO PARA REDE DE ÁGUA, DN 400 MM, JUNTA ELÁSTICA, INSTALADO EM LOCAL COM NÍVEL ALTO DE INTERFERÊNCIAS (NÃO INCLUI FORNECIMENTO). AF_11/2017 | I52: M | J52: ATRIBUÍDO SÃO PAULO | K52: 17,15 | L52: COMPOSICAO | M52: 5679 | N52: RETROESCAVADEIRA SOBRE RODAS COM CARREGADEIRA, TRAÇÃO 4X4, POTÊNCIA LÍQ. 88 HP, CAÇAMBA CARREG. CAP. MÍN. 1 M3, CAÇAMBA RETRO CAP. 0,26 M3, PESO OPERACIONAL MÍN. 6.674 KG, PROFUNDIDADE ESCAVAÇÃO MÁX. 4,37 M - CHI DIURNO. AF_06/2014 | O52: CHI | P52: ATRIBUÍDO SÃO PAULO | Q52: 0,1014000 | R52: 40,55 | S52: 4,11 | AE52: CAIXA REFERENCIAL
A53: ASSENTAMENTO DE TUBOS E PECAS | B53: ASTU | C53: FORNEC E/OU ASSENT DE TUBO DE FERRO FUNDIDO JUNTA | D53: 45 | G53: 97148 | H53: ASSENTAMENTO DE TUBO DE FERRO FUNDIDO PARA REDE DE ÁGUA, DN 400 MM, JUNTA ELÁSTICA, INSTALADO EM LOCAL COM NÍVEL ALTO DE INTERFERÊNCIAS (NÃO INCLUI FORNECIMENTO). AF_11/2017 | I53: M | J53: ATRIBUÍDO SÃO PAULO | K53: 17,15 | L53: INSUMO | M53: 20078 | N53: PASTA LUBRIFICANTE PARA TUBOS E CONEXOES COM JUNTA ELASTICA (USO EM PVC, ACO, POLIETILENO E OUTROS) ( DE *400* G) | O53: UN | P53: COEFICIENTE DE REPRESENTATIVIDADE | Q53: 0,0188000 | R53: 25,13 | S53: 0,47 | AE53: CAIXA REFERENCIAL
A54: ASSENTAMENTO DE TUBOS E PECAS | B54: ASTU | C54: FORNEC E/OU ASSENT DE TUBO DE FERRO FUNDIDO JUNTA | D54: 45 | G54: 97148 | H54: ASSENTAMENTO DE TUBO DE FERRO FUNDIDO PARA REDE DE ÁGUA, DN 400 MM, JUNTA ELÁSTICA, INSTALADO EM LOCAL COM NÍVEL ALTO DE INTERFERÊNCIAS (NÃO INCLUI FORNECIMENTO). AF_11/2017 | I54: M | J54: ATRIBUÍDO SÃO PAULO | K54: 17,15 | L54: COMPOSICAO | M54: 88246 | N54: ASSENTADOR DE TUBOS COM ENCARGOS COMPLEMENTARES | O54: H | P54: COEFICIENTE DE REPRESENTATIVIDADE | Q54: 0,3150000 | R54: 17,71 | S54: 5,57 | AE54: CAIXA REFERENCIAL
A55: ASSENTAMENTO DE TUBOS E PECAS | B55: ASTU | C55: FORNEC E/OU ASSENT DE TUBO DE FERRO FUNDIDO JUNTA | D55: 45 | G55: 97148 | H55: ASSENTAMENTO DE TUBO DE FERRO FUNDIDO PARA REDE DE ÁGUA, DN 400 MM, JUNTA ELÁSTICA, INSTALADO EM LOCAL COM NÍVEL ALTO DE INTERFERÊNCIAS (NÃO INCLUI FORNECIMENTO). AF_11/2017 | I55: M | J55: ATRIBUÍDO SÃO PAULO | K55: 17,15 | L55: COMPOSICAO | M55: 88316 | N55: SERVENTE COM ENCARGOS COMPLEMENTARES | O55: H | P55: COLETADO | Q55: 0,3150000 | R55: 15,36 | S55: 4,83 | AE55: CAIXA REFERENCIAL
A56: ASSENTAMENTO DE TUBOS E PECAS | B56: ASTU | C56: FORNEC E/OU ASSENT DE TUBO DE FERRO FUNDIDO JUNTA | D56: 45 | G56: 97149 | H56: ASSENTAMENTO DE TUBO DE FERRO FUNDIDO PARA REDE DE ÁGUA, DN 450 MM, JUNTA ELÁSTICA, INSTALADO EM LOCAL COM NÍVEL ALTO DE INTERFERÊNCIAS (NÃO INCLUI FORNECIMENTO). AF_11/2017 | I56: M | J56: ATRIBUÍDO SÃO PAULO | K56: 18,92 | T56: 11,20 | U56: 59,1586796 | V56: 4,62 | W56: 24,4408945 | X56: 3,10 | Y56: 16,4004259 | Z56: 0,00 | AA56: 0,0000000 | AB56: 0,00 | AC56: 0,0000000 | AD56: 0.16279 | AE56: CAIXA REFERENCIAL
A57: ASSENTAMENTO DE TUBOS E PECAS | B57: ASTU | C57: FORNEC E/OU ASSENT DE TUBO DE FERRO FUNDIDO JUNTA | D57: 45 | G57: 97149 | H57: ASSENTAMENTO DE TUBO DE FERRO FUNDIDO PARA REDE DE ÁGUA, DN 450 MM, JUNTA ELÁSTICA, INSTALADO EM LOCAL COM NÍVEL ALTO DE INTERFERÊNCIAS (NÃO INCLUI FORNECIMENTO). AF_11/2017 | I57: M | J57: ATRIBUÍDO SÃO PAULO | K57: 18,92 | L57: COMPOSICAO | M57: 5678 | N57: RETROESCAVADEIRA SOBRE RODAS COM CARREGADEIRA, TRAÇÃO 4X4, POTÊNCIA LÍQ. 88 HP, CAÇAMBA CARREG. CAP. MÍN. 1 M3, CAÇAMBA RETRO CAP. 0,26 M3, PESO OPERACIONAL MÍN. 6.674 KG, PROFUNDIDADE ESCAVAÇÃO MÁX. 4,37 M - CHP DIURNO. AF_06/2014 | O57: CHP | P57: ATRIBUÍDO SÃO PAULO | Q57: 0,0229000 | R57: 102,95 | S57: 2,35 | AE57: CAIXA REFERENCIAL
A58: ASSENTAMENTO DE TUBOS E PECAS | B58: ASTU | C58: FORNEC E/OU ASSENT DE TUBO DE FERRO FUNDIDO JUNTA | D58: 45 | G58: 97149 | H58: ASSENTAMENTO DE TUBO DE FERRO FUNDIDO PARA REDE DE ÁGUA, DN 450 MM, JUNTA ELÁSTICA, INSTALADO EM LOCAL COM NÍVEL ALTO DE INTERFERÊNCIAS (NÃO INCLUI FORNECIMENTO). AF_11/2017 | I58: M | J58: ATRIBUÍDO SÃO PAULO | K58: 18,92 | L58: COMPOSICAO | M58: 5679 | N58: RETROESCAVADEIRA SOBRE RODAS COM CARREGADEIRA, TRAÇÃO 4X4, POTÊNCIA LÍQ. 88 HP, CAÇAMBA CARREG. CAP. MÍN. 1 M3, CAÇAMBA RETRO CAP. 0,26 M3, PESO OPERACIONAL MÍN. 6.674 KG, PROFUNDIDADE ESCAVAÇÃO MÁX. 4,37 M - CHI DIURNO. AF_06/2014 | O58: CHI | P58: ATRIBUÍDO SÃO PAULO | Q58: 0,1098000 | R58: 40,55 | S58: 4,45 | AE58: CAIXA REFERENCIAL
A59: ASSENTAMENTO DE TUBOS E PECAS | B59: ASTU | C59: FORNEC E/OU ASSENT DE TUBO DE FERRO FUNDIDO JUNTA | D59: 45 | G59: 97149 | H59: ASSENTAMENTO DE TUBO DE FERRO FUNDIDO PARA REDE DE ÁGUA, DN 450 MM, JUNTA ELÁSTICA, INSTALADO EM LOCAL COM NÍVEL ALTO DE INTERFERÊNCIAS (NÃO INCLUI FORNECIMENTO). AF_11/2017 | I59: M | J59: ATRIBUÍDO SÃO PAULO | K59: 18,92 | L59: INSUMO | M59: 20078 | N59: PASTA LUBRIFICANTE PARA TUBOS E CONEXOES COM JUNTA ELASTICA (USO EM PVC, ACO, POLIETILENO E OUTROS) ( DE *400* G) | O59: UN | P59: COEFICIENTE DE REPRESENTATIVIDADE | Q59: 0,0221000 | R59: 25,13 | S59: 0,55 | AE59: CAIXA REFERENCIAL
A60: ASSENTAMENTO DE TUBOS E PECAS | B60: ASTU | C60: FORNEC E/OU ASSENT DE TUBO DE FERRO FUNDIDO JUNTA | D60: 45 | G60: 97149 | H60: ASSENTAMENTO DE TUBO DE FERRO FUNDIDO PARA REDE DE ÁGUA, DN 450 MM, JUNTA ELÁSTICA, INSTALADO EM LOCAL COM NÍVEL ALTO DE INTERFERÊNCIAS (NÃO INCLUI FORNECIMENTO). AF_11/2017 | I60: M | J60: ATRIBUÍDO SÃO PAULO | K60: 18,92 | L60: COMPOSICAO | M60: 88246 | N60: ASSENTADOR DE TUBOS COM ENCARGOS COMPLEMENTARES | O60: H | P60: COEFICIENTE DE REPRESENTATIVIDADE | Q60: 0,3501000 | R60: 17,71 | S60: 6,20 | AE60: CAIXA REFERENCIAL
A61: ASSENTAMENTO DE TUBOS E PECAS | B61: ASTU | C61: FORNEC E/OU ASSENT DE TUBO DE FERRO FUNDIDO JUNTA | D61: 45 | G61: 97149 | H61: ASSENTAMENTO DE TUBO DE FERRO FUNDIDO PARA REDE DE ÁGUA, DN 450 MM, JUNTA ELÁSTICA, INSTALADO EM LOCAL COM NÍVEL ALTO DE INTERFERÊNCIAS (NÃO INCLUI FORNECIMENTO). AF_11/2017 | I61: M | J61: ATRIBUÍDO SÃO PAULO | K61: 18,92 | L61: COMPOSICAO | M61: 88316 | N61: SERVENTE COM ENCARGOS COMPLEMENTARES | O61: H | P61: COLETADO | Q61: 0,3501000 | R61: 15,36 | S61: 5,37 | AE61: CAIXA REFERENCIAL
A62: ASSENTAMENTO DE TUBOS E PECAS | B62: ASTU | C62: FORNEC E/OU ASSENT DE TUBO DE FERRO FUNDIDO JUNTA | D62: 45 | G62: 97150 | H62: ASSENTAMENTO DE TUBO DE FERRO FUNDIDO PARA REDE DE ÁGUA, DN 500 MM, JUNTA ELÁSTICA, INSTALADO EM LOCAL COM NÍVEL ALTO DE INTERFERÊNCIAS (NÃO INCLUI FORNECIMENTO). AF_11/2017 | I62: M | J62: ATRIBUÍDO SÃO PAULO | K62: 23,75 | T62: 12,26 | U62: 51,5664692 | V62: 5,27 | W62: 22,2269263 | X62: 6,22 | Y62: 26,2066045 | Z62: 0,00 | AA62: 0,0000000 | AB62: 0,00 | AC62: 0,0000000 | AD62: 0.26063 | AE62: CAIXA REFERENCIAL
A63: ASSENTAMENTO DE TUBOS E PECAS | B63: ASTU | C63: FORNEC E/OU ASSENT DE TUBO DE FERRO FUNDIDO JUNTA | D63: 45 | G63: 97150 | H63: ASSENTAMENTO DE TUBO DE FERRO FUNDIDO PARA REDE DE ÁGUA, DN 500 MM, JUNTA ELÁSTICA, INSTALADO EM LOCAL COM NÍVEL ALTO DE INTERFERÊNCIAS (NÃO INCLUI FORNECIMENTO). AF_11/2017 | I63: M | J63: ATRIBUÍDO SÃO PAULO | K63: 23,75 | L63: COMPOSICAO | M63: 5631 | N63: ESCAVADEIRA HIDRÁULICA SOBRE ESTEIRAS, CAÇAMBA 0,80 M3, PESO OPERACIONAL 17 T, POTENCIA BRUTA 111 HP - CHP DIURNO. AF_06/2014 | O63: CHP | P63: ATRIBUÍDO SÃO PAULO | Q63: 0,0246000 | R63: 146,93 | S63: 3,61 | AE63: CAIXA REFERENCIAL
A64: ASSENTAMENTO DE TUBOS E PECAS | B64: ASTU | C64: FORNEC E/OU ASSENT DE TUBO DE FERRO FUNDIDO JUNTA | D64: 45 | G64: 97150 | H64: ASSENTAMENTO DE TUBO DE FERRO FUNDIDO PARA REDE DE ÁGUA, DN 500 MM, JUNTA ELÁSTICA, INSTALADO EM LOCAL COM NÍVEL ALTO DE INTERFERÊNCIAS (NÃO INCLUI FORNECIMENTO). AF_11/2017 | I64: M | J64: ATRIBUÍDO SÃO PAULO | K64: 23,75 | L64: COMPOSICAO | M64: 5632 | N64: ESCAVADEIRA HIDRÁULICA SOBRE ESTEIRAS, CAÇAMBA 0,80 M3, PESO OPERACIONAL 17 T, POTENCIA BRUTA 111 HP - CHI DIURNO. AF_06/2014 | O64: CHI | P64: ATRIBUÍDO SÃO PAULO | Q64: 0,1182000 | R64: 57,47 | S64: 6,79 | AE64: CAIXA REFERENCIAL
A65: ASSENTAMENTO DE TUBOS E PECAS | B65: ASTU | C65: FORNEC E/OU ASSENT DE TUBO DE FERRO FUNDIDO JUNTA | D65: 45 | G65: 97150 | H65: ASSENTAMENTO DE TUBO DE FERRO FUNDIDO PARA REDE DE ÁGUA, DN 500 MM, JUNTA ELÁSTICA, INSTALADO EM LOCAL COM NÍVEL ALTO DE INTERFERÊNCIAS (NÃO INCLUI FORNECIMENTO). AF_11/2017 | I65: M | J65: ATRIBUÍDO SÃO PAULO | K65: 23,75 | L65: INSUMO | M65: 20078 | N65: PASTA LUBRIFICANTE PARA TUBOS E CONEXOES COM JUNTA ELASTICA (USO EM PVC, ACO, POLIETILENO E OUTROS) ( DE *400* G) | O65: UN | P65: COEFICIENTE DE REPRESENTATIVIDADE | Q65: 0,0248000 | R65: 25,13 | S65: 0,62 | AE65: CAIXA REFERENCIAL
A66: ASSENTAMENTO DE TUBOS E PECAS | B66: ASTU | C66: FORNEC E/OU ASSENT DE TUBO DE FERRO FUNDIDO JUNTA | D66: 45 | G66: 97150 | H66: ASSENTAMENTO DE TUBO DE FERRO FUNDIDO PARA REDE DE ÁGUA, DN 500 MM, JUNTA ELÁSTICA, INSTALADO EM LOCAL COM NÍVEL ALTO DE INTERFERÊNCIAS (NÃO INCLUI FORNECIMENTO). AF_11/2017 | I66: M | J66: ATRIBUÍDO SÃO PAULO | K66: 23,75 | L66: COMPOSICAO | M66: 88246 | N66: ASSENTADOR DE TUBOS COM ENCARGOS COMPLEMENTARES | O66: H | P66: COEFICIENTE DE REPRESENTATIVIDADE | Q66: 0,3851000 | R66: 17,71 | S66: 6,82 | AE66: CAIXA REFERENCIAL
A67: ASSENTAMENTO DE TUBOS E PECAS | B67: ASTU | C67: FORNEC E/OU ASSENT DE TUBO DE FERRO FUNDIDO JUNTA | D67: 45 | G67: 97150 | H67: ASSENTAMENTO DE TUBO DE FERRO FUNDIDO PARA REDE DE ÁGUA, DN 500 MM, JUNTA ELÁSTICA, INSTALADO EM LOCAL COM NÍVEL ALTO DE INTERFERÊNCIAS (NÃO INCLUI FORNECIMENTO). AF_11/2017 | I67: M | J67: ATRIBUÍDO SÃO PAULO | K67: 23,75 | L67: COMPOSICAO | M67: 88316 | N67: SERVENTE COM ENCARGOS COMPLEMENTARES | O67: H | P67: COLETADO | Q67: 0,3851000 | R67: 15,36 | S67: 5,91 | AE67: CAIXA REFERENCIAL
A68: ASSENTAMENTO DE TUBOS E PECAS | B68: ASTU | C68: FORNEC E/OU ASSENT DE TUBO DE FERRO FUNDIDO JUNTA | D68: 45 | G68: 97151 | H68: ASSENTAMENTO DE TUBO DE FERRO FUNDIDO PARA REDE DE ÁGUA, DN 600 MM, JUNTA ELÁSTICA, INSTALADO EM LOCAL COM NÍVEL ALTO DE INTERFERÊNCIAS (NÃO INCLUI FORNECIMENTO). AF_11/2017 | I68: M | J68: ATRIBUÍDO SÃO PAULO | K68: 27,70 | T68: 14,40 | U68: 51,9433347 | V68: 6,19 | W68: 22,3755902 | X68: 7,11 | Y68: 25,6810751 | Z68: 0,00 | AA68: 0,0000000 | AB68: 0,00 | AC68: 0,0000000 | AD68: 0.25523 | AE68: CAIXA REFERENCIAL
A69: ASSENTAMENTO DE TUBOS E PECAS | B69: ASTU | C69: FORNEC E/OU ASSENT DE TUBO DE FERRO FUNDIDO JUNTA | D69: 45 | G69: 97151 | H69: ASSENTAMENTO DE TUBO DE FERRO FUNDIDO PARA REDE DE ÁGUA, DN 600 MM, JUNTA ELÁSTICA, INSTALADO EM LOCAL COM NÍVEL ALTO DE INTERFERÊNCIAS (NÃO INCLUI FORNECIMENTO). AF_11/2017 | I69: M | J69: ATRIBUÍDO SÃO PAULO | K69: 27,70 | L69: COMPOSICAO | M69: 5631 | N69: ESCAVADEIRA HIDRÁULICA SOBRE ESTEIRAS, CAÇAMBA 0,80 M3, PESO OPERACIONAL 17 T, POTENCIA BRUTA 111 HP - CHP DIURNO. AF_06/2014 | O69: CHP | P69: ATRIBUÍDO SÃO PAULO | Q69: 0,0281000 | R69: 146,93 | S69: 4,12 | AE69: CAIXA REFERENCIAL
A70: ASSENTAMENTO DE TUBOS E PECAS | B70: ASTU | C70: FORNEC E/OU ASSENT DE TUBO DE FERRO FUNDIDO JUNTA | D70: 45 | G70: 97151 | H70: ASSENTAMENTO DE TUBO DE FERRO FUNDIDO PARA REDE DE ÁGUA, DN 600 MM, JUNTA ELÁSTICA, INSTALADO EM LOCAL COM NÍVEL ALTO DE INTERFERÊNCIAS (NÃO INCLUI FORNECIMENTO). AF_11/2017 | I70: M | J70: ATRIBUÍDO SÃO PAULO | K70: 27,70 | L70: COMPOSICAO | M70: 5632 | N70: ESCAVADEIRA HIDRÁULICA SOBRE ESTEIRAS, CAÇAMBA 0,80 M3, PESO OPERACIONAL 17 T, POTENCIA BRUTA 111 HP - CHI DIURNO. AF_06/2014 | O70: CHI | P70: ATRIBUÍDO SÃO PAULO | Q70: 0,1350000 | R70: 57,47 | S70: 7,75 | AE70: CAIXA REFERENCIAL
A71: ASSENTAMENTO DE TUBOS E PECAS | B71: ASTU | C71: FORNEC E/OU ASSENT DE TUBO DE FERRO FUNDIDO JUNTA | D71: 45 | G71: 97151 | H71: ASSENTAMENTO DE TUBO DE FERRO FUNDIDO PARA REDE DE ÁGUA, DN 600 MM, JUNTA ELÁSTICA, INSTALADO EM LOCAL COM NÍVEL ALTO DE INTERFERÊNCIAS (NÃO INCLUI FORNECIMENTO). AF_11/2017 | I71: M | J71: ATRIBUÍDO SÃO PAULO | K71: 27,70 | L71: INSUMO | M71: 20078 | N71: PASTA LUBRIFICANTE PARA TUBOS E CONEXOES COM JUNTA ELASTICA (USO EM PVC, ACO, POLIETILENO E OUTROS) ( DE *400* G) | O71: UN | P71: COEFICIENTE DE REPRESENTATIVIDADE | Q71: 0,0313000 | R71: 25,13 | S71: 0,78 | AE71: CAIXA REFERENCIAL
A72: ASSENTAMENTO DE TUBOS E PECAS | B72: ASTU | C72: FORNEC E/OU ASSENT DE TUBO DE FERRO FUNDIDO JUNTA | D72: 45 | G72: 97151 | H72: ASSENTAMENTO DE TUBO DE FERRO FUNDIDO PARA REDE DE ÁGUA, DN 600 MM, JUNTA ELÁSTICA, INSTALADO EM LOCAL COM NÍVEL ALTO DE INTERFERÊNCIAS (NÃO INCLUI FORNECIMENTO). AF_11/2017 | I72: M | J72: ATRIBUÍDO SÃO PAULO | K72: 27,70 | L72: COMPOSICAO | M72: 88246 | N72: ASSENTADOR DE TUBOS COM ENCARGOS COMPLEMENTARES | O72: H | P72: COEFICIENTE DE REPRESENTATIVIDADE | Q72: 0,4553000 | R72: 17,71 | S72: 8,06 | AE72: CAIXA REFERENCIAL
A73: ASSENTAMENTO DE TUBOS E PECAS | B73: ASTU | C73: FORNEC E/OU ASSENT DE TUBO DE FERRO FUNDIDO JUNTA | D73: 45 | G73: 97151 | H73: ASSENTAMENTO DE TUBO DE FERRO FUNDIDO PARA REDE DE ÁGUA, DN 600 MM, JUNTA ELÁSTICA, INSTALADO EM LOCAL COM NÍVEL ALTO DE INTERFERÊNCIAS (NÃO INCLUI FORNECIMENTO). AF_11/2017 | I73: M | J73: ATRIBUÍDO SÃO PAULO | K73: 27,70 | L73: COMPOSICAO | M73: 88316 | N73: SERVENTE COM ENCARGOS COMPLEMENTARES | O73: H | P73: COLETADO | Q73: 0,4553000 | R73: 15,36 | S73: 6,99 | AE73: CAIXA REFERENCIAL
A74: ASSENTAMENTO DE TUBOS E PECAS | B74: ASTU | C74: FORNEC E/OU ASSENT DE TUBO DE FERRO FUNDIDO JUNTA | D74: 45 | G74: 97152 | H74: ASSENTAMENTO DE TUBO DE FERRO FUNDIDO PARA REDE DE ÁGUA, DN 700 MM, JUNTA ELÁSTICA, INSTALADO EM LOCAL COM NÍVEL ALTO DE INTERFERÊNCIAS (NÃO INCLUI FORNECIMENTO). AF_11/2017 | I74: M | J74: ATRIBUÍDO SÃO PAULO | K74: 31,44 | T74: 16,52 | U74: 52,5255755 | V74: 6,93 | W74: 22,0588235 | X74: 7,99 | Y74: 25,4156010 | Z74: 0,00 | AA74: 0,0000000 | AB74: 0,00 | AC74: 0,0000000 | AD74: 0.25286 | AE74: CAIXA REFERENCIAL
A75: ASSENTAMENTO DE TUBOS E PECAS | B75: ASTU | C75: FORNEC E/OU ASSENT DE TUBO DE FERRO FUNDIDO JUNTA | D75: 45 | G75: 97152 | H75: ASSENTAMENTO DE TUBO DE FERRO FUNDIDO PARA REDE DE ÁGUA, DN 700 MM, JUNTA ELÁSTICA, INSTALADO EM LOCAL COM NÍVEL ALTO DE INTERFERÊNCIAS (NÃO INCLUI FORNECIMENTO). AF_11/2017 | I75: M | J75: ATRIBUÍDO SÃO PAULO | K75: 31,44 | L75: COMPOSICAO | M75: 5631 | N75: ESCAVADEIRA HIDRÁULICA SOBRE ESTEIRAS, CAÇAMBA 0,80 M3, PESO OPERACIONAL 17 T, POTENCIA BRUTA 111 HP - CHP DIURNO. AF_06/2014 | O75: CHP | P75: ATRIBUÍDO SÃO PAULO | Q75: 0,0316000 | R75: 146,93 | S75: 4,64 | AE75: CAIXA REFERENCIAL
A76: ASSENTAMENTO DE TUBOS E PECAS | B76: ASTU | C76: FORNEC E/OU ASSENT DE TUBO DE FERRO FUNDIDO JUNTA | D76: 45 | G76: 97152 | H76: ASSENTAMENTO DE TUBO DE FERRO FUNDIDO PARA REDE DE ÁGUA, DN 700 MM, JUNTA ELÁSTICA, INSTALADO EM LOCAL COM NÍVEL ALTO DE INTERFERÊNCIAS (NÃO INCLUI FORNECIMENTO). AF_11/2017 | I76: M | J76: ATRIBUÍDO SÃO PAULO | K76: 31,44 | L76: COMPOSICAO | M76: 5632 | N76: ESCAVADEIRA HIDRÁULICA SOBRE ESTEIRAS, CAÇAMBA 0,80 M3, PESO OPERACIONAL 17 T, POTENCIA BRUTA 111 HP - CHI DIURNO. AF_06/2014 | O76: CHI | P76: ATRIBUÍDO SÃO PAULO | Q76: 0,1518000 | R76: 57,47 | S76: 8,72 | AE76: CAIXA REFERENCIAL
A77: ASSENTAMENTO DE TUBOS E PECAS | B77: ASTU | C77: FORNEC E/OU ASSENT DE TUBO DE FERRO FUNDIDO JUNTA | D77: 45 | G77: 97152 | H77: ASSENTAMENTO DE TUBO DE FERRO FUNDIDO PARA REDE DE ÁGUA, DN 700 MM, JUNTA ELÁSTICA, INSTALADO EM LOCAL COM NÍVEL ALTO DE INTERFERÊNCIAS (NÃO INCLUI FORNECIMENTO). AF_11/2017 | I77: M | J77: ATRIBUÍDO SÃO PAULO | K77: 31,44 | L77: INSUMO | M77: 20078 | N77: PASTA LUBRIFICANTE PARA TUBOS E CONEXOES COM JUNTA ELASTICA (USO EM PVC, ACO, POLIETILENO E OUTROS) ( DE *400* G) | O77: UN | P77: COEFICIENTE DE REPRESENTATIVIDADE | Q77: 0,0284000 | R77: 25,13 | S77: 0,71 | AE77: CAIXA REFERENCIAL
A78: ASSENTAMENTO DE TUBOS E PECAS | B78: ASTU | C78: FORNEC E/OU ASSENT DE TUBO DE FERRO FUNDIDO JUNTA | D78: 45 | G78: 97152 | H78: ASSENTAMENTO DE TUBO DE FERRO FUNDIDO PARA REDE DE ÁGUA, DN 700 MM, JUNTA ELÁSTICA, INSTALADO EM LOCAL COM NÍVEL ALTO DE INTERFERÊNCIAS (NÃO INCLUI FORNECIMENTO). AF_11/2017 | I78: M | J78: ATRIBUÍDO SÃO PAULO | K78: 31,44 | L78: COMPOSICAO | M78: 88246 | N78: ASSENTADOR DE TUBOS COM ENCARGOS COMPLEMENTARES | O78: H | P78: COEFICIENTE DE REPRESENTATIVIDADE | Q78: 0,5255000 | R78: 17,71 | S78: 9,30 | AE78: CAIXA REFERENCIAL
A79: ASSENTAMENTO DE TUBOS E PECAS | B79: ASTU | C79: FORNEC E/OU ASSENT DE TUBO DE FERRO FUNDIDO JUNTA | D79: 45 | G79: 97152 | H79: ASSENTAMENTO DE TUBO DE FERRO FUNDIDO PARA REDE DE ÁGUA, DN 700 MM, JUNTA ELÁSTICA, INSTALADO EM LOCAL COM NÍVEL ALTO DE INTERFERÊNCIAS (NÃO INCLUI FORNECIMENTO). AF_11/2017 | I79: M | J79: ATRIBUÍDO SÃO PAULO | K79: 31,44 | L79: COMPOSICAO | M79: 88316 | N79: SERVENTE COM ENCARGOS COMPLEMENTARES | O79: H | P79: COLETADO | Q79: 0,5255000 | R79: 15,36 | S79: 8,07 | AE79: CAIXA REFERENCIAL
A80: ASSENTAMENTO DE TUBOS E PECAS | B80: ASTU | C80: FORNEC E/OU ASSENT DE TUBO DE FERRO FUNDIDO JUNTA | D80: 45 | G80: 97153 | H80: ASSENTAMENTO DE TUBO DE FERRO FUNDIDO PARA REDE DE ÁGUA, DN 800 MM, JUNTA ELÁSTICA, INSTALADO EM LOCAL COM NÍVEL ALTO DE INTERFERÊNCIAS (NÃO INCLUI FORNECIMENTO). AF_11/2017 | I80: M | J80: ATRIBUÍDO SÃO PAULO | K80: 35,29 | T80: 18,64 | U80: 52,8038715 | V80: 7,77 | W80: 22,0324508 | X80: 8,88 | Y80: 25,1636777 | Z80: 0,00 | AA80: 0,0000000 | AB80: 0,00 | AC80: 0,0000000 | AD80: 0.2505 | AE80: CAIXA REFERENCIAL
A81: ASSENTAMENTO DE TUBOS E PECAS | B81: ASTU | C81: FORNEC E/OU ASSENT DE TUBO DE FERRO FUNDIDO JUNTA | D81: 45 | G81: 97153 | H81: ASSENTAMENTO DE TUBO DE FERRO FUNDIDO PARA REDE DE ÁGUA, DN 800 MM, JUNTA ELÁSTICA, INSTALADO EM LOCAL COM NÍVEL ALTO DE INTERFERÊNCIAS (NÃO INCLUI FORNECIMENTO). AF_11/2017 | I81: M | J81: ATRIBUÍDO SÃO PAULO | K81: 35,29 | L81: COMPOSICAO | M81: 5631 | N81: ESCAVADEIRA HIDRÁULICA SOBRE ESTEIRAS, CAÇAMBA 0,80 M3, PESO OPERACIONAL 17 T, POTENCIA BRUTA 111 HP - CHP DIURNO. AF_06/2014 | O81: CHP | P81: ATRIBUÍDO SÃO PAULO | Q81: 0,0351000 | R81: 146,93 | S81: 5,15 | AE81: CAIXA REFERENCIAL
A82: ASSENTAMENTO DE TUBOS E PECAS | B82: ASTU | C82: FORNEC E/OU ASSENT DE TUBO DE FERRO FUNDIDO JUNTA | D82: 45 | G82: 97153 | H82: ASSENTAMENTO DE TUBO DE FERRO FUNDIDO PARA REDE DE ÁGUA, DN 800 MM, JUNTA ELÁSTICA, INSTALADO EM LOCAL COM NÍVEL ALTO DE INTERFERÊNCIAS (NÃO INCLUI FORNECIMENTO). AF_11/2017 | I82: M | J82: ATRIBUÍDO SÃO PAULO | K82: 35,29 | L82: COMPOSICAO | M82: 5632 | N82: ESCAVADEIRA HIDRÁULICA SOBRE ESTEIRAS, CAÇAMBA 0,80 M3, PESO OPERACIONAL 17 T, POTENCIA BRUTA 111 HP - CHI DIURNO. AF_06/2014 | O82: CHI | P82: ATRIBUÍDO SÃO PAULO | Q82: 0,1686000 | R82: 57,47 | S82: 9,68 | AE82: CAIXA REFERENCIAL
A83: ASSENTAMENTO DE TUBOS E PECAS | B83: ASTU | C83: FORNEC E/OU ASSENT DE TUBO DE FERRO FUNDIDO JUNTA | D83: 45 | G83: 97153 | H83: ASSENTAMENTO DE TUBO DE FERRO FUNDIDO PARA REDE DE ÁGUA, DN 800 MM, JUNTA ELÁSTICA, INSTALADO EM LOCAL COM NÍVEL ALTO DE INTERFERÊNCIAS (NÃO INCLUI FORNECIMENTO). AF_11/2017 | I83: M | J83: ATRIBUÍDO SÃO PAULO | K83: 35,29 | L83: INSUMO | M83: 20078 | N83: PASTA LUBRIFICANTE PARA TUBOS E CONEXOES COM JUNTA ELASTICA (USO EM PVC, ACO, POLIETILENO E OUTROS) ( DE *400* G) | O83: UN | P83: COEFICIENTE DE REPRESENTATIVIDADE | Q83: 0,0314000 | R83: 25,13 | S83: 0,78 | AE83: CAIXA REFERENCIAL
A84: ASSENTAMENTO DE TUBOS E PECAS | B84: ASTU | C84: FORNEC E/OU ASSENT DE TUBO DE FERRO FUNDIDO JUNTA | D84: 45 | G84: 97153 | H84: ASSENTAMENTO DE TUBO DE FERRO FUNDIDO PARA REDE DE ÁGUA, DN 800 MM, JUNTA ELÁSTICA, INSTALADO EM LOCAL COM NÍVEL ALTO DE INTERFERÊNCIAS (NÃO INCLUI FORNECIMENTO). AF_11/2017 | I84: M | J84: ATRIBUÍDO SÃO PAULO | K84: 35,29 | L84: COMPOSICAO | M84: 88246 | N84: ASSENTADOR DE TUBOS COM ENCARGOS COMPLEMENTARES | O84: H | P84: COEFICIENTE DE REPRESENTATIVIDADE | Q84: 0,5956000 | R84: 17,71 | S84: 10,54 | AE84: CAIXA REFERENCIAL
A85: ASSENTAMENTO DE TUBOS E PECAS | B85: ASTU | C85: FORNEC E/OU ASSENT DE TUBO DE FERRO FUNDIDO JUNTA | D85: 45 | G85: 97153 | H85: ASSENTAMENTO DE TUBO DE FERRO FUNDIDO PARA REDE DE ÁGUA, DN 800 MM, JUNTA ELÁSTICA, INSTALADO EM LOCAL COM NÍVEL ALTO DE INTERFERÊNCIAS (NÃO INCLUI FORNECIMENTO). AF_11/2017 | I85: M | J85: ATRIBUÍDO SÃO PAULO | K85: 35,29 | L85: COMPOSICAO | M85: 88316 | N85: SERVENTE COM ENCARGOS COMPLEMENTARES | O85: H | P85: COLETADO | Q85: 0,5956000 | R85: 15,36 | S85: 9,14 | AE85: CAIXA REFERENCIAL
A86: ASSENTAMENTO DE TUBOS E PECAS | B86: ASTU | C86: FORNEC E/OU ASSENT DE TUBO DE FERRO FUNDIDO JUNTA | D86: 45 | G86: 97154 | H86: ASSENTAMENTO DE TUBO DE FERRO FUNDIDO PARA REDE DE ÁGUA, DN 900 MM, JUNTA ELÁSTICA, INSTALADO EM LOCAL COM NÍVEL ALTO DE INTERFERÊNCIAS (NÃO INCLUI FORNECIMENTO). AF_11/2017 | I86: M | J86: ATRIBUÍDO SÃO PAULO | K86: 39,22 | T86: 20,78 | U86: 52,9441885 | V86: 8,69 | W86: 22,1710189 | X86: 9,75 | Y86: 24,8847926 | Z86: 0,00 | AA86: 0,0000000 | AB86: 0,00 | AC86: 0,0000000 | AD86: 0.24783 | AE86: CAIXA REFERENCIAL
A87: ASSENTAMENTO DE TUBOS E PECAS | B87: ASTU | C87: FORNEC E/OU ASSENT DE TUBO DE FERRO FUNDIDO JUNTA | D87: 45 | G87: 97154 | H87: ASSENTAMENTO DE TUBO DE FERRO FUNDIDO PARA REDE DE ÁGUA, DN 900 MM, JUNTA ELÁSTICA, INSTALADO EM LOCAL COM NÍVEL ALTO DE INTERFERÊNCIAS (NÃO INCLUI FORNECIMENTO). AF_11/2017 | I87: M | J87: ATRIBUÍDO SÃO PAULO | K87: 39,22 | L87: COMPOSICAO | M87: 5631 | N87: ESCAVADEIRA HIDRÁULICA SOBRE ESTEIRAS, CAÇAMBA 0,80 M3, PESO OPERACIONAL 17 T, POTENCIA BRUTA 111 HP - CHP DIURNO. AF_06/2014 | O87: CHP | P87: ATRIBUÍDO SÃO PAULO | Q87: 0,0386000 | R87: 146,93 | S87: 5,67 | AE87: CAIXA REFERENCIAL
A88: ASSENTAMENTO DE TUBOS E PECAS | B88: ASTU | C88: FORNEC E/OU ASSENT DE TUBO DE FERRO FUNDIDO JUNTA | D88: 45 | G88: 97154 | H88: ASSENTAMENTO DE TUBO DE FERRO FUNDIDO PARA REDE DE ÁGUA, DN 900 MM, JUNTA ELÁSTICA, INSTALADO EM LOCAL COM NÍVEL ALTO DE INTERFERÊNCIAS (NÃO INCLUI FORNECIMENTO). AF_11/2017 | I88: M | J88: ATRIBUÍDO SÃO PAULO | K88: 39,22 | L88: COMPOSICAO | M88: 5632 | N88: ESCAVADEIRA HIDRÁULICA SOBRE ESTEIRAS, CAÇAMBA 0,80 M3, PESO OPERACIONAL 17 T, POTENCIA BRUTA 111 HP - CHI DIURNO. AF_06/2014 | O88: CHI | P88: ATRIBUÍDO SÃO PAULO | Q88: 0,1854000 | R88: 57,47 | S88: 10,65 | AE88: CAIXA REFERENCIAL
A89: ASSENTAMENTO DE TUBOS E PECAS | B89: ASTU | C89: FORNEC E/OU ASSENT DE TUBO DE FERRO FUNDIDO JUNTA | D89: 45 | G89: 97154 | H89: ASSENTAMENTO DE TUBO DE FERRO FUNDIDO PARA REDE DE ÁGUA, DN 900 MM, JUNTA ELÁSTICA, INSTALADO EM LOCAL COM NÍVEL ALTO DE INTERFERÊNCIAS (NÃO INCLUI FORNECIMENTO). AF_11/2017 | I89: M | J89: ATRIBUÍDO SÃO PAULO | K89: 39,22 | L89: INSUMO | M89: 20078 | N89: PASTA LUBRIFICANTE PARA TUBOS E CONEXOES COM JUNTA ELASTICA (USO EM PVC, ACO, POLIETILENO E OUTROS) ( DE *400* G) | O89: UN | P89: COEFICIENTE DE REPRESENTATIVIDADE | Q89: 0,0355000 | R89: 25,13 | S89: 0,89 | AE89: CAIXA REFERENCIAL
A90: ASSENTAMENTO DE TUBOS E PECAS | B90: ASTU | C90: FORNEC E/OU ASSENT DE TUBO DE FERRO FUNDIDO JUNTA | D90: 45 | G90: 97154 | H90: ASSENTAMENTO DE TUBO DE FERRO FUNDIDO PARA REDE DE ÁGUA, DN 900 MM, JUNTA ELÁSTICA, INSTALADO EM LOCAL COM NÍVEL ALTO DE INTERFERÊNCIAS (NÃO INCLUI FORNECIMENTO). AF_11/2017 | I90: M | J90: ATRIBUÍDO SÃO PAULO | K90: 39,22 | L90: COMPOSICAO | M90: 88246 | N90: ASSENTADOR DE TUBOS COM ENCARGOS COMPLEMENTARES | O90: H | P90: COEFICIENTE DE REPRESENTATIVIDADE | Q90: 0,6658000 | R90: 17,71 | S90: 11,79 | AE90: CAIXA REFERENCIAL
A91: ASSENTAMENTO DE TUBOS E PECAS | B91: ASTU | C91: FORNEC E/OU ASSENT DE TUBO DE FERRO FUNDIDO JUNTA | D91: 45 | G91: 97154 | H91: ASSENTAMENTO DE TUBO DE FERRO FUNDIDO PARA REDE DE ÁGUA, DN 900 MM, JUNTA ELÁSTICA, INSTALADO EM LOCAL COM NÍVEL ALTO DE INTERFERÊNCIAS (NÃO INCLUI FORNECIMENTO). AF_11/2017 | I91: M | J91: ATRIBUÍDO SÃO PAULO | K91: 39,22 | L91: COMPOSICAO | M91: 88316 | N91: SERVENTE COM ENCARGOS COMPLEMENTARES | O91: H | P91: COLETADO | Q91: 0,6658000 | R91: 15,36 | S91: 10,22 | AE91: CAIXA REFERENCIAL
A92: ASSENTAMENTO DE TUBOS E PECAS | B92: ASTU | C92: FORNEC E/OU ASSENT DE TUBO DE FERRO FUNDIDO JUNTA | D92: 45 | G92: 97155 | H92: ASSENTAMENTO DE TUBO DE FERRO FUNDIDO PARA REDE DE ÁGUA, DN 1000 MM, JUNTA ELÁSTICA, INSTALADO EM LOCAL COM NÍVEL ALTO DE INTERFERÊNCIAS (NÃO INCLUI FORNECIMENTO). AF_11/2017 | I92: M | J92: ATRIBUÍDO SÃO PAULO | K92: 43,13 | T92: 22,89 | U92: 53,0493483 | V92: 9,60 | W92: 22,2765363 | X92: 10,64 | Y92: 24,6741154 | Z92: 0,00 | AA92: 0,0000000 | AB92: 0,00 | AC92: 0,0000000 | AD92: 0.24577 | AE92: CAIXA REFERENCIAL
A93: ASSENTAMENTO DE TUBOS E PECAS | B93: ASTU | C93: FORNEC E/OU ASSENT DE TUBO DE FERRO FUNDIDO JUNTA | D93: 45 | G93: 97155 | H93: ASSENTAMENTO DE TUBO DE FERRO FUNDIDO PARA REDE DE ÁGUA, DN 1000 MM, JUNTA ELÁSTICA, INSTALADO EM LOCAL COM NÍVEL ALTO DE INTERFERÊNCIAS (NÃO INCLUI FORNECIMENTO). AF_11/2017 | I93: M | J93: ATRIBUÍDO SÃO PAULO | K93: 43,13 | L93: COMPOSICAO | M93: 5631 | N93: ESCAVADEIRA HIDRÁULICA SOBRE ESTEIRAS, CAÇAMBA 0,80 M3, PESO OPERACIONAL 17 T, POTENCIA BRUTA 111 HP - CHP DIURNO. AF_06/2014 | O93: CHP | P93: ATRIBUÍDO SÃO PAULO | Q93: 0,0421000 | R93: 146,93 | S93: 6,18 | AE93: CAIXA REFERENCIAL
A94: ASSENTAMENTO DE TUBOS E PECAS | B94: ASTU | C94: FORNEC E/OU ASSENT DE TUBO DE FERRO FUNDIDO JUNTA | D94: 45 | G94: 97155 | H94: ASSENTAMENTO DE TUBO DE FERRO FUNDIDO PARA REDE DE ÁGUA, DN 1000 MM, JUNTA ELÁSTICA, INSTALADO EM LOCAL COM NÍVEL ALTO DE INTERFERÊNCIAS (NÃO INCLUI FORNECIMENTO). AF_11/2017 | I94: M | J94: ATRIBUÍDO SÃO PAULO | K94: 43,13 | L94: COMPOSICAO | M94: 5632 | N94: ESCAVADEIRA HIDRÁULICA SOBRE ESTEIRAS, CAÇAMBA 0,80 M3, PESO OPERACIONAL 17 T, POTENCIA BRUTA 111 HP - CHI DIURNO. AF_06/2014 | O94: CHI | P94: ATRIBUÍDO SÃO PAULO | Q94: 0,2021000 | R94: 57,47 | S94: 11,61 | AE94: CAIXA REFERENCIAL
A95: ASSENTAMENTO DE TUBOS E PECAS | B95: ASTU | C95: FORNEC E/OU ASSENT DE TUBO DE FERRO FUNDIDO JUNTA | D95: 45 | G95: 97155 | H95: ASSENTAMENTO DE TUBO DE FERRO FUNDIDO PARA REDE DE ÁGUA, DN 1000 MM, JUNTA ELÁSTICA, INSTALADO EM LOCAL COM NÍVEL ALTO DE INTERFERÊNCIAS (NÃO INCLUI FORNECIMENTO). AF_11/2017 | I95: M | J95: ATRIBUÍDO SÃO PAULO | K95: 43,13 | L95: INSUMO | M95: 20078 | N95: PASTA LUBRIFICANTE PARA TUBOS E CONEXOES COM JUNTA ELASTICA (USO EM PVC, ACO, POLIETILENO E OUTROS) ( DE *400* G) | O95: UN | P95: COEFICIENTE DE REPRESENTATIVIDADE | Q95: 0,0403000 | R95: 25,13 | S95: 1,01 | AE95: CAIXA REFERENCIAL
A96: ASSENTAMENTO DE TUBOS E PECAS | B96: ASTU | C96: FORNEC E/OU ASSENT DE TUBO DE FERRO FUNDIDO JUNTA | D96: 45 | G96: 97155 | H96: ASSENTAMENTO DE TUBO DE FERRO FUNDIDO PARA REDE DE ÁGUA, DN 1000 MM, JUNTA ELÁSTICA, INSTALADO EM LOCAL COM NÍVEL ALTO DE INTERFERÊNCIAS (NÃO INCLUI FORNECIMENTO). AF_11/2017 | I96: M | J96: ATRIBUÍDO SÃO PAULO | K96: 43,13 | L96: COMPOSICAO | M96: 88246 | N96: ASSENTADOR DE TUBOS COM ENCARGOS COMPLEMENTARES | O96: H | P96: COEFICIENTE DE REPRESENTATIVIDADE | Q96: 0,7359000 | R96: 17,71 | S96: 13,03 | AE96: CAIXA REFERENCIAL
A97: ASSENTAMENTO DE TUBOS E PECAS | B97: ASTU | C97: FORNEC E/OU ASSENT DE TUBO DE FERRO FUNDIDO JUNTA | D97: 45 | G97: 97155 | H97: ASSENTAMENTO DE TUBO DE FERRO FUNDIDO PARA REDE DE ÁGUA, DN 1000 MM, JUNTA ELÁSTICA, INSTALADO EM LOCAL COM NÍVEL ALTO DE INTERFERÊNCIAS (NÃO INCLUI FORNECIMENTO). AF_11/2017 | I97: M | J97: ATRIBUÍDO SÃO PAULO | K97: 43,13 | L97: COMPOSICAO | M97: 88316 | N97: SERVENTE COM ENCARGOS COMPLEMENTARES | O97: H | P97: COLETADO | Q97: 0,7359000 | R97: 15,36 | S97: 11,30 | AE97: CAIXA REFERENCIAL
A98: ASSENTAMENTO DE TUBOS E PECAS | B98: ASTU | C98: FORNEC E/OU ASSENT DE TUBO DE FERRO FUNDIDO JUNTA | D98: 45 | G98: 97156 | H98: ASSENTAMENTO DE TUBO DE FERRO FUNDIDO PARA REDE DE ÁGUA, DN 1200 MM, JUNTA ELÁSTICA, INSTALADO EM LOCAL COM NÍVEL ALTO DE INTERFERÊNCIAS (NÃO INCLUI FORNECIMENTO). AF_11/2017 | I98: M | J98: ATRIBUÍDO SÃO PAULO | K98: 51,33 | T98: 27,15 | U98: 52,8630058 | V98: 11,78 | W98: 22,9626734 | X98: 12,40 | Y98: 24,1743208 | Z98: 0,00 | AA98: 0,0000000 | AB98: 0,00 | AC98: 0,0000000 | AD98: 0.24099 | AE98: CAIXA REFERENCIAL
A99: ASSENTAMENTO DE TUBOS E PECAS | B99: ASTU | C99: FORNEC E/OU ASSENT DE TUBO DE FERRO FUNDIDO JUNTA | D99: 45 | G99: 97156 | H99: ASSENTAMENTO DE TUBO DE FERRO FUNDIDO PARA REDE DE ÁGUA, DN 1200 MM, JUNTA ELÁSTICA, INSTALADO EM LOCAL COM NÍVEL ALTO DE INTERFERÊNCIAS (NÃO INCLUI FORNECIMENTO). AF_11/2017 | I99: M | J99: ATRIBUÍDO SÃO PAULO | K99: 51,33 | L99: COMPOSICAO | M99: 5631 | N99: ESCAVADEIRA HIDRÁULICA SOBRE ESTEIRAS, CAÇAMBA 0,80 M3, PESO OPERACIONAL 17 T, POTENCIA BRUTA 111 HP - CHP DIURNO. AF_06/2014 | O99: CHP | P99: ATRIBUÍDO SÃO PAULO | Q99: 0,0491000 | R99: 146,93 | S99: 7,21 | AE99: CAIXA REFERENCIAL
A100: ASSENTAMENTO DE TUBOS E PECAS | B100: ASTU | C100: FORNEC E/OU ASSENT DE TUBO DE FERRO FUNDIDO JUNTA | D100: 45 | G100: 97156 | H100: ASSENTAMENTO DE TUBO DE FERRO FUNDIDO PARA REDE DE ÁGUA, DN 1200 MM, JUNTA ELÁSTICA, INSTALADO EM LOCAL COM NÍVEL ALTO DE INTERFERÊNCIAS (NÃO INCLUI FORNECIMENTO). AF_11/2017 | I100: M | J100: ATRIBUÍDO SÃO PAULO | K100: 51,33 | L100: COMPOSICAO | M100: 5632 | N100: ESCAVADEIRA HIDRÁULICA SOBRE ESTEIRAS, CAÇAMBA 0,80 M3, PESO OPERACIONAL 17 T, POTENCIA BRUTA 111 HP - CHI DIURNO. AF_06/2014 | O100: CHI | P100: ATRIBUÍDO SÃO PAULO | Q100: 0,2357000 | R100: 57,47 | S100: 13,54 | AE100: CAIXA REFERENCIAL
A101: ASSENTAMENTO DE TUBOS E PECAS | B101: ASTU | C101: FORNEC E/OU ASSENT DE TUBO DE FERRO FUNDIDO JUNTA | D101: 45 | G101: 97156 | H101: ASSENTAMENTO DE TUBO DE FERRO FUNDIDO PARA REDE DE ÁGUA, DN 1200 MM, JUNTA ELÁSTICA, INSTALADO EM LOCAL COM NÍVEL ALTO DE INTERFERÊNCIAS (NÃO INCLUI FORNECIMENTO). AF_11/2017 | I101: M | J101: ATRIBUÍDO SÃO PAULO | K101: 51,33 | L101: INSUMO | M101: 20078 | N101: PASTA LUBRIFICANTE PARA TUBOS E CONEXOES COM JUNTA ELASTICA (USO EM PVC, ACO, POLIETILENO E OUTROS) ( DE *400* G) | O101: UN | P101: COEFICIENTE DE REPRESENTATIVIDADE | Q101: 0,0646000 | R101: 25,13 | S101: 1,62 | AE101: CAIXA REFERENCIAL
A102: ASSENTAMENTO DE TUBOS E PECAS | B102: ASTU | C102: FORNEC E/OU ASSENT DE TUBO DE FERRO FUNDIDO JUNTA | D102: 45 | G102: 97156 | H102: ASSENTAMENTO DE TUBO DE FERRO FUNDIDO PARA REDE DE ÁGUA, DN 1200 MM, JUNTA ELÁSTICA, INSTALADO EM LOCAL COM NÍVEL ALTO DE INTERFERÊNCIAS (NÃO INCLUI FORNECIMENTO). AF_11/2017 | I102: M | J102: ATRIBUÍDO SÃO PAULO | K102: 51,33 | L102: COMPOSICAO | M102: 88246 | N102: ASSENTADOR DE TUBOS COM ENCARGOS COMPLEMENTARES | O102: H | P102: COEFICIENTE DE REPRESENTATIVIDADE | Q102: 0,8762000 | R102: 17,71 | S102: 15,51 | AE102: CAIXA REFERENCIAL
A103: ASSENTAMENTO DE TUBOS E PECAS | B103: ASTU | C103: FORNEC E/OU ASSENT DE TUBO DE FERRO FUNDIDO JUNTA | D103: 45 | G103: 97156 | H103: ASSENTAMENTO DE TUBO DE FERRO FUNDIDO PARA REDE DE ÁGUA, DN 1200 MM, JUNTA ELÁSTICA, INSTALADO EM LOCAL COM NÍVEL ALTO DE INTERFERÊNCIAS (NÃO INCLUI FORNECIMENTO). AF_11/2017 | I103: M | J103: ATRIBUÍDO SÃO PAULO | K103: 51,33 | L103: COMPOSICAO | M103: 88316 | N103: SERVENTE COM ENCARGOS COMPLEMENTARES | O103: H | P103: COLETADO | Q103: 0,8762000 | R103: 15,36 | S103: 13,45 | AE103: CAIXA REFERENCIAL
A104: ASSENTAMENTO DE TUBOS E PECAS | B104: ASTU | C104: FORNEC E/OU ASSENT DE TUBO DE FERRO FUNDIDO JUNTA | D104: 45 | G104: 97157 | H104: ASSENTAMENTO DE TUBO DE FERRO FUNDIDO PARA REDE DE ÁGUA, DN 80 MM, JUNTA ELÁSTICA, INSTALADO EM LOCAL COM NÍVEL BAIXO DE INTERFERÊNCIAS (NÃO INCLUI FORNECIMENTO). AF_11/2017 | I104: M | J104: ATRIBUÍDO SÃO PAULO | K104: 3,70 | T104: 1,93 | U104: 51,8207283 | V104: 0,99 | W104: 26,8907563 | X104: 0,78 | Y104: 21,2885154 | Z104: 0,00 | AA104: 0,0000000 | AB104: 0,00 | AC104: 0,0000000 | AD104: 0.20541 | AE104: CAIXA REFERENCIAL
A105: ASSENTAMENTO DE TUBOS E PECAS | B105: ASTU | C105: FORNEC E/OU ASSENT DE TUBO DE FERRO FUNDIDO JUNTA | D105: 45 | G105: 97157 | H105: ASSENTAMENTO DE TUBO DE FERRO FUNDIDO PARA REDE DE ÁGUA, DN 80 MM, JUNTA ELÁSTICA, INSTALADO EM LOCAL COM NÍVEL BAIXO DE INTERFERÊNCIAS (NÃO INCLUI FORNECIMENTO). AF_11/2017 | I105: M | J105: ATRIBUÍDO SÃO PAULO | K105: 3,70 | L105: COMPOSICAO | M105: 5678 | N105: RETROESCAVADEIRA SOBRE RODAS COM CARREGADEIRA, TRAÇÃO 4X4, POTÊNCIA LÍQ. 88 HP, CAÇAMBA CARREG. CAP. MÍN. 1 M3, CAÇAMBA RETRO CAP. 0,26 M3, PESO OPERACIONAL MÍN. 6.674 KG, PROFUNDIDADE ESCAVAÇÃO MÁX. 4,37 M - CHP DIURNO. AF_06/2014 | O105: CHP | P105: ATRIBUÍDO SÃO PAULO | Q105: 0,0099000 | R105: 102,95 | S105: 1,01 | AE105: CAIXA REFERENCIAL
A106: ASSENTAMENTO DE TUBOS E PECAS | B106: ASTU | C106: FORNEC E/OU ASSENT DE TUBO DE FERRO FUNDIDO JUNTA | D106: 45 | G106: 97157 | H106: ASSENTAMENTO DE TUBO DE FERRO FUNDIDO PARA REDE DE ÁGUA, DN 80 MM, JUNTA ELÁSTICA, INSTALADO EM LOCAL COM NÍVEL BAIXO DE INTERFERÊNCIAS (NÃO INCLUI FORNECIMENTO). AF_11/2017 | I106: M | J106: ATRIBUÍDO SÃO PAULO | K106: 3,70 | L106: COMPOSICAO | M106: 5679 | N106: RETROESCAVADEIRA SOBRE RODAS COM CARREGADEIRA, TRAÇÃO 4X4, POTÊNCIA LÍQ. 88 HP, CAÇAMBA CARREG. CAP. MÍN. 1 M3, CAÇAMBA RETRO CAP. 0,26 M3, PESO OPERACIONAL MÍN. 6.674 KG, PROFUNDIDADE ESCAVAÇÃO MÁX. 4,37 M - CHI DIURNO. AF_06/2014 | O106: CHI | P106: ATRIBUÍDO SÃO PAULO | Q106: 0,0190000 | R106: 40,55 | S106: 0,77 | AE106: CAIXA REFERENCIAL
A107: ASSENTAMENTO DE TUBOS E PECAS | B107: ASTU | C107: FORNEC E/OU ASSENT DE TUBO DE FERRO FUNDIDO JUNTA | D107: 45 | G107: 97157 | H107: ASSENTAMENTO DE TUBO DE FERRO FUNDIDO PARA REDE DE ÁGUA, DN 80 MM, JUNTA ELÁSTICA, INSTALADO EM LOCAL COM NÍVEL BAIXO DE INTERFERÊNCIAS (NÃO INCLUI FORNECIMENTO). AF_11/2017 | I107: M | J107: ATRIBUÍDO SÃO PAULO | K107: 3,70 | L107: INSUMO | M107: 20078 | N107: PASTA LUBRIFICANTE PARA TUBOS E CONEXOES COM JUNTA ELASTICA (USO EM PVC, ACO, POLIETILENO E OUTROS) ( DE *400* G) | O107: UN | P107: COEFICIENTE DE REPRESENTATIVIDADE | Q107: 0,0046000 | R107: 25,13 | S107: 0,11 | AE107: CAIXA REFERENCIAL
A108: ASSENTAMENTO DE TUBOS E PECAS | B108: ASTU | C108: FORNEC E/OU ASSENT DE TUBO DE FERRO FUNDIDO JUNTA | D108: 45 | G108: 97157 | H108: ASSENTAMENTO DE TUBO DE FERRO FUNDIDO PARA REDE DE ÁGUA, DN 80 MM, JUNTA ELÁSTICA, INSTALADO EM LOCAL COM NÍVEL BAIXO DE INTERFERÊNCIAS (NÃO INCLUI FORNECIMENTO). AF_11/2017 | I108: M | J108: ATRIBUÍDO SÃO PAULO | K108: 3,70 | L108: COMPOSICAO | M108: 88246 | N108: ASSENTADOR DE TUBOS COM ENCARGOS COMPLEMENTARES | O108: H | P108: COEFICIENTE DE REPRESENTATIVIDADE | Q108: 0,0548000 | R108: 17,71 | S108: 0,97 | AE108: CAIXA REFERENCIAL
A109: ASSENTAMENTO DE TUBOS E PECAS | B109: ASTU | C109: FORNEC E/OU ASSENT DE TUBO DE FERRO FUNDIDO JUNTA | D109: 45 | G109: 97157 | H109: ASSENTAMENTO DE TUBO DE FERRO FUNDIDO PARA REDE DE ÁGUA, DN 80 MM, JUNTA ELÁSTICA, INSTALADO EM LOCAL COM NÍVEL BAIXO DE INTERFERÊNCIAS (NÃO INCLUI FORNECIMENTO). AF_11/2017 | I109: M | J109: ATRIBUÍDO SÃO PAULO | K109: 3,70 | L109: COMPOSICAO | M109: 88316 | N109: SERVENTE COM ENCARGOS COMPLEMENTARES | O109: H | P109: COLETADO | Q109: 0,0548000 | R109: 15,36 | S109: 0,84 | AE109: CAIXA REFERENCIAL
A110: ASSENTAMENTO DE TUBOS E PECAS | B110: ASTU | C110: FORNEC E/OU ASSENT DE TUBO DE FERRO FUNDIDO JUNTA | D110: 45 | G110: 97158 | H110: ASSENTAMENTO DE TUBO DE FERRO FUNDIDO PARA REDE DE ÁGUA, DN 100 MM, JUNTA ELÁSTICA, INSTALADO EM LOCAL COM NÍVEL BAIXO DE INTERFERÊNCIAS (NÃO INCLUI FORNECIMENTO). AF_11/2017 | I110: M | J110: ATRIBUÍDO SÃO PAULO | K110: 4,13 | T110: 2,19 | U110: 52,7500000 | V110: 1,11 | W110: 27,0000000 | X110: 0,83 | Y110: 20,2500000 | Z110: 0,00 | AA110: 0,0000000 | AB110: 0,00 | AC110: 0,0000000 | AD110: 0.19613 | AE110: CAIXA REFERENCIAL
A111: ASSENTAMENTO DE TUBOS E PECAS | B111: ASTU | C111: FORNEC E/OU ASSENT DE TUBO DE FERRO FUNDIDO JUNTA | D111: 45 | G111: 97158 | H111: ASSENTAMENTO DE TUBO DE FERRO FUNDIDO PARA REDE DE ÁGUA, DN 100 MM, JUNTA ELÁSTICA, INSTALADO EM LOCAL COM NÍVEL BAIXO DE INTERFERÊNCIAS (NÃO INCLUI FORNECIMENTO). AF_11/2017 | I111: M | J111: ATRIBUÍDO SÃO PAULO | K111: 4,13 | L111: COMPOSICAO | M111: 5678 | N111: RETROESCAVADEIRA SOBRE RODAS COM CARREGADEIRA, TRAÇÃO 4X4, POTÊNCIA LÍQ. 88 HP, CAÇAMBA CARREG. CAP. MÍN. 1 M3, CAÇAMBA RETRO CAP. 0,26 M3, PESO OPERACIONAL MÍN. 6.674 KG, PROFUNDIDADE ESCAVAÇÃO MÁX. 4,37 M - CHP DIURNO. AF_06/2014 | O111: CHP | P111: ATRIBUÍDO SÃO PAULO | Q111: 0,0106000 | R111: 102,95 | S111: 1,09 | AE111: CAIXA REFERENCIAL
A112: ASSENTAMENTO DE TUBOS E PECAS | B112: ASTU | C112: FORNEC E/OU ASSENT DE TUBO DE FERRO FUNDIDO JUNTA | D112: 45 | G112: 97158 | H112: ASSENTAMENTO DE TUBO DE FERRO FUNDIDO PARA REDE DE ÁGUA, DN 100 MM, JUNTA ELÁSTICA, INSTALADO EM LOCAL COM NÍVEL BAIXO DE INTERFERÊNCIAS (NÃO INCLUI FORNECIMENTO). AF_11/2017 | I112: M | J112: ATRIBUÍDO SÃO PAULO | K112: 4,13 | L112: COMPOSICAO | M112: 5679 | N112: RETROESCAVADEIRA SOBRE RODAS COM CARREGADEIRA, TRAÇÃO 4X4, POTÊNCIA LÍQ. 88 HP, CAÇAMBA CARREG. CAP. MÍN. 1 M3, CAÇAMBA RETRO CAP. 0,26 M3, PESO OPERACIONAL MÍN. 6.674 KG, PROFUNDIDADE ESCAVAÇÃO MÁX. 4,37 M - CHI DIURNO. AF_06/2014 | O112: CHI | P112: ATRIBUÍDO SÃO PAULO | Q112: 0,0204000 | R112: 40,55 | S112: 0,82 | AE112: CAIXA REFERENCIAL
A113: ASSENTAMENTO DE TUBOS E PECAS | B113: ASTU | C113: FORNEC E/OU ASSENT DE TUBO DE FERRO FUNDIDO JUNTA | D113: 45 | G113: 97158 | H113: ASSENTAMENTO DE TUBO DE FERRO FUNDIDO PARA REDE DE ÁGUA, DN 100 MM, JUNTA ELÁSTICA, INSTALADO EM LOCAL COM NÍVEL BAIXO DE INTERFERÊNCIAS (NÃO INCLUI FORNECIMENTO). AF_11/2017 | I113: M | J113: ATRIBUÍDO SÃO PAULO | K113: 4,13 | L113: INSUMO | M113: 20078 | N113: PASTA LUBRIFICANTE PARA TUBOS E CONEXOES COM JUNTA ELASTICA (USO EM PVC, ACO, POLIETILENO E OUTROS) ( DE *400* G) | O113: UN | P113: COEFICIENTE DE REPRESENTATIVIDADE | Q113: 0,0054000 | R113: 25,13 | S113: 0,13 | AE113: CAIXA REFERENCIAL
A114: ASSENTAMENTO DE TUBOS E PECAS | B114: ASTU | C114: FORNEC E/OU ASSENT DE TUBO DE FERRO FUNDIDO JUNTA | D114: 45 | G114: 97158 | H114: ASSENTAMENTO DE TUBO DE FERRO FUNDIDO PARA REDE DE ÁGUA, DN 100 MM, JUNTA ELÁSTICA, INSTALADO EM LOCAL COM NÍVEL BAIXO DE INTERFERÊNCIAS (NÃO INCLUI FORNECIMENTO). AF_11/2017 | I114: M | J114: ATRIBUÍDO SÃO PAULO | K114: 4,13 | L114: COMPOSICAO | M114: 88246 | N114: ASSENTADOR DE TUBOS COM ENCARGOS COMPLEMENTARES | O114: H | P114: COEFICIENTE DE REPRESENTATIVIDADE | Q114: 0,0633000 | R114: 17,71 | S114: 1,12 | AE114: CAIXA REFERENCIAL
A115: ASSENTAMENTO DE TUBOS E PECAS | B115: ASTU | C115: FORNEC E/OU ASSENT DE TUBO DE FERRO FUNDIDO JUNTA | D115: 45 | G115: 97158 | H115: ASSENTAMENTO DE TUBO DE FERRO FUNDIDO PARA REDE DE ÁGUA, DN 100 MM, JUNTA ELÁSTICA, INSTALADO EM LOCAL COM NÍVEL BAIXO DE INTERFERÊNCIAS (NÃO INCLUI FORNECIMENTO). AF_11/2017 | I115: M | J115: ATRIBUÍDO SÃO PAULO | K115: 4,13 | L115: COMPOSICAO | M115: 88316 | N115: SERVENTE COM ENCARGOS COMPLEMENTARES | O115: H | P115: COLETADO | Q115: 0,0633000 | R115: 15,36 | S115: 0,97 | AE115: CAIXA REFERENCIAL
A116: ASSENTAMENTO DE TUBOS E PECAS | B116: ASTU | C116: FORNEC E/OU ASSENT DE TUBO DE FERRO FUNDIDO JUNTA | D116: 45 | G116: 97159 | H116: ASSENTAMENTO DE TUBO DE FERRO FUNDIDO PARA REDE DE ÁGUA, DN 150 MM, JUNTA ELÁSTICA, INSTALADO EM LOCAL COM NÍVEL BAIXO DE INTERFERÊNCIAS (NÃO INCLUI FORNECIMENTO). AF_11/2017 | I116: M | J116: ATRIBUÍDO SÃO PAULO | K116: 5,18 | T116: 2,82 | U116: 54,3824703 | V116: 1,38 | W116: 26,6932270 | X116: 0,98 | Y116: 18,9243027 | Z116: 0,00 | AA116: 0,0000000 | AB116: 0,00 | AC116: 0,0000000 | AD116: 0.1834 | AE116: CAIXA REFERENCIAL
A117: ASSENTAMENTO DE TUBOS E PECAS | B117: ASTU | C117: FORNEC E/OU ASSENT DE TUBO DE FERRO FUNDIDO JUNTA | D117: 45 | G117: 97159 | H117: ASSENTAMENTO DE TUBO DE FERRO FUNDIDO PARA REDE DE ÁGUA, DN 150 MM, JUNTA ELÁSTICA, INSTALADO EM LOCAL COM NÍVEL BAIXO DE INTERFERÊNCIAS (NÃO INCLUI FORNECIMENTO). AF_11/2017 | I117: M | J117: ATRIBUÍDO SÃO PAULO | K117: 5,18 | L117: COMPOSICAO | M117: 5678 | N117: RETROESCAVADEIRA SOBRE RODAS COM CARREGADEIRA, TRAÇÃO 4X4, POTÊNCIA LÍQ. 88 HP, CAÇAMBA CARREG. CAP. MÍN. 1 M3, CAÇAMBA RETRO CAP. 0,26 M3, PESO OPERACIONAL MÍN. 6.674 KG, PROFUNDIDADE ESCAVAÇÃO MÁX. 4,37 M - CHP DIURNO. AF_06/2014 | O117: CHP | P117: ATRIBUÍDO SÃO PAULO | Q117: 0,0124000 | R117: 102,95 | S117: 1,27 | AE117: CAIXA REFERENCIAL
A118: ASSENTAMENTO DE TUBOS E PECAS | B118: ASTU | C118: FORNEC E/OU ASSENT DE TUBO DE FERRO FUNDIDO JUNTA | D118: 45 | G118: 97159 | H118: ASSENTAMENTO DE TUBO DE FERRO FUNDIDO PARA REDE DE ÁGUA, DN 150 MM, JUNTA ELÁSTICA, INSTALADO EM LOCAL COM NÍVEL BAIXO DE INTERFERÊNCIAS (NÃO INCLUI FORNECIMENTO). AF_11/2017 | I118: M | J118: ATRIBUÍDO SÃO PAULO | K118: 5,18 | L118: COMPOSICAO | M118: 5679 | N118: RETROESCAVADEIRA SOBRE RODAS COM CARREGADEIRA, TRAÇÃO 4X4, POTÊNCIA LÍQ. 88 HP, CAÇAMBA CARREG. CAP. MÍN. 1 M3, CAÇAMBA RETRO CAP. 0,26 M3, PESO OPERACIONAL MÍN. 6.674 KG, PROFUNDIDADE ESCAVAÇÃO MÁX. 4,37 M - CHI DIURNO. AF_06/2014 | O118: CHI | P118: ATRIBUÍDO SÃO PAULO | Q118: 0,0237000 | R118: 40,55 | S118: 0,96 | AE118: CAIXA REFERENCIAL
A119: ASSENTAMENTO DE TUBOS E PECAS | B119: ASTU | C119: FORNEC E/OU ASSENT DE TUBO DE FERRO FUNDIDO JUNTA | D119: 45 | G119: 97159 | H119: ASSENTAMENTO DE TUBO DE FERRO FUNDIDO PARA REDE DE ÁGUA, DN 150 MM, JUNTA ELÁSTICA, INSTALADO EM LOCAL COM NÍVEL BAIXO DE INTERFERÊNCIAS (NÃO INCLUI FORNECIMENTO). AF_11/2017 | I119: M | J119: ATRIBUÍDO SÃO PAULO | K119: 5,18 | L119: INSUMO | M119: 20078 | N119: PASTA LUBRIFICANTE PARA TUBOS E CONEXOES COM JUNTA ELASTICA (USO EM PVC, ACO, POLIETILENO E OUTROS) ( DE *400* G) | O119: UN | P119: COEFICIENTE DE REPRESENTATIVIDADE | Q119: 0,0071000 | R119: 25,13 | S119: 0,17 | AE119: CAIXA REFERENCIAL
A120: ASSENTAMENTO DE TUBOS E PECAS | B120: ASTU | C120: FORNEC E/OU ASSENT DE TUBO DE FERRO FUNDIDO JUNTA | D120: 45 | G120: 97159 | H120: ASSENTAMENTO DE TUBO DE FERRO FUNDIDO PARA REDE DE ÁGUA, DN 150 MM, JUNTA ELÁSTICA, INSTALADO EM LOCAL COM NÍVEL BAIXO DE INTERFERÊNCIAS (NÃO INCLUI FORNECIMENTO). AF_11/2017 | I120: M | J120: ATRIBUÍDO SÃO PAULO | K120: 5,18 | L120: COMPOSICAO | M120: 88246 | N120: ASSENTADOR DE TUBOS COM ENCARGOS COMPLEMENTARES | O120: H | P120: COEFICIENTE DE REPRESENTATIVIDADE | Q120: 0,0845000 | R120: 17,71 | S120: 1,49 | AE120: CAIXA REFERENCIAL
A121: ASSENTAMENTO DE TUBOS E PECAS | B121: ASTU | C121: FORNEC E/OU ASSENT DE TUBO DE FERRO FUNDIDO JUNTA | D121: 45 | G121: 97159 | H121: ASSENTAMENTO DE TUBO DE FERRO FUNDIDO PARA REDE DE ÁGUA, DN 150 MM, JUNTA ELÁSTICA, INSTALADO EM LOCAL COM NÍVEL BAIXO DE INTERFERÊNCIAS (NÃO INCLUI FORNECIMENTO). AF_11/2017 | I121: M | J121: ATRIBUÍDO SÃO PAULO | K121: 5,18 | L121: COMPOSICAO | M121: 88316 | N121: SERVENTE COM ENCARGOS COMPLEMENTARES | O121: H | P121: COLETADO | Q121: 0,0845000 | R121: 15,36 | S121: 1,29 | AE121: CAIXA REFERENCIAL
A122: ASSENTAMENTO DE TUBOS E PECAS | B122: ASTU | C122: FORNEC E/OU ASSENT DE TUBO DE FERRO FUNDIDO JUNTA | D122: 45 | G122: 97160 | H122: ASSENTAMENTO DE TUBO DE FERRO FUNDIDO PARA REDE DE ÁGUA, DN 200 MM, JUNTA ELÁSTICA, INSTALADO EM LOCAL COM NÍVEL BAIXO DE INTERFERÊNCIAS (NÃO INCLUI FORNECIMENTO). AF_11/2017 | I122: M | J122: ATRIBUÍDO SÃO PAULO | K122: 6,24 | T122: 3,45 | U122: 55,1894565 | V122: 1,67 | W122: 26,8533772 | X122: 1,12 | Y122: 17,9571663 | Z122: 0,00 | AA122: 0,0000000 | AB122: 0,00 | AC122: 0,0000000 | AD122: 0.17468 | AE122: CAIXA REFERENCIAL
A123: ASSENTAMENTO DE TUBOS E PECAS | B123: ASTU | C123: FORNEC E/OU ASSENT DE TUBO DE FERRO FUNDIDO JUNTA | D123: 45 | G123: 97160 | H123: ASSENTAMENTO DE TUBO DE FERRO FUNDIDO PARA REDE DE ÁGUA, DN 200 MM, JUNTA ELÁSTICA, INSTALADO EM LOCAL COM NÍVEL BAIXO DE INTERFERÊNCIAS (NÃO INCLUI FORNECIMENTO). AF_11/2017 | I123: M | J123: ATRIBUÍDO SÃO PAULO | K123: 6,24 | L123: COMPOSICAO | M123: 5678 | N123: RETROESCAVADEIRA SOBRE RODAS COM CARREGADEIRA, TRAÇÃO 4X4, POTÊNCIA LÍQ. 88 HP, CAÇAMBA CARREG. CAP. MÍN. 1 M3, CAÇAMBA RETRO CAP. 0,26 M3, PESO OPERACIONAL MÍN. 6.674 KG, PROFUNDIDADE ESCAVAÇÃO MÁX. 4,37 M - CHP DIURNO. AF_06/2014 | O123: CHP | P123: ATRIBUÍDO SÃO PAULO | Q123: 0,0141000 | R123: 102,95 | S123: 1,45 | AE123: CAIXA REFERENCIAL
A124: ASSENTAMENTO DE TUBOS E PECAS | B124: ASTU | C124: FORNEC E/OU ASSENT DE TUBO DE FERRO FUNDIDO JUNTA | D124: 45 | G124: 97160 | H124: ASSENTAMENTO DE TUBO DE FERRO FUNDIDO PARA REDE DE ÁGUA, DN 200 MM, JUNTA ELÁSTICA, INSTALADO EM LOCAL COM NÍVEL BAIXO DE INTERFERÊNCIAS (NÃO INCLUI FORNECIMENTO). AF_11/2017 | I124: M | J124: ATRIBUÍDO SÃO PAULO | K124: 6,24 | L124: COMPOSICAO | M124: 5679 | N124: RETROESCAVADEIRA SOBRE RODAS COM CARREGADEIRA, TRAÇÃO 4X4, POTÊNCIA LÍQ. 88 HP, CAÇAMBA CARREG. CAP. MÍN. 1 M3, CAÇAMBA RETRO CAP. 0,26 M3, PESO OPERACIONAL MÍN. 6.674 KG, PROFUNDIDADE ESCAVAÇÃO MÁX. 4,37 M - CHI DIURNO. AF_06/2014 | O124: CHI | P124: ATRIBUÍDO SÃO PAULO | Q124: 0,0270000 | R124: 40,55 | S124: 1,09 | AE124: CAIXA REFERENCIAL
A125: ASSENTAMENTO DE TUBOS E PECAS | B125: ASTU | C125: FORNEC E/OU ASSENT DE TUBO DE FERRO FUNDIDO JUNTA | D125: 45 | G125: 97160 | H125: ASSENTAMENTO DE TUBO DE FERRO FUNDIDO PARA REDE DE ÁGUA, DN 200 MM, JUNTA ELÁSTICA, INSTALADO EM LOCAL COM NÍVEL BAIXO DE INTERFERÊNCIAS (NÃO INCLUI FORNECIMENTO). AF_11/2017 | I125: M | J125: ATRIBUÍDO SÃO PAULO | K125: 6,24 | L125: INSUMO | M125: 20078 | N125: PASTA LUBRIFICANTE PARA TUBOS E CONEXOES COM JUNTA ELASTICA (USO EM PVC, ACO, POLIETILENO E OUTROS) ( DE *400* G) | O125: UN | P125: COEFICIENTE DE REPRESENTATIVIDADE | Q125: 0,0087000 | R125: 25,13 | S125: 0,21 | AE125: CAIXA REFERENCIAL
A126: ASSENTAMENTO DE TUBOS E PECAS | B126: ASTU | C126: FORNEC E/OU ASSENT DE TUBO DE FERRO FUNDIDO JUNTA | D126: 45 | G126: 97160 | H126: ASSENTAMENTO DE TUBO DE FERRO FUNDIDO PARA REDE DE ÁGUA, DN 200 MM, JUNTA ELÁSTICA, INSTALADO EM LOCAL COM NÍVEL BAIXO DE INTERFERÊNCIAS (NÃO INCLUI FORNECIMENTO). AF_11/2017 | I126: M | J126: ATRIBUÍDO SÃO PAULO | K126: 6,24 | L126: COMPOSICAO | M126: 88246 | N126: ASSENTADOR DE TUBOS COM ENCARGOS COMPLEMENTARES | O126: H | P126: COEFICIENTE DE REPRESENTATIVIDADE | Q126: 0,1057000 | R126: 17,71 | S126: 1,87 | AE126: CAIXA REFERENCIAL
A127: ASSENTAMENTO DE TUBOS E PECAS | B127: ASTU | C127: FORNEC E/OU ASSENT DE TUBO DE FERRO FUNDIDO JUNTA | D127: 45 | G127: 97160 | H127: ASSENTAMENTO DE TUBO DE FERRO FUNDIDO PARA REDE DE ÁGUA, DN 200 MM, JUNTA ELÁSTICA, INSTALADO EM LOCAL COM NÍVEL BAIXO DE INTERFERÊNCIAS (NÃO INCLUI FORNECIMENTO). AF_11/2017 | I127: M | J127: ATRIBUÍDO SÃO PAULO | K127: 6,24 | L127: COMPOSICAO | M127: 88316 | N127: SERVENTE COM ENCARGOS COMPLEMENTARES | O127: H | P127: COLETADO | Q127: 0,1057000 | R127: 15,36 | S127: 1,62 | AE127: CAIXA REFERENCIAL
A128: ASSENTAMENTO DE TUBOS E PECAS | B128: ASTU | C128: FORNEC E/OU ASSENT DE TUBO DE FERRO FUNDIDO JUNTA | D128: 45 | G128: 97161 | H128: ASSENTAMENTO DE TUBO DE FERRO FUNDIDO PARA REDE DE ÁGUA, DN 250 MM, JUNTA ELÁSTICA, INSTALADO EM LOCAL COM NÍVEL BAIXO DE INTERFERÊNCIAS (NÃO INCLUI FORNECIMENTO). AF_11/2017 | I128: M | J128: ATRIBUÍDO SÃO PAULO | K128: 7,33 | T128: 4,08 | U128: 55,5090656 | V128: 2,00 | W128: 27,3361227 | X128: 1,25 | Y128: 17,1548117 | Z128: 0,00 | AA128: 0,0000000 | AB128: 0,00 | AC128: 0,0000000 | AD128: 0.1678 | AE128: CAIXA REFERENCIAL
A129: ASSENTAMENTO DE TUBOS E PECAS | B129: ASTU | C129: FORNEC E/OU ASSENT DE TUBO DE FERRO FUNDIDO JUNTA | D129: 45 | G129: 97161 | H129: ASSENTAMENTO DE TUBO DE FERRO FUNDIDO PARA REDE DE ÁGUA, DN 250 MM, JUNTA ELÁSTICA, INSTALADO EM LOCAL COM NÍVEL BAIXO DE INTERFERÊNCIAS (NÃO INCLUI FORNECIMENTO). AF_11/2017 | I129: M | J129: ATRIBUÍDO SÃO PAULO | K129: 7,33 | L129: COMPOSICAO | M129: 5678 | N129: RETROESCAVADEIRA SOBRE RODAS COM CARREGADEIRA, TRAÇÃO 4X4, POTÊNCIA LÍQ. 88 HP, CAÇAMBA CARREG. CAP. MÍN. 1 M3, CAÇAMBA RETRO CAP. 0,26 M3, PESO OPERACIONAL MÍN. 6.674 KG, PROFUNDIDADE ESCAVAÇÃO MÁX. 4,37 M - CHP DIURNO. AF_06/2014 | O129: CHP | P129: ATRIBUÍDO SÃO PAULO | Q129: 0,0159000 | R129: 102,95 | S129: 1,63 | AE129: CAIXA REFERENCIAL
A130: ASSENTAMENTO DE TUBOS E PECAS | B130: ASTU | C130: FORNEC E/OU ASSENT DE TUBO DE FERRO FUNDIDO JUNTA | D130: 45 | G130: 97161 | H130: ASSENTAMENTO DE TUBO DE FERRO FUNDIDO PARA REDE DE ÁGUA, DN 250 MM, JUNTA ELÁSTICA, INSTALADO EM LOCAL COM NÍVEL BAIXO DE INTERFERÊNCIAS (NÃO INCLUI FORNECIMENTO). AF_11/2017 | I130: M | J130: ATRIBUÍDO SÃO PAULO | K130: 7,33 | L130: COMPOSICAO | M130: 5679 | N130: RETROESCAVADEIRA SOBRE RODAS COM CARREGADEIRA, TRAÇÃO 4X4, POTÊNCIA LÍQ. 88 HP, CAÇAMBA CARREG. CAP. MÍN. 1 M3, CAÇAMBA RETRO CAP. 0,26 M3, PESO OPERACIONAL MÍN. 6.674 KG, PROFUNDIDADE ESCAVAÇÃO MÁX. 4,37 M - CHI DIURNO. AF_06/2014 | O130: CHI | P130: ATRIBUÍDO SÃO PAULO | Q130: 0,0304000 | R130: 40,55 | S130: 1,23 | AE130: CAIXA REFERENCIAL
A131: ASSENTAMENTO DE TUBOS E PECAS | B131: ASTU | C131: FORNEC E/OU ASSENT DE TUBO DE FERRO FUNDIDO JUNTA | D131: 45 | G131: 97161 | H131: ASSENTAMENTO DE TUBO DE FERRO FUNDIDO PARA REDE DE ÁGUA, DN 250 MM, JUNTA ELÁSTICA, INSTALADO EM LOCAL COM NÍVEL BAIXO DE INTERFERÊNCIAS (NÃO INCLUI FORNECIMENTO). AF_11/2017 | I131: M | J131: ATRIBUÍDO SÃO PAULO | K131: 7,33 | L131: INSUMO | M131: 20078 | N131: PASTA LUBRIFICANTE PARA TUBOS E CONEXOES COM JUNTA ELASTICA (USO EM PVC, ACO, POLIETILENO E OUTROS) ( DE *400* G) | O131: UN | P131: COEFICIENTE DE REPRESENTATIVIDADE | Q131: 0,0113000 | R131: 25,13 | S131: 0,28 | AE131: CAIXA REFERENCIAL
A132: ASSENTAMENTO DE TUBOS E PECAS | B132: ASTU | C132: FORNEC E/OU ASSENT DE TUBO DE FERRO FUNDIDO JUNTA | D132: 45 | G132: 97161 | H132: ASSENTAMENTO DE TUBO DE FERRO FUNDIDO PARA REDE DE ÁGUA, DN 250 MM, JUNTA ELÁSTICA, INSTALADO EM LOCAL COM NÍVEL BAIXO DE INTERFERÊNCIAS (NÃO INCLUI FORNECIMENTO). AF_11/2017 | I132: M | J132: ATRIBUÍDO SÃO PAULO | K132: 7,33 | L132: COMPOSICAO | M132: 88246 | N132: ASSENTADOR DE TUBOS COM ENCARGOS COMPLEMENTARES | O132: H | P132: COEFICIENTE DE REPRESENTATIVIDADE | Q132: 0,1270000 | R132: 17,71 | S132: 2,24 | AE132: CAIXA REFERENCIAL
A133: ASSENTAMENTO DE TUBOS E PECAS | B133: ASTU | C133: FORNEC E/OU ASSENT DE TUBO DE FERRO FUNDIDO JUNTA | D133: 45 | G133: 97161 | H133: ASSENTAMENTO DE TUBO DE FERRO FUNDIDO PARA REDE DE ÁGUA, DN 250 MM, JUNTA ELÁSTICA, INSTALADO EM LOCAL COM NÍVEL BAIXO DE INTERFERÊNCIAS (NÃO INCLUI FORNECIMENTO). AF_11/2017 | I133: M | J133: ATRIBUÍDO SÃO PAULO | K133: 7,33 | L133: COMPOSICAO | M133: 88316 | N133: SERVENTE COM ENCARGOS COMPLEMENTARES | O133: H | P133: COLETADO | Q133: 0,1270000 | R133: 15,36 | S133: 1,95 | AE133: CAIXA REFERENCIAL
A134: ASSENTAMENTO DE TUBOS E PECAS | B134: ASTU | C134: FORNEC E/OU ASSENT DE TUBO DE FERRO FUNDIDO JUNTA | D134: 45 | G134: 97162 | H134: ASSENTAMENTO DE TUBO DE FERRO FUNDIDO PARA REDE DE ÁGUA, DN 300 MM, JUNTA ELÁSTICA, INSTALADO EM LOCAL COM NÍVEL BAIXO DE INTERFERÊNCIAS (NÃO INCLUI FORNECIMENTO). AF_11/2017 | I134: M | J134: ATRIBUÍDO SÃO PAULO | K134: 8,40 | T134: 4,70 | U134: 55,8111381 | V134: 2,31 | W134: 27,6029055 | X134: 1,39 | Y134: 16,5859564 | Z134: 0,00 | AA134: 0,0000000 | AB134: 0,00 | AC134: 0,0000000 | AD134: 0.1631 | AE134: CAIXA REFERENCIAL
A135: ASSENTAMENTO DE TUBOS E PECAS | B135: ASTU | C135: FORNEC E/OU ASSENT DE TUBO DE FERRO FUNDIDO JUNTA | D135: 45 | G135: 97162 | H135: ASSENTAMENTO DE TUBO DE FERRO FUNDIDO PARA REDE DE ÁGUA, DN 300 MM, JUNTA ELÁSTICA, INSTALADO EM LOCAL COM NÍVEL BAIXO DE INTERFERÊNCIAS (NÃO INCLUI FORNECIMENTO). AF_11/2017 | I135: M | J135: ATRIBUÍDO SÃO PAULO | K135: 8,40 | L135: COMPOSICAO | M135: 5678 | N135: RETROESCAVADEIRA SOBRE RODAS COM CARREGADEIRA, TRAÇÃO 4X4, POTÊNCIA LÍQ. 88 HP, CAÇAMBA CARREG. CAP. MÍN. 1 M3, CAÇAMBA RETRO CAP. 0,26 M3, PESO OPERACIONAL MÍN. 6.674 KG, PROFUNDIDADE ESCAVAÇÃO MÁX. 4,37 M - CHP DIURNO. AF_06/2014 | O135: CHP | P135: ATRIBUÍDO SÃO PAULO | Q135: 0,0176000 | R135: 102,95 | S135: 1,81 | AE135: CAIXA REFERENCIAL
A136: ASSENTAMENTO DE TUBOS E PECAS | B136: ASTU | C136: FORNEC E/OU ASSENT DE TUBO DE FERRO FUNDIDO JUNTA | D136: 45 | G136: 97162 | H136: ASSENTAMENTO DE TUBO DE FERRO FUNDIDO PARA REDE DE ÁGUA, DN 300 MM, JUNTA ELÁSTICA, INSTALADO EM LOCAL COM NÍVEL BAIXO DE INTERFERÊNCIAS (NÃO INCLUI FORNECIMENTO). AF_11/2017 | I136: M | J136: ATRIBUÍDO SÃO PAULO | K136: 8,40 | L136: COMPOSICAO | M136: 5679 | N136: RETROESCAVADEIRA SOBRE RODAS COM CARREGADEIRA, TRAÇÃO 4X4, POTÊNCIA LÍQ. 88 HP, CAÇAMBA CARREG. CAP. MÍN. 1 M3, CAÇAMBA RETRO CAP. 0,26 M3, PESO OPERACIONAL MÍN. 6.674 KG, PROFUNDIDADE ESCAVAÇÃO MÁX. 4,37 M - CHI DIURNO. AF_06/2014 | O136: CHI | P136: ATRIBUÍDO SÃO PAULO | Q136: 0,0337000 | R136: 40,55 | S136: 1,36 | AE136: CAIXA REFERENCIAL
A137: ASSENTAMENTO DE TUBOS E PECAS | B137: ASTU | C137: FORNEC E/OU ASSENT DE TUBO DE FERRO FUNDIDO JUNTA | D137: 45 | G137: 97162 | H137: ASSENTAMENTO DE TUBO DE FERRO FUNDIDO PARA REDE DE ÁGUA, DN 300 MM, JUNTA ELÁSTICA, INSTALADO EM LOCAL COM NÍVEL BAIXO DE INTERFERÊNCIAS (NÃO INCLUI FORNECIMENTO). AF_11/2017 | I137: M | J137: ATRIBUÍDO SÃO PAULO | K137: 8,40 | L137: INSUMO | M137: 20078 | N137: PASTA LUBRIFICANTE PARA TUBOS E CONEXOES COM JUNTA ELASTICA (USO EM PVC, ACO, POLIETILENO E OUTROS) ( DE *400* G) | O137: UN | P137: COEFICIENTE DE REPRESENTATIVIDADE | Q137: 0,0138000 | R137: 25,13 | S137: 0,34 | AE137: CAIXA REFERENCIAL
A138: ASSENTAMENTO DE TUBOS E PECAS | B138: ASTU | C138: FORNEC E/OU ASSENT DE TUBO DE FERRO FUNDIDO JUNTA | D138: 45 | G138: 97162 | H138: ASSENTAMENTO DE TUBO DE FERRO FUNDIDO PARA REDE DE ÁGUA, DN 300 MM, JUNTA ELÁSTICA, INSTALADO EM LOCAL COM NÍVEL BAIXO DE INTERFERÊNCIAS (NÃO INCLUI FORNECIMENTO). AF_11/2017 | I138: M | J138: ATRIBUÍDO SÃO PAULO | K138: 8,40 | L138: COMPOSICAO | M138: 88246 | N138: ASSENTADOR DE TUBOS COM ENCARGOS COMPLEMENTARES | O138: H | P138: COEFICIENTE DE REPRESENTATIVIDADE | Q138: 0,1482000 | R138: 17,71 | S138: 2,62 | AE138: CAIXA REFERENCIAL
A139: ASSENTAMENTO DE TUBOS E PECAS | B139: ASTU | C139: FORNEC E/OU ASSENT DE TUBO DE FERRO FUNDIDO JUNTA | D139: 45 | G139: 97162 | H139: ASSENTAMENTO DE TUBO DE FERRO FUNDIDO PARA REDE DE ÁGUA, DN 300 MM, JUNTA ELÁSTICA, INSTALADO EM LOCAL COM NÍVEL BAIXO DE INTERFERÊNCIAS (NÃO INCLUI FORNECIMENTO). AF_11/2017 | I139: M | J139: ATRIBUÍDO SÃO PAULO | K139: 8,40 | L139: COMPOSICAO | M139: 88316 | N139: SERVENTE COM ENCARGOS COMPLEMENTARES | O139: H | P139: COLETADO | Q139: 0,1482000 | R139: 15,36 | S139: 2,27 | AE139: CAIXA REFERENCIAL
A140: ASSENTAMENTO DE TUBOS E PECAS | B140: ASTU | C140: FORNEC E/OU ASSENT DE TUBO DE FERRO FUNDIDO JUNTA | D140: 45 | G140: 97163 | H140: ASSENTAMENTO DE TUBO DE FERRO FUNDIDO PARA REDE DE ÁGUA, DN 350 MM, JUNTA ELÁSTICA, INSTALADO EM LOCAL COM NÍVEL BAIXO DE INTERFERÊNCIAS (NÃO INCLUI FORNECIMENTO). AF_11/2017 | I140: M | J140: ATRIBUÍDO SÃO PAULO | K140: 9,49 | T140: 5,30 | U140: 55,7097120 | V140: 2,68 | W140: 28,2817502 | X140: 1,51 | Y140: 16,0085378 | Z140: 0,00 | AA140: 0,0000000 | AB140: 0,00 | AC140: 0,0000000 | AD140: 0.15806 | AE140: CAIXA REFERENCIAL
A141: ASSENTAMENTO DE TUBOS E PECAS | B141: ASTU | C141: FORNEC E/OU ASSENT DE TUBO DE FERRO FUNDIDO JUNTA | D141: 45 | G141: 97163 | H141: ASSENTAMENTO DE TUBO DE FERRO FUNDIDO PARA REDE DE ÁGUA, DN 350 MM, JUNTA ELÁSTICA, INSTALADO EM LOCAL COM NÍVEL BAIXO DE INTERFERÊNCIAS (NÃO INCLUI FORNECIMENTO). AF_11/2017 | I141: M | J141: ATRIBUÍDO SÃO PAULO | K141: 9,49 | L141: COMPOSICAO | M141: 5678 | N141: RETROESCAVADEIRA SOBRE RODAS COM CARREGADEIRA, TRAÇÃO 4X4, POTÊNCIA LÍQ. 88 HP, CAÇAMBA CARREG. CAP. MÍN. 1 M3, CAÇAMBA RETRO CAP. 0,26 M3, PESO OPERACIONAL MÍN. 6.674 KG, PROFUNDIDADE ESCAVAÇÃO MÁX. 4,37 M - CHP DIURNO. AF_06/2014 | O141: CHP | P141: ATRIBUÍDO SÃO PAULO | Q141: 0,0194000 | R141: 102,95 | S141: 1,99 | AE141: CAIXA REFERENCIAL
A142: ASSENTAMENTO DE TUBOS E PECAS | B142: ASTU | C142: FORNEC E/OU ASSENT DE TUBO DE FERRO FUNDIDO JUNTA | D142: 45 | G142: 97163 | H142: ASSENTAMENTO DE TUBO DE FERRO FUNDIDO PARA REDE DE ÁGUA, DN 350 MM, JUNTA ELÁSTICA, INSTALADO EM LOCAL COM NÍVEL BAIXO DE INTERFERÊNCIAS (NÃO INCLUI FORNECIMENTO). AF_11/2017 | I142: M | J142: ATRIBUÍDO SÃO PAULO | K142: 9,49 | L142: COMPOSICAO | M142: 5679 | N142: RETROESCAVADEIRA SOBRE RODAS COM CARREGADEIRA, TRAÇÃO 4X4, POTÊNCIA LÍQ. 88 HP, CAÇAMBA CARREG. CAP. MÍN. 1 M3, CAÇAMBA RETRO CAP. 0,26 M3, PESO OPERACIONAL MÍN. 6.674 KG, PROFUNDIDADE ESCAVAÇÃO MÁX. 4,37 M - CHI DIURNO. AF_06/2014 | O142: CHI | P142: ATRIBUÍDO SÃO PAULO | Q142: 0,0371000 | R142: 40,55 | S142: 1,50 | AE142: CAIXA REFERENCIAL
A143: ASSENTAMENTO DE TUBOS E PECAS | B143: ASTU | C143: FORNEC E/OU ASSENT DE TUBO DE FERRO FUNDIDO JUNTA | D143: 45 | G143: 97163 | H143: ASSENTAMENTO DE TUBO DE FERRO FUNDIDO PARA REDE DE ÁGUA, DN 350 MM, JUNTA ELÁSTICA, INSTALADO EM LOCAL COM NÍVEL BAIXO DE INTERFERÊNCIAS (NÃO INCLUI FORNECIMENTO). AF_11/2017 | I143: M | J143: ATRIBUÍDO SÃO PAULO | K143: 9,49 | L143: INSUMO | M143: 20078 | N143: PASTA LUBRIFICANTE PARA TUBOS E CONEXOES COM JUNTA ELASTICA (USO EM PVC, ACO, POLIETILENO E OUTROS) ( DE *400* G) | O143: UN | P143: COEFICIENTE DE REPRESENTATIVIDADE | Q143: 0,0163000 | R143: 25,13 | S143: 0,40 | AE143: CAIXA REFERENCIAL
A144: ASSENTAMENTO DE TUBOS E PECAS | B144: ASTU | C144: FORNEC E/OU ASSENT DE TUBO DE FERRO FUNDIDO JUNTA | D144: 45 | G144: 97163 | H144: ASSENTAMENTO DE TUBO DE FERRO FUNDIDO PARA REDE DE ÁGUA, DN 350 MM, JUNTA ELÁSTICA, INSTALADO EM LOCAL COM NÍVEL BAIXO DE INTERFERÊNCIAS (NÃO INCLUI FORNECIMENTO). AF_11/2017 | I144: M | J144: ATRIBUÍDO SÃO PAULO | K144: 9,49 | L144: COMPOSICAO | M144: 88246 | N144: ASSENTADOR DE TUBOS COM ENCARGOS COMPLEMENTARES | O144: H | P144: COEFICIENTE DE REPRESENTATIVIDADE | Q144: 0,1694000 | R144: 17,71 | S144: 3,00 | AE144: CAIXA REFERENCIAL
A145: ASSENTAMENTO DE TUBOS E PECAS | B145: ASTU | C145: FORNEC E/OU ASSENT DE TUBO DE FERRO FUNDIDO JUNTA | D145: 45 | G145: 97163 | H145: ASSENTAMENTO DE TUBO DE FERRO FUNDIDO PARA REDE DE ÁGUA, DN 350 MM, JUNTA ELÁSTICA, INSTALADO EM LOCAL COM NÍVEL BAIXO DE INTERFERÊNCIAS (NÃO INCLUI FORNECIMENTO). AF_11/2017 | I145: M | J145: ATRIBUÍDO SÃO PAULO | K145: 9,49 | L145: COMPOSICAO | M145: 88316 | N145: SERVENTE COM ENCARGOS COMPLEMENTARES | O145: H | P145: COLETADO | Q145: 0,1694000 | R145: 15,36 | S145: 2,60 | AE145: CAIXA REFERENCIAL
A146: ASSENTAMENTO DE TUBOS E PECAS | B146: ASTU | C146: FORNEC E/OU ASSENT DE TUBO DE FERRO FUNDIDO JUNTA | D146: 45 | G146: 97164 | H146: ASSENTAMENTO DE TUBO DE FERRO FUNDIDO PARA REDE DE ÁGUA, DN 400 MM, JUNTA ELÁSTICA, INSTALADO EM LOCAL COM NÍVEL BAIXO DE INTERFERÊNCIAS (NÃO INCLUI FORNECIMENTO). AF_11/2017 | I146: M | J146: ATRIBUÍDO SÃO PAULO | K146: 10,56 | T146: 5,94 | U146: 56,1302683 | V146: 2,98 | W146: 28,2567049 | X146: 1,64 | Y146: 15,6130268 | Z146: 0,00 | AA146: 0,0000000 | AB146: 0,00 | AC146: 0,0000000 | AD146: 0.15436 | AE146: CAIXA REFERENCIAL
A147: ASSENTAMENTO DE TUBOS E PECAS | B147: ASTU | C147: FORNEC E/OU ASSENT DE TUBO DE FERRO FUNDIDO JUNTA | D147: 45 | G147: 97164 | H147: ASSENTAMENTO DE TUBO DE FERRO FUNDIDO PARA REDE DE ÁGUA, DN 400 MM, JUNTA ELÁSTICA, INSTALADO EM LOCAL COM NÍVEL BAIXO DE INTERFERÊNCIAS (NÃO INCLUI FORNECIMENTO). AF_11/2017 | I147: M | J147: ATRIBUÍDO SÃO PAULO | K147: 10,56 | L147: COMPOSICAO | M147: 5678 | N147: RETROESCAVADEIRA SOBRE RODAS COM CARREGADEIRA, TRAÇÃO 4X4, POTÊNCIA LÍQ. 88 HP, CAÇAMBA CARREG. CAP. MÍN. 1 M3, CAÇAMBA RETRO CAP. 0,26 M3, PESO OPERACIONAL MÍN. 6.674 KG, PROFUNDIDADE ESCAVAÇÃO MÁX. 4,37 M - CHP DIURNO. AF_06/2014 | O147: CHP | P147: ATRIBUÍDO SÃO PAULO | Q147: 0,0211000 | R147: 102,95 | S147: 2,17 | AE147: CAIXA REFERENCIAL
A148: ASSENTAMENTO DE TUBOS E PECAS | B148: ASTU | C148: FORNEC E/OU ASSENT DE TUBO DE FERRO FUNDIDO JUNTA | D148: 45 | G148: 97164 | H148: ASSENTAMENTO DE TUBO DE FERRO FUNDIDO PARA REDE DE ÁGUA, DN 400 MM, JUNTA ELÁSTICA, INSTALADO EM LOCAL COM NÍVEL BAIXO DE INTERFERÊNCIAS (NÃO INCLUI FORNECIMENTO). AF_11/2017 | I148: M | J148: ATRIBUÍDO SÃO PAULO | K148: 10,56 | L148: COMPOSICAO | M148: 5679 | N148: RETROESCAVADEIRA SOBRE RODAS COM CARREGADEIRA, TRAÇÃO 4X4, POTÊNCIA LÍQ. 88 HP, CAÇAMBA CARREG. CAP. MÍN. 1 M3, CAÇAMBA RETRO CAP. 0,26 M3, PESO OPERACIONAL MÍN. 6.674 KG, PROFUNDIDADE ESCAVAÇÃO MÁX. 4,37 M - CHI DIURNO. AF_06/2014 | O148: CHI | P148: ATRIBUÍDO SÃO PAULO | Q148: 0,0404000 | R148: 40,55 | S148: 1,63 | AE148: CAIXA REFERENCIAL
A149: ASSENTAMENTO DE TUBOS E PECAS | B149: ASTU | C149: FORNEC E/OU ASSENT DE TUBO DE FERRO FUNDIDO JUNTA | D149: 45 | G149: 97164 | H149: ASSENTAMENTO DE TUBO DE FERRO FUNDIDO PARA REDE DE ÁGUA, DN 400 MM, JUNTA ELÁSTICA, INSTALADO EM LOCAL COM NÍVEL BAIXO DE INTERFERÊNCIAS (NÃO INCLUI FORNECIMENTO). AF_11/2017 | I149: M | J149: ATRIBUÍDO SÃO PAULO | K149: 10,56 | L149: INSUMO | M149: 20078 | N149: PASTA LUBRIFICANTE PARA TUBOS E CONEXOES COM JUNTA ELASTICA (USO EM PVC, ACO, POLIETILENO E OUTROS) ( DE *400* G) | O149: UN | P149: COEFICIENTE DE REPRESENTATIVIDADE | Q149: 0,0188000 | R149: 25,13 | S149: 0,47 | AE149: CAIXA REFERENCIAL
A150: ASSENTAMENTO DE TUBOS E PECAS | B150: ASTU | C150: FORNEC E/OU ASSENT DE TUBO DE FERRO FUNDIDO JUNTA | D150: 45 | G150: 97164 | H150: ASSENTAMENTO DE TUBO DE FERRO FUNDIDO PARA REDE DE ÁGUA, DN 400 MM, JUNTA ELÁSTICA, INSTALADO EM LOCAL COM NÍVEL BAIXO DE INTERFERÊNCIAS (NÃO INCLUI FORNECIMENTO). AF_11/2017 | I150: M | J150: ATRIBUÍDO SÃO PAULO | K150: 10,56 | L150: COMPOSICAO | M150: 88246 | N150: ASSENTADOR DE TUBOS COM ENCARGOS COMPLEMENTARES | O150: H | P150: COEFICIENTE DE REPRESENTATIVIDADE | Q150: 0,1907000 | R150: 17,71 | S150: 3,37 | AE150: CAIXA REFERENCIAL
A151: ASSENTAMENTO DE TUBOS E PECAS | B151: ASTU | C151: FORNEC E/OU ASSENT DE TUBO DE FERRO FUNDIDO JUNTA | D151: 45 | G151: 97164 | H151: ASSENTAMENTO DE TUBO DE FERRO FUNDIDO PARA REDE DE ÁGUA, DN 400 MM, JUNTA ELÁSTICA, INSTALADO EM LOCAL COM NÍVEL BAIXO DE INTERFERÊNCIAS (NÃO INCLUI FORNECIMENTO). AF_11/2017 | I151: M | J151: ATRIBUÍDO SÃO PAULO | K151: 10,56 | L151: COMPOSICAO | M151: 88316 | N151: SERVENTE COM ENCARGOS COMPLEMENTARES | O151: H | P151: COLETADO | Q151: 0,1907000 | R151: 15,36 | S151: 2,92 | AE151: CAIXA REFERENCIAL
A152: ASSENTAMENTO DE TUBOS E PECAS | B152: ASTU | C152: FORNEC E/OU ASSENT DE TUBO DE FERRO FUNDIDO JUNTA | D152: 45 | G152: 97165 | H152: ASSENTAMENTO DE TUBO DE FERRO FUNDIDO PARA REDE DE ÁGUA, DN 450 MM, JUNTA ELÁSTICA, INSTALADO EM LOCAL COM NÍVEL BAIXO DE INTERFERÊNCIAS (NÃO INCLUI FORNECIMENTO). AF_11/2017 | I152: M | J152: ATRIBUÍDO SÃO PAULO | K152: 11,67 | T152: 6,56 | U152: 56,1631946 | V152: 3,31 | W152: 28,3854166 | X152: 1,80 | Y152: 15,4513888 | Z152: 0,00 | AA152: 0,0000000 | AB152: 0,00 | AC152: 0,0000000 | AD152: 0.15253 | AE152: CAIXA REFERENCIAL
A153: ASSENTAMENTO DE TUBOS E PECAS | B153: ASTU | C153: FORNEC E/OU ASSENT DE TUBO DE FERRO FUNDIDO JUNTA | D153: 45 | G153: 97165 | H153: ASSENTAMENTO DE TUBO DE FERRO FUNDIDO PARA REDE DE ÁGUA, DN 450 MM, JUNTA ELÁSTICA, INSTALADO EM LOCAL COM NÍVEL BAIXO DE INTERFERÊNCIAS (NÃO INCLUI FORNECIMENTO). AF_11/2017 | I153: M | J153: ATRIBUÍDO SÃO PAULO | K153: 11,67 | L153: COMPOSICAO | M153: 5678 | N153: RETROESCAVADEIRA SOBRE RODAS COM CARREGADEIRA, TRAÇÃO 4X4, POTÊNCIA LÍQ. 88 HP, CAÇAMBA CARREG. CAP. MÍN. 1 M3, CAÇAMBA RETRO CAP. 0,26 M3, PESO OPERACIONAL MÍN. 6.674 KG, PROFUNDIDADE ESCAVAÇÃO MÁX. 4,37 M - CHP DIURNO. AF_06/2014 | O153: CHP | P153: ATRIBUÍDO SÃO PAULO | Q153: 0,0229000 | R153: 102,95 | S153: 2,35 | AE153: CAIXA REFERENCIAL
A154: ASSENTAMENTO DE TUBOS E PECAS | B154: ASTU | C154: FORNEC E/OU ASSENT DE TUBO DE FERRO FUNDIDO JUNTA | D154: 45 | G154: 97165 | H154: ASSENTAMENTO DE TUBO DE FERRO FUNDIDO PARA REDE DE ÁGUA, DN 450 MM, JUNTA ELÁSTICA, INSTALADO EM LOCAL COM NÍVEL BAIXO DE INTERFERÊNCIAS (NÃO INCLUI FORNECIMENTO). AF_11/2017 | I154: M | J154: ATRIBUÍDO SÃO PAULO | K154: 11,67 | L154: COMPOSICAO | M154: 5679 | N154: RETROESCAVADEIRA SOBRE RODAS COM CARREGADEIRA, TRAÇÃO 4X4, POTÊNCIA LÍQ. 88 HP, CAÇAMBA CARREG. CAP. MÍN. 1 M3, CAÇAMBA RETRO CAP. 0,26 M3, PESO OPERACIONAL MÍN. 6.674 KG, PROFUNDIDADE ESCAVAÇÃO MÁX. 4,37 M - CHI DIURNO. AF_06/2014 | O154: CHI | P154: ATRIBUÍDO SÃO PAULO | Q154: 0,0438000 | R154: 40,55 | S154: 1,77 | AE154: CAIXA REFERENCIAL
A155: ASSENTAMENTO DE TUBOS E PECAS | B155: ASTU | C155: FORNEC E/OU ASSENT DE TUBO DE FERRO FUNDIDO JUNTA | D155: 45 | G155: 97165 | H155: ASSENTAMENTO DE TUBO DE FERRO FUNDIDO PARA REDE DE ÁGUA, DN 450 MM, JUNTA ELÁSTICA, INSTALADO EM LOCAL COM NÍVEL BAIXO DE INTERFERÊNCIAS (NÃO INCLUI FORNECIMENTO). AF_11/2017 | I155: M | J155: ATRIBUÍDO SÃO PAULO | K155: 11,67 | L155: INSUMO | M155: 20078 | N155: PASTA LUBRIFICANTE PARA TUBOS E CONEXOES COM JUNTA ELASTICA (USO EM PVC, ACO, POLIETILENO E OUTROS) ( DE *400* G) | O155: UN | P155: COEFICIENTE DE REPRESENTATIVIDADE | Q155: 0,0221000 | R155: 25,13 | S155: 0,55 | AE155: CAIXA REFERENCIAL
A156: ASSENTAMENTO DE TUBOS E PECAS | B156: ASTU | C156: FORNEC E/OU ASSENT DE TUBO DE FERRO FUNDIDO JUNTA | D156: 45 | G156: 97165 | H156: ASSENTAMENTO DE TUBO DE FERRO FUNDIDO PARA REDE DE ÁGUA, DN 450 MM, JUNTA ELÁSTICA, INSTALADO EM LOCAL COM NÍVEL BAIXO DE INTERFERÊNCIAS (NÃO INCLUI FORNECIMENTO). AF_11/2017 | I156: M | J156: ATRIBUÍDO SÃO PAULO | K156: 11,67 | L156: COMPOSICAO | M156: 88246 | N156: ASSENTADOR DE TUBOS COM ENCARGOS COMPLEMENTARES | O156: H | P156: COEFICIENTE DE REPRESENTATIVIDADE | Q156: 0,2119000 | R156: 17,71 | S156: 3,75 | AE156: CAIXA REFERENCIAL
A157: ASSENTAMENTO DE TUBOS E PECAS | B157: ASTU | C157: FORNEC E/OU ASSENT DE TUBO DE FERRO FUNDIDO JUNTA | D157: 45 | G157: 97165 | H157: ASSENTAMENTO DE TUBO DE FERRO FUNDIDO PARA REDE DE ÁGUA, DN 450 MM, JUNTA ELÁSTICA, INSTALADO EM LOCAL COM NÍVEL BAIXO DE INTERFERÊNCIAS (NÃO INCLUI FORNECIMENTO). AF_11/2017 | I157: M | J157: ATRIBUÍDO SÃO PAULO | K157: 11,67 | L157: COMPOSICAO | M157: 88316 | N157: SERVENTE COM ENCARGOS COMPLEMENTARES | O157: H | P157: COLETADO | Q157: 0,2119000 | R157: 15,36 | S157: 3,25 | AE157: CAIXA REFERENCIAL
A158: ASSENTAMENTO DE TUBOS E PECAS | B158: ASTU | C158: FORNEC E/OU ASSENT DE TUBO DE FERRO FUNDIDO JUNTA | D158: 45 | G158: 97166 | H158: ASSENTAMENTO DE TUBO DE FERRO FUNDIDO PARA REDE DE ÁGUA, DN 500 MM, JUNTA ELÁSTICA, INSTALADO EM LOCAL COM NÍVEL BAIXO DE INTERFERÊNCIAS (NÃO INCLUI FORNECIMENTO). AF_11/2017 | I158: M | J158: ATRIBUÍDO SÃO PAULO | K158: 14,63 | T158: 7,19 | U158: 49,0331493 | V158: 3,82 | W158: 26,1740331 | X158: 3,62 | Y158: 24,7928176 | Z158: 0,00 | AA158: 0,0000000 | AB158: 0,00 | AC158: 0,0000000 | AD158: 0.24539 | AE158: CAIXA REFERENCIAL
A159: ASSENTAMENTO DE TUBOS E PECAS | B159: ASTU | C159: FORNEC E/OU ASSENT DE TUBO DE FERRO FUNDIDO JUNTA | D159: 45 | G159: 97166 | H159: ASSENTAMENTO DE TUBO DE FERRO FUNDIDO PARA REDE DE ÁGUA, DN 500 MM, JUNTA ELÁSTICA, INSTALADO EM LOCAL COM NÍVEL BAIXO DE INTERFERÊNCIAS (NÃO INCLUI FORNECIMENTO). AF_11/2017 | I159: M | J159: ATRIBUÍDO SÃO PAULO | K159: 14,63 | L159: COMPOSICAO | M159: 5631 | N159: ESCAVADEIRA HIDRÁULICA SOBRE ESTEIRAS, CAÇAMBA 0,80 M3, PESO OPERACIONAL 17 T, POTENCIA BRUTA 111 HP - CHP DIURNO. AF_06/2014 | O159: CHP | P159: ATRIBUÍDO SÃO PAULO | Q159: 0,0246000 | R159: 146,93 | S159: 3,61 | AE159: CAIXA REFERENCIAL
A160: ASSENTAMENTO DE TUBOS E PECAS | B160: ASTU | C160: FORNEC E/OU ASSENT DE TUBO DE FERRO FUNDIDO JUNTA | D160: 45 | G160: 97166 | H160: ASSENTAMENTO DE TUBO DE FERRO FUNDIDO PARA REDE DE ÁGUA, DN 500 MM, JUNTA ELÁSTICA, INSTALADO EM LOCAL COM NÍVEL BAIXO DE INTERFERÊNCIAS (NÃO INCLUI FORNECIMENTO). AF_11/2017 | I160: M | J160: ATRIBUÍDO SÃO PAULO | K160: 14,63 | L160: COMPOSICAO | M160: 5632 | N160: ESCAVADEIRA HIDRÁULICA SOBRE ESTEIRAS, CAÇAMBA 0,80 M3, PESO OPERACIONAL 17 T, POTENCIA BRUTA 111 HP - CHI DIURNO. AF_06/2014 | O160: CHI | P160: ATRIBUÍDO SÃO PAULO | Q160: 0,0471000 | R160: 57,47 | S160: 2,70 | AE160: CAIXA REFERENCIAL
A161: ASSENTAMENTO DE TUBOS E PECAS | B161: ASTU | C161: FORNEC E/OU ASSENT DE TUBO DE FERRO FUNDIDO JUNTA | D161: 45 | G161: 97166 | H161: ASSENTAMENTO DE TUBO DE FERRO FUNDIDO PARA REDE DE ÁGUA, DN 500 MM, JUNTA ELÁSTICA, INSTALADO EM LOCAL COM NÍVEL BAIXO DE INTERFERÊNCIAS (NÃO INCLUI FORNECIMENTO). AF_11/2017 | I161: M | J161: ATRIBUÍDO SÃO PAULO | K161: 14,63 | L161: INSUMO | M161: 20078 | N161: PASTA LUBRIFICANTE PARA TUBOS E CONEXOES COM JUNTA ELASTICA (USO EM PVC, ACO, POLIETILENO E OUTROS) ( DE *400* G) | O161: UN | P161: COEFICIENTE DE REPRESENTATIVIDADE | Q161: 0,0248000 | R161: 25,13 | S161: 0,62 | AE161: CAIXA REFERENCIAL
A162: ASSENTAMENTO DE TUBOS E PECAS | B162: ASTU | C162: FORNEC E/OU ASSENT DE TUBO DE FERRO FUNDIDO JUNTA | D162: 45 | G162: 97166 | H162: ASSENTAMENTO DE TUBO DE FERRO FUNDIDO PARA REDE DE ÁGUA, DN 500 MM, JUNTA ELÁSTICA, INSTALADO EM LOCAL COM NÍVEL BAIXO DE INTERFERÊNCIAS (NÃO INCLUI FORNECIMENTO). AF_11/2017 | I162: M | J162: ATRIBUÍDO SÃO PAULO | K162: 14,63 | L162: COMPOSICAO | M162: 88246 | N162: ASSENTADOR DE TUBOS COM ENCARGOS COMPLEMENTARES | O162: H | P162: COEFICIENTE DE REPRESENTATIVIDADE | Q162: 0,2331000 | R162: 17,71 | S162: 4,12 | AE162: CAIXA REFERENCIAL
A163: ASSENTAMENTO DE TUBOS E PECAS | B163: ASTU | C163: FORNEC E/OU ASSENT DE TUBO DE FERRO FUNDIDO JUNTA | D163: 45 | G163: 97166 | H163: ASSENTAMENTO DE TUBO DE FERRO FUNDIDO PARA REDE DE ÁGUA, DN 500 MM, JUNTA ELÁSTICA, INSTALADO EM LOCAL COM NÍVEL BAIXO DE INTERFERÊNCIAS (NÃO INCLUI FORNECIMENTO). AF_11/2017 | I163: M | J163: ATRIBUÍDO SÃO PAULO | K163: 14,63 | L163: COMPOSICAO | M163: 88316 | N163: SERVENTE COM ENCARGOS COMPLEMENTARES | O163: H | P163: COLETADO | Q163: 0,2331000 | R163: 15,36 | S163: 3,58 | AE163: CAIXA REFERENCIAL
A164: ASSENTAMENTO DE TUBOS E PECAS | B164: ASTU | C164: FORNEC E/OU ASSENT DE TUBO DE FERRO FUNDIDO JUNTA | D164: 45 | G164: 97167 | H164: ASSENTAMENTO DE TUBO DE FERRO FUNDIDO PARA REDE DE ÁGUA, DN 600 MM, JUNTA ELÁSTICA, INSTALADO EM LOCAL COM NÍVEL BAIXO DE INTERFERÊNCIAS (NÃO INCLUI FORNECIMENTO). AF_11/2017 | I164: M | J164: ATRIBUÍDO SÃO PAULO | K164: 17,10 | T164: 8,43 | U164: 49,2616658 | V164: 4,52 | W164: 26,4619019 | X164: 4,15 | Y164: 24,2764323 | Z164: 0,00 | AA164: 0,0000000 | AB164: 0,00 | AC164: 0,0000000 | AD164: 0.24035 | AE164: CAIXA REFERENCIAL
A165: ASSENTAMENTO DE TUBOS E PECAS | B165: ASTU | C165: FORNEC E/OU ASSENT DE TUBO DE FERRO FUNDIDO JUNTA | D165: 45 | G165: 97167 | H165: ASSENTAMENTO DE TUBO DE FERRO FUNDIDO PARA REDE DE ÁGUA, DN 600 MM, JUNTA ELÁSTICA, INSTALADO EM LOCAL COM NÍVEL BAIXO DE INTERFERÊNCIAS (NÃO INCLUI FORNECIMENTO). AF_11/2017 | I165: M | J165: ATRIBUÍDO SÃO PAULO | K165: 17,10 | L165: COMPOSICAO | M165: 5631 | N165: ESCAVADEIRA HIDRÁULICA SOBRE ESTEIRAS, CAÇAMBA 0,80 M3, PESO OPERACIONAL 17 T, POTENCIA BRUTA 111 HP - CHP DIURNO. AF_06/2014 | O165: CHP | P165: ATRIBUÍDO SÃO PAULO | Q165: 0,0281000 | R165: 146,93 | S165: 4,12 | AE165: CAIXA REFERENCIAL
A166: ASSENTAMENTO DE TUBOS E PECAS | B166: ASTU | C166: FORNEC E/OU ASSENT DE TUBO DE FERRO FUNDIDO JUNTA | D166: 45 | G166: 97167 | H166: ASSENTAMENTO DE TUBO DE FERRO FUNDIDO PARA REDE DE ÁGUA, DN 600 MM, JUNTA ELÁSTICA, INSTALADO EM LOCAL COM NÍVEL BAIXO DE INTERFERÊNCIAS (NÃO INCLUI FORNECIMENTO). AF_11/2017 | I166: M | J166: ATRIBUÍDO SÃO PAULO | K166: 17,10 | L166: COMPOSICAO | M166: 5632 | N166: ESCAVADEIRA HIDRÁULICA SOBRE ESTEIRAS, CAÇAMBA 0,80 M3, PESO OPERACIONAL 17 T, POTENCIA BRUTA 111 HP - CHI DIURNO. AF_06/2014 | O166: CHI | P166: ATRIBUÍDO SÃO PAULO | Q166: 0,0538000 | R166: 57,47 | S166: 3,09 | AE166: CAIXA REFERENCIAL
A167: ASSENTAMENTO DE TUBOS E PECAS | B167: ASTU | C167: FORNEC E/OU ASSENT DE TUBO DE FERRO FUNDIDO JUNTA | D167: 45 | G167: 97167 | H167: ASSENTAMENTO DE TUBO DE FERRO FUNDIDO PARA REDE DE ÁGUA, DN 600 MM, JUNTA ELÁSTICA, INSTALADO EM LOCAL COM NÍVEL BAIXO DE INTERFERÊNCIAS (NÃO INCLUI FORNECIMENTO). AF_11/2017 | I167: M | J167: ATRIBUÍDO SÃO PAULO | K167: 17,10 | L167: INSUMO | M167: 20078 | N167: PASTA LUBRIFICANTE PARA TUBOS E CONEXOES COM JUNTA ELASTICA (USO EM PVC, ACO, POLIETILENO E OUTROS) ( DE *400* G) | O167: UN | P167: COEFICIENTE DE REPRESENTATIVIDADE | Q167: 0,0313000 | R167: 25,13 | S167: 0,78 | AE167: CAIXA REFERENCIAL
A168: ASSENTAMENTO DE TUBOS E PECAS | B168: ASTU | C168: FORNEC E/OU ASSENT DE TUBO DE FERRO FUNDIDO JUNTA | D168: 45 | G168: 97167 | H168: ASSENTAMENTO DE TUBO DE FERRO FUNDIDO PARA REDE DE ÁGUA, DN 600 MM, JUNTA ELÁSTICA, INSTALADO EM LOCAL COM NÍVEL BAIXO DE INTERFERÊNCIAS (NÃO INCLUI FORNECIMENTO). AF_11/2017 | I168: M | J168: ATRIBUÍDO SÃO PAULO | K168: 17,10 | L168: COMPOSICAO | M168: 88246 | N168: ASSENTADOR DE TUBOS COM ENCARGOS COMPLEMENTARES | O168: H | P168: COEFICIENTE DE REPRESENTATIVIDADE | Q168: 0,2756000 | R168: 17,71 | S168: 4,88 | AE168: CAIXA REFERENCIAL
A169: ASSENTAMENTO DE TUBOS E PECAS | B169: ASTU | C169: FORNEC E/OU ASSENT DE TUBO DE FERRO FUNDIDO JUNTA | D169: 45 | G169: 97167 | H169: ASSENTAMENTO DE TUBO DE FERRO FUNDIDO PARA REDE DE ÁGUA, DN 600 MM, JUNTA ELÁSTICA, INSTALADO EM LOCAL COM NÍVEL BAIXO DE INTERFERÊNCIAS (NÃO INCLUI FORNECIMENTO). AF_11/2017 | I169: M | J169: ATRIBUÍDO SÃO PAULO | K169: 17,10 | L169: COMPOSICAO | M169: 88316 | N169: SERVENTE COM ENCARGOS COMPLEMENTARES | O169: H | P169: COLETADO | Q169: 0,2756000 | R169: 15,36 | S169: 4,23 | AE169: CAIXA REFERENCIAL
A170: ASSENTAMENTO DE TUBOS E PECAS | B170: ASTU | C170: FORNEC E/OU ASSENT DE TUBO DE FERRO FUNDIDO JUNTA | D170: 45 | G170: 97168 | H170: ASSENTAMENTO DE TUBO DE FERRO FUNDIDO PARA REDE DE ÁGUA, DN 700 MM, JUNTA ELÁSTICA, INSTALADO EM LOCAL COM NÍVEL BAIXO DE INTERFERÊNCIAS (NÃO INCLUI FORNECIMENTO). AF_11/2017 | I170: M | J170: ATRIBUÍDO SÃO PAULO | K170: 19,33 | T170: 9,70 | U170: 50,1042754 | V170: 4,99 | W170: 25,8602711 | X170: 4,64 | Y170: 24,0354535 | Z170: 0,00 | AA170: 0,0000000 | AB170: 0,00 | AC170: 0,0000000 | AD170: 0.23849 | AE170: CAIXA REFERENCIAL
A171: ASSENTAMENTO DE TUBOS E PECAS | B171: ASTU | C171: FORNEC E/OU ASSENT DE TUBO DE FERRO FUNDIDO JUNTA | D171: 45 | G171: 97168 | H171: ASSENTAMENTO DE TUBO DE FERRO FUNDIDO PARA REDE DE ÁGUA, DN 700 MM, JUNTA ELÁSTICA, INSTALADO EM LOCAL COM NÍVEL BAIXO DE INTERFERÊNCIAS (NÃO INCLUI FORNECIMENTO). AF_11/2017 | I171: M | J171: ATRIBUÍDO SÃO PAULO | K171: 19,33 | L171: COMPOSICAO | M171: 5631 | N171: ESCAVADEIRA HIDRÁULICA SOBRE ESTEIRAS, CAÇAMBA 0,80 M3, PESO OPERACIONAL 17 T, POTENCIA BRUTA 111 HP - CHP DIURNO. AF_06/2014 | O171: CHP | P171: ATRIBUÍDO SÃO PAULO | Q171: 0,0316000 | R171: 146,93 | S171: 4,64 | AE171: CAIXA REFERENCIAL
A172: ASSENTAMENTO DE TUBOS E PECAS | B172: ASTU | C172: FORNEC E/OU ASSENT DE TUBO DE FERRO FUNDIDO JUNTA | D172: 45 | G172: 97168 | H172: ASSENTAMENTO DE TUBO DE FERRO FUNDIDO PARA REDE DE ÁGUA, DN 700 MM, JUNTA ELÁSTICA, INSTALADO EM LOCAL COM NÍVEL BAIXO DE INTERFERÊNCIAS (NÃO INCLUI FORNECIMENTO). AF_11/2017 | I172: M | J172: ATRIBUÍDO SÃO PAULO | K172: 19,33 | L172: COMPOSICAO | M172: 5632 | N172: ESCAVADEIRA HIDRÁULICA SOBRE ESTEIRAS, CAÇAMBA 0,80 M3, PESO OPERACIONAL 17 T, POTENCIA BRUTA 111 HP - CHI DIURNO. AF_06/2014 | O172: CHI | P172: ATRIBUÍDO SÃO PAULO | Q172: 0,0605000 | R172: 57,47 | S172: 3,47 | AE172: CAIXA REFERENCIAL
A173: ASSENTAMENTO DE TUBOS E PECAS | B173: ASTU | C173: FORNEC E/OU ASSENT DE TUBO DE FERRO FUNDIDO JUNTA | D173: 45 | G173: 97168 | H173: ASSENTAMENTO DE TUBO DE FERRO FUNDIDO PARA REDE DE ÁGUA, DN 700 MM, JUNTA ELÁSTICA, INSTALADO EM LOCAL COM NÍVEL BAIXO DE INTERFERÊNCIAS (NÃO INCLUI FORNECIMENTO). AF_11/2017 | I173: M | J173: ATRIBUÍDO SÃO PAULO | K173: 19,33 | L173: INSUMO | M173: 20078 | N173: PASTA LUBRIFICANTE PARA TUBOS E CONEXOES COM JUNTA ELASTICA (USO EM PVC, ACO, POLIETILENO E OUTROS) ( DE *400* G) | O173: UN | P173: COEFICIENTE DE REPRESENTATIVIDADE | Q173: 0,0284000 | R173: 25,13 | S173: 0,71 | AE173: CAIXA REFERENCIAL
A174: ASSENTAMENTO DE TUBOS E PECAS | B174: ASTU | C174: FORNEC E/OU ASSENT DE TUBO DE FERRO FUNDIDO JUNTA | D174: 45 | G174: 97168 | H174: ASSENTAMENTO DE TUBO DE FERRO FUNDIDO PARA REDE DE ÁGUA, DN 700 MM, JUNTA ELÁSTICA, INSTALADO EM LOCAL COM NÍVEL BAIXO DE INTERFERÊNCIAS (NÃO INCLUI FORNECIMENTO). AF_11/2017 | I174: M | J174: ATRIBUÍDO SÃO PAULO | K174: 19,33 | L174: COMPOSICAO | M174: 88246 | N174: ASSENTADOR DE TUBOS COM ENCARGOS COMPLEMENTARES | O174: H | P174: COEFICIENTE DE REPRESENTATIVIDADE | Q174: 0,3181000 | R174: 17,71 | S174: 5,63 | AE174: CAIXA REFERENCIAL
A175: ASSENTAMENTO DE TUBOS E PECAS | B175: ASTU | C175: FORNEC E/OU ASSENT DE TUBO DE FERRO FUNDIDO JUNTA | D175: 45 | G175: 97168 | H175: ASSENTAMENTO DE TUBO DE FERRO FUNDIDO PARA REDE DE ÁGUA, DN 700 MM, JUNTA ELÁSTICA, INSTALADO EM LOCAL COM NÍVEL BAIXO DE INTERFERÊNCIAS (NÃO INCLUI FORNECIMENTO). AF_11/2017 | I175: M | J175: ATRIBUÍDO SÃO PAULO | K175: 19,33 | L175: COMPOSICAO | M175: 88316 | N175: SERVENTE COM ENCARGOS COMPLEMENTARES | O175: H | P175: COLETADO | Q175: 0,3181000 | R175: 15,36 | S175: 4,88 | AE175: CAIXA REFERENCIAL
A176: ASSENTAMENTO DE TUBOS E PECAS | B176: ASTU | C176: FORNEC E/OU ASSENT DE TUBO DE FERRO FUNDIDO JUNTA | D176: 45 | G176: 97169 | H176: ASSENTAMENTO DE TUBO DE FERRO FUNDIDO PARA REDE DE ÁGUA, DN 800 MM, JUNTA ELÁSTICA, INSTALADO EM LOCAL COM NÍVEL BAIXO DE INTERFERÊNCIAS (NÃO INCLUI FORNECIMENTO). AF_11/2017 | I176: M | J176: ATRIBUÍDO SÃO PAULO | K176: 21,70 | T176: 10,93 | U176: 50,3016242 | V176: 5,60 | W176: 25,8468677 | X176: 5,17 | Y176: 23,8515081 | Z176: 0,00 | AA176: 0,0000000 | AB176: 0,00 | AC176: 0,0000000 | AD176: 0.23687 | AE176: CAIXA REFERENCIAL
A177: ASSENTAMENTO DE TUBOS E PECAS | B177: ASTU | C177: FORNEC E/OU ASSENT DE TUBO DE FERRO FUNDIDO JUNTA | D177: 45 | G177: 97169 | H177: ASSENTAMENTO DE TUBO DE FERRO FUNDIDO PARA REDE DE ÁGUA, DN 800 MM, JUNTA ELÁSTICA, INSTALADO EM LOCAL COM NÍVEL BAIXO DE INTERFERÊNCIAS (NÃO INCLUI FORNECIMENTO). AF_11/2017 | I177: M | J177: ATRIBUÍDO SÃO PAULO | K177: 21,70 | L177: COMPOSICAO | M177: 5631 | N177: ESCAVADEIRA HIDRÁULICA SOBRE ESTEIRAS, CAÇAMBA 0,80 M3, PESO OPERACIONAL 17 T, POTENCIA BRUTA 111 HP - CHP DIURNO. AF_06/2014 | O177: CHP | P177: ATRIBUÍDO SÃO PAULO | Q177: 0,0351000 | R177: 146,93 | S177: 5,15 | AE177: CAIXA REFERENCIAL
A178: ASSENTAMENTO DE TUBOS E PECAS | B178: ASTU | C178: FORNEC E/OU ASSENT DE TUBO DE FERRO FUNDIDO JUNTA | D178: 45 | G178: 97169 | H178: ASSENTAMENTO DE TUBO DE FERRO FUNDIDO PARA REDE DE ÁGUA, DN 800 MM, JUNTA ELÁSTICA, INSTALADO EM LOCAL COM NÍVEL BAIXO DE INTERFERÊNCIAS (NÃO INCLUI FORNECIMENTO). AF_11/2017 | I178: M | J178: ATRIBUÍDO SÃO PAULO | K178: 21,70 | L178: COMPOSICAO | M178: 5632 | N178: ESCAVADEIRA HIDRÁULICA SOBRE ESTEIRAS, CAÇAMBA 0,80 M3, PESO OPERACIONAL 17 T, POTENCIA BRUTA 111 HP - CHI DIURNO. AF_06/2014 | O178: CHI | P178: ATRIBUÍDO SÃO PAULO | Q178: 0,0672000 | R178: 57,47 | S178: 3,86 | AE178: CAIXA REFERENCIAL
A179: ASSENTAMENTO DE TUBOS E PECAS | B179: ASTU | C179: FORNEC E/OU ASSENT DE TUBO DE FERRO FUNDIDO JUNTA | D179: 45 | G179: 97169 | H179: ASSENTAMENTO DE TUBO DE FERRO FUNDIDO PARA REDE DE ÁGUA, DN 800 MM, JUNTA ELÁSTICA, INSTALADO EM LOCAL COM NÍVEL BAIXO DE INTERFERÊNCIAS (NÃO INCLUI FORNECIMENTO). AF_11/2017 | I179: M | J179: ATRIBUÍDO SÃO PAULO | K179: 21,70 | L179: INSUMO | M179: 20078 | N179: PASTA LUBRIFICANTE PARA TUBOS E CONEXOES COM JUNTA ELASTICA (USO EM PVC, ACO, POLIETILENO E OUTROS) ( DE *400* G) | O179: UN | P179: COEFICIENTE DE REPRESENTATIVIDADE | Q179: 0,0314000 | R179: 25,13 | S179: 0,78 | AE179: CAIXA REFERENCIAL
A180: ASSENTAMENTO DE TUBOS E PECAS | B180: ASTU | C180: FORNEC E/OU ASSENT DE TUBO DE FERRO FUNDIDO JUNTA | D180: 45 | G180: 97169 | H180: ASSENTAMENTO DE TUBO DE FERRO FUNDIDO PARA REDE DE ÁGUA, DN 800 MM, JUNTA ELÁSTICA, INSTALADO EM LOCAL COM NÍVEL BAIXO DE INTERFERÊNCIAS (NÃO INCLUI FORNECIMENTO). AF_11/2017 | I180: M | J180: ATRIBUÍDO SÃO PAULO | K180: 21,70 | L180: COMPOSICAO | M180: 88246 | N180: ASSENTADOR DE TUBOS COM ENCARGOS COMPLEMENTARES | O180: H | P180: COEFICIENTE DE REPRESENTATIVIDADE | Q180: 0,3605000 | R180: 17,71 | S180: 6,38 | AE180: CAIXA REFERENCIAL
A181: ASSENTAMENTO DE TUBOS E PECAS | B181: ASTU | C181: FORNEC E/OU ASSENT DE TUBO DE FERRO FUNDIDO JUNTA | D181: 45 | G181: 97169 | H181: ASSENTAMENTO DE TUBO DE FERRO FUNDIDO PARA REDE DE ÁGUA, DN 800 MM, JUNTA ELÁSTICA, INSTALADO EM LOCAL COM NÍVEL BAIXO DE INTERFERÊNCIAS (NÃO INCLUI FORNECIMENTO). AF_11/2017 | I181: M | J181: ATRIBUÍDO SÃO PAULO | K181: 21,70 | L181: COMPOSICAO | M181: 88316 | N181: SERVENTE COM ENCARGOS COMPLEMENTARES | O181: H | P181: COLETADO | Q181: 0,3605000 | R181: 15,36 | S181: 5,53 | AE181: CAIXA REFERENCIAL
A182: ASSENTAMENTO DE TUBOS E PECAS | B182: ASTU | C182: FORNEC E/OU ASSENT DE TUBO DE FERRO FUNDIDO JUNTA | D182: 45 | G182: 97170 | H182: ASSENTAMENTO DE TUBO DE FERRO FUNDIDO PARA REDE DE ÁGUA, DN 900 MM, JUNTA ELÁSTICA, INSTALADO EM LOCAL COM NÍVEL BAIXO DE INTERFERÊNCIAS (NÃO INCLUI FORNECIMENTO). AF_11/2017 | I182: M | J182: ATRIBUÍDO SÃO PAULO | K182: 24,12 | T182: 12,19 | U182: 50,5008348 | V182: 6,26 | W182: 25,9599332 | X182: 5,67 | Y182: 23,5392320 | Z182: 0,00 | AA182: 0,0000000 | AB182: 0,00 | AC182: 0,0000000 | AD182: 0.23383 | AE182: CAIXA REFERENCIAL
A183: ASSENTAMENTO DE TUBOS E PECAS | B183: ASTU | C183: FORNEC E/OU ASSENT DE TUBO DE FERRO FUNDIDO JUNTA | D183: 45 | G183: 97170 | H183: ASSENTAMENTO DE TUBO DE FERRO FUNDIDO PARA REDE DE ÁGUA, DN 900 MM, JUNTA ELÁSTICA, INSTALADO EM LOCAL COM NÍVEL BAIXO DE INTERFERÊNCIAS (NÃO INCLUI FORNECIMENTO). AF_11/2017 | I183: M | J183: ATRIBUÍDO SÃO PAULO | K183: 24,12 | L183: COMPOSICAO | M183: 5631 | N183: ESCAVADEIRA HIDRÁULICA SOBRE ESTEIRAS, CAÇAMBA 0,80 M3, PESO OPERACIONAL 17 T, POTENCIA BRUTA 111 HP - CHP DIURNO. AF_06/2014 | O183: CHP | P183: ATRIBUÍDO SÃO PAULO | Q183: 0,0386000 | R183: 146,93 | S183: 5,67 | AE183: CAIXA REFERENCIAL
A184: ASSENTAMENTO DE TUBOS E PECAS | B184: ASTU | C184: FORNEC E/OU ASSENT DE TUBO DE FERRO FUNDIDO JUNTA | D184: 45 | G184: 97170 | H184: ASSENTAMENTO DE TUBO DE FERRO FUNDIDO PARA REDE DE ÁGUA, DN 900 MM, JUNTA ELÁSTICA, INSTALADO EM LOCAL COM NÍVEL BAIXO DE INTERFERÊNCIAS (NÃO INCLUI FORNECIMENTO). AF_11/2017 | I184: M | J184: ATRIBUÍDO SÃO PAULO | K184: 24,12 | L184: COMPOSICAO | M184: 5632 | N184: ESCAVADEIRA HIDRÁULICA SOBRE ESTEIRAS, CAÇAMBA 0,80 M3, PESO OPERACIONAL 17 T, POTENCIA BRUTA 111 HP - CHI DIURNO. AF_06/2014 | O184: CHI | P184: ATRIBUÍDO SÃO PAULO | Q184: 0,0739000 | R184: 57,47 | S184: 4,24 | AE184: CAIXA REFERENCIAL
A185: ASSENTAMENTO DE TUBOS E PECAS | B185: ASTU | C185: FORNEC E/OU ASSENT DE TUBO DE FERRO FUNDIDO JUNTA | D185: 45 | G185: 97170 | H185: ASSENTAMENTO DE TUBO DE FERRO FUNDIDO PARA REDE DE ÁGUA, DN 900 MM, JUNTA ELÁSTICA, INSTALADO EM LOCAL COM NÍVEL BAIXO DE INTERFERÊNCIAS (NÃO INCLUI FORNECIMENTO). AF_11/2017 | I185: M | J185: ATRIBUÍDO SÃO PAULO | K185: 24,12 | L185: INSUMO | M185: 20078 | N185: PASTA LUBRIFICANTE PARA TUBOS E CONEXOES COM JUNTA ELASTICA (USO EM PVC, ACO, POLIETILENO E OUTROS) ( DE *400* G) | O185: UN | P185: COEFICIENTE DE REPRESENTATIVIDADE | Q185: 0,0355000 | R185: 25,13 | S185: 0,89 | AE185: CAIXA REFERENCIAL
A186: ASSENTAMENTO DE TUBOS E PECAS | B186: ASTU | C186: FORNEC E/OU ASSENT DE TUBO DE FERRO FUNDIDO JUNTA | D186: 45 | G186: 97170 | H186: ASSENTAMENTO DE TUBO DE FERRO FUNDIDO PARA REDE DE ÁGUA, DN 900 MM, JUNTA ELÁSTICA, INSTALADO EM LOCAL COM NÍVEL BAIXO DE INTERFERÊNCIAS (NÃO INCLUI FORNECIMENTO). AF_11/2017 | I186: M | J186: ATRIBUÍDO SÃO PAULO | K186: 24,12 | L186: COMPOSICAO | M186: 88246 | N186: ASSENTADOR DE TUBOS COM ENCARGOS COMPLEMENTARES | O186: H | P186: COEFICIENTE DE REPRESENTATIVIDADE | Q186: 0,4030000 | R186: 17,71 | S186: 7,13 | AE186: CAIXA REFERENCIAL
A187: ASSENTAMENTO DE TUBOS E PECAS | B187: ASTU | C187: FORNEC E/OU ASSENT DE TUBO DE FERRO FUNDIDO JUNTA | D187: 45 | G187: 97170 | H187: ASSENTAMENTO DE TUBO DE FERRO FUNDIDO PARA REDE DE ÁGUA, DN 900 MM, JUNTA ELÁSTICA, INSTALADO EM LOCAL COM NÍVEL BAIXO DE INTERFERÊNCIAS (NÃO INCLUI FORNECIMENTO). AF_11/2017 | I187: M | J187: ATRIBUÍDO SÃO PAULO | K187: 24,12 | L187: COMPOSICAO | M187: 88316 | N187: SERVENTE COM ENCARGOS COMPLEMENTARES | O187: H | P187: COLETADO | Q187: 0,4030000 | R187: 15,36 | S187: 6,19 | AE187: CAIXA REFERENCIAL
A188: ASSENTAMENTO DE TUBOS E PECAS | B188: ASTU | C188: FORNEC E/OU ASSENT DE TUBO DE FERRO FUNDIDO JUNTA | D188: 45 | G188: 97171 | H188: ASSENTAMENTO DE TUBO DE FERRO FUNDIDO PARA REDE DE ÁGUA, DN 1000 MM, JUNTA ELÁSTICA, INSTALADO EM LOCAL COM NÍVEL BAIXO DE INTERFERÊNCIAS (NÃO INCLUI FORNECIMENTO). AF_11/2017 | I188: M | J188: ATRIBUÍDO SÃO PAULO | K188: 26,54 | T188: 13,46 | U188: 50,6631301 | V188: 6,89 | W188: 25,9946949 | X188: 6,19 | Y188: 23,3421750 | Z188: 0,00 | AA188: 0,0000000 | AB188: 0,00 | AC188: 0,0000000 | AD188: 0.2321 | AE188: CAIXA REFERENCIAL
A189: ASSENTAMENTO DE TUBOS E PECAS | B189: ASTU | C189: FORNEC E/OU ASSENT DE TUBO DE FERRO FUNDIDO JUNTA | D189: 45 | G189: 97171 | H189: ASSENTAMENTO DE TUBO DE FERRO FUNDIDO PARA REDE DE ÁGUA, DN 1000 MM, JUNTA ELÁSTICA, INSTALADO EM LOCAL COM NÍVEL BAIXO DE INTERFERÊNCIAS (NÃO INCLUI FORNECIMENTO). AF_11/2017 | I189: M | J189: ATRIBUÍDO SÃO PAULO | K189: 26,54 | L189: COMPOSICAO | M189: 5631 | N189: ESCAVADEIRA HIDRÁULICA SOBRE ESTEIRAS, CAÇAMBA 0,80 M3, PESO OPERACIONAL 17 T, POTENCIA BRUTA 111 HP - CHP DIURNO. AF_06/2014 | O189: CHP | P189: ATRIBUÍDO SÃO PAULO | Q189: 0,0421000 | R189: 146,93 | S189: 6,18 | AE189: CAIXA REFERENCIAL
A190: ASSENTAMENTO DE TUBOS E PECAS | B190: ASTU | C190: FORNEC E/OU ASSENT DE TUBO DE FERRO FUNDIDO JUNTA | D190: 45 | G190: 97171 | H190: ASSENTAMENTO DE TUBO DE FERRO FUNDIDO PARA REDE DE ÁGUA, DN 1000 MM, JUNTA ELÁSTICA, INSTALADO EM LOCAL COM NÍVEL BAIXO DE INTERFERÊNCIAS (NÃO INCLUI FORNECIMENTO). AF_11/2017 | I190: M | J190: ATRIBUÍDO SÃO PAULO | K190: 26,54 | L190: COMPOSICAO | M190: 5632 | N190: ESCAVADEIRA HIDRÁULICA SOBRE ESTEIRAS, CAÇAMBA 0,80 M3, PESO OPERACIONAL 17 T, POTENCIA BRUTA 111 HP - CHI DIURNO. AF_06/2014 | O190: CHI | P190: ATRIBUÍDO SÃO PAULO | Q190: 0,0806000 | R190: 57,47 | S190: 4,63 | AE190: CAIXA REFERENCIAL
A191: ASSENTAMENTO DE TUBOS E PECAS | B191: ASTU | C191: FORNEC E/OU ASSENT DE TUBO DE FERRO FUNDIDO JUNTA | D191: 45 | G191: 97171 | H191: ASSENTAMENTO DE TUBO DE FERRO FUNDIDO PARA REDE DE ÁGUA, DN 1000 MM, JUNTA ELÁSTICA, INSTALADO EM LOCAL COM NÍVEL BAIXO DE INTERFERÊNCIAS (NÃO INCLUI FORNECIMENTO). AF_11/2017 | I191: M | J191: ATRIBUÍDO SÃO PAULO | K191: 26,54 | L191: INSUMO | M191: 20078 | N191: PASTA LUBRIFICANTE PARA TUBOS E CONEXOES COM JUNTA ELASTICA (USO EM PVC, ACO, POLIETILENO E OUTROS) ( DE *400* G) | O191: UN | P191: COEFICIENTE DE REPRESENTATIVIDADE | Q191: 0,0403000 | R191: 25,13 | S191: 1,01 | AE191: CAIXA REFERENCIAL
A192: ASSENTAMENTO DE TUBOS E PECAS | B192: ASTU | C192: FORNEC E/OU ASSENT DE TUBO DE FERRO FUNDIDO JUNTA | D192: 45 | G192: 97171 | H192: ASSENTAMENTO DE TUBO DE FERRO FUNDIDO PARA REDE DE ÁGUA, DN 1000 MM, JUNTA ELÁSTICA, INSTALADO EM LOCAL COM NÍVEL BAIXO DE INTERFERÊNCIAS (NÃO INCLUI FORNECIMENTO). AF_11/2017 | I192: M | J192: ATRIBUÍDO SÃO PAULO | K192: 26,54 | L192: COMPOSICAO | M192: 88246 | N192: ASSENTADOR DE TUBOS COM ENCARGOS COMPLEMENTARES | O192: H | P192: COEFICIENTE DE REPRESENTATIVIDADE | Q192: 0,4455000 | R192: 17,71 | S192: 7,88 | AE192: CAIXA REFERENCIAL
A193: ASSENTAMENTO DE TUBOS E PECAS | B193: ASTU | C193: FORNEC E/OU ASSENT DE TUBO DE FERRO FUNDIDO JUNTA | D193: 45 | G193: 97171 | H193: ASSENTAMENTO DE TUBO DE FERRO FUNDIDO PARA REDE DE ÁGUA, DN 1000 MM, JUNTA ELÁSTICA, INSTALADO EM LOCAL COM NÍVEL BAIXO DE INTERFERÊNCIAS (NÃO INCLUI FORNECIMENTO). AF_11/2017 | I193: M | J193: ATRIBUÍDO SÃO PAULO | K193: 26,54 | L193: COMPOSICAO | M193: 88316 | N193: SERVENTE COM ENCARGOS COMPLEMENTARES | O193: H | P193: COLETADO | Q193: 0,4455000 | R193: 15,36 | S193: 6,84 | AE193: CAIXA REFERENCIAL
A194: ASSENTAMENTO DE TUBOS E PECAS | B194: ASTU | C194: FORNEC E/OU ASSENT DE TUBO DE FERRO FUNDIDO JUNTA | D194: 45 | G194: 97172 | H194: ASSENTAMENTO DE TUBO DE FERRO FUNDIDO PARA REDE DE ÁGUA, DN 1200 MM, JUNTA ELÁSTICA, INSTALADO EM LOCAL COM NÍVEL BAIXO DE INTERFERÊNCIAS (NÃO INCLUI FORNECIMENTO). AF_11/2017 | I194: M | J194: ATRIBUÍDO SÃO PAULO | K194: 31,76 | T194: 15,93 | U194: 50,1265023 | V194: 8,61 | W194: 27,1347248 | X194: 7,22 | Y194: 22,7387729 | Z194: 0,00 | AA194: 0,0000000 | AB194: 0,00 | AC194: 0,0000000 | AD194: 0.22639 | AE194: CAIXA REFERENCIAL
A195: ASSENTAMENTO DE TUBOS E PECAS | B195: ASTU | C195: FORNEC E/OU ASSENT DE TUBO DE FERRO FUNDIDO JUNTA | D195: 45 | G195: 97172 | H195: ASSENTAMENTO DE TUBO DE FERRO FUNDIDO PARA REDE DE ÁGUA, DN 1200 MM, JUNTA ELÁSTICA, INSTALADO EM LOCAL COM NÍVEL BAIXO DE INTERFERÊNCIAS (NÃO INCLUI FORNECIMENTO). AF_11/2017 | I195: M | J195: ATRIBUÍDO SÃO PAULO | K195: 31,76 | L195: COMPOSICAO | M195: 5631 | N195: ESCAVADEIRA HIDRÁULICA SOBRE ESTEIRAS, CAÇAMBA 0,80 M3, PESO OPERACIONAL 17 T, POTENCIA BRUTA 111 HP - CHP DIURNO. AF_06/2014 | O195: CHP | P195: ATRIBUÍDO SÃO PAULO | Q195: 0,0491000 | R195: 146,93 | S195: 7,21 | AE195: CAIXA REFERENCIAL
A196: ASSENTAMENTO DE TUBOS E PECAS | B196: ASTU | C196: FORNEC E/OU ASSENT DE TUBO DE FERRO FUNDIDO JUNTA | D196: 45 | G196: 97172 | H196: ASSENTAMENTO DE TUBO DE FERRO FUNDIDO PARA REDE DE ÁGUA, DN 1200 MM, JUNTA ELÁSTICA, INSTALADO EM LOCAL COM NÍVEL BAIXO DE INTERFERÊNCIAS (NÃO INCLUI FORNECIMENTO). AF_11/2017 | I196: M | J196: ATRIBUÍDO SÃO PAULO | K196: 31,76 | L196: COMPOSICAO | M196: 5632 | N196: ESCAVADEIRA HIDRÁULICA SOBRE ESTEIRAS, CAÇAMBA 0,80 M3, PESO OPERACIONAL 17 T, POTENCIA BRUTA 111 HP - CHI DIURNO. AF_06/2014 | O196: CHI | P196: ATRIBUÍDO SÃO PAULO | Q196: 0,0940000 | R196: 57,47 | S196: 5,40 | AE196: CAIXA REFERENCIAL
A197: ASSENTAMENTO DE TUBOS E PECAS | B197: ASTU | C197: FORNEC E/OU ASSENT DE TUBO DE FERRO FUNDIDO JUNTA | D197: 45 | G197: 97172 | H197: ASSENTAMENTO DE TUBO DE FERRO FUNDIDO PARA REDE DE ÁGUA, DN 1200 MM, JUNTA ELÁSTICA, INSTALADO EM LOCAL COM NÍVEL BAIXO DE INTERFERÊNCIAS (NÃO INCLUI FORNECIMENTO). AF_11/2017 | I197: M | J197: ATRIBUÍDO SÃO PAULO | K197: 31,76 | L197: INSUMO | M197: 20078 | N197: PASTA LUBRIFICANTE PARA TUBOS E CONEXOES COM JUNTA ELASTICA (USO EM PVC, ACO, POLIETILENO E OUTROS) ( DE *400* G) | O197: UN | P197: COEFICIENTE DE REPRESENTATIVIDADE | Q197: 0,0646000 | R197: 25,13 | S197: 1,62 | AE197: CAIXA REFERENCIAL
A198: ASSENTAMENTO DE TUBOS E PECAS | B198: ASTU | C198: FORNEC E/OU ASSENT DE TUBO DE FERRO FUNDIDO JUNTA | D198: 45 | G198: 97172 | H198: ASSENTAMENTO DE TUBO DE FERRO FUNDIDO PARA REDE DE ÁGUA, DN 1200 MM, JUNTA ELÁSTICA, INSTALADO EM LOCAL COM NÍVEL BAIXO DE INTERFERÊNCIAS (NÃO INCLUI FORNECIMENTO). AF_11/2017 | I198: M | J198: ATRIBUÍDO SÃO PAULO | K198: 31,76 | L198: COMPOSICAO | M198: 88246 | N198: ASSENTADOR DE TUBOS COM ENCARGOS COMPLEMENTARES | O198: H | P198: COEFICIENTE DE REPRESENTATIVIDADE | Q198: 0,5304000 | R198: 17,71 | S198: 9,39 | AE198: CAIXA REFERENCIAL
A199: ASSENTAMENTO DE TUBOS E PECAS | B199: ASTU | C199: FORNEC E/OU ASSENT DE TUBO DE FERRO FUNDIDO JUNTA | D199: 45 | G199: 97172 | H199: ASSENTAMENTO DE TUBO DE FERRO FUNDIDO PARA REDE DE ÁGUA, DN 1200 MM, JUNTA ELÁSTICA, INSTALADO EM LOCAL COM NÍVEL BAIXO DE INTERFERÊNCIAS (NÃO INCLUI FORNECIMENTO). AF_11/2017 | I199: M | J199: ATRIBUÍDO SÃO PAULO | K199: 31,76 | L199: COMPOSICAO | M199: 88316 | N199: SERVENTE COM ENCARGOS COMPLEMENTARES | O199: H | P199: COLETADO | Q199: 0,5304000 | R199: 15,36 | S199: 8,14 | AE199: CAIXA REFERENCIAL
A200: ASSENTAMENTO DE TUBOS E PECAS | B200: ASTU | C200: FORNEC E/OU ASSENT DE TUBO DE ACO COM JUNTA SOLDAD | D200: 46 | G200: 97173 | H200: ASSENTAMENTO DE TUBO DE AÇO CARBONO PARA REDE DE ÁGUA, DN 600 MM (24), JUNTA SOLDADA, INSTALADO EM LOCAL COM NÍVEL ALTO DE INTERFERÊNCIAS (NÃO INCLUI FORNECIMENTO). AF_11/2017 | I200: M | J200: ATRIBUÍDO SÃO PAULO | K200: 28,83 | T200: 13,25 | U200: 45,9148046 | V200: 10,26 | W200: 35,6145251 | X200: 5,32 | Y200: 18,4706703 | Z200: 0,00 | AA200: 0,0000000 | AB200: 0,00 | AC200: 0,0000000 | AD200: 0.37773 | AE200: CAIXA REFERENCIAL
A201: ASSENTAMENTO DE TUBOS E PECAS | B201: ASTU | C201: FORNEC E/OU ASSENT DE TUBO DE ACO COM JUNTA SOLDAD | D201: 46 | G201: 97173 | H201: ASSENTAMENTO DE TUBO DE AÇO CARBONO PARA REDE DE ÁGUA, DN 600 MM (24), JUNTA SOLDADA, INSTALADO EM LOCAL COM NÍVEL ALTO DE INTERFERÊNCIAS (NÃO INCLUI FORNECIMENTO). AF_11/2017 | I201: M | J201: ATRIBUÍDO SÃO PAULO | K201: 28,83 | L201: COMPOSICAO | M201: 5631 | N201: ESCAVADEIRA HIDRÁULICA SOBRE ESTEIRAS, CAÇAMBA 0,80 M3, PESO OPERACIONAL 17 T, POTENCIA BRUTA 111 HP - CHP DIURNO. AF_06/2014 | O201: CHP | P201: ATRIBUÍDO SÃO PAULO | Q201: 0,0211000 | R201: 146,93 | S201: 3,10 | AE201: CAIXA REFERENCIAL
A202: ASSENTAMENTO DE TUBOS E PECAS | B202: ASTU | C202: FORNEC E/OU ASSENT DE TUBO DE ACO COM JUNTA SOLDAD | D202: 46 | G202: 97173 | H202: ASSENTAMENTO DE TUBO DE AÇO CARBONO PARA REDE DE ÁGUA, DN 600 MM (24), JUNTA SOLDADA, INSTALADO EM LOCAL COM NÍVEL ALTO DE INTERFERÊNCIAS (NÃO INCLUI FORNECIMENTO). AF_11/2017 | I202: M | J202: ATRIBUÍDO SÃO PAULO | K202: 28,83 | L202: COMPOSICAO | M202: 5632 | N202: ESCAVADEIRA HIDRÁULICA SOBRE ESTEIRAS, CAÇAMBA 0,80 M3, PESO OPERACIONAL 17 T, POTENCIA BRUTA 111 HP - CHI DIURNO. AF_06/2014 | O202: CHI | P202: ATRIBUÍDO SÃO PAULO | Q202: 0,1011000 | R202: 57,47 | S202: 5,81 | AE202: CAIXA REFERENCIAL
... 4298 more rows

Sheet COMP Sint. Sinapi
A1: PCI.817.01 - CUSTO DE COMPOSIÇÕES - SINTÉTICO DATA DE EMISSÃO: 14/07/2021 23:44:29 DATA DE RT: 14/07/2021
A2: ENCARGOS SOCIAIS SOBRE PREÇOS DA MÃO-DE-OBRA: 115,81%(HORA) 72,23%(MÊS)
A3: ABRANGÊNCIA : NACIONAL LOCALIDADE : JOAO PESSOA DATA DE PREÇO : 06/2021 REFERÊNCIA COLETA : MEDIANO
A5: CODIGO DA COMPOSICAO | B5: DESCRICAO DA COMPOSICAO | C5: UNIDADE | D5: ORIGEM DE PREÇO | E5: CUSTO TOTAL | F5: VINCULO
A7: 97141 | B7: ASSENTAMENTO DE TUBO DE FERRO FUNDIDO PARA REDE DE ÁGUA, DN 80 MM, JUNTA ELÁSTICA, INSTALADO EM LOCAL COM NÍVEL ALTO DE INTERFERÊNCIAS (NÃO INCLUI FORNECIMENTO). AF_11/2017 | C7: M | D7: ATRIBUÍDO SÃO PAULO | E7: 6,04 | F7: CAIXA REFERENCIAL
A8: 97142 | B8: ASSENTAMENTO DE TUBO DE FERRO FUNDIDO PARA REDE DE ÁGUA, DN 100 MM, JUNTA ELÁSTICA, INSTALADO EM LOCAL COM NÍVEL ALTO DE INTERFERÊNCIAS (NÃO INCLUI FORNECIMENTO). AF_11/2017 | C8: M | D8: ATRIBUÍDO SÃO PAULO | E8: 6,73 | F8: CAIXA REFERENCIAL
A9: 97143 | B9: ASSENTAMENTO DE TUBO DE FERRO FUNDIDO PARA REDE DE ÁGUA, DN 150 MM, JUNTA ELÁSTICA, INSTALADO EM LOCAL COM NÍVEL ALTO DE INTERFERÊNCIAS (NÃO INCLUI FORNECIMENTO). AF_11/2017 | C9: M | D9: ATRIBUÍDO SÃO PAULO | E9: 8,45 | F9: CAIXA REFERENCIAL
A10: 97144 | B10: ASSENTAMENTO DE TUBO DE FERRO FUNDIDO PARA REDE DE ÁGUA, DN 200 MM, JUNTA ELÁSTICA, INSTALADO EM LOCAL COM NÍVEL ALTO DE INTERFERÊNCIAS (NÃO INCLUI FORNECIMENTO). AF_11/2017 | C10: M | D10: ATRIBUÍDO SÃO PAULO | E10: 10,17 | F10: CAIXA REFERENCIAL
A11: 97145 | B11: ASSENTAMENTO DE TUBO DE FERRO FUNDIDO PARA REDE DE ÁGUA, DN 250 MM, JUNTA ELÁSTICA, INSTALADO EM LOCAL COM NÍVEL ALTO DE INTERFERÊNCIAS (NÃO INCLUI FORNECIMENTO). AF_11/2017 | C11: M | D11: ATRIBUÍDO SÃO PAULO | E11: 11,92 | F11: CAIXA REFERENCIAL
A12: 97146 | B12: ASSENTAMENTO DE TUBO DE FERRO FUNDIDO PARA REDE DE ÁGUA, DN 300 MM, JUNTA ELÁSTICA, INSTALADO EM LOCAL COM NÍVEL ALTO DE INTERFERÊNCIAS (NÃO INCLUI FORNECIMENTO). AF_11/2017 | C12: M | D12: ATRIBUÍDO SÃO PAULO | E12: 13,67 | F12: CAIXA REFERENCIAL
A13: 97147 | B13: ASSENTAMENTO DE TUBO DE FERRO FUNDIDO PARA REDE DE ÁGUA, DN 350 MM, JUNTA ELÁSTICA, INSTALADO EM LOCAL COM NÍVEL ALTO DE INTERFERÊNCIAS (NÃO INCLUI FORNECIMENTO). AF_11/2017 | C13: M | D13: ATRIBUÍDO SÃO PAULO | E13: 15,40 | F13: CAIXA REFERENCIAL
A14: 97148 | B14: ASSENTAMENTO DE TUBO DE FERRO FUNDIDO PARA REDE DE ÁGUA, DN 400 MM, JUNTA ELÁSTICA, INSTALADO EM LOCAL COM NÍVEL ALTO DE INTERFERÊNCIAS (NÃO INCLUI FORNECIMENTO). AF_11/2017 | C14: M | D14: ATRIBUÍDO SÃO PAULO | E14: 17,15 | F14: CAIXA REFERENCIAL
A15: 97149 | B15: ASSENTAMENTO DE TUBO DE FERRO FUNDIDO PARA REDE DE ÁGUA, DN 450 MM, JUNTA ELÁSTICA, INSTALADO EM LOCAL COM NÍVEL ALTO DE INTERFERÊNCIAS (NÃO INCLUI FORNECIMENTO). AF_11/2017 | C15: M | D15: ATRIBUÍDO SÃO PAULO | E15: 18,92 | F15: CAIXA REFERENCIAL
A16: 97150 | B16: ASSENTAMENTO DE TUBO DE FERRO FUNDIDO PARA REDE DE ÁGUA, DN 500 MM, JUNTA ELÁSTICA, INSTALADO EM LOCAL COM NÍVEL ALTO DE INTERFERÊNCIAS (NÃO INCLUI FORNECIMENTO). AF_11/2017 | C16: M | D16: ATRIBUÍDO SÃO PAULO | E16: 23,75 | F16: CAIXA REFERENCIAL
A17: 97151 | B17: ASSENTAMENTO DE TUBO DE FERRO FUNDIDO PARA REDE DE ÁGUA, DN 600 MM, JUNTA ELÁSTICA, INSTALADO EM LOCAL COM NÍVEL ALTO DE INTERFERÊNCIAS (NÃO INCLUI FORNECIMENTO). AF_11/2017 | C17: M | D17: ATRIBUÍDO SÃO PAULO | E17: 27,70 | F17: CAIXA REFERENCIAL
A18: 97152 | B18: ASSENTAMENTO DE TUBO DE FERRO FUNDIDO PARA REDE DE ÁGUA, DN 700 MM, JUNTA ELÁSTICA, INSTALADO EM LOCAL COM NÍVEL ALTO DE INTERFERÊNCIAS (NÃO INCLUI FORNECIMENTO). AF_11/2017 | C18: M | D18: ATRIBUÍDO SÃO PAULO | E18: 31,44 | F18: CAIXA REFERENCIAL
A19: 97153 | B19: ASSENTAMENTO DE TUBO DE FERRO FUNDIDO PARA REDE DE ÁGUA, DN 800 MM, JUNTA ELÁSTICA, INSTALADO EM LOCAL COM NÍVEL ALTO DE INTERFERÊNCIAS (NÃO INCLUI FORNECIMENTO). AF_11/2017 | C19: M | D19: ATRIBUÍDO SÃO PAULO | E19: 35,29 | F19: CAIXA REFERENCIAL
A20: 97154 | B20: ASSENTAMENTO DE TUBO DE FERRO FUNDIDO PARA REDE DE ÁGUA, DN 900 MM, JUNTA ELÁSTICA, INSTALADO EM LOCAL COM NÍVEL ALTO DE INTERFERÊNCIAS (NÃO INCLUI FORNECIMENTO). AF_11/2017 | C20: M | D20: ATRIBUÍDO SÃO PAULO | E20: 39,22 | F20: CAIXA REFERENCIAL
A21: 97155 | B21: ASSENTAMENTO DE TUBO DE FERRO FUNDIDO PARA REDE DE ÁGUA, DN 1000 MM, JUNTA ELÁSTICA, INSTALADO EM LOCAL COM NÍVEL ALTO DE INTERFERÊNCIAS (NÃO INCLUI FORNECIMENTO). AF_11/2017 | C21: M | D21: ATRIBUÍDO SÃO PAULO | E21: 43,13 | F21: CAIXA REFERENCIAL
A22: 97156 | B22: ASSENTAMENTO DE TUBO DE FERRO FUNDIDO PARA REDE DE ÁGUA, DN 1200 MM, JUNTA ELÁSTICA, INSTALADO EM LOCAL COM NÍVEL ALTO DE INTERFERÊNCIAS (NÃO INCLUI FORNECIMENTO). AF_11/2017 | C22: M | D22: ATRIBUÍDO SÃO PAULO | E22: 51,33 | F22: CAIXA REFERENCIAL
A23: 97157 | B23: ASSENTAMENTO DE TUBO DE FERRO FUNDIDO PARA REDE DE ÁGUA, DN 80 MM, JUNTA ELÁSTICA, INSTALADO EM LOCAL COM NÍVEL BAIXO DE INTERFERÊNCIAS (NÃO INCLUI FORNECIMENTO). AF_11/2017 | C23: M | D23: ATRIBUÍDO SÃO PAULO | E23: 3,70 | F23: CAIXA REFERENCIAL
A24: 97158 | B24: ASSENTAMENTO DE TUBO DE FERRO FUNDIDO PARA REDE DE ÁGUA, DN 100 MM, JUNTA ELÁSTICA, INSTALADO EM LOCAL COM NÍVEL BAIXO DE INTERFERÊNCIAS (NÃO INCLUI FORNECIMENTO). AF_11/2017 | C24: M | D24: ATRIBUÍDO SÃO PAULO | E24: 4,13 | F24: CAIXA REFERENCIAL
A25: 97159 | B25: ASSENTAMENTO DE TUBO DE FERRO FUNDIDO PARA REDE DE ÁGUA, DN 150 MM, JUNTA ELÁSTICA, INSTALADO EM LOCAL COM NÍVEL BAIXO DE INTERFERÊNCIAS (NÃO INCLUI FORNECIMENTO). AF_11/2017 | C25: M | D25: ATRIBUÍDO SÃO PAULO | E25: 5,18 | F25: CAIXA REFERENCIAL
A26: 97160 | B26: ASSENTAMENTO DE TUBO DE FERRO FUNDIDO PARA REDE DE ÁGUA, DN 200 MM, JUNTA ELÁSTICA, INSTALADO EM LOCAL COM NÍVEL BAIXO DE INTERFERÊNCIAS (NÃO INCLUI FORNECIMENTO). AF_11/2017 | C26: M | D26: ATRIBUÍDO SÃO PAULO | E26: 6,24 | F26: CAIXA REFERENCIAL
A27: 97161 | B27: ASSENTAMENTO DE TUBO DE FERRO FUNDIDO PARA REDE DE ÁGUA, DN 250 MM, JUNTA ELÁSTICA, INSTALADO EM LOCAL COM NÍVEL BAIXO DE INTERFERÊNCIAS (NÃO INCLUI FORNECIMENTO). AF_11/2017 | C27: M | D27: ATRIBUÍDO SÃO PAULO | E27: 7,33 | F27: CAIXA REFERENCIAL
A28: 97162 | B28: ASSENTAMENTO DE TUBO DE FERRO FUNDIDO PARA REDE DE ÁGUA, DN 300 MM, JUNTA ELÁSTICA, INSTALADO EM LOCAL COM NÍVEL BAIXO DE INTERFERÊNCIAS (NÃO INCLUI FORNECIMENTO). AF_11/2017 | C28: M | D28: ATRIBUÍDO SÃO PAULO | E28: 8,40 | F28: CAIXA REFERENCIAL
A29: 97163 | B29: ASSENTAMENTO DE TUBO DE FERRO FUNDIDO PARA REDE DE ÁGUA, DN 350 MM, JUNTA ELÁSTICA, INSTALADO EM LOCAL COM NÍVEL BAIXO DE INTERFERÊNCIAS (NÃO INCLUI FORNECIMENTO). AF_11/2017 | C29: M | D29: ATRIBUÍDO SÃO PAULO | E29: 9,49 | F29: CAIXA REFERENCIAL
A30: 97164 | B30: ASSENTAMENTO DE TUBO DE FERRO FUNDIDO PARA REDE DE ÁGUA, DN 400 MM, JUNTA ELÁSTICA, INSTALADO EM LOCAL COM NÍVEL BAIXO DE INTERFERÊNCIAS (NÃO INCLUI FORNECIMENTO). AF_11/2017 | C30: M | D30: ATRIBUÍDO SÃO PAULO | E30: 10,56 | F30: CAIXA REFERENCIAL
A31: 97165 | B31: ASSENTAMENTO DE TUBO DE FERRO FUNDIDO PARA REDE DE ÁGUA, DN 450 MM, JUNTA ELÁSTICA, INSTALADO EM LOCAL COM NÍVEL BAIXO DE INTERFERÊNCIAS (NÃO INCLUI FORNECIMENTO). AF_11/2017 | C31: M | D31: ATRIBUÍDO SÃO PAULO | E31: 11,67 | F31: CAIXA REFERENCIAL
A32: 97166 | B32: ASSENTAMENTO DE TUBO DE FERRO FUNDIDO PARA REDE DE ÁGUA, DN 500 MM, JUNTA ELÁSTICA, INSTALADO EM LOCAL COM NÍVEL BAIXO DE INTERFERÊNCIAS (NÃO INCLUI FORNECIMENTO). AF_11/2017 | C32: M | D32: ATRIBUÍDO SÃO PAULO | E32: 14,63 | F32: CAIXA REFERENCIAL
A33: 97167 | B33: ASSENTAMENTO DE TUBO DE FERRO FUNDIDO PARA REDE DE ÁGUA, DN 600 MM, JUNTA ELÁSTICA, INSTALADO EM LOCAL COM NÍVEL BAIXO DE INTERFERÊNCIAS (NÃO INCLUI FORNECIMENTO). AF_11/2017 | C33: M | D33: ATRIBUÍDO SÃO PAULO | E33: 17,10 | F33: CAIXA REFERENCIAL
A34: 97168 | B34: ASSENTAMENTO DE TUBO DE FERRO FUNDIDO PARA REDE DE ÁGUA, DN 700 MM, JUNTA ELÁSTICA, INSTALADO EM LOCAL COM NÍVEL BAIXO DE INTERFERÊNCIAS (NÃO INCLUI FORNECIMENTO). AF_11/2017 | C34: M | D34: ATRIBUÍDO SÃO PAULO | E34: 19,33 | F34: CAIXA REFERENCIAL
A35: 97169 | B35: ASSENTAMENTO DE TUBO DE FERRO FUNDIDO PARA REDE DE ÁGUA, DN 800 MM, JUNTA ELÁSTICA, INSTALADO EM LOCAL COM NÍVEL BAIXO DE INTERFERÊNCIAS (NÃO INCLUI FORNECIMENTO). AF_11/2017 | C35: M | D35: ATRIBUÍDO SÃO PAULO | E35: 21,70 | F35: CAIXA REFERENCIAL
A36: 97170 | B36: ASSENTAMENTO DE TUBO DE FERRO FUNDIDO PARA REDE DE ÁGUA, DN 900 MM, JUNTA ELÁSTICA, INSTALADO EM LOCAL COM NÍVEL BAIXO DE INTERFERÊNCIAS (NÃO INCLUI FORNECIMENTO). AF_11/2017 | C36: M | D36: ATRIBUÍDO SÃO PAULO | E36: 24,12 | F36: CAIXA REFERENCIAL
A37: 97171 | B37: ASSENTAMENTO DE TUBO DE FERRO FUNDIDO PARA REDE DE ÁGUA, DN 1000 MM, JUNTA ELÁSTICA, INSTALADO EM LOCAL COM NÍVEL BAIXO DE INTERFERÊNCIAS (NÃO INCLUI FORNECIMENTO). AF_11/2017 | C37: M | D37: ATRIBUÍDO SÃO PAULO | E37: 26,54 | F37: CAIXA REFERENCIAL
A38: 97172 | B38: ASSENTAMENTO DE TUBO DE FERRO FUNDIDO PARA REDE DE ÁGUA, DN 1200 MM, JUNTA ELÁSTICA, INSTALADO EM LOCAL COM NÍVEL BAIXO DE INTERFERÊNCIAS (NÃO INCLUI FORNECIMENTO). AF_11/2017 | C38: M | D38: ATRIBUÍDO SÃO PAULO | E38: 31,76 | F38: CAIXA REFERENCIAL
A39: 97173 | B39: ASSENTAMENTO DE TUBO DE AÇO CARBONO PARA REDE DE ÁGUA, DN 600 MM (24), JUNTA SOLDADA, INSTALADO EM LOCAL COM NÍVEL ALTO DE INTERFERÊNCIAS (NÃO INCLUI FORNECIMENTO). AF_11/2017 | C39: M | D39: ATRIBUÍDO SÃO PAULO | E39: 28,83 | F39: CAIXA REFERENCIAL
A40: 97174 | B40: ASSENTAMENTO DE TUBO DE AÇO CARBONO PARA REDE DE ÁGUA, DN 700 MM (28), JUNTA SOLDADA, INSTALADO EM LOCAL COM NÍVEL ALTO DE INTERFERÊNCIAS (NÃO INCLUI FORNECIMENTO). AF_11/2017 | C40: M | D40: ATRIBUÍDO SÃO PAULO | E40: 33,37 | F40: CAIXA REFERENCIAL
A41: 97175 | B41: ASSENTAMENTO DE TUBO DE AÇO CARBONO PARA REDE DE ÁGUA, DN 800 MM (32), JUNTA SOLDADA, INSTALADO EM LOCAL COM NÍVEL ALTO DE INTERFERÊNCIAS (NÃO INCLUI FORNECIMENTO). AF_11/2017 | C41: M | D41: ATRIBUÍDO SÃO PAULO | E41: 37,94 | F41: CAIXA REFERENCIAL
A42: 97176 | B42: ASSENTAMENTO DE TUBO DE AÇO CARBONO PARA REDE DE ÁGUA, DN 900 MM (36), JUNTA SOLDADA, INSTALADO EM LOCAL COM NÍVEL ALTO DE INTERFERÊNCIAS (NÃO INCLUI FORNECIMENTO). AF_11/2017 | C42: M | D42: ATRIBUÍDO SÃO PAULO | E42: 42,50 | F42: CAIXA REFERENCIAL
A43: 97177 | B43: ASSENTAMENTO DE TUBO DE AÇO CARBONO PARA REDE DE ÁGUA, DN 1000 MM (40) OU DN 1100 MM (44), JUNTA SOLDADA, INSTALADO EM LOCAL COM NÍVEL ALTO DE INTERFERÊNCIAS (NÃO INCLUI FORNECIMENTO). AF_11/2017 | C43: M | D43: ATRIBUÍDO SÃO PAULO | E43: 51,61 | F43: CAIXA REFERENCIAL
A44: 97178 | B44: ASSENTAMENTO DE TUBO DE AÇO CARBONO PARA REDE DE ÁGUA, DN 1200 MM (48) OU DN 1300 MM (52), JUNTA SOLDADA, INSTALADO EM LOCAL COM NÍVEL ALTO DE INTERFERÊNCIAS (NÃO INCLUI FORNECIMENTO). AF_11/2017 | C44: M | D44: ATRIBUÍDO SÃO PAULO | E44: 60,73 | F44: CAIXA REFERENCIAL
A45: 97179 | B45: ASSENTAMENTO DE TUBO DE AÇO CARBONO PARA REDE DE ÁGUA, DN 1400 MM (56'') OU DN 1500 MM (60), JUNTA SOLDADA, INSTALADO EM LOCAL COM NÍVEL ALTO DE INTERFERÊNCIAS (NÃO INCLUI FORNECIMENTO). AF_11/2017 | C45: M | D45: ATRIBUÍDO SÃO PAULO | E45: 69,83 | F45: CAIXA REFERENCIAL
A46: 97180 | B46: ASSENTAMENTO DE TUBO DE AÇO CARBONO PARA REDE DE ÁGUA, DN 1600 MM (64) OU DN 1700 MM (68), JUNTA SOLDADA, INSTALADO EM LOCAL COM NÍVEL ALTO DE INTERFERÊNCIAS (NÃO INCLUI FORNECIMENTO). AF_11/2017 | C46: M | D46: ATRIBUÍDO SÃO PAULO | E46: 78,95 | F46: CAIXA REFERENCIAL
A47: 97181 | B47: ASSENTAMENTO DE TUBO DE AÇO CARBONO PARA REDE DE ÁGUA, DN 1800 MM (72) OU DN 1900 MM (76), JUNTA SOLDADA, INSTALADO EM LOCAL COM NÍVEL ALTO DE INTERFERÊNCIAS (NÃO INCLUI FORNECIMENTO). AF_11/2017 | C47: M | D47: ATRIBUÍDO SÃO PAULO | E47: 91,23 | F47: CAIXA REFERENCIAL
A48: 97182 | B48: ASSENTAMENTO DE TUBO DE AÇO CARBONO PARA REDE DE ÁGUA, DN 2000 MM (80) OU DN 2100 MM (84), JUNTA SOLDADA, INSTALADO EM LOCAL COM NÍVEL ALTO DE INTERFERÊNCIAS (NÃO INCLUI FORNECIMENTO). AF_11/2017 | C48: M | D48: ATRIBUÍDO SÃO PAULO | E48: 100,70 | F48: CAIXA REFERENCIAL
A49: 97183 | B49: ASSENTAMENTO DE TUBO DE AÇO CARBONO PARA REDE DE ÁGUA, DN 600 MM (24), JUNTA SOLDADA, INSTALADO EM LOCAL COM NÍVEL BAIXO DE INTERFERÊNCIAS (NÃO INCLUI FORNECIMENTO). AF_11/2017 | C49: M | D49: ATRIBUÍDO SÃO PAULO | E49: 23,92 | F49: CAIXA REFERENCIAL
A50: 97184 | B50: ASSENTAMENTO DE TUBO DE AÇO CARBONO PARA REDE DE ÁGUA, DN 700 MM (28), JUNTA SOLDADA, INSTALADO EM LOCAL COM NÍVEL BAIXO DE INTERFERÊNCIAS (NÃO INCLUI FORNECIMENTO). AF_11/2017 | C50: M | D50: ATRIBUÍDO SÃO PAULO | E50: 27,75 | F50: CAIXA REFERENCIAL
A51: 97185 | B51: ASSENTAMENTO DE TUBO DE AÇO CARBONO PARA REDE DE ÁGUA, DN 800 MM (32), JUNTA SOLDADA, INSTALADO EM LOCAL COM NÍVEL BAIXO DE INTERFERÊNCIAS (NÃO INCLUI FORNECIMENTO). AF_11/2017 | C51: M | D51: ATRIBUÍDO SÃO PAULO | E51: 31,59 | F51: CAIXA REFERENCIAL
A52: 97186 | B52: ASSENTAMENTO DE TUBO DE AÇO CARBONO PARA REDE DE ÁGUA, DN 900 MM (36), JUNTA SOLDADA, INSTALADO EM LOCAL COM NÍVEL BAIXO DE INTERFERÊNCIAS (NÃO INCLUI FORNECIMENTO). AF_11/2017 | C52: M | D52: ATRIBUÍDO SÃO PAULO | E52: 35,44 | F52: CAIXA REFERENCIAL
A53: 97187 | B53: ASSENTAMENTO DE TUBO DE AÇO CARBONO PARA REDE DE ÁGUA, DN 1000 MM (40 ) OU DN 1100 MM (44 ), JUNTA SOLDADA, INSTALADO EM LOCAL COM NÍVEL BAIXO DE INTERFERÊNCIAS (NÃO INCLUI FORNECIMENTO). AF_11/2017 | C53: M | D53: ATRIBUÍDO SÃO PAULO | E53: 43,11 | F53: CAIXA REFERENCIAL
A54: 97188 | B54: ASSENTAMENTO DE TUBO DE AÇO CARBONO PARA REDE DE ÁGUA, DN 1200 MM (48) OU DN 1300 MM (52), JUNTA SOLDADA, INSTALADO EM LOCAL COM NÍVEL BAIXO DE INTERFERÊNCIAS (NÃO INCLUI FORNECIMENTO). AF_11/2017 | C54: M | D54: ATRIBUÍDO SÃO PAULO | E54: 50,79 | F54: CAIXA REFERENCIAL
A55: 97189 | B55: ASSENTAMENTO DE TUBO DE AÇO CARBONO PARA REDE DE ÁGUA, DN 1400 MM (56'') OU DN 1500 MM (60), JUNTA SOLDADA, INSTALADO EM LOCAL COM NÍVEL BAIXO DE INTERFERÊNCIAS (NÃO INCLUI FORNECIMENTO). AF_11/2017 | C55: M | D55: ATRIBUÍDO SÃO PAULO | E55: 58,46 | F55: CAIXA REFERENCIAL
A56: 97190 | B56: ASSENTAMENTO DE TUBO DE AÇO CARBONO PARA REDE DE ÁGUA, DN 1600 MM (64) OU DN 1700 MM (68), JUNTA SOLDADA, INSTALADO EM LOCAL COM NÍVEL BAIXO DE INTERFERÊNCIAS (NÃO INCLUI FORNECIMENTO). AF_11/2017 | C56: M | D56: ATRIBUÍDO SÃO PAULO | E56: 66,14 | F56: CAIXA REFERENCIAL
A57: 97191 | B57: ASSENTAMENTO DE TUBO DE AÇO CARBONO PARA REDE DE ÁGUA, DN 1800 MM (72) OU DN 1900 MM (76), JUNTA SOLDADA, INSTALADO EM LOCAL COM NÍVEL BAIXO DE INTERFERÊNCIAS (NÃO INCLUI FORNECIMENTO). AF_11/2017 | C57: M | D57: ATRIBUÍDO SÃO PAULO | E57: 76,19 | F57: CAIXA REFERENCIAL
A58: 97192 | B58: ASSENTAMENTO DE TUBO DE AÇO CARBONO PARA REDE DE ÁGUA, DN 2000 MM (80) OU DN 2100 MM (84), JUNTA SOLDADA, INSTALADO EM LOCAL COM NÍVEL BAIXO DE INTERFERÊNCIAS (NÃO INCLUI FORNECIMENTO). AF_11/2017 | C58: M | D58: ATRIBUÍDO SÃO PAULO | E58: 84,14 | F58: CAIXA REFERENCIAL
A59: 90694 | B59: TUBO DE PVC PARA REDE COLETORA DE ESGOTO DE PAREDE MACIÇA, DN 100 MM, JUNTA ELÁSTICA - FORNECIMENTO E ASSENTAMENTO. AF_01/2021 | C59: M | D59: ATRIBUÍDO SÃO PAULO | E59: 43,80 | F59: CAIXA REFERENCIAL
A60: 90695 | B60: TUBO DE PVC PARA REDE COLETORA DE ESGOTO DE PAREDE MACIÇA, DN 150 MM, JUNTA ELÁSTICA - FORNECIMENTO E ASSENTAMENTO. AF_01/2021 | C60: M | D60: ATRIBUÍDO SÃO PAULO | E60: 91,85 | F60: CAIXA REFERENCIAL
A61: 90696 | B61: TUBO DE PVC PARA REDE COLETORA DE ESGOTO DE PAREDE MACIÇA, DN 200 MM, JUNTA ELÁSTICA - FORNECIMENTO E ASSENTAMENTO. AF_01/2021 | C61: M | D61: ATRIBUÍDO SÃO PAULO | E61: 136,75 | F61: CAIXA REFERENCIAL
A62: 90697 | B62: TUBO DE PVC PARA REDE COLETORA DE ESGOTO DE PAREDE MACIÇA, DN 250 MM, JUNTA ELÁSTICA - FORNECIMENTO E ASSENTAMENTO. AF_01/2021 | C62: M | D62: ATRIBUÍDO SÃO PAULO | E62: 231,06 | F62: CAIXA REFERENCIAL
A63: 90698 | B63: TUBO DE PVC PARA REDE COLETORA DE ESGOTO DE PAREDE MACIÇA, DN 300 MM, JUNTA ELÁSTICA, FORNECIMENTO E ASSENTAMENTO. AF_01/2021 | C63: M | D63: ATRIBUÍDO SÃO PAULO | E63: 371,06 | F63: CAIXA REFERENCIAL
A64: 90699 | B64: TUBO DE PVC PARA REDE COLETORA DE ESGOTO DE PAREDE MACIÇA, DN 350 MM, JUNTA ELÁSTICA - FORNECIMENTO E ASSENTAMENTO. AF_01/2021 | C64: M | D64: ATRIBUÍDO SÃO PAULO | E64: 458,96 | F64: CAIXA REFERENCIAL
A65: 90700 | B65: TUBO DE PVC PARA REDE COLETORA DE ESGOTO DE PAREDE MACIÇA, DN 400 MM, JUNTA ELÁSTICA FORNECIMENTO E ASSENTAMENTO. AF_01/2021 | C65: M | D65: ATRIBUÍDO SÃO PAULO | E65: 594,66 | F65: CAIXA REFERENCIAL
A66: 90701 | B66: TUBO DE PVC CORRUGADO DE DUPLA PAREDE PARA REDE COLETORA DE ESGOTO, DN 150 MM, JUNTA ELÁSTICA - FORNECIMENTO E ASSENTAMENTO. AF_01/2021 | C66: M | D66: ATRIBUÍDO SÃO PAULO | E66: 74,05 | F66: CAIXA REFERENCIAL
A67: 90702 | B67: TUBO DE PVC CORRUGADO DE DUPLA PAREDE PARA REDE COLETORA DE ESGOTO, DN 200 MM, JUNTA ELÁSTICA - FORNECIMENTO E ASSENTAMENTO. AF_01/2021 | C67: M | D67: ATRIBUÍDO SÃO PAULO | E67: 118,63 | F67: CAIXA REFERENCIAL
A68: 90703 | B68: TUBO DE PVC CORRUGADO DE DUPLA PAREDE PARA REDE COLETORA DE ESGOTO, DN 250 MM, JUNTA ELÁSTICA - FORNECIMENTO E ASSENTAMENTO. AF_01/2021 | C68: M | D68: ATRIBUÍDO SÃO PAULO | E68: 194,74 | F68: CAIXA REFERENCIAL
A69: 90704 | B69: TUBO DE PVC CORRUGADO DE DUPLA PAREDE PARA REDE COLETORA DE ESGOTO, DN 300 MM, JUNTA ELÁSTICA - FORNECIMENTO E ASSENTAMENTO. AF_01/2021 | C69: M | D69: ATRIBUÍDO SÃO PAULO | E69: 269,80 | F69: CAIXA REFERENCIAL
A70: 90705 | B70: TUBO DE PVC CORRUGADO DE DUPLA PAREDE PARA REDE COLETORA DE ESGOTO, DN 350 MM, JUNTA ELÁSTICA - FORNECIMENTO E ASSENTAMENTO. AF_01/2021 | C70: M | D70: ATRIBUÍDO SÃO PAULO | E70: 379,78 | F70: CAIXA REFERENCIAL
A71: 90706 | B71: TUBO DE PVC CORRUGADO DE DUPLA PAREDE PARA REDE COLETORA DE ESGOTO, DN 400 MM, JUNTA ELÁSTICA - FORNECIMENTO E ASSENTAMENTO. AF_01/2021 | C71: M | D71: ATRIBUÍDO SÃO PAULO | E71: 442,58 | F71: CAIXA REFERENCIAL
A72: 90708 | B72: TUBO DE PEAD CORRUGADO DE DUPLA PAREDE PARA REDE COLETORA DE ESGOTO, DN 600 MM, JUNTA ELÁSTICA INTEGRADA - FORNECIMENTO E ASSENTAMENTO. AF_01/2021 | C72: M | D72: ATRIBUÍDO SÃO PAULO | E72: 1.261,94 | F72: CAIXA REFERENCIAL
A73: 90724 | B73: JUNTA ARGAMASSADA ENTRE TUBO DN 100 MM E O POÇO DE VISITA/ CAIXA DE CONCRETO OU ALVENARIA EM REDES DE ESGOTO. AF_01/2021 | C73: UN | D73: COEFICIENTE DE REPRESENTATIVIDADE | E73: 17,82 | F73: CAIXA REFERENCIAL
A74: 90725 | B74: JUNTA ARGAMASSADA ENTRE TUBO DN 150 MM E O POÇO DE VISITA/ CAIXA DE CONCRETO OU ALVENARIA EM REDES DE ESGOTO. AF_01/2021 | C74: UN | D74: COEFICIENTE DE REPRESENTATIVIDADE | E74: 21,95 | F74: CAIXA REFERENCIAL
A75: 90726 | B75: JUNTA ARGAMASSADA ENTRE TUBO DN 200 MM E O POÇO/ CAIXA DE CONCRETO OU ALVENARIA EM REDES DE ESGOTO. AF_01/2021 | C75: UN | D75: COEFICIENTE DE REPRESENTATIVIDADE | E75: 26,14 | F75: CAIXA REFERENCIAL
A76: 90727 | B76: JUNTA ARGAMASSADA ENTRE TUBO DN 250 MM E O POÇO DE VISITA/ CAIXA DE CONCRETO OU ALVENARIA EM REDES DE ESGOTO. AF_01/2021 | C76: UN | D76: COEFICIENTE DE REPRESENTATIVIDADE | E76: 30,28 | F76: CAIXA REFERENCIAL
A77: 90728 | B77: JUNTA ARGAMASSADA ENTRE TUBO DN 300 MM E O POÇO DE VISITA/ CAIXA DE CONCRETO OU ALVENARIA EM REDES DE ESGOTO. AF_01/2021 | C77: UN | D77: COEFICIENTE DE REPRESENTATIVIDADE | E77: 34,41 | F77: CAIXA REFERENCIAL
A78: 90729 | B78: JUNTA ARGAMASSADA ENTRE TUBO DN 350 MM E O POÇO DE VISITA/ CAIXA DE CONCRETO OU ALVENARIA EM REDES DE ESGOTO. AF_01/2021 | C78: UN | D78: COEFICIENTE DE REPRESENTATIVIDADE | E78: 38,55 | F78: CAIXA REFERENCIAL
A79: 90730 | B79: JUNTA ARGAMASSADA ENTRE TUBO DN 400 MM E O POÇO DE VISITA/ CAIXA DE CONCRETO OU ALVENARIA EM REDES DE ESGOTO. AF_01/2021 | C79: UN | D79: COEFICIENTE DE REPRESENTATIVIDADE | E79: 42,68 | F79: CAIXA REFERENCIAL
A80: 90731 | B80: JUNTA ARGAMASSADA ENTRE TUBO DN 450 MM E O POÇO DE VISITA/ CAIXA DE CONCRETO OU ALVENARIA EM REDES DE ESGOTO. AF_01/2021 | C80: UN | D80: COEFICIENTE DE REPRESENTATIVIDADE | E80: 46,82 | F80: CAIXA REFERENCIAL
A81: 90732 | B81: JUNTA ARGAMASSADA ENTRE TUBO DN 600 MM E O POÇO DE VISITA/ CAIXA DE CONCRETO OU ALVENARIA EM REDES DE ESGOTO. AF_01/2021 | C81: UN | D81: COEFICIENTE DE REPRESENTATIVIDADE | E81: 59,22 | F81: CAIXA REFERENCIAL
A82: 90733 | B82: ASSENTAMENTO DE TUBO DE PVC PARA REDE COLETORA DE ESGOTO DE PAREDE MACIÇA, DN 100 MM, JUNTA ELÁSTICA (NÃO INCLUI FORNECIMENTO). AF_01/2021 | C82: M | D82: COEFICIENTE DE REPRESENTATIVIDADE | E82: 2,48 | F82: CAIXA REFERENCIAL
A83: 90734 | B83: ASSENTAMENTO DE TUBO DE PVC PARA REDE COLETORA DE ESGOTO DE PAREDE MACIÇA, DN 150 MM, JUNTA ELÁSTICA, (NÃO INCLUI FORNECIMENTO). AF_01/2021 | C83: M | D83: COEFICIENTE DE REPRESENTATIVIDADE | E83: 2,94 | F83: CAIXA REFERENCIAL
A84: 90735 | B84: ASSENTAMENTO DE TUBO DE PVC PARA REDE COLETORA DE ESGOTO DE PAREDE MACIÇA, DN 200 MM, JUNTA ELÁSTICA (NÃO INCLUI FORNECIMENTO). AF_01/2021 | C84: M | D84: COEFICIENTE DE REPRESENTATIVIDADE | E84: 3,40 | F84: CAIXA REFERENCIAL
A85: 90736 | B85: ASSENTAMENTO DE TUBO DE PVC PARA REDE COLETORA DE ESGOTO DE PAREDE MACIÇA, DN 250 MM, JUNTA ELÁSTICA (NÃO INCLUI FORNECIMENTO). AF_01/2021 | C85: M | D85: COEFICIENTE DE REPRESENTATIVIDADE | E85: 3,86 | F85: CAIXA REFERENCIAL
A86: 90737 | B86: ASSENTAMENTO DE TUBO DE PVC PARA REDE COLETORA DE ESGOTO DE PAREDE MACIÇA, DN 300 MM, JUNTA ELÁSTICA (NÃO INCLUI FORNECIMENTO). AF_01/2021 | C86: M | D86: COEFICIENTE DE REPRESENTATIVIDADE | E86: 4,31 | F86: CAIXA REFERENCIAL
A87: 90738 | B87: ASSENTAMENTO DE TUBO DE PVC PARA REDE COLETORA DE ESGOTO DE PAREDE MACIÇA, DN 350 MM, JUNTA ELÁSTICA (NÃO INCLUI FORNECIMENTO). AF_01/2021 | C87: M | D87: COEFICIENTE DE REPRESENTATIVIDADE | E87: 4,78 | F87: CAIXA REFERENCIAL
A88: 90739 | B88: ASSENTAMENTO DE TUBO DE PVC PARA REDE COLETORA DE ESGOTO DE PAREDE MACIÇA, DN 400 MM, JUNTA ELÁSTICA (NÃO INCLUI FORNECIMENTO). AF_01/2021 | C88: M | D88: ATRIBUÍDO SÃO PAULO | E88: 6,50 | F88: CAIXA REFERENCIAL
A89: 90740 | B89: ASSENTAMENTO DE TUBO DE PVC CORRUGADO DE DUPLA PAREDE PARA REDE COLETORA DE ESGOTO, DN 150 MM, JUNTA ELÁSTICA (NÃO INCLUI FORNECIMENTO). AF_01/2021 | C89: M | D89: COEFICIENTE DE REPRESENTATIVIDADE | E89: 3,27 | F89: CAIXA REFERENCIAL
A90: 90741 | B90: ASSENTAMENTO DE TUBO DE PVC CORRUGADO DE DUPLA PAREDE PARA REDE COLETORA DE ESGOTO, DN 200 MM, JUNTA ELÁSTICA (NÃO INCLUI FORNECIMENTO). AF_01/2021 | C90: M | D90: COEFICIENTE DE REPRESENTATIVIDADE | E90: 3,73 | F90: CAIXA REFERENCIAL
A91: 90742 | B91: ASSENTAMENTO DE TUBO DE PVC CORRUGADO DE DUPLA PAREDE PARA REDE COLETORA DE ESGOTO, DN 250 MM, JUNTA ELÁSTICA (NÃO INCLUI FORNECIMENTO). AF_01/2021 | C91: M | D91: COEFICIENTE DE REPRESENTATIVIDADE | E91: 4,20 | F91: CAIXA REFERENCIAL
A92: 90743 | B92: ASSENTAMENTO DE TUBO DE PVC CORRUGADO DE DUPLA PAREDE PARA REDE COLETORA DE ESGOTO, DN 300 MM, JUNTA ELÁSTICA (NÃO INCLUI FORNECIMENTO). AF_01/2021 | C92: M | D92: COEFICIENTE DE REPRESENTATIVIDADE | E92: 4,65 | F92: CAIXA REFERENCIAL
A93: 90744 | B93: ASSENTAMENTO DE TUBO DE PVC CORRUGADO DE DUPLA PAREDE PARA REDE COLETORA DE ESGOTO, DN 350 MM, JUNTA ELÁSTICA (NÃO INCLUI FORNECIMENTO). AF_01/2021 | C93: M | D93: COEFICIENTE DE REPRESENTATIVIDADE | E93: 5,11 | F93: CAIXA REFERENCIAL
A94: 90745 | B94: ASSENTAMENTO DE TUBO DE PVC CORRUGADO DE DUPLA PAREDE PARA REDE COLETORA DE ESGOTO, DN 400 MM, JUNTA ELÁSTICA (NÃO INCLUI FORNECIMENTO). AF_01/2021 | C94: M | D94: ATRIBUÍDO SÃO PAULO | E94: 7,25 | F94: CAIXA REFERENCIAL
A95: 90746 | B95: ASSENTAMENTO DE TUBO DE PEAD CORRUGADO DE DUPLA PAREDE PARA REDE COLETORA DE ESGOTO, DN 450 MM, JUNTA ELÁSTICA INTEGRADA (NÃO INCLUI FORNECIMENTO). AF_01/2021 | C95: M | D95: COEFICIENTE DE REPRESENTATIVIDADE | E95: 2,69 | F95: CAIXA REFERENCIAL
A96: 90747 | B96: ASSENTAMENTO DE TUBO DE PEAD CORRUGADO DE DUPLA PAREDE PARA REDE COLETORA DE ESGOTO, DN 600 MM, JUNTA ELÁSTICA INTEGRADA (NÃO INCLUI FORNECIMENTO). AF_01/2021 | C96: M | D96: ATRIBUÍDO SÃO PAULO | E96: 11,99 | F96: CAIXA REFERENCIAL
A97: 94869 | B97: TUBO DE PEAD CORRUGADO DE DUPLA PAREDE PARA REDE COLETORA DE ESGOTO, DN 250 MM, JUNTA ELÁSTICA INTEGRADA - FORNECIMENTO E ASSENTAMENTO. AF_01/2021 | C97: M | D97: ATRIBUÍDO SÃO PAULO | E97: 257,62 | F97: CAIXA REFERENCIAL
A98: 94870 | B98: ASSENTAMENTO DE TUBO DE PEAD CORRUGADO DE DUPLA PAREDE PARA REDE COLETORA DE ESGOTO, DN 250 MM, JUNTA ELÁSTICA INTEGRADA (NÃO INCLUI FORNECIMENTO). AF_01/2021 | C98: M | D98: COEFICIENTE DE REPRESENTATIVIDADE | E98: 1,60 | F98: CAIXA REFERENCIAL
A99: 94871 | B99: TUBO DE PEAD CORRUGADO DE DUPLA PAREDE PARA REDE COLETORA DE ESGOTO, DN 300 MM, JUNTA ELÁSTICA INTEGRADA - FORNECIMENTO E ASSENTAMENTO. AF_01/2021 | C99: M | D99: ATRIBUÍDO SÃO PAULO | E99: 304,97 | F99: CAIXA REFERENCIAL
A100: 94872 | B100: ASSENTAMENTO DE TUBO DE PEAD CORRUGADO DE DUPLA PAREDE PARA REDE COLETORA DE ESGOTO, DN 300 MM, JUNTA ELÁSTICA INTEGRADA (NÃO INCLUI FORNECIMENTO). AF_01/2021 | C100: M | D100: COEFICIENTE DE REPRESENTATIVIDADE | E100: 2,18 | F100: CAIXA REFERENCIAL
A101: 94875 | B101: TUBO DE PEAD CORRUGADO DE DUPLA PAREDE PARA REDE COLETORA DE ESGOTO, DN 800 MM, JUNTA ELÁSTICA INTEGRADA - FORNECIMENTO E ASSENTAMENTO. AF_01/2021 | C101: M | D101: ATRIBUÍDO SÃO PAULO | E101: 1.782,25 | F101: CAIXA REFERENCIAL
A102: 94876 | B102: ASSENTAMENTO DE TUBO DE PEAD CORRUGADO DE DUPLA PAREDE PARA REDE COLETORA DE ESGOTO, DN 800 MM, JUNTA ELÁSTICA INTEGRADA (NÃO INCLUI FORNECIMENTO). AF_01/2021 | C102: M | D102: ATRIBUÍDO SÃO PAULO | E102: 20,76 | F102: CAIXA REFERENCIAL
A103: 94878 | B103: ASSENTAMENTO DE TUBO DE PEAD CORRUGADO DE DUPLA PAREDE PARA REDE COLETORA DE ESGOTO, DN 900 MM, JUNTA ELÁSTICA INTEGRADA (NÃO INCLUI FORNECIMENTO). AF_01/2021 | C103: M | D103: ATRIBUÍDO SÃO PAULO | E103: 23,91 | F103: CAIXA REFERENCIAL
A104: 94879 | B104: TUBO DE PEAD CORRUGADO DE DUPLA PAREDE PARA REDE COLETORA DE ESGOTO, DN 1000 MM, JUNTA ELÁSTICA INTEGRADA - FORNECIMENTO E ASSENTAMENTO. AF_01/2021 | C104: M | D104: ATRIBUÍDO SÃO PAULO | E104: 2.372,63 | F104: CAIXA REFERENCIAL
A105: 94880 | B105: ASSENTAMENTO DE TUBO DE PEAD CORRUGADO DE DUPLA PAREDE PARA REDE COLETORA DE ESGOTO, DN 1000 MM, JUNTA ELÁSTICA INTEGRADA (NÃO INCLUI FORNECIMENTO). AF_01/2021 | C105: M | D105: ATRIBUÍDO SÃO PAULO | E105: 31,32 | F105: CAIXA REFERENCIAL
A106: 94881 | B106: TUBO DE PEAD CORRUGADO DE DUPLA PAREDE PARA REDE COLETORA DE ESGOTO, DN 1200 MM, JUNTA ELÁSTICA INTEGRADA - FORNECIMENTO E ASSENTAMENTO. AF_01/2021 | C106: M | D106: ATRIBUÍDO SÃO PAULO | E106: 3.710,84 | F106: CAIXA REFERENCIAL
A107: 94882 | B107: ASSENTAMENTO DE TUBO DE PEAD CORRUGADO DE DUPLA PAREDE PARA REDE COLETORA DE ESGOTO, DN 1200 MM, JUNTA ELÁSTICA INTEGRADA (NÃO INCLUI FORNECIMENTO). AF_01/2021 | C107: M | D107: ATRIBUÍDO SÃO PAULO | E107: 36,18 | F107: CAIXA REFERENCIAL
A108: 94884 | B108: ASSENTAMENTO DE TUBO DE PEAD CORRUGADO DE DUPLA PAREDE PARA REDE COLETORA DE ESGOTO, DN 1500 MM, JUNTA ELÁSTICA INTEGRADA (NÃO INCLUI FORNECIMENTO). AF_01/2021 | C108: M | D108: ATRIBUÍDO SÃO PAULO | E108: 46,03 | F108: CAIXA REFERENCIAL
A109: 97121 | B109: ASSENTAMENTO DE TUBO DE PVC PBA PARA REDE DE ÁGUA, DN 50 MM, JUNTA ELÁSTICA INTEGRADA, INSTALADO EM LOCAL COM NÍVEL ALTO DE INTERFERÊNCIAS (NÃO INCLUI FORNECIMENTO). AF_11/2017 | C109: M | D109: COEFICIENTE DE REPRESENTATIVIDADE | E109: 1,50 | F109: CAIXA REFERENCIAL
A110: 97122 | B110: ASSENTAMENTO DE TUBO DE PVC PBA PARA REDE DE ÁGUA, DN 75 MM, JUNTA ELÁSTICA INTEGRADA, INSTALADO EM LOCAL COM NÍVEL ALTO DE INTERFERÊNCIAS (NÃO INCLUI FORNECIMENTO). AF_11/2017 | C110: M | D110: COEFICIENTE DE REPRESENTATIVIDADE | E110: 2,10 | F110: CAIXA REFERENCIAL
A111: 97123 | B111: ASSENTAMENTO DE TUBO DE PVC PBA PARA REDE DE ÁGUA, DN 100 MM, JUNTA ELÁSTICA INTEGRADA, INSTALADO EM LOCAL COM NÍVEL ALTO DE INTERFERÊNCIAS (NÃO INCLUI FORNECIMENTO). AF_11/2017 | C111: M | D111: COEFICIENTE DE REPRESENTATIVIDADE | E111: 2,67 | F111: CAIXA REFERENCIAL
A112: 97124 | B112: ASSENTAMENTO DE TUBO DE PVC PBA PARA REDE DE ÁGUA, DN 50 MM, JUNTA ELÁSTICA INTEGRADA, INSTALADO EM LOCAL COM NÍVEL BAIXO DE INTERFERÊNCIAS (NÃO INCLUI FORNECIMENTO). AF_11/2017 | C112: M | D112: COEFICIENTE DE REPRESENTATIVIDADE | E112: 0,68 | F112: CAIXA REFERENCIAL
A113: 97125 | B113: ASSENTAMENTO DE TUBO DE PVC PBA PARA REDE DE ÁGUA, DN 75 MM, JUNTA ELÁSTICA INTEGRADA, INSTALADO EM LOCAL COM NÍVEL BAIXO DE INTERFERÊNCIAS (NÃO INCLUI FORNECIMENTO). AF_11/2017 | C113: M | D113: COEFICIENTE DE REPRESENTATIVIDADE | E113: 0,97 | F113: CAIXA REFERENCIAL
A114: 97126 | B114: ASSENTAMENTO DE TUBO DE PVC PBA PARA REDE DE ÁGUA, DN 100 MM, JUNTA ELÁSTICA INTEGRADA, INSTALADO EM LOCAL COM NÍVEL BAIXO DE INTERFERÊNCIAS (NÃO INCLUI FORNECIMENTO). AF_11/2017 | C114: M | D114: COEFICIENTE DE REPRESENTATIVIDADE | E114: 1,24 | F114: CAIXA REFERENCIAL
A115: 102264 | B115: TUBO DE PVC BRANCO PARA REDE COLETORA DE ESGOTO CONDOMINIAL DE PAREDE MACIÇA, DN 100 MM, JUNTA ELÁSTICA - FORNECIMENTO E ASSENTAMENTO. AF_01/2021 | C115: M | D115: COEFICIENTE DE REPRESENTATIVIDADE | E115: 19,94 | F115: CAIXA REFERENCIAL
A116: 102265 | B116: JUNTA ARGAMASSADA ENTRE TUBO DN 800 MM E O POÇO DE VISITA/ CAIXA DE CONCRETO OU ALVENARIA EM REDES DE ESGOTO. AF_01/2021 | C116: UN | D116: COEFICIENTE DE REPRESENTATIVIDADE | E116: 75,76 | F116: CAIXA REFERENCIAL
A117: 102266 | B117: JUNTA ARGAMASSADA ENTRE TUBO DN 900 MM E O POÇO DE VISITA/ CAIXA DE CONCRETO OU ALVENARIA EM REDES DE ESGOTO. AF_01/2021 | C117: UN | D117: COEFICIENTE DE REPRESENTATIVIDADE | E117: 84,02 | F117: CAIXA REFERENCIAL
A118: 102267 | B118: JUNTA ARGAMASSADA ENTRE TUBO DN 1000 MM E O POÇO DE VISITA/ CAIXA DE CONCRETO OU ALVENARIA EM REDES DE ESGOTO. AF_01/2021 | C118: UN | D118: COEFICIENTE DE REPRESENTATIVIDADE | E118: 96,48 | F118: CAIXA REFERENCIAL
A119: 102268 | B119: JUNTA ARGAMASSADA ENTRE TUBO DN 1200 MM E O POÇO DE VISITA/ CAIXA DE CONCRETO OU ALVENARIA EM REDES DE ESGOTO. AF_01/2021 | C119: UN | D119: COEFICIENTE DE REPRESENTATIVIDADE | E119: 108,90 | F119: CAIXA REFERENCIAL
A120: 102269 | B120: JUNTA ARGAMASSADA ENTRE TUBO DN 1500 MM E O POÇO DE VISITA/ CAIXA DE CONCRETO OU ALVENARIA EM REDES DE ESGOTO. AF_01/2021 | C120: UN | D120: COEFICIENTE DE REPRESENTATIVIDADE | E120: 133,70 | F120: CAIXA REFERENCIAL
A121: 92833 | B121: TUBO DE CONCRETO PARA REDES COLETORAS DE ESGOTO SANITÁRIO, DIÂMETRO DE 300 MM, JUNTA ELÁSTICA, INSTALADO EM LOCAL COM BAIXO NÍVEL DE INTERFERÊNCIAS - FORNECIMENTO E ASSENTAMENTO. AF_12/2015 | C121: M | D121: ATRIBUÍDO SÃO PAULO | E121: 189,66 | F121: CAIXA REFERENCIAL
A122: 92834 | B122: ASSENTAMENTO DE TUBO DE CONCRETO PARA REDES COLETORAS DE ESGOTO SANITÁRIO, DIÂMETRO DE 300 MM, JUNTA ELÁSTICA, INSTALADO EM LOCAL COM BAIXO NÍVEL DE INTERFERÊNCIAS (NÃO INCLUI FORNECIMENTO). AF_12/2015 | C122: M | D122: ATRIBUÍDO SÃO PAULO | E122: 6,47 | F122: CAIXA REFERENCIAL
A123: 92835 | B123: TUBO DE CONCRETO PARA REDES COLETORAS DE ESGOTO SANITÁRIO, DIÂMETRO DE 400 MM, JUNTA ELÁSTICA, INSTALADO EM LOCAL COM BAIXO NÍVEL DE INTERFERÊNCIAS - FORNECIMENTO E ASSENTAMENTO. AF_12/2015 | C123: M | D123: ATRIBUÍDO SÃO PAULO | E123: 202,69 | F123: CAIXA REFERENCIAL
A124: 92836 | B124: ASSENTAMENTO DE TUBO DE CONCRETO PARA REDES COLETORAS DE ESGOTO SANITÁRIO, DIÂMETRO DE 400 MM, JUNTA ELÁSTICA, INSTALADO EM LOCAL COM BAIXO NÍVEL DE INTERFERÊNCIAS (NÃO INCLUI FORNECIMENTO). AF_12/2015 | C124: M | D124: ATRIBUÍDO SÃO PAULO | E124: 8,27 | F124: CAIXA REFERENCIAL
A125: 92837 | B125: TUBO DE CONCRETO PARA REDES COLETORAS DE ESGOTO SANITÁRIO, DIÂMETRO DE 500 MM, JUNTA ELÁSTICA, INSTALADO EM LOCAL COM BAIXO NÍVEL DE INTERFERÊNCIAS - FORNECIMENTO E ASSENTAMENTO. AF_12/2015 | C125: M | D125: ATRIBUÍDO SÃO PAULO | E125: 341,46 | F125: CAIXA REFERENCIAL
A126: 92838 | B126: ASSENTAMENTO DE TUBO DE CONCRETO PARA REDES COLETORAS DE ESGOTO SANITÁRIO, DIÂMETRO DE 500 MM, JUNTA ELÁSTICA, INSTALADO EM LOCAL COM BAIXO NÍVEL DE INTERFERÊNCIAS (NÃO INCLUI FORNECIMENTO). AF_12/2015 | C126: M | D126: ATRIBUÍDO SÃO PAULO | E126: 9,92 | F126: CAIXA REFERENCIAL
A127: 92839 | B127: TUBO DE CONCRETO PARA REDES COLETORAS DE ESGOTO SANITÁRIO, DIÂMETRO DE 600 MM, JUNTA ELÁSTICA, INSTALADO EM LOCAL COM BAIXO NÍVEL DE INTERFERÊNCIAS - FORNECIMENTO E ASSENTAMENTO. AF_12/2015 | C127: M | D127: ATRIBUÍDO SÃO PAULO | E127: 418,46 | F127: CAIXA REFERENCIAL
A128: 92840 | B128: ASSENTAMENTO DE TUBO DE CONCRETO PARA REDES COLETORAS DE ESGOTO SANITÁRIO, DIÂMETRO DE 600 MM, JUNTA ELÁSTICA, INSTALADO EM LOCAL COM BAIXO NÍVEL DE INTERFERÊNCIAS (NÃO INCLUI FORNECIMENTO). AF_12/2015 | C128: M | D128: ATRIBUÍDO SÃO PAULO | E128: 11,75 | F128: CAIXA REFERENCIAL
A129: 92841 | B129: TUBO DE CONCRETO PARA REDES COLETORAS DE ESGOTO SANITÁRIO, DIÂMETRO DE 700 MM, JUNTA ELÁSTICA, INSTALADO EM LOCAL COM BAIXO NÍVEL DE INTERFERÊNCIAS - FORNECIMENTO E ASSENTAMENTO. AF_12/2015 | C129: M | D129: ATRIBUÍDO SÃO PAULO | E129: 526,20 | F129: CAIXA REFERENCIAL
A130: 92842 | B130: ASSENTAMENTO DE TUBO DE CONCRETO PARA REDES COLETORAS DE ESGOTO SANITÁRIO, DIÂMETRO DE 700 MM, JUNTA ELÁSTICA, INSTALADO EM LOCAL COM BAIXO NÍVEL DE INTERFERÊNCIAS (NÃO INCLUI FORNECIMENTO). AF_12/2015 | C130: M | D130: ATRIBUÍDO SÃO PAULO | E130: 13,42 | F130: CAIXA REFERENCIAL
A131: 92843 | B131: TUBO DE CONCRETO PARA REDES COLETORAS DE ESGOTO SANITÁRIO, DIÂMETRO DE 800 MM, JUNTA ELÁSTICA, INSTALADO EM LOCAL COM BAIXO NÍVEL DE INTERFERÊNCIAS - FORNECIMENTO E ASSENTAMENTO. AF_12/2015 | C131: M | D131: ATRIBUÍDO SÃO PAULO | E131: 554,83 | F131: CAIXA REFERENCIAL
A132: 92844 | B132: ASSENTAMENTO DE TUBO DE CONCRETO PARA REDES COLETORAS DE ESGOTO SANITÁRIO, DIÂMETRO DE 800 MM, JUNTA ELÁSTICA, INSTALADO EM LOCAL COM BAIXO NÍVEL DE INTERFERÊNCIAS (NÃO INCLUI FORNECIMENTO). AF_12/2015 | C132: M | D132: ATRIBUÍDO SÃO PAULO | E132: 15,26 | F132: CAIXA REFERENCIAL
A133: 92845 | B133: TUBO DE CONCRETO PARA REDES COLETORAS DE ESGOTO SANITÁRIO, DIÂMETRO DE 900 MM, JUNTA ELÁSTICA, INSTALADO EM LOCAL COM BAIXO NÍVEL DE INTERFERÊNCIAS - FORNECIMENTO E ASSENTAMENTO. AF_12/2015 | C133: M | D133: ATRIBUÍDO SÃO PAULO | E133: 779,46 | F133: CAIXA REFERENCIAL
A134: 92846 | B134: ASSENTAMENTO DE TUBO DE CONCRETO PARA REDES COLETORAS DE ESGOTO SANITÁRIO, DIÂMETRO DE 900 MM, JUNTA ELÁSTICA, INSTALADO EM LOCAL COM BAIXO NÍVEL DE INTERFERÊNCIAS (NÃO INCLUI FORNECIMENTO). AF_12/2015 | C134: M | D134: ATRIBUÍDO SÃO PAULO | E134: 16,91 | F134: CAIXA REFERENCIAL
A135: 92847 | B135: TUBO DE CONCRETO PARA REDES COLETORAS DE ESGOTO SANITÁRIO, DIÂMETRO DE 1000 MM, JUNTA ELÁSTICA, INSTALADO EM LOCAL COM BAIXO NÍVEL DE INTERFERÊNCIAS - FORNECIMENTO E ASSENTAMENTO. AF_12/2015 | C135: M | D135: ATRIBUÍDO SÃO PAULO | E135: 815,08 | F135: CAIXA REFERENCIAL
A136: 92848 | B136: ASSENTAMENTO DE TUBO DE CONCRETO PARA REDES COLETORAS DE ESGOTO SANITÁRIO, DIÂMETRO DE 1000 MM, JUNTA ELÁSTICA, INSTALADO EM LOCAL COM BAIXO NÍVEL DE INTERFERÊNCIAS (NÃO INCLUI FORNECIMENTO). AF_12/2015 | C136: M | D136: ATRIBUÍDO SÃO PAULO | E136: 18,77 | F136: CAIXA REFERENCIAL
A137: 92849 | B137: TUBO DE CONCRETO PARA REDES COLETORAS DE ESGOTO SANITÁRIO, DIÂMETRO DE 300 MM, JUNTA ELÁSTICA, INSTALADO EM LOCAL COM ALTO NÍVEL DE INTERFERÊNCIAS - FORNECIMENTO E ASSENTAMENTO. AF_12/2015 | C137: M | D137: ATRIBUÍDO SÃO PAULO | E137: 196,29 | F137: CAIXA REFERENCIAL
A138: 92850 | B138: ASSENTAMENTO DE TUBO DE CONCRETO PARA REDES COLETORAS DE ESGOTO SANITÁRIO, DIÂMETRO DE 300 MM, JUNTA ELÁSTICA, INSTALADO EM LOCAL COM ALTO NÍVEL DE INTERFERÊNCIAS (NÃO INCLUI FORNECIMENTO). AF_12/2015 | C138: M | D138: ATRIBUÍDO SÃO PAULO | E138: 12,24 | F138: CAIXA REFERENCIAL
A139: 92851 | B139: TUBO DE CONCRETO PARA REDES COLETORAS DE ESGOTO SANITÁRIO, DIÂMETRO DE 400 MM, JUNTA ELÁSTICA, INSTALADO EM LOCAL COM ALTO NÍVEL DE INTERFERÊNCIAS - FORNECIMENTO E ASSENTAMENTO. AF_12/2015 | C139: M | D139: ATRIBUÍDO SÃO PAULO | E139: 210,97 | F139: CAIXA REFERENCIAL
A140: 92852 | B140: ASSENTAMENTO DE TUBO DE CONCRETO PARA REDES COLETORAS DE ESGOTO SANITÁRIO, DIÂMETRO DE 400 MM, JUNTA ELÁSTICA, INSTALADO EM LOCAL COM ALTO NÍVEL DE INTERFERÊNCIAS (NÃO INCLUI FORNECIMENTO). AF_12/2015 | C140: M | D140: ATRIBUÍDO SÃO PAULO | E140: 15,47 | F140: CAIXA REFERENCIAL
A141: 92853 | B141: TUBO DE CONCRETO PARA REDES COLETORAS DE ESGOTO SANITÁRIO, DIÂMETRO DE 500 MM, JUNTA ELÁSTICA, INSTALADO EM LOCAL COM ALTO NÍVEL DE INTERFERÊNCIAS - FORNECIMENTO E ASSENTAMENTO. AF_12/2015 | C141: M | D141: ATRIBUÍDO SÃO PAULO | E141: 351,69 | F141: CAIXA REFERENCIAL
A142: 92854 | B142: ASSENTAMENTO DE TUBO DE CONCRETO PARA REDES COLETORAS DE ESGOTO SANITÁRIO, DIÂMETRO DE 500 MM, JUNTA ELÁSTICA, INSTALADO EM LOCAL COM ALTO NÍVEL DE INTERFERÊNCIAS (NÃO INCLUI FORNECIMENTO). AF_12/2015 | C142: M | D142: ATRIBUÍDO SÃO PAULO | E142: 18,83 | F142: CAIXA REFERENCIAL
A143: 92855 | B143: TUBO DE CONCRETO PARA REDES COLETORAS DE ESGOTO SANITÁRIO, DIÂMETRO DE 600 MM, JUNTA ELÁSTICA, INSTALADO EM LOCAL COM ALTO NÍVEL DE INTERFERÊNCIAS - FORNECIMENTO E ASSENTAMENTO. AF_12/2015 | C143: M | D143: ATRIBUÍDO SÃO PAULO | E143: 430,47 | F143: CAIXA REFERENCIAL
A144: 92856 | B144: ASSENTAMENTO DE TUBO DE CONCRETO PARA REDES COLETORAS DE ESGOTO SANITÁRIO, DIÂMETRO DE 600 MM, JUNTA ELÁSTICA, INSTALADO EM LOCAL COM ALTO NÍVEL DE INTERFERÊNCIAS (NÃO INCLUI FORNECIMENTO). AF_12/2015 | C144: M | D144: ATRIBUÍDO SÃO PAULO | E144: 22,20 | F144: CAIXA REFERENCIAL
A145: 92857 | B145: TUBO DE CONCRETO PARA REDES COLETORAS DE ESGOTO SANITÁRIO, DIÂMETRO DE 700 MM, JUNTA ELÁSTICA, INSTALADO EM LOCAL COM ALTO NÍVEL DE INTERFERÊNCIAS - FORNECIMENTO E ASSENTAMENTO. AF_12/2015 | C145: M | D145: ATRIBUÍDO SÃO PAULO | E145: 539,96 | F145: CAIXA REFERENCIAL
A146: 92858 | B146: ASSENTAMENTO DE TUBO DE CONCRETO PARA REDES COLETORAS DE ESGOTO SANITÁRIO, DIÂMETRO DE 700 MM, JUNTA ELÁSTICA, INSTALADO EM LOCAL COM ALTO NÍVEL DE INTERFERÊNCIAS (NÃO INCLUI FORNECIMENTO). AF_12/2015 | C146: M | D146: ATRIBUÍDO SÃO PAULO | E146: 25,40 | F146: CAIXA REFERENCIAL
A147: 92859 | B147: TUBO DE CONCRETO PARA REDES COLETORAS DE ESGOTO SANITÁRIO, DIÂMETRO DE 800 MM, JUNTA ELÁSTICA, INSTALADO EM LOCAL COM ALTO NÍVEL DE INTERFERÊNCIAS - FORNECIMENTO E ASSENTAMENTO. AF_12/2015 | C147: M | D147: ATRIBUÍDO SÃO PAULO | E147: 568,41 | F147: CAIXA REFERENCIAL
A148: 92860 | B148: ASSENTAMENTO DE TUBO DE CONCRETO PARA REDES COLETORAS DE ESGOTO SANITÁRIO, DIÂMETRO DE 800 MM, JUNTA ELÁSTICA, INSTALADO EM LOCAL COM ALTO NÍVEL DE INTERFERÊNCIAS (NÃO INCLUI FORNECIMENTO). AF_12/2015 | C148: M | D148: ATRIBUÍDO SÃO PAULO | E148: 28,84 | F148: CAIXA REFERENCIAL
A149: 92861 | B149: TUBO DE CONCRETO PARA REDES COLETORAS DE ESGOTO SANITÁRIO, DIÂMETRO DE 900 MM, JUNTA ELÁSTICA, INSTALADO EM LOCAL COM ALTO NÍVEL DE INTERFERÊNCIAS - FORNECIMENTO E ASSENTAMENTO. AF_12/2015 | C149: M | D149: ATRIBUÍDO SÃO PAULO | E149: 794,75 | F149: CAIXA REFERENCIAL
A150: 92862 | B150: ASSENTAMENTO DE TUBO DE CONCRETO PARA REDES COLETORAS DE ESGOTO SANITÁRIO, DIÂMETRO DE 900 MM, JUNTA ELÁSTICA, INSTALADO EM LOCAL COM ALTO NÍVEL DE INTERFERÊNCIAS (NÃO INCLUI FORNECIMENTO). AF_12/2015 | C150: M | D150: ATRIBUÍDO SÃO PAULO | E150: 32,20 | F150: CAIXA REFERENCIAL
A151: 92863 | B151: TUBO DE CONCRETO PARA REDES COLETORAS DE ESGOTO SANITÁRIO, DIÂMETRO DE 1000 MM, JUNTA ELÁSTICA, INSTALADO EM LOCAL COM ALTO NÍVEL DE INTERFERÊNCIAS - FORNECIMENTO E ASSENTAMENTO. AF_12/2015 | C151: M | D151: ATRIBUÍDO SÃO PAULO | E151: 834,36 | F151: CAIXA REFERENCIAL
A152: 92864 | B152: ASSENTAMENTO DE TUBO DE CONCRETO PARA REDES COLETORAS DE ESGOTO SANITÁRIO, DIÂMETRO DE 1000 MM, JUNTA ELÁSTICA, INSTALADO EM LOCAL COM ALTO NÍVEL DE INTERFERÊNCIAS (NÃO INCLUI FORNECIMENTO). AF_12/2015 | C152: M | D152: ATRIBUÍDO SÃO PAULO | E152: 35,55 | F152: CAIXA REFERENCIAL
A153: 92210 | B153: TUBO DE CONCRETO PARA REDES COLETORAS DE ÁGUAS PLUVIAIS, DIÂMETRO DE 400 MM, JUNTA RÍGIDA, INSTALADO EM LOCAL COM BAIXO NÍVEL DE INTERFERÊNCIAS - FORNECIMENTO E ASSENTAMENTO. AF_12/2015 | C153: M | D153: ATRIBUÍDO SÃO PAULO | E153: 127,52 | F153: CAIXA REFERENCIAL
A154: 92211 | B154: TUBO DE CONCRETO PARA REDES COLETORAS DE ÁGUAS PLUVIAIS, DIÂMETRO DE 500 MM, JUNTA RÍGIDA, INSTALADO EM LOCAL COM BAIXO NÍVEL DE INTERFERÊNCIAS - FORNECIMENTO E ASSENTAMENTO. AF_12/2015 | C154: M | D154: ATRIBUÍDO SÃO PAULO | E154: 153,29 | F154: CAIXA REFERENCIAL
A155: 92212 | B155: TUBO DE CONCRETO PARA REDES COLETORAS DE ÁGUAS PLUVIAIS, DIÂMETRO DE 600 MM, JUNTA RÍGIDA, INSTALADO EM LOCAL COM BAIXO NÍVEL DE INTERFERÊNCIAS - FORNECIMENTO E ASSENTAMENTO. AF_12/2015 | C155: M | D155: ATRIBUÍDO SÃO PAULO | E155: 228,75 | F155: CAIXA REFERENCIAL
A156: 92213 | B156: TUBO DE CONCRETO PARA REDES COLETORAS DE ÁGUAS PLUVIAIS, DIÂMETRO DE 700 MM, JUNTA RÍGIDA, INSTALADO EM LOCAL COM BAIXO NÍVEL DE INTERFERÊNCIAS - FORNECIMENTO E ASSENTAMENTO. AF_12/2015 | C156: M | D156: ATRIBUÍDO SÃO PAULO | E156: 300,70 | F156: CAIXA REFERENCIAL
A157: 92214 | B157: TUBO DE CONCRETO PARA REDES COLETORAS DE ÁGUAS PLUVIAIS, DIÂMETRO DE 800 MM, JUNTA RÍGIDA, INSTALADO EM LOCAL COM BAIXO NÍVEL DE INTERFERÊNCIAS - FORNECIMENTO E ASSENTAMENTO. AF_12/2015 | C157: M | D157: ATRIBUÍDO SÃO PAULO | E157: 363,65 | F157: CAIXA REFERENCIAL
A158: 92215 | B158: TUBO DE CONCRETO PARA REDES COLETORAS DE ÁGUAS PLUVIAIS, DIÂMETRO DE 900 MM, JUNTA RÍGIDA, INSTALADO EM LOCAL COM BAIXO NÍVEL DE INTERFERÊNCIAS - FORNECIMENTO E ASSENTAMENTO. AF_12/2015 | C158: M | D158: ATRIBUÍDO SÃO PAULO | E158: 417,95 | F158: CAIXA REFERENCIAL
A159: 92216 | B159: TUBO DE CONCRETO PARA REDES COLETORAS DE ÁGUAS PLUVIAIS, DIÂMETRO DE 1000 MM, JUNTA RÍGIDA, INSTALADO EM LOCAL COM BAIXO NÍVEL DE INTERFERÊNCIAS - FORNECIMENTO E ASSENTAMENTO. AF_12/2015 | C159: M | D159: ATRIBUÍDO SÃO PAULO | E159: 437,75 | F159: CAIXA REFERENCIAL
A160: 92219 | B160: TUBO DE CONCRETO PARA REDES COLETORAS DE ÁGUAS PLUVIAIS, DIÂMETRO DE 400 MM, JUNTA RÍGIDA, INSTALADO EM LOCAL COM ALTO NÍVEL DE INTERFERÊNCIAS - FORNECIMENTO E ASSENTAMENTO. AF_12/2015 | C160: M | D160: ATRIBUÍDO SÃO PAULO | E160: 134,71 | F160: CAIXA REFERENCIAL
A161: 92220 | B161: TUBO DE CONCRETO PARA REDES COLETORAS DE ÁGUAS PLUVIAIS, DIÂMETRO DE 500 MM, JUNTA RÍGIDA, INSTALADO EM LOCAL COM ALTO NÍVEL DE INTERFERÊNCIAS - FORNECIMENTO E ASSENTAMENTO. AF_12/2015 | C161: M | D161: ATRIBUÍDO SÃO PAULO | E161: 162,21 | F161: CAIXA REFERENCIAL
A162: 92221 | B162: TUBO DE CONCRETO PARA REDES COLETORAS DE ÁGUAS PLUVIAIS, DIÂMETRO DE 600 MM, JUNTA RÍGIDA, INSTALADO EM LOCAL COM ALTO NÍVEL DE INTERFERÊNCIAS - FORNECIMENTO E ASSENTAMENTO. AF_12/2015 | C162: M | D162: ATRIBUÍDO SÃO PAULO | E162: 239,19 | F162: CAIXA REFERENCIAL
A163: 92222 | B163: TUBO DE CONCRETO PARA REDES COLETORAS DE ÁGUAS PLUVIAIS, DIÂMETRO DE 700 MM, JUNTA RÍGIDA, INSTALADO EM LOCAL COM ALTO NÍVEL DE INTERFERÊNCIAS - FORNECIMENTO E ASSENTAMENTO. AF_12/2015 | C163: M | D163: ATRIBUÍDO SÃO PAULO | E163: 312,84 | F163: CAIXA REFERENCIAL
A164: 92223 | B164: TUBO DE CONCRETO PARA REDES COLETORAS DE ÁGUAS PLUVIAIS, DIÂMETRO DE 800 MM, JUNTA RÍGIDA, INSTALADO EM LOCAL COM ALTO NÍVEL DE INTERFERÊNCIAS - FORNECIMENTO E ASSENTAMENTO. AF_12/2015 | C164: M | D164: ATRIBUÍDO SÃO PAULO | E164: 377,21 | F164: CAIXA REFERENCIAL
A165: 92224 | B165: TUBO DE CONCRETO PARA REDES COLETORAS DE ÁGUAS PLUVIAIS, DIÂMETRO DE 900 MM, JUNTA RÍGIDA, INSTALADO EM LOCAL COM ALTO NÍVEL DE INTERFERÊNCIAS - FORNECIMENTO E ASSENTAMENTO. AF_12/2015 | C165: M | D165: ATRIBUÍDO SÃO PAULO | E165: 433,02 | F165: CAIXA REFERENCIAL
A166: 92226 | B166: TUBO DE CONCRETO PARA REDES COLETORAS DE ÁGUAS PLUVIAIS, DIÂMETRO DE 1000 MM, JUNTA RÍGIDA, INSTALADO EM LOCAL COM ALTO NÍVEL DE INTERFERÊNCIAS - FORNECIMENTO E ASSENTAMENTO. AF_12/2015 | C166: M | D166: ATRIBUÍDO SÃO PAULO | E166: 454,63 | F166: CAIXA REFERENCIAL
A167: 92808 | B167: ASSENTAMENTO DE TUBO DE CONCRETO PARA REDES COLETORAS DE ÁGUAS PLUVIAIS, DIÂMETRO DE 300 MM, JUNTA RÍGIDA, INSTALADO EM LOCAL COM BAIXO NÍVEL DE INTERFERÊNCIAS (NÃO INCLUI FORNECIMENTO). AF_12/2015 | C167: M | D167: ATRIBUÍDO SÃO PAULO | E167: 29,29 | F167: CAIXA REFERENCIAL
A168: 92809 | B168: ASSENTAMENTO DE TUBO DE CONCRETO PARA REDES COLETORAS DE ÁGUAS PLUVIAIS, DIÂMETRO DE 400 MM, JUNTA RÍGIDA, INSTALADO EM LOCAL COM BAIXO NÍVEL DE INTERFERÊNCIAS (NÃO INCLUI FORNECIMENTO). AF_12/2015 | C168: M | D168: ATRIBUÍDO SÃO PAULO | E168: 37,63 | F168: CAIXA REFERENCIAL
A169: 92810 | B169: ASSENTAMENTO DE TUBO DE CONCRETO PARA REDES COLETORAS DE ÁGUAS PLUVIAIS, DIÂMETRO DE 500 MM, JUNTA RÍGIDA, INSTALADO EM LOCAL COM BAIXO NÍVEL DE INTERFERÊNCIAS (NÃO INCLUI FORNECIMENTO). AF_12/2015 | C169: M | D169: ATRIBUÍDO SÃO PAULO | E169: 45,86 | F169: CAIXA REFERENCIAL
A170: 92811 | B170: ASSENTAMENTO DE TUBO DE CONCRETO PARA REDES COLETORAS DE ÁGUAS PLUVIAIS, DIÂMETRO DE 600 MM, JUNTA RÍGIDA, INSTALADO EM LOCAL COM BAIXO NÍVEL DE INTERFERÊNCIAS (NÃO INCLUI FORNECIMENTO). AF_12/2015 | C170: M | D170: ATRIBUÍDO SÃO PAULO | E170: 54,80 | F170: CAIXA REFERENCIAL
A171: 92812 | B171: ASSENTAMENTO DE TUBO DE CONCRETO PARA REDES COLETORAS DE ÁGUAS PLUVIAIS, DIÂMETRO DE 700 MM, JUNTA RÍGIDA, INSTALADO EM LOCAL COM BAIXO NÍVEL DE INTERFERÊNCIAS (NÃO INCLUI FORNECIMENTO). AF_12/2015 | C171: M | D171: ATRIBUÍDO SÃO PAULO | E171: 63,60 | F171: CAIXA REFERENCIAL
A172: 92813 | B172: ASSENTAMENTO DE TUBO DE CONCRETO PARA REDES COLETORAS DE ÁGUAS PLUVIAIS, DIÂMETRO DE 800 MM, JUNTA RÍGIDA, INSTALADO EM LOCAL COM BAIXO NÍVEL DE INTERFERÊNCIAS (NÃO INCLUI FORNECIMENTO). AF_12/2015 | C172: M | D172: ATRIBUÍDO SÃO PAULO | E172: 74,21 | F172: CAIXA REFERENCIAL
A173: 92814 | B173: ASSENTAMENTO DE TUBO DE CONCRETO PARA REDES COLETORAS DE ÁGUAS PLUVIAIS, DIÂMETRO DE 900 MM, JUNTA RÍGIDA, INSTALADO EM LOCAL COM BAIXO NÍVEL DE INTERFERÊNCIAS (NÃO INCLUI FORNECIMENTO). AF_12/2015 | C173: M | D173: ATRIBUÍDO SÃO PAULO | E173: 85,40 | F173: CAIXA REFERENCIAL
A174: 92815 | B174: ASSENTAMENTO DE TUBO DE CONCRETO PARA REDES COLETORAS DE ÁGUAS PLUVIAIS, DIÂMETRO DE 1000 MM, JUNTA RÍGIDA, INSTALADO EM LOCAL COM BAIXO NÍVEL DE INTERFERÊNCIAS (NÃO INCLUI FORNECIMENTO). AF_12/2015 | C174: M | D174: ATRIBUÍDO SÃO PAULO | E174: 98,62 | F174: CAIXA REFERENCIAL
A175: 92816 | B175: TUBO DE CONCRETO PARA REDES COLETORAS DE ÁGUAS PLUVIAIS, DIÂMETRO DE 1200 MM, JUNTA RÍGIDA, INSTALADO EM LOCAL COM BAIXO NÍVEL DE INTERFERÊNCIAS - FORNECIMENTO E ASSENTAMENTO. AF_12/2015 | C175: M | D175: ATRIBUÍDO SÃO PAULO | E175: 629,92 | F175: CAIXA REFERENCIAL
A176: 92817 | B176: ASSENTAMENTO DE TUBO DE CONCRETO PARA REDES COLETORAS DE ÁGUAS PLUVIAIS, DIÂMETRO DE 1200 MM, JUNTA RÍGIDA, INSTALADO EM LOCAL COM BAIXO NÍVEL DE INTERFERÊNCIAS (NÃO INCLUI FORNECIMENTO). AF_12/2015 | C176: M | D176: ATRIBUÍDO SÃO PAULO | E176: 123,41 | F176: CAIXA REFERENCIAL
A177: 92818 | B177: TUBO DE CONCRETO PARA REDES COLETORAS DE ÁGUAS PLUVIAIS, DIÂMETRO DE 1500 MM, JUNTA RÍGIDA, INSTALADO EM LOCAL COM BAIXO NÍVEL DE INTERFERÊNCIAS - FORNECIMENTO E ASSENTAMENTO. AF_12/2015 | C177: M | D177: ATRIBUÍDO SÃO PAULO | E177: 899,96 | F177: CAIXA REFERENCIAL
A178: 92819 | B178: ASSENTAMENTO DE TUBO DE CONCRETO PARA REDES COLETORAS DE ÁGUAS PLUVIAIS, DIÂMETRO DE 1500 MM, JUNTA RÍGIDA, INSTALADO EM LOCAL COM BAIXO NÍVEL DE INTERFERÊNCIAS (NÃO INCLUI FORNECIMENTO). AF_12/2015 | C178: M | D178: ATRIBUÍDO SÃO PAULO | E178: 166,13 | F178: CAIXA REFERENCIAL
A179: 92820 | B179: ASSENTAMENTO DE TUBO DE CONCRETO PARA REDES COLETORAS DE ÁGUAS PLUVIAIS, DIÂMETRO DE 300 MM, JUNTA RÍGIDA, INSTALADO EM LOCAL COM ALTO NÍVEL DE INTERFERÊNCIAS (NÃO INCLUI FORNECIMENTO). AF_12/2015 | C179: M | D179: ATRIBUÍDO SÃO PAULO | E179: 34,91 | F179: CAIXA REFERENCIAL
A180: 92821 | B180: ASSENTAMENTO DE TUBO DE CONCRETO PARA REDES COLETORAS DE ÁGUAS PLUVIAIS, DIÂMETRO DE 400 MM, JUNTA RÍGIDA, INSTALADO EM LOCAL COM ALTO NÍVEL DE INTERFERÊNCIAS (NÃO INCLUI FORNECIMENTO). AF_12/2015 | C180: M | D180: ATRIBUÍDO SÃO PAULO | E180: 44,82 | F180: CAIXA REFERENCIAL
A181: 92822 | B181: ASSENTAMENTO DE TUBO DE CONCRETO PARA REDES COLETORAS DE ÁGUAS PLUVIAIS, DIÂMETRO DE 500 MM, JUNTA RÍGIDA, INSTALADO EM LOCAL COM ALTO NÍVEL DE INTERFERÊNCIAS (NÃO INCLUI FORNECIMENTO). AF_12/2015 | C181: M | D181: ATRIBUÍDO SÃO PAULO | E181: 54,78 | F181: CAIXA REFERENCIAL
A182: 92824 | B182: ASSENTAMENTO DE TUBO DE CONCRETO PARA REDES COLETORAS DE ÁGUAS PLUVIAIS, DIÂMETRO DE 600 MM, JUNTA RÍGIDA, INSTALADO EM LOCAL COM ALTO NÍVEL DE INTERFERÊNCIAS (NÃO INCLUI FORNECIMENTO). AF_12/2015 | C182: M | D182: ATRIBUÍDO SÃO PAULO | E182: 65,24 | F182: CAIXA REFERENCIAL
A183: 92825 | B183: ASSENTAMENTO DE TUBO DE CONCRETO PARA REDES COLETORAS DE ÁGUAS PLUVIAIS, DIÂMETRO DE 700 MM, JUNTA RÍGIDA, INSTALADO EM LOCAL COM ALTO NÍVEL DE INTERFERÊNCIAS (NÃO INCLUI FORNECIMENTO). AF_12/2015 | C183: M | D183: ATRIBUÍDO SÃO PAULO | E183: 75,74 | F183: CAIXA REFERENCIAL
A184: 92826 | B184: ASSENTAMENTO DE TUBO DE CONCRETO PARA REDES COLETORAS DE ÁGUAS PLUVIAIS, DIÂMETRO DE 800 MM, JUNTA RÍGIDA, INSTALADO EM LOCAL COM ALTO NÍVEL DE INTERFERÊNCIAS (NÃO INCLUI FORNECIMENTO). AF_12/2015 | C184: M | D184: ATRIBUÍDO SÃO PAULO | E184: 87,77 | F184: CAIXA REFERENCIAL
A185: 92827 | B185: ASSENTAMENTO DE TUBO DE CONCRETO PARA REDES COLETORAS DE ÁGUAS PLUVIAIS, DIÂMETRO DE 900 MM, JUNTA RÍGIDA, INSTALADO EM LOCAL COM ALTO NÍVEL DE INTERFERÊNCIAS (NÃO INCLUI FORNECIMENTO). AF_12/2015 | C185: M | D185: ATRIBUÍDO SÃO PAULO | E185: 100,47 | F185: CAIXA REFERENCIAL
A186: 92828 | B186: ASSENTAMENTO DE TUBO DE CONCRETO PARA REDES COLETORAS DE ÁGUAS PLUVIAIS, DIÂMETRO DE 1000 MM, JUNTA RÍGIDA, INSTALADO EM LOCAL COM ALTO NÍVEL DE INTERFERÊNCIAS (NÃO INCLUI FORNECIMENTO). AF_12/2015 | C186: M | D186: ATRIBUÍDO SÃO PAULO | E186: 115,50 | F186: CAIXA REFERENCIAL
A187: 92829 | B187: TUBO DE CONCRETO PARA REDES COLETORAS DE ÁGUAS PLUVIAIS, DIÂMETRO DE 1200 MM, JUNTA RÍGIDA, INSTALADO EM LOCAL COM ALTO NÍVEL DE INTERFERÊNCIAS - FORNECIMENTO E ASSENTAMENTO. AF_12/2015 | C187: M | D187: ATRIBUÍDO SÃO PAULO | E187: 649,78 | F187: CAIXA REFERENCIAL
A188: 92830 | B188: ASSENTAMENTO DE TUBO DE CONCRETO PARA REDES COLETORAS DE ÁGUAS PLUVIAIS, DIÂMETRO DE 1200 MM, JUNTA RÍGIDA, INSTALADO EM LOCAL COM ALTO NÍVEL DE INTERFERÊNCIAS (NÃO INCLUI FORNECIMENTO). AF_12/2015 | C188: M | D188: ATRIBUÍDO SÃO PAULO | E188: 143,27 | F188: CAIXA REFERENCIAL
A189: 92831 | B189: TUBO DE CONCRETO PARA REDES COLETORAS DE ÁGUAS PLUVIAIS, DIÂMETRO DE 1500 MM, JUNTA RÍGIDA, INSTALADO EM LOCAL COM ALTO NÍVEL DE INTERFERÊNCIAS - FORNECIMENTO E ASSENTAMENTO. AF_12/2015 | C189: M | D189: ATRIBUÍDO SÃO PAULO | E189: 924,30 | F189: CAIXA REFERENCIAL
A190: 92832 | B190: ASSENTAMENTO DE TUBO DE CONCRETO PARA REDES COLETORAS DE ÁGUAS PLUVIAIS, DIÂMETRO DE 1500 MM, JUNTA RÍGIDA, INSTALADO EM LOCAL COM ALTO NÍVEL DE INTERFERÊNCIAS (NÃO INCLUI FORNECIMENTO). AF_12/2015 | C190: M | D190: ATRIBUÍDO SÃO PAULO | E190: 190,47 | F190: CAIXA REFERENCIAL
A191: 95565 | B191: TUBO DE CONCRETO PARA REDES COLETORAS DE ÁGUAS PLUVIAIS, DIÂMETRO DE 300MM, JUNTA RÍGIDA, INSTALADO EM LOCAL COM BAIXO NÍVEL DE INTERFERÊNCIAS - FORNECIMENTO E ASSENTAMENTO. AF_12/2015 | C191: M | D191: ATRIBUÍDO SÃO PAULO | E191: 113,22 | F191: CAIXA REFERENCIAL
A192: 95566 | B192: TUBO DE CONCRETO PARA REDES COLETORAS DE ÁGUAS PLUVIAIS, DIÂMETRO DE 300MM, JUNTA RÍGIDA, INSTALADO EM LOCAL COM ALTO NÍVEL DE INTERFERÊNCIAS - FORNECIMENTO E ASSENTAMENTO. AF_12/2015 | C192: M | D192: ATRIBUÍDO SÃO PAULO | E192: 119,68 | F192: CAIXA REFERENCIAL
A193: 95567 | B193: TUBO DE CONCRETO (SIMPLES) PARA REDES COLETORAS DE ÁGUAS PLUVIAIS, DIÂMETRO DE 300 MM, JUNTA RÍGIDA, INSTALADO EM LOCAL COM BAIXO NÍVEL DE INTERFERÊNCIAS - FORNECIMENTO E ASSENTAMENTO. AF_12/2015 | C193: M | D193: ATRIBUÍDO SÃO PAULO | E193: 72,70 | F193: CAIXA REFERENCIAL
A194: 95568 | B194: TUBO DE CONCRETO (SIMPLES) PARA REDES COLETORAS DE ÁGUAS PLUVIAIS, DIÂMETRO DE 400 MM, JUNTA RÍGIDA, INSTALADO EM LOCAL COM BAIXO NÍVEL DE INTERFERÊNCIAS - FORNECIMENTO E ASSENTAMENTO. AF_12/2015 | C194: M | D194: ATRIBUÍDO SÃO PAULO | E194: 89,29 | F194: CAIXA REFERENCIAL
A195: 95569 | B195: TUBO DE CONCRETO (SIMPLES) PARA REDES COLETORAS DE ÁGUAS PLUVIAIS, DIÂMETRO DE 500 MM, JUNTA RÍGIDA, INSTALADO EM LOCAL COM BAIXO NÍVEL DE INTERFERÊNCIAS - FORNECIMENTO E ASSENTAMENTO. AF_12/2015 | C195: M | D195: ATRIBUÍDO SÃO PAULO | E195: 121,27 | F195: CAIXA REFERENCIAL
A196: 95570 | B196: TUBO DE CONCRETO (SIMPLES) PARA REDES COLETORAS DE ÁGUAS PLUVIAIS, DIÂMETRO DE 300 MM, JUNTA RÍGIDA, INSTALADO EM LOCAL COM ALTO NÍVEL DE INTERFERÊNCIAS - FORNECIMENTO E ASSENTAMENTO. AF_12/2015 | C196: M | D196: ATRIBUÍDO SÃO PAULO | E196: 79,16 | F196: CAIXA REFERENCIAL
A197: 95571 | B197: TUBO DE CONCRETO (SIMPLES) PARA REDES COLETORAS DE ÁGUAS PLUVIAIS, DIÂMETRO DE 400 MM, JUNTA RÍGIDA, INSTALADO EM LOCAL COM ALTO NÍVEL DE INTERFERÊNCIAS - FORNECIMENTO E ASSENTAMENTO. AF_12/2015 | C197: M | D197: ATRIBUÍDO SÃO PAULO | E197: 97,56 | F197: CAIXA REFERENCIAL
A198: 95572 | B198: TUBO DE CONCRETO (SIMPLES) PARA REDES COLETORAS DE ÁGUAS PLUVIAIS, DIÂMETRO DE 500 MM, JUNTA RÍGIDA, INSTALADO EM LOCAL COM ALTO NÍVEL DE INTERFERÊNCIAS - FORNECIMENTO E ASSENTAMENTO. AF_12/2015 | C198: M | D198: ATRIBUÍDO SÃO PAULO | E198: 131,50 | F198: CAIXA REFERENCIAL
A199: 97127 | B199: ASSENTAMENTO DE TUBO DE PVC DEFOFO OU PRFV OU RPVC PARA REDE DE ÁGUA, DN 150 MM, JUNTA ELÁSTICA INTEGRADA, INSTALADO EM LOCAL COM NÍVEL ALTO DE INTERFERÊNCIAS (NÃO INCLUI FORNECIMENTO). AF_11/2017 | C199: M | D199: COEFICIENTE DE REPRESENTATIVIDADE | E199: 3,82 | F199: CAIXA REFERENCIAL
A200: 97128 | B200: ASSENTAMENTO DE TUBO DE PVC DEFOFO OU PRFV OU RPVC PARA REDE DE ÁGUA, DN 200 MM, JUNTA ELÁSTICA INTEGRADA, INSTALADO EM LOCAL COM NÍVEL ALTO DE INTERFERÊNCIAS (NÃO INCLUI FORNECIMENTO). AF_11/2017 | C200: M | D200: ATRIBUÍDO SÃO PAULO | E200: 7,52 | F200: CAIXA REFERENCIAL
A201: 97129 | B201: ASSENTAMENTO DE TUBO DE PVC DEFOFO OU PRFV OU RPVC PARA REDE DE ÁGUA, DN 250 MM, JUNTA ELÁSTICA INTEGRADA, INSTALADO EM LOCAL COM NÍVEL ALTO DE INTERFERÊNCIAS (NÃO INCLUI FORNECIMENTO). AF_11/2017 | C201: M | D201: ATRIBUÍDO SÃO PAULO | E201: 9,26 | F201: CAIXA REFERENCIAL
A202: 97130 | B202: ASSENTAMENTO DE TUBO DE PVC DEFOFO OU PRFV OU RPVC PARA REDE DE ÁGUA, DN 300 MM, JUNTA ELÁSTICA INTEGRADA, INSTALADO EM LOCAL COM NÍVEL ALTO DE INTERFERÊNCIAS (NÃO INCLUI FORNECIMENTO). AF_11/2017 | C202: M | D202: ATRIBUÍDO SÃO PAULO | E202: 10,98 | F202: CAIXA REFERENCIAL
... 6775 more rows

Sheet INSUMOS SICRO
B1: 1 | C1: 2 | D1: 3 | E1: 4 | F1: 5 | G1: 6 | H1: 7 | I1: 8
B2: CGCIT | C2: SISTEMA DE CUSTOS REFERENCIAIS DE OBRAS - SICRO | F2: DNIT
C3: Goiás - Janeiro/2021 (atualizar)
F4: Preço Unitário | H4: Pesquisa: | I4: 42694
B5: Código | C5: Descrição | D5: Unidade | F5: (R$) | G5: Aquisição | H5: Improdutivo | I5: Operativo
B6: M0003 | C6: Aço CA 25 | D6: kg | F6: 3.8044
B7: M0004 | C7: Aço CA 50 | D7: kg | F7: 3.5779
B8: M0005 | C8: Brita 0 | D8: m³ | F8: 84.1473
B9: M0006 | C9: Fibra de nylon para concreto | D9: kg | F9: 15.1438
B10: M0007 | C10: Fibra de aço para concreto | D10: kg | F10: 7.1356
B11: M0008 | C11: Detergente | D11: l | F11: 2.9592
B12: M0009 | C12: Aço CP 175 RB | D12: kg | F12: 8.6004
B13: M0010 | C13: Superplastificante | D13: kg | F13: 8.7971
B14: M0011 | C14: Aditivo modificador de viscosidade | D14: kg | F14: 5.5947
B15: M0012 | C15: Silicato de alumínio | D15: kg | F15: 1.5964
B16: M0013 | C16: Grampo de ancoragem CA 50 - D = 12,5 mm | D16: kg | F16: 3.5779
B17: M0014 | C17: Aço CA 60 | D17: kg | F17: 4.1435
B18: M0015 | C18: Espoleta elétrica | D18: un | F18: 17.9966
B19: M0016 | C19: Grampo sargento nº 4 | D19: un | F19: 33.748
B20: M0017 | C20: Saco de aniagem ou de ráfia de 95 x 65 cm de 50 kg | D20: un | F20: 1.659
B21: M0018 | C21: Grampo pesado para cabo de aço - D = 13 mm | D21: un | F21: 9.4097
B22: M0019 | C22: Esticador para cabo de aço - D = 13 mm | D22: un | F22: 84.853
B23: M0020 | C23: Grampo de ancoragem CA 50 - D = 6,3 mm | D23: kg | F23: 3.8966
B24: M0021 | C24: Herbicida glifosato para áreas contínuas | D24: l | F24: 18.7508
B25: M0025 | C25: Adesivo plástico para tubos de PVC | D25: kg | F25: 39.2048
B26: M0026 | C26: Aditivo aglutinante para argamassa | D26: l | F26: 4.3117
B27: M0028 | C27: Areia média | D27: m³ | F27: 82.564
B28: M0029 | C28: Microssílica | D28: kg | F28: 1.5756
B29: M0030 | C29: Aditivo plastificante e retardador de pega para concreto e argamassa | D29: kg | F29: 4.3696
B30: M0032 | C30: Cola de contato para laminado elastoplástico | D30: kg | F30: 21.3035
B31: M0035 | C31: Diluente tipo aguarrás para tintas e vernizes | D31: l | F31: 10.656
B32: M0039 | C32: Gasolina | D32: l | F32: 3.8051
B33: M0041 | C33: Container de 1 TEU com 2 banheiros | D33: un | F33: 40331.1416
B34: M0042 | C34: Container de 1 TEU com janela | D34: un | F34: 31882.35
B35: M0043 | C35: Diesel | D35: l | F35: 3.0753
B36: M0044 | C36: Abrasivo de vidro com granulometria de 250 a 420 microns | D36: kg | F36: 6.05
B37: M0045 | C37: Barreira plástica monobloco para canalização de trânsito de 101 x 50 x 55 cm | D37: un | F37: 883.54
B38: M0046 | C38: Barreira plástica para canalização de trânsito de 60 x 45 x 60 cm | D38: un | F38: 375.0521
B39: M0047 | C39: Cone plástico de sinalização - NBR 15.071 | D39: un | F39: 49.4572
B40: M0048 | C40: Balizador cônico refletivo em polietileno semiflexível de 114 x 11 x 40 cm | D40: un | F40: 133.2197
B41: M0049 | C41: Delimitador de tráfego flexível com duas faixas refletivas com chumbador - D = 20 cm e H = 80 cm | D41: un | F41: 171.3581
B42: M0050 | C42: Adesivo fixador para hidrossemeadura - Goma Xantana | D42: kg | F42: 34.0036
B43: M0051 | C43: Cilindro canalizador de tráfego com base quadrada de 111 x 56 x 56 cm - NBR 15.692:2009 | D43: un | F43: 286.9778
B44: M0052 | C44: Fita de PVC de 50 mm x 50m | D44: m | F44: 0.0921
B45: M0053 | C45: Tela plástica para tapume cor laranja - L = 1,2 m | D45: m | F45: 1.1352
B46: M0054 | C46: Fita zebrada de cor laranja e branca - L = 7 a 8 cm | D46: m | F46: 0.0759
B47: M0055 | C47: Barreira plástica articulável modular na cor amarela de 240 x 100 cm | D47: un | F47: 1873.64
B48: M0056 | C48: Ferramenta de corte para removedora de faixa de sinalização (Smith Cutter) | D48: un | F48: 5183.1056
B49: M0057 | C49: Container de 1 TEU duplo (6,0 m x 4,88 m) com janela | D49: un | F49: 57812.7264
B50: M0058 | C50: Container de 1 TEU duplo (6,0 m x 4,88 m) com janela e 2 lavabos | D50: un | F50: 62200.8337
B51: M0059 | C51: Container de 1 TEU com revestimento térmico (ar condicionado) com janela e 1 banheiro | D51: un | F51: 35026.2383
B52: M0060 | C52: Container 3/4 de 1 TEU com janela | D52: un | F52: 26329.538
B53: M0061 | C53: Apoio de neoprene fretado de 100 x 100 x 28 mm | D53: un | F53: 21.361
B54: M0062 | C54: Apoio de neoprene fretado de 300 x 400 x 85 mm | D54: un | F54: 778.1628
B55: M0063 | C55: Apoio de neoprene fretado de 350 x 450 x 99 mm | D55: un | F55: 1189.6238
B56: M0064 | C56: Apoio de neoprene fretado de 150 x 200 x 35 mm | D56: un | F56: 80.1139
B57: M0065 | C57: Container 3/4 de 1 TEU com janela e 1 banheiro | D57: un | F57: 30329.538
B58: M0066 | C58: Container de 2 TEU com revestimento térmico (ar condicionado) com janela e 1 lavabo | D58: un | F58: 51588.0098
B59: M0067 | C59: Tubo PE 100 PN10 com flanges - D = 160 mm | D59: m | F59: 146.9614
B60: M0068 | C60: Caibro de pinho de 7,5 x 10 cm | D60: m | F60: 48.9623
B61: M0069 | C61: Arame farpado galvanizado 16 BWG | D61: m | F61: 0.3747
B62: M0070 | C62: Arame liso galvanizado 10 BWG | D62: kg | F62: 9.5
B63: M0071 | C63: Container de 1/2 de 1 TEU, com 3 janelas, para guarita, Delta Containers ou similar | D63: un | F63: 18436.3425
B64: M0072 | C64: Arame liso galvanizado 14 BWG | D64: kg | F64: 11
B65: M0073 | C65: Muda arbórea de porte de 30 a 80 cm | D65: un | F65: 4.5242
B66: M0074 | C66: Muda arbustiva de porte de 50 cm | D66: un | F66: 10.3734
B67: M0075 | C67: Arame recozido 18 BWG | D67: kg | F67: 7.2149
B68: M0076 | C68: Disco de corte para policorte - D = 30 cm | D68: un | F68: 13.0516
B69: M0080 | C69: Areia fina | D69: m³ | F69: 88.1103
B70: M0081 | C70: Areia grossa | D70: m³ | F70: 80.1874
B71: M0082 | C71: Areia média lavada | D71: m³ | F71: 94.6766
B72: M0083 | C72: Argamassa pré-dosada para grauteamento | D72: kg | F72: 1.3337
B73: M0084 | C73: Argamassa pré-dosada autoadensável para grauteamento | D73: kg | F73: 1.2427
B74: M0085 | C74: Ancoragem ativa em ferro fundido nodular para 4 cordoalhas - D = 12,7 mm | D74: un | F74: 154.1999
B75: M0086 | C75: Ancoragem ativa em ferro fundido nodular para 6 cordoalhas - D = 12,7 mm | D75: un | F75: 235.3908
B76: M0087 | C76: Ancoragem ativa em ferro fundido nodular para 7 cordoalhas - D = 12,7 mm | D76: un | F76: 252.9697
B77: M0088 | C77: Ancoragem ativa em ferro fundido nodular para 8 cordoalhas - D = 12,7 mm | D77: un | F77: 274.0586
B78: M0089 | C78: Ancoragem ativa em ferro fundido nodular para 9 cordoalhas - D = 12,7 mm | D78: un | F78: 292.5157
B79: M0091 | C79: Ancoragem ativa em ferro fundido nodular para 10 cordoalhas - D = 12,7 mm | D79: un | F79: 358.9493
B80: M0092 | C80: Ancoragem ativa em ferro fundido nodular para 12 cordoalhas - D = 12,7 mm | D80: un | F80: 420.4683
B81: M0093 | C81: Ancoragem ativa em ferro fundido nodular para 15 cordoalhas - D = 12,7 mm | D81: un | F81: 772.2251
B82: M0094 | C82: Ancoragem ativa em ferro fundido nodular para 19 cordoalhas - D = 12,7 mm | D82: un | F82: 881.4362
B83: M0098 | C83: Bambu com diâmetro médio de 10 cm | D83: m | F83: 15.5602
B84: M0099 | C84: Equipamentos para a fábrica de dormentes de concreto protendido | D84: ISF | F84: 320.438
B85: M0100 | C85: Ancoragem ativa em ferro fundido nodular para 22 cordoalhas - D = 12,7 mm | D85: un | F85: 1097.1344
B86: M0101 | C86: Ancoragem ativa em ferro fundido nodular para 27 cordoalhas - D = 12,7 mm | D86: un | F86: 1465.1417
